Workbook

Sheet Instructions
A1: Instructions
A2: 1 | B2: Click the "Begin Button" below
A3: 2 | B3: Enter the Community using the pull-down menu in cell B2
A4: 3 | B4: Enter the information in cells B3-B11
A5: 4 | B5: Select Yes in cell B14 to use the default borrowing rate* or No and then enter the known borrowing rate for the Community
A6: 5 | B6: Click on the "Run Model" button to view the results on the Drinking Water Outputs page
A7: 6 | B7: Navigate through the results using the "Go To Outputs" buttons to view the results on for Wastewater or Combined Household Bills
A8: 7 | B8: Click on the "New Model" button from any page to return to the Inputs page and repeat steps 2-6
B13: * The default borrowing rate is the average of the most recent National A-rated municipal bond yield curve rates at various maturities.

Sheet Inputs
A1: Model Inputs
A2: Community | B2: Abie
A3: Current Average Household Monthly Drinking Water Bill ($) | B3: 0
A4: Current Annual Growth Rate in Drinking Water Bills* | B4: 0
A5: Current Average Household Monthly Wastewater Bill ($) | B5: 0
A6: Current Annual Growth Rate in Wastewater Bills* | B6: 0
A8: Planned Expenditure on Drinking Water Infrastructure | B8: 0
A9: Number of Years that the Infrastructure Will be Financed | B9: 0
A10: Planned Expenditure on Wastewater Infrastructure | B10: 0
A11: Number of Years that the Infrastructure Will be Financed | B11: 0
A13: Annual Interest Rate
A14: Use Default Rate? | B14: Yes
A15: If not, Enter Annual Interest Rate for Financing
A19: * - Note: The current annual growth rate in bills should
A20: incorporate all projected cost increases
A21: EXCEPT for those associated with the debt
A22: payments on infrastructure.

Sheet Drinking Water Output
A1: Model Outputs - Drinking Water
A2: Community | B2: =city -> Abie
A3: Community Population (2021) | B3: ='Drinking Water Analysis Sheet'!M6 -> 64.06060606
A4: Increase in Average Monthly Drinking Water Bill | B4: =IF(drinkprincipal>0,((PMT(rate,drinkyears,-drinkprincipal))/('Drinking Water Analysis Sheet'!N6/2.5))/12,0) -> 0
A5: Probability that Monthly Drinking Water Bill
A6: Exceeds 2.5% of Median Household Income | B6: =drinkmaxprob -> 0.00119279267
A7: Sustainability Risk | B7: =IF(B6<0.33,"Low",IF(B6<0.67,"Moderate","High")) -> Low
A9: Current MHI (2021) | B9: =+B24 -> 70729.53311
A10: Current Drinking Water Bill | B10: =+drinkbill -> 0
A11: Projected Average Drinking Water Bill | B11: =+B10+B4 -> 0
A17: Note: The graph shows the typical sustainable threshold
A18: for the community (blue line), forecast into the future,
A19: along with a range of estimates developed in a
A20: statistical model. It also shows the projected drinking water
A21: bills using the inputs you provided.
A23: Projections | B23: 2021 | C23: 2022 | D23: 2023 | E23: 2024 | F23: 2025 | G23: 2026 | H23: 2027 | I23: 2028 | J23: 2029 | K23: 2030 | L23: 2031 | M23: 2032 | N23: 2033
A24: Median Household Income | B24: ='Drinking Water Analysis Sheet'!M2*12 -> 70729.53311 | C24: ='Drinking Water Analysis Sheet'!N2*12 -> 70601.04457 | D24: ='Drinking Water Analysis Sheet'!O2*12 -> 70494.93165 | E24: ='Drinking Water Analysis Sheet'!P2*12 -> 70413.51159 | F24: ='Drinking Water Analysis Sheet'!Q2*12 -> 70347.73642 | G24: ='Drinking Water Analysis Sheet'!R2*12 -> 70287.00705 | H24: ='Drinking Water Analysis Sheet'!S2*12 -> 70231.90336 | I24: ='Drinking Water Analysis Sheet'!T2*12 -> 70179.87831 | J24: ='Drinking Water Analysis Sheet'!U2*12 -> 70129.02523 | K24: ='Drinking Water Analysis Sheet'!V2*12 -> 70117.82469 | L24: ='Drinking Water Analysis Sheet'!W2*12 -> 70104.64043 | M24: ='Drinking Water Analysis Sheet'!X2*12 -> 70094.44588 | N24: ='Drinking Water Analysis Sheet'!Y2*12 -> 70091.83804
A25: Monthly Drinking Water Bill | B25: ='Drinking Water Analysis Sheet'!M7 -> 0 | C25: ='Drinking Water Analysis Sheet'!N7 -> 0 | D25: ='Drinking Water Analysis Sheet'!O7 -> 0 | E25: ='Drinking Water Analysis Sheet'!P7 -> 0 | F25: ='Drinking Water Analysis Sheet'!Q7 -> 0 | G25: ='Drinking Water Analysis Sheet'!R7 -> 0 | H25: ='Drinking Water Analysis Sheet'!S7 -> 0 | I25: ='Drinking Water Analysis Sheet'!T7 -> 0 | J25: ='Drinking Water Analysis Sheet'!U7 -> 0 | K25: ='Drinking Water Analysis Sheet'!V7 -> 0 | L25: ='Drinking Water Analysis Sheet'!W7 -> 0 | M25: ='Drinking Water Analysis Sheet'!X7 -> 0 | N25: ='Drinking Water Analysis Sheet'!Y7 -> 0
A26: % MHI | B26: =+(B25/B24)*12 -> 0 | C26: =+(C25/C24)*12 -> 0 | D26: 0 | E26: 0 | F26: 0 | G26: 0 | H26: 0 | I26: 0 | J26: 0 | K26: 0 | L26: 0 | M26: 0 | N26: 0
A27: Population | B27: =VLOOKUP(city,poptable,B23-2008,FALSE) -> 64.06060606 | C27: 63.65454545 | D27: 63.24848485 | E27: 62.84242424 | F27: 62.43636364 | G27: 62.03030303 | H27: 61.62424242 | I27: 61.21818182 | J27: 60.81212121 | K27: 60.40606061 | L27: 60 | M27: 59.59393939 | N27: 59.18787879
A29: Projections | B29: 2034 | C29: 2035 | D29: 2036 | E29: 2037 | F29: 2038 | G29: 2039 | H29: 2040 | I29: 2041 | J29: 2042 | K29: 2043 | L29: 2044 | M29: 2045 | N29: 2046
A30: Median Household Income | B30: =+'Drinking Water Analysis Sheet'!Z2*12 -> 70088.51966 | C30: =+'Drinking Water Analysis Sheet'!AA2*12 -> 70086.34798 | D30: =+'Drinking Water Analysis Sheet'!AB2*12 -> 70085.56719 | E30: =+'Drinking Water Analysis Sheet'!AC2*12 -> 70084.62643 | F30: =+'Drinking Water Analysis Sheet'!AD2*12 -> 70084.01746 | G30: =+'Drinking Water Analysis Sheet'!AE2*12 -> 70083.65332 | H30: =+'Drinking Water Analysis Sheet'!AF2*12 -> 70083.26264 | I30: =+'Drinking Water Analysis Sheet'!AG2*12 -> 70082.95621 | J30: =+'Drinking Water Analysis Sheet'!AH2*12 -> 70082.69124 | K30: =+'Drinking Water Analysis Sheet'!AI2*12 -> 70082.42373 | L30: =+'Drinking Water Analysis Sheet'!AJ2*12 -> 70082.17597 | M30: =+'Drinking Water Analysis Sheet'!AK2*12 -> 70081.93499 | N30: =+'Drinking Water Analysis Sheet'!AL2*12 -> 70081.69435
A31: Monthly Drinking Water Bill | B31: =+'Drinking Water Analysis Sheet'!Z7 -> 0 | C31: =+'Drinking Water Analysis Sheet'!AA7 -> 0 | D31: =+'Drinking Water Analysis Sheet'!AB7 -> 0 | E31: =+'Drinking Water Analysis Sheet'!AC7 -> 0 | F31: =+'Drinking Water Analysis Sheet'!AD7 -> 0 | G31: =+'Drinking Water Analysis Sheet'!AE7 -> 0 | H31: =+'Drinking Water Analysis Sheet'!AF7 -> 0 | I31: =+'Drinking Water Analysis Sheet'!AG7 -> 0 | J31: =+'Drinking Water Analysis Sheet'!AH7 -> 0 | K31: =+'Drinking Water Analysis Sheet'!AI7 -> 0 | L31: =+'Drinking Water Analysis Sheet'!AJ7 -> 0 | M31: =+'Drinking Water Analysis Sheet'!AK7 -> 0 | N31: =+'Drinking Water Analysis Sheet'!AL7 -> 0
A32: % MHI | B32: =+(B31/B30)*12 -> 0 | C32: =+(C31/C30)*12 -> 0 | D32: 0 | E32: 0 | F32: 0 | G32: 0 | H32: 0 | I32: 0 | J32: 0 | K32: 0 | L32: 0 | M32: 0 | N32: 0
A33: Population | B33: =VLOOKUP(city,poptable,B29-2008,FALSE) -> 58.78181818 | C33: 58.37575758 | D33: 57.96969697 | E33: 57.56363636 | F33: 57.15757576 | G33: 56.75151515 | H33: 56.34545455 | I33: 55.93939394 | J33: 55.53333333 | K33: 55.12727273 | L33: 54.72121212 | M33: 54.31515152 | N33: 53.90909091
A35: Projections | B35: 2047 | C35: 2048 | D35: 2049 | E35: 2050 | F35: 2051
A36: Median Household Income | B36: =+'Drinking Water Analysis Sheet'!AM2*12 -> 70081.45807 | C36: =+'Drinking Water Analysis Sheet'!AN2*12 -> 70081.22288 | D36: =+'Drinking Water Analysis Sheet'!AO2*12 -> 70080.98798 | E36: =+'Drinking Water Analysis Sheet'!AP2*12 -> 70080.754 | F36: =+'Drinking Water Analysis Sheet'!AQ2*12 -> 70080.52019
A37: Monthly Drinking Water Bill | B37: =+'Drinking Water Analysis Sheet'!AM7 -> 0 | C37: =+'Drinking Water Analysis Sheet'!AN7 -> 0 | D37: =+'Drinking Water Analysis Sheet'!AO7 -> 0 | E37: =+'Drinking Water Analysis Sheet'!AP7 -> 0 | F37: =+'Drinking Water Analysis Sheet'!AQ7 -> 0
A38: % MHI | B38: =+B37/B36*12 -> 0 | C38: =+C37/C36*12 -> 0 | D38: 0 | E38: 0 | F38: 0
A39: Population | B39: =VLOOKUP(city,poptable,B35-2008,FALSE) -> 53.5030303 | C39: 53.0969697 | D39: 52.69090909 | E39: 52.28484848 | F39: 51.87878788

Sheet Drinking Water Analysis Sheet (hidden)
A1: City | B1: 2010 | C1: 2011 | D1: 2012 | E1: 2013 | F1: 2014 | G1: 2015 | H1: 2016 | I1: 2017 | J1: 2018 | K1: 2019 | L1: 2020 | M1: 2021 | N1: 2022 | O1: 2023 | P1: 2024 | Q1: 2025 | R1: 2026 | S1: 2027 | T1: 2028 | U1: 2029 | V1: 2030 | W1: 2031 | X1: 2032 | Y1: 2033 | Z1: 2034 | AA1: 2035 | AB1: 2036 | AC1: 2037 | AD1: 2038 | AE1: 2039 | AF1: 2040 | AG1: 2041 | AH1: 2042 | AI1: 2043 | AJ1: 2044 | AK1: 2045 | AL1: 2046 | AM1: 2047 | AN1: 2048 | AO1: 2049 | AP1: 2050 | AQ1: 2051 | AT1: rate | AU1: =IF(Inputs!B14="Yes",VLOOKUP(drinkyears,yieldcurve,2),userrate) -> 0.0218 | AW1: 0 | AX1: 0.0218 | AZ1: Yes
A2: Income | B2: =VLOOKUP(city,incometable,'Drinking Water Analysis Sheet'!B1-2008,FALSE)/12 -> 3199.416667 | C2: =VLOOKUP(city,incometable,'Drinking Water Analysis Sheet'!C1-2008,FALSE)/12 -> 3923.583333 | D2: =VLOOKUP(city,incometable,'Drinking Water Analysis Sheet'!D1-2008,FALSE)/12 -> 5130.25 | E2: =VLOOKUP(city,incometable,'Drinking Water Analysis Sheet'!E1-2008,FALSE)/12 -> 5416.666667 | F2: =VLOOKUP(city,incometable,'Drinking Water Analysis Sheet'!F1-2008,FALSE)/12 -> 6319.416667 | G2: =VLOOKUP(city,incometable,'Drinking Water Analysis Sheet'!G1-2008,FALSE)/12 -> 5729.166667 | H2: =VLOOKUP(city,incometable,'Drinking Water Analysis Sheet'!H1-2008,FALSE)/12 -> 5595.25 | I2: =VLOOKUP(city,incometable,'Drinking Water Analysis Sheet'!I1-2008,FALSE)/12 -> 5562.5 | J2: =VLOOKUP(city,incometable,'Drinking Water Analysis Sheet'!J1-2008,FALSE)/12 -> 5791.666667 | K2: =VLOOKUP(city,incometable,'Drinking Water Analysis Sheet'!K1-2008,FALSE)/12 -> 5937.5 | L2: =VLOOKUP(city,incometable,'Drinking Water Analysis Sheet'!L1-2008,FALSE)/12 -> 5911.440832 | M2: =VLOOKUP(city,incometable,'Drinking Water Analysis Sheet'!M1-2008,FALSE)/12 -> 5894.127759 | N2: =VLOOKUP(city,incometable,'Drinking Water Analysis Sheet'!N1-2008,FALSE)/12 -> 5883.420381 | O2: =VLOOKUP(city,incometable,'Drinking Water Analysis Sheet'!O1-2008,FALSE)/12 -> 5874.577637 | P2: =VLOOKUP(city,incometable,'Drinking Water Analysis Sheet'!P1-2008,FALSE)/12 -> 5867.792632 | Q2: =VLOOKUP(city,incometable,'Drinking Water Analysis Sheet'!Q1-2008,FALSE)/12 -> 5862.311369 | R2: =VLOOKUP(city,incometable,'Drinking Water Analysis Sheet'!R1-2008,FALSE)/12 -> 5857.250587 | S2: =VLOOKUP(city,incometable,'Drinking Water Analysis Sheet'!S1-2008,FALSE)/12 -> 5852.658613 | T2: =VLOOKUP(city,incometable,'Drinking Water Analysis Sheet'!T1-2008,FALSE)/12 -> 5848.323193 | U2: =VLOOKUP(city,incometable,'Drinking Water Analysis Sheet'!U1-2008,FALSE)/12 -> 5844.085436 | V2: =VLOOKUP(city,incometable,'Drinking Water Analysis Sheet'!V1-2008,FALSE)/12 -> 5843.152058 | W2: =VLOOKUP(city,incometable,'Drinking Water Analysis Sheet'!W1-2008,FALSE)/12 -> 5842.053369 | X2: =VLOOKUP(city,incometable,'Drinking Water Analysis Sheet'!X1-2008,FALSE)/12 -> 5841.203823 | Y2: =VLOOKUP(city,incometable,'Drinking Water Analysis Sheet'!Y1-2008,FALSE)/12 -> 5840.986504 | Z2: =VLOOKUP(city,incometable,'Drinking Water Analysis Sheet'!Z1-2008,FALSE)/12 -> 5840.709972 | AA2: =VLOOKUP(city,incometable,'Drinking Water Analysis Sheet'!AA1-2008,FALSE)/12 -> 5840.528998 | AB2: =VLOOKUP(city,incometable,'Drinking Water Analysis Sheet'!AB1-2008,FALSE)/12 -> 5840.463932 | AC2: =VLOOKUP(city,incometable,'Drinking Water Analysis Sheet'!AC1-2008,FALSE)/12 -> 5840.385536 | AD2: =VLOOKUP(city,incometable,'Drinking Water Analysis Sheet'!AD1-2008,FALSE)/12 -> 5840.334788 | AE2: =VLOOKUP(city,incometable,'Drinking Water Analysis Sheet'!AE1-2008,FALSE)/12 -> 5840.304443 | AF2: =VLOOKUP(city,incometable,'Drinking Water Analysis Sheet'!AF1-2008,FALSE)/12 -> 5840.271887 | AG2: =VLOOKUP(city,incometable,'Drinking Water Analysis Sheet'!AG1-2008,FALSE)/12 -> 5840.246351 | AH2: =VLOOKUP(city,incometable,'Drinking Water Analysis Sheet'!AH1-2008,FALSE)/12 -> 5840.22427 | AI2: =VLOOKUP(city,incometable,'Drinking Water Analysis Sheet'!AI1-2008,FALSE)/12 -> 5840.201978 | AJ2: =VLOOKUP(city,incometable,'Drinking Water Analysis Sheet'!AJ1-2008,FALSE)/12 -> 5840.181331 | AK2: =VLOOKUP(city,incometable,'Drinking Water Analysis Sheet'!AK1-2008,FALSE)/12 -> 5840.161249 | AL2: =VLOOKUP(city,incometable,'Drinking Water Analysis Sheet'!AL1-2008,FALSE)/12 -> 5840.141196 | AM2: =VLOOKUP(city,incometable,'Drinking Water Analysis Sheet'!AM1-2008,FALSE)/12 -> 5840.121506 | AN2: =VLOOKUP(city,incometable,'Drinking Water Analysis Sheet'!AN1-2008,FALSE)/12 -> 5840.101907 | AO2: =VLOOKUP(city,incometable,'Drinking Water Analysis Sheet'!AO1-2008,FALSE)/12 -> 5840.082331 | AP2: =VLOOKUP(city,incometable,'Drinking Water Analysis Sheet'!AP1-2008,FALSE)/12 -> 5840.062833 | AQ2: =VLOOKUP(city,incometable,'Drinking Water Analysis Sheet'!AQ1-2008,FALSE)/12 -> 5840.043349 | AT2: =MAX(M8:AQ8) -> 0.00119279267 | AW2: 10 | AX2: 0.036 | AZ2: No
A3: SE | B3: =VLOOKUP(city,setable,B1-2008,FALSE)/12 -> 0 | C3: 0 | D3: 0 | E3: 0 | F3: 0 | G3: 0 | H3: 0 | I3: 0 | J3: 0 | K3: 0 | L3: 339.8806531 | M3: 480.6638292 | N3: 588.6905597 | O3: 679.7613062 | P3: 759.9962446 | Q3: 832.5341736 | R3: 899.2396836 | S3: 961.3276584 | T3: 1019.641959 | U3: 1074.796996 | V3: 1127.2566 | W3: 1177.381119 | X3: 1225.457122 | Y3: 1271.716956 | Z3: 1316.352109 | AA3: 1359.522612 | AB3: 1401.363833 | AC3: 1441.991488 | AD3: 1481.50542 | AE3: 1519.992489 | AF3: 1557.52882 | AG3: 1594.181572 | AH3: 1630.01035 | AI3: 1665.068347 | AJ3: 1699.403266 | AK3: 1733.058083 | AL3: 1766.071679 | AM3: 1798.479367 | AN3: 1830.313332 | AO3: 1861.603006 | AP3: 1892.375388 | AQ3: 1922.655317 | AW3: 20 | AX3: 0.041
A4: 2.5% Income | B4: =B2*0.025 -> 79.98541667 | C4: =C2*0.025 -> 98.08958333 | D4: 128.25625 | E4: 135.4166667 | F4: 157.9854167 | G4: 143.2291667 | H4: 139.88125 | I4: 139.0625 | J4: 144.7916667 | K4: 148.4375 | L4: 147.7860208 | M4: 147.353194 | N4: 147.0855095 | O4: 146.8644409 | P4: 146.6948158 | Q4: 146.5577842 | R4: 146.4312647 | S4: 146.3164653 | T4: 146.2080798 | U4: 146.1021359 | V4: 146.0788014 | W4: 146.0513342 | X4: 146.0300956 | Y4: 146.0246626 | Z4: 146.0177493 | AA4: 146.013225 | AB4: 146.0115983 | AC4: 146.0096384 | AD4: 146.0083697 | AE4: 146.0076111 | AF4: 146.0067972 | AG4: 146.0061588 | AH4: 146.0056067 | AI4: 146.0050494 | AJ4: 146.0045333 | AK4: 146.0040312 | AL4: 146.0035299 | AM4: 146.0030377 | AN4: 146.0025477 | AO4: 146.0020583 | AP4: 146.0015708 | AQ4: 146.0010837
A5: 2.5% SE | B5: =B3*0.025 -> 0 | C5: =C3*0.025 -> 0 | D5: 0 | E5: 0 | F5: 0 | G5: 0 | H5: 0 | I5: 0 | J5: 0 | K5: 0 | L5: 8.497016328 | M5: 12.01659573 | N5: 14.71726399 | O5: 16.99403266 | P5: 18.99990611 | Q5: 20.81335434 | R5: 22.48099209 | S5: 24.03319146 | T5: 25.49104898 | U5: 26.86992491 | V5: 28.181415 | W5: 29.43452799 | X5: 30.63642806 | Y5: 31.79292391 | Z5: 32.90880273 | AA5: 33.98806531 | AB5: 35.03409582 | AC5: 36.04978719 | AD5: 37.03763549 | AE5: 37.99981223 | AF5: 38.9382205 | AG5: 39.8545393 | AH5: 40.75025876 | AI5: 41.62670868 | AJ5: 42.48508164 | AK5: 43.32645206 | AL5: 44.15179198 | AM5: 44.96198418 | AN5: 45.75783329 | AO5: 46.54007514 | AP5: 47.3093847 | AQ5: 48.06638292
A6: Population | B6: =VLOOKUP(city,poptable,B1-2008,FALSE) -> 69 | C6: 68 | D6: 68 | E6: 67 | F6: 67 | G6: 66 | H6: 65 | I6: 66 | J6: 66 | K6: 65 | L6: 64.46666667 | M6: 64.06060606 | N6: 63.65454545 | O6: 63.24848485 | P6: 62.84242424 | Q6: 62.43636364 | R6: 62.03030303 | S6: 61.62424242 | T6: 61.21818182 | U6: 60.81212121 | V6: 60.40606061 | W6: 60 | X6: 59.59393939 | Y6: 59.18787879 | Z6: 58.78181818 | AA6: 58.37575758 | AB6: 57.96969697 | AC6: 57.56363636 | AD6: 57.15757576 | AE6: 56.75151515 | AF6: 56.34545455 | AG6: 55.93939394 | AH6: 55.53333333 | AI6: 55.12727273 | AJ6: 54.72121212 | AK6: 54.31515152 | AL6: 53.90909091 | AM6: 53.5030303 | AN6: 53.0969697 | AO6: 52.69090909 | AP6: 52.28484848 | AQ6: 51.87878788
A7: Water Cost | M7: =drinkbill -> 0 | N7: =M7*(1+drinkbillgrowth)+IF(drinkprincipal>0, ((PMT(rate,drinkyears,-drinkprincipal))/(N6/2.5))/12-N14*(PMT(rate,drinkyears,-drinkprincipal)/(N6/2.5))/12,0) -> 0 | O7: =IF(O1<$M$1+drinkyears+1,N7*(1+drinkbillgrowth)-IF(drinkprincipal>0,O14*(PMT(rate,drinkyears,-drinkprincipal)/(N6/2.5)/12),0),O16) -> 0 | P7: 0 | Q7: 0 | R7: 0 | S7: 0 | T7: 0 | U7: 0 | V7: 0 | W7: 0 | X7: 0 | Y7: 0 | Z7: 0 | AA7: 0 | AB7: 0 | AC7: 0 | AD7: 0 | AE7: 0 | AF7: 0 | AG7: 0 | AH7: 0 | AI7: 0 | AJ7: 0 | AK7: 0 | AL7: 0 | AM7: 0 | AN7: 0 | AO7: 0 | AP7: 0 | AQ7: 0
A8: Probability Unafforable | M8: =_xlfn.NORM.DIST(M7,M4,M5,TRUE) -> 7.201700581e-35 | N8: 8.08914724e-24 | O8: 2.759012016e-18 | P8: 5.779278012e-15 | Q8: 9.507258406e-13 | R8: 3.669541958e-11 | S8: 5.712936353e-10 | T8: 4.856566283e-09 | U8: 2.703406045e-08 | V8: =_xlfn.NORM.DIST(V7,V4,V5,TRUE) -> 1.088710619e-07 | W8: 3.49025526e-07 | X8: 9.370317265e-07 | Y8: 2.184673356e-06 | Z8: 4.560169121e-06 | AA8: 8.694806561e-06 | AB8: 1.538443114e-05 | AC8: 2.558454147e-05 | AD8: 4.037515356e-05 | AE8: 6.093726782e-05 | AF8: 8.852174778e-05 | AG8: 0.0001244076409 | AH8: 0.0001698763353 | AI8: 0.0002261820678 | AJ8: 0.0002945247056 | AK8: 0.0003760333783 | AL8: 0.0004717502662 | AM8: 0.0005826192482 | AN8: 0.0007094802883 | AO8: 0.0008530652893 | AP8: =_xlfn.NORM.DIST(AP7,AP4,AP5,TRUE) -> 0.001013997352 | AQ8: 0.00119279267
A10: Chart Inputs
A11: 2.5% High Income | L11: =_xlfn.NORM.INV(0.95,L4,L5) -> 161.7623689 | M11: =_xlfn.NORM.INV(0.95,M4,M5) -> 167.118735 | N11: 171.2932546 | O11: 174.8171372 | P11: 177.9468803 | Q11: 180.7927056 | R11: 183.4092061 | S11: 185.8475475 | T11: 188.1371242 | U11: 190.2992293 | V11: =_xlfn.NORM.INV(0.95,V4,V5) -> 192.4331041 | W11: 194.4668243 | X11: 196.4225354 | Y11: 198.3193688 | Z11: 200.1479128 | AA11: 201.9186175 | AB11: 203.6375579 | AC11: 205.3062616 | AD11: 206.9298588 | AE11: 208.5117401 | AF11: 210.0544704 | AG11: 211.5610423 | AH11: 213.0338177 | AI11: 214.4748922 | AJ11: 215.8862739 | AK11: 217.269703 | AL11: 218.6267651 | AM11: 219.9589204 | AN11: 221.2674857 | AO11: 222.5536697 | AP11: =_xlfn.NORM.INV(0.95,AP4,AP5) -> 223.8185838 | AQ11: 225.063248
A12: 2.5% Low Income | L12: =_xlfn.NORM.INV(0.05,L4,L5) -> 133.8096727 | M12: =_xlfn.NORM.INV(0.05,M4,M5) -> 127.5876529 | N12: 122.8777645 | O12: 118.9117447 | P12: 115.4427513 | Q12: 112.3228628 | R12: 109.4533233 | S12: 106.7853832 | T12: 104.2790354 | U12: 101.9050424 | V12: =_xlfn.NORM.INV(0.05,V4,V5) -> 99.72449878 | W12: 97.63584411 | X12: 95.63765578 | Y12: 93.72995639 | Z12: 91.88758576 | AA12: 90.10783245 | AB12: 88.38563873 | AC12: 86.71301518 | AD12: 85.08688063 | AE12: 83.50348211 | AF12: 81.95912395 | AG12: 80.45127526 | AH12: 78.97739582 | AI12: 77.5352067 | AJ12: 76.12279265 | AK12: 74.7383594 | AL12: 73.38029472 | AM12: 72.0471549 | AN12: 70.73760962 | AO12: 69.45044689 | AP12: =_xlfn.NORM.INV(0.05,AP4,AP5) -> 68.18455781 | AQ12: 66.93891944
A14: Payoff Counter | M14: =IF(M1=$M$1+drinkyears+1,1,0) -> 0 | N14: 1 | O14: 0 | P14: 0 | Q14: 0 | R14: 0 | S14: 0 | T14: 0 | U14: 0 | V14: 0 | W14: 0 | X14: 0 | Y14: 0 | Z14: 0 | AA14: 0 | AB14: 0 | AC14: 0 | AD14: 0 | AE14: 0 | AF14: 0 | AG14: 0 | AH14: 0 | AI14: 0 | AJ14: 0 | AK14: 0 | AL14: 0 | AM14: 0 | AN14: 0 | AO14: 0 | AP14: 0 | AQ14: 0
A16: Growthrate | M16: =drinkbill -> 0 | N16: =M16*(1+drinkbillgrowth) -> 0 | O16: 0 | P16: 0 | Q16: 0 | R16: 0 | S16: 0 | T16: 0 | U16: 0 | V16: 0 | W16: 0 | X16: 0 | Y16: 0 | Z16: 0 | AA16: 0 | AB16: 0 | AC16: 0 | AD16: 0 | AE16: 0 | AF16: 0 | AG16: 0 | AH16: 0 | AI16: 0 | AJ16: 0 | AK16: 0 | AL16: 0 | AM16: 0 | AN16: 0 | AO16: 0 | AP16: 0 | AQ16: 0

Sheet Wastewater Output
A1: Model Outputs - Wastewater
A2: Community | B2: =city -> Abie
A3: Community Population (2021) | B3: ='Wastewater Analysis Sheet'!M6 -> 64.06060606
A4: Increase in Average Monthly Wastewater Bill | B4: =IF(wasteprincipal>0,((PMT(wasterate,wasteyears,-wasteprincipal))/('Wastewater Analysis Sheet'!N6/2.5))/12,0) -> 0
A5: Probability that Monthly Wastewater Bill
A6: Exceeds 2.0% of Median Household Income | B6: =wastemaxprob -> 0.00119279267
A7: Sustainability Risk | B7: =IF(B6<0.33,"Low",IF(B6<0.67,"Moderate","High")) -> Low
A9: Current MHI (2021) | B9: =+B24 -> 70729.53311
A10: Current Wastewater Bill | B10: =+wastebill -> 0
A11: Projected Average Wastewater Bill | B11: =+B10+B4 -> 0
A17: Note: The graph shows the typical sustainable threshold
A18: for the community (blue line), forecast into the future,
A19: along with a range of estimates developed in a
A20: statistical model. It also shows the projected wastewater
A21: bills using the inputs you provided.
A23: Projections | B23: 2021 | C23: 2022 | D23: 2023 | E23: 2024 | F23: 2025 | G23: 2026 | H23: 2027 | I23: 2028 | J23: 2029 | K23: 2030 | L23: 2031 | M23: 2032 | N23: 2033
A24: Median Household Income | B24: ='Wastewater Analysis Sheet'!M2*12 -> 70729.53311 | C24: ='Wastewater Analysis Sheet'!N2*12 -> 70601.04457 | D24: ='Wastewater Analysis Sheet'!O2*12 -> 70494.93165 | E24: ='Wastewater Analysis Sheet'!P2*12 -> 70413.51159 | F24: ='Wastewater Analysis Sheet'!Q2*12 -> 70347.73642 | G24: ='Wastewater Analysis Sheet'!R2*12 -> 70287.00705 | H24: ='Wastewater Analysis Sheet'!S2*12 -> 70231.90336 | I24: ='Wastewater Analysis Sheet'!T2*12 -> 70179.87831 | J24: ='Wastewater Analysis Sheet'!U2*12 -> 70129.02523 | K24: ='Wastewater Analysis Sheet'!V2*12 -> 70117.82469 | L24: ='Wastewater Analysis Sheet'!W2*12 -> 70104.64043 | M24: ='Wastewater Analysis Sheet'!X2*12 -> 70094.44588 | N24: ='Wastewater Analysis Sheet'!Y2*12 -> 70091.83804
A25: Monthly Wastewater Bill | B25: ='Wastewater Analysis Sheet'!M7 -> 0 | C25: ='Wastewater Analysis Sheet'!N7 -> 0 | D25: ='Wastewater Analysis Sheet'!O7 -> 0 | E25: ='Wastewater Analysis Sheet'!P7 -> 0 | F25: ='Wastewater Analysis Sheet'!Q7 -> 0 | G25: ='Wastewater Analysis Sheet'!R7 -> 0 | H25: ='Wastewater Analysis Sheet'!S7 -> 0 | I25: ='Wastewater Analysis Sheet'!T7 -> 0 | J25: ='Wastewater Analysis Sheet'!U7 -> 0 | K25: ='Wastewater Analysis Sheet'!V7 -> 0 | L25: ='Wastewater Analysis Sheet'!W7 -> 0 | M25: ='Wastewater Analysis Sheet'!X7 -> 0 | N25: ='Wastewater Analysis Sheet'!Y7 -> 0
A26: %MHI | B26: =+B25*12/B24 -> 0 | C26: =+C25*12/C24 -> 0 | D26: 0 | E26: 0 | F26: 0 | G26: 0 | H26: 0 | I26: 0 | J26: 0 | K26: 0 | L26: 0 | M26: 0 | N26: 0
A27: Population | B27: =VLOOKUP(city,poptable,B23-2008,FALSE) -> 64.06060606 | C27: 63.65454545 | D27: 63.24848485 | E27: 62.84242424 | F27: 62.43636364 | G27: 62.03030303 | H27: 61.62424242 | I27: 61.21818182 | J27: 60.81212121 | K27: 60.40606061 | L27: 60 | M27: 59.59393939 | N27: 59.18787879
A29: Projections | B29: 2034 | C29: 2035 | D29: 2036 | E29: 2037 | F29: 2038 | G29: 2039 | H29: 2040 | I29: 2041 | J29: 2042 | K29: 2043 | L29: 2044 | M29: 2045 | N29: 2046
A30: Median Household Income | B30: =+'Wastewater Analysis Sheet'!Z2*12 -> 70088.51966 | C30: =+'Wastewater Analysis Sheet'!AA2*12 -> 70086.34798 | D30: =+'Wastewater Analysis Sheet'!AB2*12 -> 70085.56719 | E30: =+'Wastewater Analysis Sheet'!AC2*12 -> 70084.62643 | F30: =+'Wastewater Analysis Sheet'!AD2*12 -> 70084.01746 | G30: =+'Wastewater Analysis Sheet'!AE2*12 -> 70083.65332 | H30: =+'Wastewater Analysis Sheet'!AF2*12 -> 70083.26264 | I30: =+'Wastewater Analysis Sheet'!AG2*12 -> 70082.95621 | J30: =+'Wastewater Analysis Sheet'!AH2*12 -> 70082.69124 | K30: =+'Wastewater Analysis Sheet'!AI2*12 -> 70082.42373 | L30: =+'Wastewater Analysis Sheet'!AJ2*12 -> 70082.17597 | M30: =+'Wastewater Analysis Sheet'!AK2*12 -> 70081.93499 | N30: =+'Wastewater Analysis Sheet'!AL2*12 -> 70081.69435
A31: Monthly Wastewater Bill | B31: ='Wastewater Analysis Sheet'!Z7 -> 0 | C31: ='Wastewater Analysis Sheet'!AA7 -> 0 | D31: ='Wastewater Analysis Sheet'!AB7 -> 0 | E31: ='Wastewater Analysis Sheet'!AC7 -> 0 | F31: ='Wastewater Analysis Sheet'!AD7 -> 0 | G31: ='Wastewater Analysis Sheet'!AE7 -> 0 | H31: ='Wastewater Analysis Sheet'!AF7 -> 0 | I31: ='Wastewater Analysis Sheet'!AG7 -> 0 | J31: ='Wastewater Analysis Sheet'!AH7 -> 0 | K31: ='Wastewater Analysis Sheet'!AI7 -> 0 | L31: ='Wastewater Analysis Sheet'!AJ7 -> 0 | M31: ='Wastewater Analysis Sheet'!AK7 -> 0 | N31: ='Wastewater Analysis Sheet'!AL7 -> 0
A32: % MHI | B32: =+(B31/B30)*12 -> 0 | C32: =+(C31/C30)*12 -> 0 | D32: 0 | E32: 0 | F32: 0 | G32: 0 | H32: 0 | I32: 0 | J32: 0 | K32: 0 | L32: 0 | M32: 0 | N32: 0
A33: Population | B33: =VLOOKUP(city,poptable,B29-2008,FALSE) -> 58.78181818 | C33: 58.37575758 | D33: 57.96969697 | E33: 57.56363636 | F33: 57.15757576 | G33: 56.75151515 | H33: 56.34545455 | I33: 55.93939394 | J33: 55.53333333 | K33: 55.12727273 | L33: 54.72121212 | M33: 54.31515152 | N33: 53.90909091
A35: Projections | B35: 2047 | C35: 2048 | D35: 2049 | E35: 2050 | F35: 2051
A36: Median Household Income | B36: =+'Wastewater Analysis Sheet'!AM2*12 -> 70081.45807 | C36: =+'Wastewater Analysis Sheet'!AN2*12 -> 70081.22288 | D36: =+'Wastewater Analysis Sheet'!AO2*12 -> 70080.98798 | E36: =+'Wastewater Analysis Sheet'!AP2*12 -> 70080.754 | F36: =+'Wastewater Analysis Sheet'!AQ2*12 -> 70080.52019
A37: Monthly Wastewater Bill | B37: =+'Wastewater Analysis Sheet'!AM7 -> 0 | C37: =+'Wastewater Analysis Sheet'!AN7 -> 0 | D37: =+'Wastewater Analysis Sheet'!AO7 -> 0 | E37: =+'Wastewater Analysis Sheet'!AP7 -> 0 | F37: =+'Wastewater Analysis Sheet'!AQ7 -> 0
A38: % MHI | B38: =+B37/B36*12 -> 0 | C38: =+C37/C36*12 -> 0 | D38: 0 | E38: 0 | F38: 0
A39: Population | B39: =VLOOKUP(city,poptable,B35-2008,FALSE) -> 53.5030303 | C39: 53.0969697 | D39: 52.69090909 | E39: 52.28484848 | F39: 51.87878788

Sheet Combined Bill Output
A1: Model Outputs - Combined Bill
A2: Community | B2: =city -> Abie
A3: Community Population (2021) | B3: ='Wastewater Analysis Sheet'!M6 -> 64.06060606
A4: Increase in Average Monthly Combined Bill | B4: =IF(drinkprincipal>0,((PMT(rate,drinkyears,-drinkprincipal)+PMT(wasterate,wasteyears,-wasteprincipal))/('Wastewater Analysis Sheet'!N6/2.5))/12,0) -> 0
A5: Probability that Monthly Combined Bill
A6: Exceeds 2.0% of Median Household Income | B6: ='Combined Bill Analysis Sheet'!combinedmaxprob -> 0.00119279267
A7: Sustainability Risk | B7: =IF(B6<0.33,"Low",IF(B6<0.67,"Moderate","High")) -> Low
A9: Current MHI (2021) | B9: =+B24 -> 70729.53311
A10: Current Combined Bill | B10: =+wastebill+drinkbill -> 0
A11: Projected Combined Bill | B11: =+B10+B4 -> 0
A17: Note: The graph shows the typical sustainable threshold
A18: for the community (blue line), forecast into the future,
A19: along with a range of estimates developed in a
A20: statistical model. It also shows the projected combined
A21: bills using the inputs you provided.
A23: Projections | B23: 2021 | C23: 2022 | D23: 2023 | E23: 2024 | F23: 2025 | G23: 2026 | H23: 2027 | I23: 2028 | J23: 2029 | K23: 2030 | L23: 2031 | M23: 2032 | N23: 2033
A24: Median Household Income | B24: ='Wastewater Analysis Sheet'!M2*12 -> 70729.53311 | C24: ='Wastewater Analysis Sheet'!N2*12 -> 70601.04457 | D24: ='Wastewater Analysis Sheet'!O2*12 -> 70494.93165 | E24: ='Wastewater Analysis Sheet'!P2*12 -> 70413.51159 | F24: ='Wastewater Analysis Sheet'!Q2*12 -> 70347.73642 | G24: ='Wastewater Analysis Sheet'!R2*12 -> 70287.00705 | H24: ='Wastewater Analysis Sheet'!S2*12 -> 70231.90336 | I24: ='Wastewater Analysis Sheet'!T2*12 -> 70179.87831 | J24: ='Wastewater Analysis Sheet'!U2*12 -> 70129.02523 | K24: ='Wastewater Analysis Sheet'!V2*12 -> 70117.82469 | L24: ='Wastewater Analysis Sheet'!W2*12 -> 70104.64043 | M24: ='Wastewater Analysis Sheet'!X2*12 -> 70094.44588 | N24: ='Wastewater Analysis Sheet'!Y2*12 -> 70091.83804
A25: Monthly Combined Bill | B25: ='Wastewater Analysis Sheet'!M7+'Drinking Water Analysis Sheet'!M7 -> 0 | C25: ='Wastewater Analysis Sheet'!N7+'Drinking Water Analysis Sheet'!N7 -> 0 | D25: ='Wastewater Analysis Sheet'!O7+'Drinking Water Analysis Sheet'!O7 -> 0 | E25: ='Wastewater Analysis Sheet'!P7+'Drinking Water Analysis Sheet'!P7 -> 0 | F25: ='Wastewater Analysis Sheet'!Q7+'Drinking Water Analysis Sheet'!Q7 -> 0 | G25: ='Wastewater Analysis Sheet'!R7+'Drinking Water Analysis Sheet'!R7 -> 0 | H25: ='Wastewater Analysis Sheet'!S7+'Drinking Water Analysis Sheet'!S7 -> 0 | I25: ='Wastewater Analysis Sheet'!T7+'Drinking Water Analysis Sheet'!T7 -> 0 | J25: ='Wastewater Analysis Sheet'!U7+'Drinking Water Analysis Sheet'!U7 -> 0 | K25: ='Wastewater Analysis Sheet'!V7+'Drinking Water Analysis Sheet'!V7 -> 0 | L25: ='Wastewater Analysis Sheet'!W7+'Drinking Water Analysis Sheet'!W7 -> 0 | M25: ='Wastewater Analysis Sheet'!X7+'Drinking Water Analysis Sheet'!X7 -> 0 | N25: ='Wastewater Analysis Sheet'!Y7+'Drinking Water Analysis Sheet'!Y7 -> 0
A26: %MHI | B26: =+B25*12/B24 -> 0 | C26: =+C25*12/C24 -> 0 | D26: 0 | E26: 0 | F26: 0 | G26: 0 | H26: 0 | I26: 0 | J26: 0 | K26: 0 | L26: 0 | M26: 0 | N26: 0
A27: Population | B27: =VLOOKUP(city,poptable,B23-2008,FALSE) -> 64.06060606 | C27: 63.65454545 | D27: 63.24848485 | E27: 62.84242424 | F27: 62.43636364 | G27: 62.03030303 | H27: 61.62424242 | I27: 61.21818182 | J27: 60.81212121 | K27: 60.40606061 | L27: 60 | M27: 59.59393939 | N27: 59.18787879
A29: Projections | B29: 2034 | C29: 2035 | D29: 2036 | E29: 2037 | F29: 2038 | G29: 2039 | H29: 2040 | I29: 2041 | J29: 2042 | K29: 2043 | L29: 2044 | M29: 2045 | N29: 2046
A30: Median Household Income | B30: =+'Wastewater Analysis Sheet'!Z2*12 -> 70088.51966 | C30: =+'Wastewater Analysis Sheet'!AA2*12 -> 70086.34798 | D30: =+'Wastewater Analysis Sheet'!AB2*12 -> 70085.56719 | E30: =+'Wastewater Analysis Sheet'!AC2*12 -> 70084.62643 | F30: =+'Wastewater Analysis Sheet'!AD2*12 -> 70084.01746 | G30: =+'Wastewater Analysis Sheet'!AE2*12 -> 70083.65332 | H30: =+'Wastewater Analysis Sheet'!AF2*12 -> 70083.26264 | I30: =+'Wastewater Analysis Sheet'!AG2*12 -> 70082.95621 | J30: =+'Wastewater Analysis Sheet'!AH2*12 -> 70082.69124 | K30: =+'Wastewater Analysis Sheet'!AI2*12 -> 70082.42373 | L30: =+'Wastewater Analysis Sheet'!AJ2*12 -> 70082.17597 | M30: =+'Wastewater Analysis Sheet'!AK2*12 -> 70081.93499 | N30: =+'Wastewater Analysis Sheet'!AL2*12 -> 70081.69435
A31: Monthly Combined Bill | B31: ='Wastewater Analysis Sheet'!Z7+'Drinking Water Analysis Sheet'!Z7 -> 0 | C31: ='Wastewater Analysis Sheet'!AA7+'Drinking Water Analysis Sheet'!AA7 -> 0 | D31: ='Wastewater Analysis Sheet'!AB7+'Drinking Water Analysis Sheet'!AB7 -> 0 | E31: ='Wastewater Analysis Sheet'!AC7+'Drinking Water Analysis Sheet'!AC7 -> 0 | F31: ='Wastewater Analysis Sheet'!AD7+'Drinking Water Analysis Sheet'!AD7 -> 0 | G31: ='Wastewater Analysis Sheet'!AE7+'Drinking Water Analysis Sheet'!AE7 -> 0 | H31: ='Wastewater Analysis Sheet'!AF7+'Drinking Water Analysis Sheet'!AF7 -> 0 | I31: ='Wastewater Analysis Sheet'!AG7+'Drinking Water Analysis Sheet'!AG7 -> 0 | J31: ='Wastewater Analysis Sheet'!AH7+'Drinking Water Analysis Sheet'!AH7 -> 0 | K31: ='Wastewater Analysis Sheet'!AI7+'Drinking Water Analysis Sheet'!AI7 -> 0 | L31: ='Wastewater Analysis Sheet'!AJ7+'Drinking Water Analysis Sheet'!AJ7 -> 0 | M31: ='Wastewater Analysis Sheet'!AK7+'Drinking Water Analysis Sheet'!AK7 -> 0 | N31: ='Wastewater Analysis Sheet'!AL7+'Drinking Water Analysis Sheet'!AL7 -> 0
A32: % MHI | B32: =+(B31/B30)*12 -> 0 | C32: =+(C31/C30)*12 -> 0 | D32: 0 | E32: 0 | F32: 0 | G32: 0 | H32: 0 | I32: 0 | J32: 0 | K32: 0 | L32: 0 | M32: 0 | N32: 0
A33: Population | B33: =VLOOKUP(city,poptable,B29-2008,FALSE) -> 58.78181818 | C33: 58.37575758 | D33: 57.96969697 | E33: 57.56363636 | F33: 57.15757576 | G33: 56.75151515 | H33: 56.34545455 | I33: 55.93939394 | J33: 55.53333333 | K33: 55.12727273 | L33: 54.72121212 | M33: 54.31515152 | N33: 53.90909091
A35: Projections | B35: 2047 | C35: 2048 | D35: 2049 | E35: 2050 | F35: 2051
A36: Monthly Household Income | B36: =+'Wastewater Analysis Sheet'!AM2*12 -> 70081.45807 | C36: =+'Wastewater Analysis Sheet'!AN2*12 -> 70081.22288 | D36: =+'Wastewater Analysis Sheet'!AO2*12 -> 70080.98798 | E36: =+'Wastewater Analysis Sheet'!AP2*12 -> 70080.754 | F36: =+'Wastewater Analysis Sheet'!AQ2*12 -> 70080.52019
A37: Monthly Combined Bill | B37: =+'Wastewater Analysis Sheet'!AM7+'Drinking Water Analysis Sheet'!AM7 -> 0 | C37: =+'Wastewater Analysis Sheet'!AN7+'Drinking Water Analysis Sheet'!AN7 -> 0 | D37: =+'Wastewater Analysis Sheet'!AO7+'Drinking Water Analysis Sheet'!AO7 -> 0 | E37: =+'Wastewater Analysis Sheet'!AP7+'Drinking Water Analysis Sheet'!AP7 -> 0 | F37: =+'Wastewater Analysis Sheet'!AQ7+'Drinking Water Analysis Sheet'!AQ7 -> 0
A38: % MHI | B38: =+B37/B36*12 -> 0 | C38: =+C37/C36*12 -> 0 | D38: 0 | E38: 0 | F38: 0
A39: Population | B39: =VLOOKUP(city,poptable,B35-2008,FALSE) -> 53.5030303 | C39: 53.0969697 | D39: 52.69090909 | E39: 52.28484848 | F39: 51.87878788

Sheet Coefficients (hidden)
A1: Pop | B1: Ed_HS | C1: Ed_BACH | D1: MANU_ | E1: AR
A2: 0.2303782 | B2: 87.7316 | C2: 125.6011 | D2: 35.8008 | E2: 0.5991778

Sheet Unit Specific Constants (hidden)
A1: Abie | B1: 18166.56
A2: Adams | B2: 10214.86
A3: Ainsworth | B3: 3876.56
A4: Albion | B4: 8296.519
A5: Alda | B5: 9721.31
A6: Alexandria | B6: 4516.9
A7: Allen | B7: 7483.27
A8: Alliance | B8: 7516.81
A9: Alma | B9: 6446.1
A10: Alvo | B10: 6092.23
A11: Amherst | B11: 8530.003
A12: Anselmo | B12: 10983.614
A13: Ansley | B13: 8040.72
A14: Arapahoe | B14: 8444.624
A15: Arcadia | B15: 4570.59
A16: Arlington | B16: 15140.815
A17: Arnold | B17: 7714.6
A18: Arthur | B18: 3019.47
A19: Ashland | B19: 10333.148
A20: Ashton | B20: 6396.25
A21: Atkinson | B21: 6897.18
A22: Atlanta | B22: 17209.9226
A23: Auburn | B23: 8480.112
A24: Aurora | B24: 10817.554
A25: Avoca | B25: 12373.022
A26: Axtell | B26: 8896.243
A27: Ayr | B27: 9980.258
A28: Bancroft | B28: 10195.895
A29: Barada | B29: 9332.852
A30: Barneston | B30: 8140.51
A31: Bartlett | B31: 5403.62
A32: Bartley | B32: 8994.206
A33: Bassett | B33: 10742.613
A34: Battle Creek | B34: 15189.502
A35: Bayard | B35: 7251.87
A36: Bazile Mills | B36: 17454.4024
A37: Beatrice | B37: 3735.12
A38: Beaver City | B38: 4792.08
A39: Beaver Crossing | B39: 11394.631
A40: Bee | B40: 3751.09
A41: Beemer | B41: 6411.18
A42: Belden | B42: 12667.936
A43: Belgrade | B43: 3123.72
A44: Bellevue | B44: 716.75
A45: Bellwood | B45: 9645.25
A46: Belvidere | B46: 9806.757
A47: Benedict | B47: 8312.876
A48: Benkelman | B48: 5255.63
A49: Bennet | B49: 16061.061
A50: Bennington | B50: 16862.738
A51: Bertrand | B51: 9135.323
A52: Berwyn | B52: 12565.265
A53: Big Springs | B53: 9759.591
A54: Bladen | B54: 7088.75
A55: Blair | B55: 5699.11
A56: Bloomfield | B56: 4307.06
A57: Bloomington | B57: 10110.778
A58: Blue Hill | B58: 6693.02
A59: Blue Springs | B59: 5836.5
A60: Boys Town | B60: 5267.51
A61: Bradshaw | B61: 11040.502
A62: Brady | B62: 9385.713
A63: Brainard | B63: 11839.462
A64: Bridgeport | B64: 7695.36
A65: Bristow | B65: 6269.51
A66: Broadwater | B66: 4929.55
A67: Brock | B67: 3484.78
A68: Broken Bow | B68: 4743.9
A69: Brownville | B69: 6482.45
A70: Brule | B70: 5739.91
A71: Bruning | B71: 6803.13
A72: Bruno | B72: 619.92
A73: Brunswick | B73: 7203.9
A74: Burchard | B74: 1282.08
A75: Burr | B75: 6040.59
A76: Burwell | B76: 5986.11
A77: Bushnell | B77: 5444.94
A78: Butte | B78: 7016.57
A79: Byron | B79: 6595
A80: Cairo | B80: 13477.787
A81: Callaway | B81: 7069.4
A82: Cambridge | B82: 7163.54
A83: Campbell | B83: 8249.081
A84: Carleton | B84: 11364.47
A85: Carroll | B85: 7809.8
A86: Cedar Bluffs | B86: 9143.767
A87: Cedar Creek | B87: 17355.5317
A88: Cedar Rapids | B88: 10280.128
A89: Center | B89: 7858.65
A90: Central City | B90: 6153.38
A91: Ceresco | B91: 15751.023
A92: Chadron | B92: 2546.4
A93: Chambers | B93: 4927.51
A94: Chapman | B94: 7207.51
A95: Chappell | B95: 7304.73
A96: Chester | B96: 5461.4
A97: Clarks | B97: 8459.477
A98: Clarkson | B98: 7656.93
A99: Clatonia | B99: 8237.689
A100: Clay Center | B100: 10698.147
A101: Clearwater | B101: 8751.528
A102: Clinton | B102: 17996.2753
A103: Cody | B103: 7306.89
A104: Coleridge | B104: 9933.255
A105: Colon | B105: 16124.066
A106: Columbus | B106: 5426.14
A107: Comstock | B107: 9264.77
A108: Concord | B108: 5970.02
A109: Cook | B109: 3906.02
A110: Cordova | B110: 8857.398
A111: Cornlea | B111: 20996.609
A112: Cortland | B112: 12059.45
A113: Cotesfield | B113: 6747.4
A114: Cowles | B114: 15056.792
A115: Cozad | B115: 6309.32
A116: Crab Orchard | B116: 3006.18
A117: Craig | B117: 6367.15
A118: Crawford | B118: 4124.44
A119: Creighton | B119: 7016.69
A120: Creston | B120: 4644.78
A121: Crete | B121: 6294.28
A122: Crofton | B122: 8798.245
A123: Crookston | B123: 6145.51
A124: Culbertson | B124: 7534.02
A125: Curtis | B125: 5068.09
A126: Cushing | B126: 3422.56
A127: Dakota City | B127: 13951.93
A128: Dalton | B128: 8146.95
A129: Danbury | B129: 2227.7
A130: Dannebrog | B130: 7005.97
A131: Davenport | B131: 6629.22
A132: Davey | B132: 15677.618
A133: David City | B133: 8673.044
A134: Dawson | B134: 4671.96
A135: Daykin | B135: 7675.3
A136: De Witt | B136: 10253.61
A137: Decatur | B137: 4282.3
A138: Denton | B138: 14292.412
A139: Deshler | B139: 6428.6
A140: Deweese | B140: 7589.6
A141: Diller | B141: 10515.068
A142: Dix | B142: 6794.56
A143: Dixon | B143: 7451.51
A144: Dodge | B144: 8528.563
A145: Doniphan | B145: 12613.817
A146: Dorchester | B146: 10411.235
A147: Douglas | B147: 10726.047
A148: Du Bois | B148: 10263.02
A149: Dunbar | B149: 6164.36
A150: Duncan | B150: 13827.13
A151: Dunning | B151: 3095.28
A152: Dwight | B152: 11579.728
A153: Eagle | B153: 14512.572
A154: Eddyville | B154: 8207.949
A155: Edgar | B155: 4435.59
A156: Edison | B156: 4501.25
A157: Elba | B157: 10319.488
A158: Elgin | B158: 9670.692
A159: Elk Creek | B159: 4632.86
A160: Elm Creek | B160: 9414.331
A161: Elmwood | B161: 13509.67
A162: Elsie | B162: 9604.056
A163: Elwood | B163: 11131.603
A164: Elyria | B164: 17780.7208
A165: Emerson | B165: 9159.498
A166: Emmet | B166: 9215.568
A167: Endicott | B167: 9253.239
A168: Ericson | B168: 6483.86
A169: Eustis | B169: 12483.517
A170: Ewing | B170: 7253.84
A171: Exeter | B171: 11850.362
A172: Fairbury | B172: 5096.17
A173: Fairfield | B173: 4487.64
A174: Fairmont | B174: 10175.348
A175: Falls City | B175: 5122.6
A176: Farnam | B176: 8894.302
A177: Farwell | B177: 7887.91
A178: Filley | B178: 8702.947
A179: Firth | B179: 12118.335
A180: Fordyce | B180: 8448.887
A181: Fort Calhoun | B181: 12841.359
A182: Foster | B182: 12051.249
A183: Franklin | B183: 7162.15
A184: Fremont | B184: 2994.54
A185: Friend | B185: 13401.697
A186: Fullerton | B186: 6206.55
A187: Funk | B187: 13760.91
A188: Gandy | B188: 8629.06
A189: Garland | B189: 9224.661
A190: Garrison | B190: 12052.059
A191: Geneva | B191: 9604.383
A192: Genoa | B192: 7766.99
A193: Gering | B193: 9043.954
A194: Gibbon | B194: 10559.266
A195: Gilead | B195: 9037.88
A196: Giltner | B196: 12402.406
A197: Glenvil | B197: 11053.214
A198: Goehner | B198: 14115.181
A199: Gordon | B199: 3569.89
A200: Gothenburg | B200: 12199.371
... 324 more rows

Sheet High School (hidden)
A1: GEOid | B1: GEOdisplay-label | C1: 2010 | D1: 2011 | E1: 2012 | F1: 2013 | G1: 2014 | H1: 2015 | I1: 2016 | J1: 2017 | K1: 2018 | L1: 2019 | M1: 2020 | N1: 2021 | O1: 2022 | P1: 2023 | Q1: 2024 | R1: 2025 | S1: 2026 | T1: 2027 | U1: 2028 | V1: 2029 | W1: 2030 | X1: 2031 | Y1: 2032 | Z1: 2033 | AA1: 2034 | AB1: 2035 | AC1: 2036 | AD1: 2037 | AE1: 2038 | AF1: 2039 | AG1: 2040 | AH1: 2041 | AI1: 2042 | AJ1: 2043 | AK1: 2044 | AL1: 2045 | AM1: 2046 | AN1: 2047 | AO1: 2048 | AP1: 2049 | AQ1: 2050 | AR1: 2051
A2: 1600000US3100205 | B2: Abie village, Nebraska | C2: 82.6 | D2: 93 | E2: 100 | F2: 100 | G2: 96.1 | H2: 96.1 | I2: 95.5 | J2: 95.4 | K2: 95.7 | L2: 100 | M2: 100 | N2: 100 | O2: 100 | P2: 100 | Q2: 100 | R2: 100 | S2: 100 | T2: 100 | U2: 100 | V2: 100 | W2: =(T2+U2+V2)/3 -> 100 | X2: 100 | Y2: 100 | Z2: 100 | AA2: 100 | AB2: 100 | AC2: 100 | AD2: 100 | AE2: 100 | AF2: 100 | AG2: 100 | AH2: 100 | AI2: 100 | AJ2: 100 | AK2: 100 | AL2: 100 | AM2: =(AJ2+AK2+AL2)/3 -> 100 | AN2: 100 | AO2: 100 | AP2: 100 | AQ2: 100 | AR2: 100
A3: 1600000US3100240 | B3: Adams village, Nebraska | C3: 92.2 | D3: 92.9 | E3: 90.4 | F3: 91.2 | G3: 89.7 | H3: 90.1 | I3: 90.5 | J3: 91.1 | K3: 90.7 | L3: 91.16161616 | M3: 90.23131313 | N3: 90.09224977 | O3: 89.95318641 | P3: 89.81412305 | Q3: 89.67505969 | R3: 89.53599633 | S3: 89.39693297 | T3: 89.25786961 | U3: 89.11880624 | V3: 88.97974288 | W3: 89.11880624 | X3: 89.07245179 | Y3: 89.05700031 | Z3: 89.08275278 | AA3: 89.07073496 | AB3: 89.07016268 | AC3: 89.07455014 | AD3: 89.07181593 | AE3: 89.07217625 | AF3: 89.07284744 | AG3: 89.07227987 | AH3: 89.07243452 | AI3: 89.07252061 | AJ3: 89.07241167 | AK3: 89.0724556 | AL3: 89.07246263 | AM3: 89.0724433 | AN3: 89.07245384 | AO3: 89.07245325 | AP3: 89.07245013 | AQ3: 89.07245241 | AR3: 89.07245193
A4: 1600000US3100415 | B4: Ainsworth city, Nebraska | C4: 85.7 | D4: 89.1 | E4: 89.4 | F4: 89.9 | G4: 89 | H4: 86.7 | I4: 91.3 | J4: 88.9 | K4: 89.3 | L4: 92.41635688 | M4: 91.21320942 | N4: 91.58440464 | O4: 91.95559986 | P4: 92.32679509 | Q4: 92.69799031 | R4: 93.06918554 | S4: 93.44038076 | T4: 93.81157598 | U4: 94.18277121 | V4: 94.55396643 | W4: 94.18277121 | X4: 94.30650295 | Y4: 94.34774686 | Z4: 94.27900701 | AA4: 94.3110856 | AB4: 94.31261316 | AC4: 94.30090192 | AD4: 94.30820023 | AE4: 94.30723844 | AF4: 94.30544686 | AG4: 94.30696184 | AH4: 94.30654905 | AI4: 94.30631925 | AJ4: 94.30661005 | AK4: 94.30649278 | AL4: 94.30647403 | AM4: 94.30652562 | AN4: 94.30649747 | AO4: 94.30649904 | AP4: 94.30650738 | AQ4: 94.3065013 | AR4: 94.30650257
A5: 1600000US3100555 | B5: Albion city, Nebraska | C5: 93.3 | D5: 94.2 | E5: 93.2 | F5: 92.1 | G5: 91.3 | H5: 93.1 | I5: 91.6 | J5: 92.9 | K5: 92.8 | L5: 94.16309013 | M5: 92.75856938 | N5: 92.73898036 | O5: 92.71939134 | P5: 92.69980231 | Q5: 92.68021329 | R5: 92.66062427 | S5: 92.64103525 | T5: 92.62144622 | U5: 92.6018572 | V5: 92.58226818 | W5: 92.6018572 | X5: 92.59532752 | Y5: 92.59315097 | Z5: 92.59677856 | AA5: 92.59508568 | AB5: 92.59500507 | AC5: 92.59562311 | AD5: 92.59523795 | AE5: 92.59528871 | AF5: 92.59538326 | AG5: 92.59530331 | AH5: 92.59532509 | AI5: 92.59533722 | AJ5: 92.59532187 | AK5: 92.59532806 | AL5: 92.59532905 | AM5: 92.59532633 | AN5: 92.59532781 | AO5: 92.59532773 | AP5: 92.59532729 | AQ5: 92.59532761 | AR5: 92.59532754
A6: 1600000US3100625 | B6: Alda village, Nebraska | C6: 83.4 | D6: 83.1 | E6: 81.5 | F6: 79.5 | G6: 77.7 | H6: 76.2 | I6: 74.7 | J6: 77.6 | K6: 78.8 | L6: 80.54968288 | M6: 76.26653982 | N6: 75.71409828 | O6: 75.16165674 | P6: 74.6092152 | Q6: 74.05677366 | R6: 73.50433212 | S6: 72.95189058 | T6: 72.39944904 | U6: 71.8470075 | V6: 71.29456596 | W6: 71.8470075 | X6: 71.66286032 | Y6: 71.60147792 | Z6: 71.70378191 | AA6: 71.65604005 | AB6: 71.65376663 | AC6: 71.6711962 | AD6: 71.66033429 | AE6: 71.66176571 | AF6: 71.66443206 | AG6: 71.66217735 | AH6: 71.66279171 | AI6: 71.66313371 | AJ6: 71.66270092 | AK6: 71.66287545 | AL6: 71.66290336 | AM6: 71.66282658 | AN6: 71.66286846 | AO6: 71.66286613 | AP6: 71.66285372 | AQ6: 71.66286277 | AR6: 71.66286088
A7: 1600000US3100730 | B7: Alexandria village, Nebraska | C7: 92.5 | D7: 90.8 | E7: 92.9 | F7: 87.4 | G7: 86.8 | H7: 94.4 | I7: 90.8 | J7: 83.2 | K7: 89.2 | L7: 89.47368421 | M7: 87.44280702 | N7: 87.02379585 | O7: 86.60478469 | P7: 86.18577352 | Q7: 85.76676236 | R7: 85.3477512 | S7: 84.92874003 | T7: 84.50972887 | U7: 84.0907177 | V7: 83.67170654 | W7: 84.0907177 | X7: 83.95104732 | Y7: 83.90449052 | Z7: 83.98208518 | AA7: 83.94587434 | AB7: 83.94415001 | AC7: 83.95736984 | AD7: 83.9491314 | AE7: 83.95021708 | AF7: 83.95223944 | AG7: 83.95052931 | AH7: 83.95099528 | AI7: 83.95125468 | AJ7: 83.95092642 | AK7: 83.95105879 | AL7: 83.95107996 | AM7: 83.95102172 | AN7: 83.95105349 | AO7: 83.95105173 | AP7: 83.95104231 | AQ7: 83.95104918 | AR7: 83.95104774
A8: 1600000US3100870 | B8: Allen village, Nebraska | C8: 82.4 | D8: 86.3 | E8: 87.7 | F8: 89.8 | G8: 92.6 | H8: 95 | I8: 94 | J8: 94.4 | K8: 93.3 | L8: 94.13919414 | M8: 97.73567766 | N8: 98.96690643 | O8: 100 | P8: 100 | Q8: 100 | R8: 100 | S8: 100 | T8: 100 | U8: 100 | V8: 100 | W8: 100 | X8: 100 | Y8: 100 | Z8: 100 | AA8: 100 | AB8: 100 | AC8: 100 | AD8: 100 | AE8: 100 | AF8: 100 | AG8: 100 | AH8: 100 | AI8: 100 | AJ8: 100 | AK8: 100 | AL8: 100 | AM8: 100 | AN8: 100 | AO8: 100 | AP8: 100 | AQ8: 100 | AR8: 100
A9: 1600000US3100905 | B9: Alliance city, Nebraska | C9: 87.9 | D9: 88.1 | E9: 88.2 | F9: 88.9 | G9: 90.6 | H9: 89.9 | I9: 90.5 | J9: 88 | K9: 88.6 | L9: 87.7874042 | M9: 89.03496168 | N9: 89.06882009 | O9: 89.1026785 | P9: 89.13653691 | Q9: 89.17039532 | R9: 89.20425373 | S9: 89.23811214 | T9: 89.27197056 | U9: 89.30582897 | V9: 89.33968738 | W9: 89.30582897 | X9: 89.3171151 | Y9: 89.32087715 | Z9: 89.31460707 | AA9: 89.31753311 | AB9: 89.31767244 | AC9: 89.31660421 | AD9: 89.31726992 | AE9: 89.31718219 | AF9: 89.31701877 | AG9: 89.31715696 | AH9: 89.31711931 | AI9: 89.31709835 | AJ9: 89.31712487 | AK9: 89.31711418 | AL9: 89.31711246 | AM9: 89.31711717 | AN9: 89.3171146 | AO9: 89.31711475 | AP9: 89.31711551 | AQ9: 89.31711495 | AR9: 89.31711507
A10: 1600000US3100975 | B10: Alma city, Nebraska | C10: 92.2 | D10: 93.2 | E10: 92.4 | F10: 93.5 | G10: 92.1 | H10: 92.1 | I10: 92.5 | J10: 94 | K10: 94.8 | L10: 97.05323194 | M10: 95.38129278 | N10: 95.74419634 | O10: 96.1070999 | P10: 96.47000346 | Q10: 96.83290702 | R10: 97.19581058 | S10: 97.55871414 | T10: 97.9216177 | U10: 98.28452126 | V10: 98.64742482 | W10: 98.28452126 | X10: 98.40548911 | Y10: 98.44581173 | Z10: 98.37860737 | AA10: 98.4099694 | AB10: 98.41146283 | AC10: 98.4000132 | AD10: 98.40714848 | AE10: 98.40620817 | AF10: 98.40445662 | AG10: 98.40593776 | AH10: 98.40553418 | AI10: 98.40530952 | AJ10: 98.40559382 | AK10: 98.40547917 | AL10: 98.40546084 | AM10: 98.40551128 | AN10: 98.40548376 | AO10: 98.40548529 | AP10: 98.40549344 | AQ10: 98.4054875 | AR10: 98.40548874
A11: 1600000US3101150 | B11: Alvo village, Nebraska | C11: 85.1 | D11: 89.1 | E11: 88.9 | F11: 90.5 | G11: 89.7 | H11: 93.2 | I11: 92 | J11: 92.5 | K11: 93.3 | L11: 93.02325581 | M11: 94.95596899 | N11: 95.72390416 | O11: 96.49183932 | P11: 97.25977449 | Q11: 98.02770965 | R11: 98.79564482 | S11: 99.56357999 | T11: 100 | U11: 100 | V11: 100 | W11: 100 | X11: 100 | Y11: 100 | Z11: 100 | AA11: 100 | AB11: 100 | AC11: 100 | AD11: 100 | AE11: 100 | AF11: 100 | AG11: 100 | AH11: 100 | AI11: 100 | AJ11: 100 | AK11: 100 | AL11: 100 | AM11: 100 | AN11: 100 | AO11: 100 | AP11: 100 | AQ11: 100 | AR11: 100
A12: 1600000US3101290 | B12: Amherst village, Nebraska | C12: 89 | D12: 89.8 | E12: 92.7 | F12: 92.7 | G12: 94 | H12: 96.2 | I12: 94.7 | J12: 93.5 | K12: 93 | L12: 89.21568627 | M12: 93.69960784 | N12: 93.92106952 | O12: 94.14253119 | P12: 94.36399287 | Q12: 94.58545455 | R12: 94.80691622 | S12: 95.0283779 | T12: 95.24983957 | U12: 95.47130125 | V12: 95.69276292 | W12: 95.47130125 | X12: 95.54512181 | Y12: 95.56972866 | Z12: 95.52871724 | AA12: 95.5478559 | AB12: 95.54876727 | AC12: 95.54178013 | AD12: 95.54613443 | AE12: 95.54556061 | AF12: 95.54449173 | AG12: 95.54539559 | AH12: 95.54514931 | AI12: 95.54501221 | AJ12: 95.5451857 | AK12: 95.54511574 | AL12: 95.54510455 | AM12: 95.54513533 | AN12: 95.54511854 | AO12: 95.54511947 | AP12: 95.54512445 | AQ12: 95.54512082 | AR12: 95.54512158
A13: 1600000US3101500 | B13: Anselmo village, Nebraska | C13: 93.2 | D13: 87.3 | E13: 88.9 | F13: 89.1 | G13: 87.5 | H13: 88.7 | I13: 91.6 | J13: 91.9 | K13: 93.6 | L13: 93.15068493 | M13: 92.74027397 | N13: 93.14849315 | O13: 93.55671233 | P13: 93.96493151 | Q13: 94.37315068 | R13: 94.78136986 | S13: 95.18958904 | T13: 95.59780822 | U13: 96.0060274 | V13: 96.41424658 | W13: 96.0060274 | X13: 96.14210046 | Y13: 96.18745814 | Z13: 96.111862 | AA13: 96.1471402 | AB13: 96.14882011 | AC13: 96.13594077 | AD13: 96.14396703 | AE13: 96.1429093 | AF13: 96.14093903 | AG13: 96.14260512 | AH13: 96.14215115 | AI13: 96.14189844 | AJ13: 96.14221824 | AK13: 96.14208928 | AL13: 96.14206865 | AM13: 96.14212539 | AN13: 96.14209444 | AO13: 96.14209616 | AP13: 96.14210533 | AQ13: 96.14209864 | AR13: 96.14210004
A14: 1600000US3101535 | B14: Ansley village, Nebraska | C14: 86.4 | D14: 90.1 | E14: 90.4 | F14: 91.6 | G14: 91.3 | H14: 92.2 | I14: 92.4 | J14: 91.6 | K14: 92.2 | L14: 91.31652661 | M14: 93.22661064 | N14: 93.64023937 | O14: 94.05386809 | P14: 94.46749682 | Q14: 94.88112554 | R14: 95.29475427 | S14: 95.70838299 | T14: 96.12201171 | U14: 96.53564044 | V14: 96.94926916 | W14: 96.53564044 | X14: 96.67351668 | Y14: 96.71947543 | Z14: 96.64287751 | AA14: 96.67862321 | AB14: 96.68032538 | AC14: 96.66727537 | AD14: 96.67540799 | AE14: 96.67433625 | AF14: 96.67233987 | AG14: 96.67402803 | AH14: 96.67356805 | AI14: 96.67331198 | AJ14: 96.67363602 | AK14: 96.67350535 | AL14: 96.67348445 | AM14: 96.67354194 | AN14: 96.67351058 | AO14: 96.67351232 | AP14: 96.67352162 | AQ14: 96.67351484 | AR14: 96.67351626
A15: 1600000US3101780 | B15: Arapahoe city, Nebraska | C15: 79.8 | D15: 82.9 | E15: 84.8 | F15: 87.4 | G15: 89.7 | H15: 89.9 | I15: 90.5 | J15: 90.6 | K15: 91.2 | L15: 92.13483146 | M15: 94.81393258 | N15: 96.07219612 | O15: 97.33045965 | P15: 98.58872319 | Q15: 99.84698672 | R15: 100 | S15: 100 | T15: 100 | U15: 100 | V15: 100 | W15: 100 | X15: 100 | Y15: 100 | Z15: 100 | AA15: 100 | AB15: 100 | AC15: 100 | AD15: 100 | AE15: 100 | AF15: 100 | AG15: 100 | AH15: 100 | AI15: 100 | AJ15: 100 | AK15: 100 | AL15: 100 | AM15: 100 | AN15: 100 | AO15: 100 | AP15: 100 | AQ15: 100 | AR15: 100
A16: 1600000US3101850 | B16: Arcadia village, Nebraska | C16: 89.1 | D16: 89.3 | E16: 92.6 | F16: 94.1 | G16: 94.7 | H16: 95.3 | I16: 96.2 | J16: 93.5 | K16: 94.1 | L16: 90.43062201 | M16: 94.8322488 | N16: 95.17755546 | O16: 95.52286211 | P16: 95.86816877 | Q16: 96.21347542 | R16: 96.55878208 | S16: 96.90408873 | T16: 97.24939539 | U16: 97.59470204 | V16: 97.9400087 | W16: 97.59470204 | X16: 97.70980426 | Y16: 97.74817167 | Z16: 97.68422599 | AA16: 97.71406731 | AB16: 97.71548832 | AC16: 97.70459387 | AD16: 97.71138317 | AE16: 97.71048846 | AF16: 97.70882183 | AG16: 97.71023115 | AH16: 97.70984715 | AI16: 97.70963338 | AJ16: 97.70990389 | AK16: 97.70979481 | AL16: 97.70977736 | AM16: 97.70982535 | AN16: 97.70979917 | AO16: 97.70980063 | AP16: 97.70980838 | AQ16: 97.70980273 | AR16: 97.70980391
A17: 1600000US3101990 | B17: Arlington village, Nebraska | C17: 94.6 | D17: 96.4 | E17: 97.1 | F17: 97.2 | G17: 96.7 | H17: 95.4 | I17: 94.5 | J17: 94.3 | K17: 94.2 | L17: 93.82845188 | M17: 93.89804742 | N17: 93.62081146 | O17: 93.3435755 | P17: 93.06633955 | Q17: 92.78910359 | R17: 92.51186763 | S17: 92.23463167 | T17: 91.95739571 | U17: 91.68015976 | V17: 91.4029238 | W17: 91.68015976 | X17: 91.58774777 | Y17: 91.55694378 | Z17: 91.60828377 | AA17: 91.5843251 | AB17: 91.58318422 | AC17: 91.59193103 | AD17: 91.58648012 | AE17: 91.58719845 | AF17: 91.58853653 | AG17: 91.58740503 | AH17: 91.58771334 | AI17: 91.58788497 | AJ17: 91.58766778 | AK17: 91.58775536 | AL17: =(AI17+AJ17+AK17)/3 -> 91.58776937 | AM17: 91.58773084 | AN17: 91.58775186 | AO17: 91.58775069 | AP17: 91.58774446 | AQ17: 91.587749 | AR17: 91.58774805
A18: 1600000US3102095 | B18: Arnold village, Nebraska | C18: 88.2 | D18: 93.5 | E18: 94 | F18: 94.7 | G18: 93.3 | H18: 95.2 | I18: 96.3 | J18: 95.2 | K18: 96.2 | L18: 94.26086957 | M18: 96.95768116 | N18: 97.4797892 | O18: 98.00189723 | P18: 98.52400527 | Q18: 99.04611331 | R18: 99.56822134 | S18: 100 | T18: 100 | U18: 100 | V18: 100 | W18: =(T18+U18+V18)/3 -> 100 | X18: 100 | Y18: 100 | Z18: 100 | AA18: 100 | AB18: 100 | AC18: 100 | AD18: 100 | AE18: 100 | AF18: 100 | AG18: 100 | AH18: 100 | AI18: 100 | AJ18: 100 | AK18: 100 | AL18: 100 | AM18: 100 | AN18: 100 | AO18: 100 | AP18: 100 | AQ18: 100 | AR18: 100
A19: 1600000US3102200 | B19: Arthur village, Nebraska | C19: 91.9 | D19: 93.2 | E19: 94.5 | F19: 90.3 | G19: 87.4 | H19: 90.5 | I19: 90.2 | J19: 89 | K19: 89.6 | L19: 91.58878505 | M19: 89.06218069 | N19: 88.74278108 | O19: 88.42338148 | P19: 88.10398187 | Q19: 87.78458227 | R19: 87.46518267 | S19: 87.14578306 | T19: 86.82638346 | U19: 86.50698386 | V19: 86.18758425 | W19: 86.50698386 | X19: 86.40051732 | Y19: 86.36502848 | Z19: 86.42417655 | AA19: 86.39657412 | AB19: 86.39525972 | AC19: 86.4053368 | AD19: 86.39905688 | AE19: 86.39988446 | AF19: 86.40142604 | AG19: 86.40012246 | AH19: 86.40047766 | AI19: 86.40067539 | AJ19: 86.40042517 | AK19: 86.40052607 | AL19: 86.40054221 | AM19: 86.40049782 | AN19: 86.40052203 | AO19: 86.40052069 | AP19: 86.40051351 | AQ19: 86.40051874 | AR19: 86.40051765
A20: 1600000US3102305 | B20: Ashland city, Nebraska | C20: 94.9 | D20: 92.9 | E20: 91.6 | F20: 93.4 | G20: 94.2 | H20: 93.1 | I20: 91.4 | J20: 90.4 | K20: 89.7 | L20: 88.27479339 | M20: 88.81658402 | N20: 88.2400576 | O20: 87.66353118 | P20: 87.08700476 | Q20: 86.51047834 | R20: 85.93395192 | S20: 85.35742549 | T20: 84.78089907 | U20: 84.20437265 | V20: 83.62784623 | W20: 84.20437265 | X20: 84.01219718 | Y20: 83.94813869 | Z20: 84.05490284 | AA20: 84.00507957 | AB20: 84.00270703 | AC20: 84.02089648 | AD20: 84.00956103 | AE20: 84.01105485 | AF20: 84.01383745 | AG20: 84.01148444 | AH20: 84.01212558 | AI20: 84.01248249 | AJ20: 84.01203084 | AK20: 84.01221297 | AL20: 84.0122421 | AM20: 84.01216197 | AN20: 84.01220568 | AO20: 84.01220325 | AP20: 84.0121903 | AQ20: 84.01219974 | AR20: 84.01219776
A21: 1600000US3102375 | B21: Ashton village, Nebraska | C21: 86.9 | D21: 89.4 | E21: 87.7 | F21: 86.4 | G21: 91.6 | H21: 92.4 | I21: 91.9 | J21: 90.3 | K21: 90.8 | L21: 87.32394366 | M21: 90.93624413 | N21: 91.20239863 | O21: 91.46855314 | P21: 91.73470764 | Q21: 92.00086214 | R21: 92.26701665 | S21: 92.53317115 | T21: 92.79932565 | U21: 93.06548015 | V21: 93.33163466 | W21: 93.06548015 | X21: 93.15419832 | Y21: 93.18377104 | Z21: 93.13448317 | AA21: 93.15748418 | AB21: 93.15857947 | AC21: 93.15018227 | AD21: 93.15541531 | AE21: 93.15472568 | AF21: 93.15344109 | AG21: 93.15452736 | AH21: 93.15423138 | AI21: 93.15406661 | AJ21: 93.15427511 | AK21: 93.15419103 | AL21: 93.15417758 | AM21: 93.15421458 | AN21: 93.1541944 | AO21: 93.15419552 | AP21: 93.1542015 | AQ21: 93.15419714 | AR21: 93.15419805
A22: 1600000US3102550 | B22: Atkinson city, Nebraska | C22: 87 | D22: 92.9 | E22: 92.1 | F22: 92.6 | G22: 92.1 | H22: 91.7 | I22: 91.4 | J22: 93 | K22: 93.8 | L22: 95.34883721 | M22: 94.92620155 | N22: 95.42280479 | O22: 95.91940803 | P22: 96.41601128 | Q22: 96.91261452 | R22: 97.40921776 | S22: 97.905821 | T22: 98.40242424 | U22: 98.89902748 | V22: 99.39563073 | W22: 98.89902748 | X22: 99.0645619 | Y22: 99.11974004 | Z22: 99.02777647 | AA22: 99.0706928 | AB22: 99.07273644 | AC22: 99.05706857 | AD22: 99.0668326 | AE22: 99.06554587 | AF22: 99.06314901 | AG22: 99.06517583 | AH22: 99.06462357 | AI22: 99.06431614 | AJ22: 99.06470518 | AK22: 99.0645483 | AL22: 99.06452321 | AM22: 99.06459223 | AN22: 99.06455458 | AO22: 99.06455667 | AP22: 99.06456782 | AQ22: 99.06455969 | AR22: 99.06456139
A23: 1600000US3102620 | B23: Atlanta village, Nebraska | C23: 94.5 | D23: 92 | E23: 89.9 | F23: 93.3 | G23: 93 | H23: 97.3 | I23: 97.3 | J23: 98.5 | K23: 98.7 | L23: 98.4375 | M23: 100 | N23: 100 | O23: 100 | P23: 100 | Q23: 100 | R23: 100 | S23: 100 | T23: 100 | U23: 100 | V23: 100 | W23: 100 | X23: 100 | Y23: 100 | Z23: 100 | AA23: 100 | AB23: 100 | AC23: 100 | AD23: 100 | AE23: 100 | AF23: 100 | AG23: 100 | AH23: 100 | AI23: 100 | AJ23: 100 | AK23: 100 | AL23: 100 | AM23: 100 | AN23: 100 | AO23: 100 | AP23: 100 | AQ23: 100 | AR23: 100
A24: 1600000US3102655 | B24: Auburn city, Nebraska | C24: 88.5 | D24: 91.5 | E24: 93 | F24: 92.4 | G24: 93.7 | H24: 95.4 | I24: 94.3 | J24: 93.1 | K24: 93.1 | L24: 92.07802548 | M24: 94.41787686 | N24: 94.72879946 | O24: 95.03972206 | P24: 95.35064466 | Q24: 95.66156727 | R24: 95.97248987 | S24: 96.28341247 | T24: 96.59433507 | U24: 96.90525767 | V24: 97.21618027 | W24: 96.90525767 | X24: 97.00889854 | Y24: 97.0434455 | Z24: 96.98586724 | AA24: 97.01273709 | AB24: 97.01401661 | AC24: 97.00420698 | AD24: 97.01032022 | AE24: 97.0095146 | AF24: 97.00801394 | AG24: 97.00928292 | AH24: 97.00893715 | AI24: 97.00874467 | AJ24: 97.00898825 | AK24: 97.00889002 | AL24: 97.00887431 | AM24: 97.00891753 | AN24: 97.00889396 | AO24: 97.00889527 | AP24: 97.00890225 | AQ24: 97.00889716 | AR24: 97.00889822
A25: 1600000US3102690 | B25: Aurora city, Nebraska | C25: 93.9 | D25: 93 | E25: 93 | F25: 93.6 | G25: 93.6 | H25: 93.9 | I25: 95.1 | J25: 92.9 | K25: 93.3 | L25: 94.01963701 | M25: 93.88118814 | N25: 93.92650167 | O25: 93.97181521 | P25: 94.01712874 | Q25: 94.06244227 | R25: 94.10775581 | S25: 94.15306934 | T25: 94.19838288 | U25: 94.24369641 | V25: 94.28900994 | W25: 94.24369641 | X25: 94.25880092 | Y25: 94.26383576 | Z25: 94.25544436 | AA25: 94.25936035 | AB25: 94.25954682 | AC25: 94.25811718 | AD25: 94.25900812 | AE25: 94.25889071 | AF25: 94.258672 | AG25: 94.25885694 | AH25: 94.25880655 | AI25: 94.2587785 | AJ25: 94.258814 | AK25: 94.25879968 | AL25: 94.25879739 | AM25: 94.25880369 | AN25: 94.25880025 | AO25: 94.25880044 | AP25: 94.25880146 | AQ25: 94.25880072 | AR25: 94.25880088
A26: 1600000US3102795 | B26: Avoca village, Nebraska | C26: 84.5 | D26: 85.8 | E26: 90.8 | F26: 91.3 | G26: 97.1 | H26: 94.3 | I26: 94 | J26: 93.2 | K26: 89.2 | L26: 90.09433962 | M26: 94.07773585 | N26: 94.63197256 | O26: 95.18620926 | P26: 95.74044597 | Q26: 96.29468268 | R26: 96.84891938 | S26: 97.40315609 | T26: 97.9573928 | U26: 98.5116295 | V26: 99.06586621 | W26: 98.5116295 | X26: 98.69637507 | Y26: 98.75795693 | Z26: 98.6553205 | AA26: 98.7032175 | AB26: 98.70549831 | AC26: 98.6880121 | AD26: 98.6989093 | AE26: 98.69747324 | AF26: 98.69479822 | AG26: 98.69706025 | AH26: 98.6964439 | AI26: 98.69610079 | AJ26: 98.69653498 | AK26: 98.69635989 | AL26: 98.69633189 | AM26: 98.69640892 | AN26: 98.6963669 | AO26: 98.69636924 | AP26: 98.69638169 | AQ26: 98.69637261 | AR26: 98.69637451
A27: 1600000US3102830 | B27: Axtell village, Nebraska | C27: 92 | D27: 90.8 | E27: 90.7 | F27: 90.5 | G27: 95.3 | H27: 96.7 | I27: 96.2 | J27: 96.4 | K27: 98.1 | L27: 97.06896552 | M27: 99.16758621 | N27: 100 | O27: 100 | P27: 100 | Q27: 100 | R27: 100 | S27: 100 | T27: 100 | U27: 100 | V27: 100 | W27: 100 | X27: 100 | Y27: 100 | Z27: 100 | AA27: 100 | AB27: 100 | AC27: 100 | AD27: 100 | AE27: 100 | AF27: 100 | AG27: 100 | AH27: 100 | AI27: 100 | AJ27: 100 | AK27: 100 | AL27: 100 | AM27: 100 | AN27: 100 | AO27: 100 | AP27: 100 | AQ27: 100 | AR27: 100
A28: 1600000US3102865 | B28: Ayr village, Nebraska | C28: 87 | D28: 85.9 | E28: 83.6 | F28: 79.5 | G28: 95.6 | H28: 88.9 | I28: 84.4 | J28: 82.5 | K28: 93 | L28: 92.45283019 | M28: 90.66113208 | N28: 91.27492281 | O28: 91.88871355 | P28: 92.50250429 | Q28: 93.11629503 | R28: 93.73008576 | S28: 94.3438765 | T28: 94.95766724 | U28: 95.57145798 | V28: 96.18524871 | W28: 95.57145798 | X28: 95.77605489 | Y28: 95.84425386 | Z28: 95.73058891 | AA28: 95.78363255 | AB28: 95.78615844 | AC28: 95.7667933 | AD28: 95.77886143 | AE28: 95.77727106 | AF28: 95.7743086 | AG28: 95.77681369 | AH28: 95.77613112 | AI28: 95.77575114 | AJ28: 95.77623198 | AK28: 95.77603808 | AL28: 95.77600706 | AM28: 95.77609237 | AN28: 95.77604584 | AO28: 95.77604843 | AP28: 95.77606221 | AQ28: 95.77605216 | AR28: 95.77605427
A29: 1600000US3103005 | B29: Bancroft village, Nebraska | C29: 85.6 | D29: 90.9 | E29: 92.2 | F29: 94.5 | G29: 94.6 | H29: 95.6 | I29: 96.7 | J29: 94.8 | K29: 95.4 | L29: 97.47191011 | M29: 99.07543071 | N29: 100 | O29: 100 | P29: 100 | Q29: 100 | R29: 100 | S29: 100 | T29: 100 | U29: 100 | V29: 100 | W29: 100 | X29: 100 | Y29: 100 | Z29: 100 | AA29: 100 | AB29: 100 | AC29: 100 | AD29: 100 | AE29: 100 | AF29: 100 | AG29: 100 | AH29: 100 | AI29: 100 | AJ29: 100 | AK29: 100 | AL29: 100 | AM29: 100 | AN29: 100 | AO29: 100 | AP29: 100 | AQ29: 100 | AR29: 100
A30: 1600000US3103040 | B30: Barada village, Nebraska | C30: 84.4 | D30: 100 | E30: 100 | F30: 84.6 | G30: 88.9 | H30: 90.9 | I30: 87.5 | J30: 88.9 | K30: 100 | L30: 100 | M30: 95.70666667 | N30: 96.28606061 | O30: 96.86545455 | P30: 97.44484848 | Q30: 98.02424242 | R30: 98.60363636 | S30: 99.1830303 | T30: 99.76242424 | U30: 100 | V30: 100 | W30: 99.92080808 | X30: 99.97360269 | Y30: 99.96480359 | Z30: 99.95307146 | AA30: 99.96382591 | AB30: 99.96056699 | AC30: 99.95915479 | AD30: 99.96118256 | AE30: 99.96030144 | AF30: 99.96021293 | AG30: 99.96056565 | AH30: 99.96036001 | AI30: 99.96037953 | AJ30: 99.96043506 | AK30: 99.96039153 | AL30: 99.96040204 | AM30: 99.96040954 | AN30: 99.96040104 | AO30: 99.96040421 | AP30: 99.96040493 | AQ30: 99.96040339 | AR30: 99.96040418
A31: 1600000US3103075 | B31: Barneston village, Nebraska | C31: 85.4 | D31: 86.7 | E31: 93.2 | F31: 88.8 | G31: 82.9 | H31: 79.1 | I31: 82.5 | J31: 81 | K31: 85.4 | L31: 89.13043478 | M31: 83.43884058 | N31: 83.0798946 | O31: 82.72094862 | P31: 82.36200264 | Q31: 82.00305665 | R31: 81.64411067 | S31: 81.28516469 | T31: 80.92621871 | U31: 80.56727273 | V31: 80.20832675 | W31: 80.56727273 | X31: 80.44762407 | Y31: 80.40774118 | Z31: 80.47421266 | AA31: 80.44319263 | AB31: 80.44171549 | AC31: 80.45304026 | AD31: 80.4459828 | AE31: 80.44691285 | AF31: 80.4486453 | AG31: 80.44718032 | AH31: 80.44757949 | AI31: 80.4478017 | AJ31: 80.4475205 | AK31: 80.4476339 | AL31: 80.44765203 | AM31: 80.44760214 | AN31: 80.44762936 | AO31: 80.44762785 | AP31: 80.44761978 | AQ31: 80.44762566 | AR31: 80.44762443
A32: 1600000US3103145 | B32: Bartlett village, Nebraska | C32: 100 | D32: 93.2 | E32: 95.6 | F32: 95.6 | G32: 91.2 | H32: 93.2 | I32: 96.2 | J32: 94.8 | K32: 97.2 | L32: 96.26168224 | M32: 95.13133956 | N32: 95.09591617 | O32: 95.06049278 | P32: 95.02506939 | Q32: 94.98964599 | R32: 94.9542226 | S32: 94.91879921 | T32: 94.88337581 | U32: 94.84795242 | V32: 94.81252903 | W32: 94.84795242 | X32: 94.83614462 | Y32: 94.83220869 | Z32: 94.83876858 | AA32: 94.8357073 | AB32: 94.83556152 | AC32: 94.83667913 | AD32: 94.83598265 | AE32: 94.83607444 | AF32: 94.83624541 | AG32: 94.83610083 | AH32: 94.83614022 | AI32: 94.83616215 | AJ32: 94.8361344 | AK32: 94.83614559 | AL32: 94.83614738 | AM32: 94.83614246 | AN32: 94.83614515 | AO32: 94.836145 | AP32: 94.8361442 | AQ32: 94.83614478 | AR32: 94.83614466
A33: 1600000US3103180 | B33: Bartley village, Nebraska | C33: 86.7 | D33: 85.1 | E33: 82.7 | F33: 87.3 | G33: 86.3 | H33: 86.4 | I33: 85.3 | J33: 85.8 | K33: 88.5 | L33: 89.29889299 | M33: 88.23289053 | N33: 88.57707257 | O33: 88.92125461 | P33: 89.26543665 | Q33: 89.6096187 | R33: 89.95380074 | S33: 90.29798278 | T33: 90.64216482 | U33: 90.98634686 | V33: 91.33052891 | W33: 90.98634686 | X33: 91.10107421 | Y33: 91.13931666 | Z33: 91.07557924 | AA33: 91.10532337 | AB33: 91.10673976 | AC33: 91.09588079 | AD33: 91.10264797 | AE33: 91.10175617 | AF33: 91.10009498 | AG33: 91.10149971 | AH33: 91.10111695 | AI33: 91.10090388 | AJ33: 91.10117352 | AK33: 91.10106478 | AL33: 91.10104739 | AM33: 91.10109523 | AN33: 91.10106914 | AO33: 91.10107059 | AP33: 91.10107832 | AQ33: 91.10107268 | AR33: 91.10107386
A34: 1600000US3103215 | B34: Bassett city, Nebraska | C34: 92 | D34: 91.7 | E34: 89.9 | F34: 91.6 | G34: 93.7 | H34: 92.9 | I34: 92.7 | J34: 94 | K34: 94.2 | L34: 94.17475728 | M34: 94.68990291 | N34: 95.05398058 | O34: 95.41805825 | P34: 95.78213592 | Q34: 96.14621359 | R34: 96.51029126 | S34: 96.87436893 | T34: 97.2384466 | U34: 97.60252427 | V34: 97.96660194 | W34: 97.60252427 | X34: 97.7238835 | Y34: 97.76433657 | Z34: 97.69691478 | AA34: 97.72837828 | AB34: 97.72987654 | AC34: 97.71838987 | AD34: 97.72554823 | AE34: 97.72460488 | AF34: 97.72284766 | AG34: 97.72433359 | AH34: 97.72392871 | AI34: 97.72370332 | AJ34: 97.72398854 | AK34: 97.72387352 | AL34: 97.72385513 | AM34: 97.72390573 | AN34: 97.72387813 | AO34: 97.72387966 | AP34: 97.72388784 | AQ34: 97.72388188 | AR34: 97.72388313
A35: 1600000US3103250 | B35: Battle Creek city, Nebraska | C35: 87.8 | D35: 88.3 | E35: 87.1 | F35: 89.7 | G35: 89.7 | H35: 96.1 | I35: 93.4 | J35: 93.4 | K35: 94.3 | L35: 94.39359268 | M35: 96.4307704 | N35: 97.34193607 | O35: 98.25310173 | P35: 99.16426739 | Q35: 100 | R35: 100 | S35: 100 | T35: 100 | U35: 100 | V35: 100 | W35: =(T35+U35+V35)/3 -> 100 | X35: 100 | Y35: 100 | Z35: 100 | AA35: 100 | AB35: 100 | AC35: 100 | AD35: 100 | AE35: 100 | AF35: 100 | AG35: 100 | AH35: 100 | AI35: 100 | AJ35: 100 | AK35: 100 | AL35: 100 | AM35: 100 | AN35: 100 | AO35: 100 | AP35: 100 | AQ35: 100 | AR35: 100
A36: 1600000US3103285 | B36: Bayard city, Nebraska | C36: 86.5 | D36: 86.2 | E36: 83.7 | F36: 85.2 | G36: 84.7 | H36: 82 | I36: 82.7 | J36: 84 | K36: 83.1 | L36: 82.71604938 | M36: 81.93308642 | N36: 81.54244669 | O36: 81.15180696 | P36: 80.76116723 | Q36: 80.3705275 | R36: 79.97988777 | S36: 79.58924804 | T36: 79.19860831 | U36: 78.80796857 | V36: 78.41732884 | W36: 78.80796857 | X36: 78.67775533 | Y36: 78.63435092 | Z36: 78.70669161 | AA36: 78.67293262 | AB36: 78.67132505 | AC36: 78.68364976 | AD36: 78.67596914 | AE36: 78.67698132 | AF36: 78.67886674 | AG36: 78.6772724 | AH36: 78.67770682 | AI36: 78.67794865 | AJ36: 78.67764262 | AK36: 78.67776603 | AL36: 78.67778577 | AM36: 78.67773147 | AN36: 78.67776109 | AO36: 78.67775944 | AP36: 78.67775067 | AQ36: 78.67775707 | AR36: 78.67775573
A37: 1600000US3103355 | B37: Bazile Mills village, Nebraska | C37: 100 | D37: 100 | E37: 100 | F37: 84.6 | G37: 86.7 | H37: 92.9 | I37: 90 | J37: 93.1 | K37: 96.6 | L37: 95.23809524 | M37: 91.28857143 | N37: 90.81125541 | O37: 90.33393939 | P37: 89.85662338 | Q37: 89.37930736 | R37: 88.90199134 | S37: 88.42467532 | T37: 87.94735931 | U37: 87.47004329 | V37: 86.99272727 | W37: 87.47004329 | X37: 87.31093795 | Y37: 87.25790284 | Z37: 87.34629469 | AA37: 87.30504516 | AB37: 87.3030809 | AC37: 87.31814025 | AD37: 87.30875544 | AE37: 87.30999219 | AF37: 87.31229596 | AG37: 87.31034786 | AH37: 87.31087867 | AI37: 87.31117417 | AJ37: 87.31080023 | AK37: 87.31095102 | AL37: 87.31097514 | AM37: 87.3109088 | AN37: 87.31094499 | AO37: 87.31094298 | AP37: 87.31093225 | AQ37: 87.31094007 | AR37: 87.31093843
A38: 1600000US3103390 | B38: Beatrice city, Nebraska | C38: 88.5 | D38: 89.3 | E38: 89.1 | F38: 89.3 | G38: 88.9 | H38: 87.4 | I38: 87.4 | J38: 88.1 | K38: 87.8 | L38: 87.71099218 | M38: 87.3577302 | N38: 87.17711766 | O38: 86.99650511 | P38: 86.81589256 | Q38: 86.63528001 | R38: 86.45466747 | S38: 86.27405492 | T38: 86.09344237 | U38: 85.91282982 | V38: 85.73221727 | W38: 85.91282982 | X38: 85.85262564 | Y38: 85.83255758 | Z38: 85.86600435 | AA38: 85.85039585 | AB38: 85.84965259 | AC38: 85.85535093 | AD38: 85.85179979 | AE38: 85.85226777 | AF38: 85.8531395 | AG38: 85.85240235 | AH38: 85.85260321 | AI38: 85.85271502 | AJ38: 85.85257353 | AK38: 85.85263059 | AL38: 85.85263971 | AM38: 85.85261461 | AN38: 85.8526283 | AO38: 85.85262754 | AP38: 85.85262348 | AQ38: 85.85262644 | AR38: 85.85262582
A39: 1600000US3103495 | B39: Beaver City city, Nebraska | C39: 88.6 | D39: 86.6 | E39: 87.9 | F39: 85.9 | G39: 91 | H39: 86.5 | I39: 89.6 | J39: 85 | K39: 87.4 | L39: 88.1443299 | M39: 87.45106529 | N39: 87.41227117 | O39: 87.37347704 | P39: 87.33468291 | Q39: 87.29588878 | R39: 87.25709466 | S39: 87.21830053 | T39: 87.1795064 | U39: 87.14071228 | V39: 87.10191815 | W39: 87.14071228 | X39: 87.1277809 | Y39: 87.12347044 | Z39: 87.13065454 | AA39: 87.12730196 | AB39: 87.12714232 | AC39: 87.12836627 | AD39: 87.12760352 | AE39: 87.12770403 | AF39: 87.12789127 | AG39: 87.12773294 | AH39: 87.12777608 | AI39: 87.1278001 | AJ39: 87.12776971 | AK39: 87.12778196 | AL39: 87.12778392 | AM39: 87.12777853 | AN39: 87.12778147 | AO39: 87.12778131 | AP39: 87.12778044 | AQ39: 87.12778107 | AR39: 87.12778094
A40: 1600000US3103530 | B40: Beaver Crossing village, Nebraska | C40: 93.6 | D40: 95.6 | E40: 95.8 | F40: 94.6 | G40: 95.9 | H40: 95.6 | I40: 94.9 | J40: 92.4 | K40: 92.7 | L40: 92.28187919 | M40: 92.71941834 | N40: 92.4250966 | O40: 92.13077486 | P40: 91.83645312 | Q40: 91.54213138 | R40: 91.24780964 | S40: 90.9534879 | T40: 90.65916616 | U40: 90.36484442 | V40: 90.07052268 | W40: 90.36484442 | X40: 90.26673717 | Y40: 90.23403475 | Z40: 90.28853878 | AA40: 90.26310357 | AB40: 90.26189237 | AC40: 90.27117824 | AD40: 90.26539139 | AE40: 90.266154 | AF40: 90.26757454 | AG40: 90.26637331 | AH40: 90.26670062 | AI40: 90.26688282 | AJ40: 90.26665225 | AK40: 90.26674523 | AL40: 90.2667601 | AM40: 90.2667192 | AN40: 90.26674151 | AO40: 90.26674027 | AP40: 90.26673366 | AQ40: 90.26673848 | AR40: 90.26673747
A41: 1600000US3103600 | B41: Bee village, Nebraska | C41: 95 | D41: 96.5 | E41: 96.3 | F41: 96.1 | G41: 86 | H41: 90.4 | I41: 89.1 | J41: 90.5 | K41: 89.6 | L41: 96.52777778 | M41: 89.93111111 | N41: 89.44535354 | O41: 88.95959596 | P41: 88.47383838 | Q41: 87.98808081 | R41: 87.50232323 | S41: 87.01656566 | T41: 86.53080808 | U41: 86.04505051 | V41: 85.55929293 | W41: 86.04505051 | X41: 85.88313131 | Y41: 85.82915825 | Z41: 85.91911336 | AA41: 85.87713431 | AB41: 85.8751353 | AC41: 85.89046099 | AD41: 85.8809102 | AE41: 85.88216883 | AF41: 85.88451334 | AG41: 85.88253079 | AH41: 85.88307099 | AI41: 85.88337171 | AJ41: 85.88299116 | AK41: 85.88314462 | AL41: 85.88316916 | AM41: 85.88310165 | AN41: 85.88313847 | AO41: 85.88313643 | AP41: 85.88312552 | AQ41: 85.88313347 | AR41: 85.88313181
A42: 1600000US3103635 | B42: Beemer village, Nebraska | C42: 79.8 | D42: 81.2 | E42: 83.2 | F42: 85 | G42: 87.3 | H42: 85.7 | I42: 83 | J42: 86.1 | K42: 84.9 | L42: 83.03393214 | M42: 85.98690619 | N42: 86.36209036 | O42: 86.73727454 | P42: 87.11245872 | Q42: 87.4876429 | R42: 87.86282707 | S42: 88.23801125 | T42: 88.61319543 | U42: 88.9883796 | V42: 89.36356378 | W42: 88.9883796 | X42: 89.113441 | Y42: 89.15512813 | Z42: 89.08564958 | AA42: 89.1180729 | AB42: 89.11961687 | AC42: 89.10777978 | AD42: 89.11515652 | AE42: 89.11418439 | AF42: 89.11237356 | AG42: 89.11390482 | AH42: 89.11348759 | AI42: 89.11325533 | AJ42: 89.11354925 | AK42: 89.11343072 | AL42: 89.11341176 | AM42: 89.11346391 | AN42: 89.11343547 | AO42: 89.11343705 | AP42: 89.11344547 | AQ42: 89.11343933 | AR42: 89.11344062
A43: 1600000US3103775 | B43: Belden village, Nebraska | C43: 97.5 | D43: 98.5 | E43: 97.2 | F43: 96.5 | G43: 95.5 | H43: 95.7 | I43: 97.3 | J43: 93.9 | K43: 94.2 | L43: 95.69892473 | M43: 94.19290323 | N43: 93.82799609 | O43: 93.46308895 | P43: 93.09818182 | Q43: 92.73327468 | R43: 92.36836755 | S43: 92.00346041 | T43: 91.63855327 | U43: 91.27364614 | V43: 90.908739 | W43: 91.27364614 | X43: 91.15201043 | Y43: 91.11146519 | Z43: 91.17904059 | AA43: 91.1475054 | AB43: 91.14600373 | AC43: 91.15751657 | AD43: 91.1503419 | AE43: 91.1512874 | AF43: 91.15304862 | AG43: 91.15155931 | AH43: 91.15196511 | AI43: 91.15219101 | AJ43: 91.15190514 | AK43: 91.15202042 | AL43: 91.15203886 | AM43: 91.15198814 | AN43: 91.15201581 | AO43: 91.15201427 | AP43: 91.15200607 | AQ43: 91.15201205 | AR43: 91.1520108
A44: 1600000US3103810 | B44: Belgrade village, Nebraska | C44: 96.4 | D44: 95 | E44: 91.2 | F44: 90.3 | G44: 91.8 | H44: 92.5 | I44: 93.5 | J44: 96.6 | K44: 96.2 | L44: 95.58823529 | M44: 95.18862745 | N44: 95.42131907 | O44: 95.6540107 | P44: 95.88670232 | Q44: 96.11939394 | R44: 96.35208556 | S44: 96.58477718 | T44: 96.81746881 | U44: 97.05016043 | V44: 97.28285205 | W44: 97.05016043 | X44: 97.1277243 | Y44: 97.15357893 | Z44: 97.11048789 | AA44: 97.13059704 | AB44: 97.13155462 | AC44: 97.12421318 | AD44: 97.12878828 | AE44: 97.12818536 | AF44: 97.12706227 | AG44: 97.12801197 | AH44: 97.1277532 | AI44: 97.12760915 | AJ44: 97.12779144 | AK44: 97.12771793 | AL44: 97.12770617 | AM44: 97.12773851 | AN44: 97.12772087 | AO44: 97.12772185 | AP44: =(AM44+AN44+AO44)/3 -> 97.12772708 | AQ44: 97.12772327 | AR44: 97.12772407
A45: 1600000US3103950 | B45: Bellevue city, Nebraska | C45: 91.7 | D45: 92 | E45: 92 | F45: 92.6 | G45: 92.7 | H45: 92.8 | I45: 92.5 | J45: 91 | K45: 91.5 | L45: 92.2433479 | M45: 91.97733916 | N45: 91.95424904 | O45: 91.93115893 | P45: 91.90806881 | Q45: 91.8849787 | R45: 91.86188858 | S45: 91.83879847 | T45: 91.81570835 | U45: 91.79261824 | V45: 91.76952812 | W45: 91.79261824 | X45: 91.78492153 | Y45: 91.78235597 | Z45: 91.78663191 | AA45: 91.78463647 | AB45: 91.78454145 | AC45: 91.78526995 | AD45: 91.78481596 | AE45: 91.78487578 | AF45: 91.78498723 | AG45: 91.78489299 | AH45: 91.78491867 | AI45: 91.78493296 | AJ45: 91.78491487 | AK45: 91.78492217 | AL45: 91.78492333 | AM45: 91.78492012 | AN45: 91.78492188 | AO45: 91.78492178 | AP45: 91.78492126 | AQ45: 91.78492164 | AR45: 91.78492156
A46: 1600000US3104020 | B46: Bellwood village, Nebraska | C46: 92.5 | D46: 93.5 | E46: 89.8 | F46: 92.3 | G46: 90.1 | H46: 88.7 | I46: 88.9 | J46: 91.5 | K46: 87.4 | L46: 90.65420561 | M46: 88.45501558 | N46: 88.07676012 | O46: 87.69850467 | P46: 87.32024922 | Q46: 86.94199377 | R46: 86.56373832 | S46: 86.18548287 | T46: 85.80722741 | U46: 85.42897196 | V46: 85.05071651 | W46: 85.42897196 | X46: 85.30288681 | Y46: 85.26085843 | Z46: 85.33090573 | AA46: 85.29821699 | AB46: 85.29666038 | AC46: 85.30859437 | AD46: 85.30115725 | AE46: 85.30213733 | AF46: 85.30396298 | AG46: 85.30241919 | AH46: 85.30283984 | AI46: 85.303074 | AJ46: 85.30277768 | AK46: 85.30289717 | AL46: 85.30291628 | AM46: 85.30286371 | AN46: 85.30289239 | AO46: 85.30289079 | AP46: 85.3028823 | AQ46: 85.30288849 | AR46: 85.3028872
A47: 1600000US3104160 | B47: Belvidere village, Nebraska | C47: 81.6 | D47: 60 | E47: 72 | F47: 85.2 | G47: 86.2 | H47: 85.7 | I47: 86.2 | J47: 77.3 | K47: 87.1 | L47: 80 | M47: 86.94 | N47: 88.17818182 | O47: 89.41636364 | P47: 90.65454545 | Q47: 91.89272727 | R47: 93.13090909 | S47: 94.36909091 | T47: 95.60727273 | U47: 96.84545455 | V47: 98.08363636 | W47: 96.84545455 | X47: 97.25818182 | Y47: 97.39575758 | Z47: 97.16646465 | AA47: 97.27346801 | AB47: 97.27856341 | AC47: 97.23949869 | AD47: 97.26384337 | AE47: 97.26063516 | AF47: 97.25465907 | AG47: 97.25971253 | AH47: 97.25833559 | AI47: 97.25756907 | AJ47: 97.25853906 | AK47: 97.25814791 | AL47: 97.25808534 | AM47: 97.25825744 | AN47: 97.25816356 | AO47: 97.25816878 | AP47: 97.25819659 | AQ47: 97.25817631 | AR47: 97.25818056
A48: 1600000US3104195 | B48: Benedict village, Nebraska | C48: 84.9 | D48: 86.4 | E48: 89.6 | F48: 88.6 | G48: 91.7 | H48: 93.5 | I48: 94.8 | J48: 88.5 | K48: 89.6 | L48: 90.51383399 | M48: 92.73886693 | N48: 93.27113666 | O48: 93.8034064 | P48: 94.33567613 | Q48: 94.86794586 | R48: 95.40021559 | S48: 95.93248533 | T48: 96.46475506 | U48: 96.99702479 | V48: 97.52929453 | W48: 96.99702479 | X48: 97.17444804 | Y48: 97.23358912 | Z48: 97.13502065 | AA48: 97.18101927 | AB48: 97.18320968 | AC48: 97.16641653 | AD48: 97.17688183 | AE48: 97.17550268 | AF48: 97.17293368 | AG48: 97.17510606 | AH48: 97.17451414 | AI48: 97.17418463 | AJ48: 97.17460161 | AK48: 97.17443346 | AL48: 97.17440657 | AM48: 97.17448055 | AN48: 97.17444019 | AO48: 97.17444243 | AP48: 97.17445439 | AQ48: 97.17444567 | AR48: 97.1744475
A49: 1600000US3104230 | B49: Benkelman city, Nebraska | C49: 90.5 | D49: 90.7 | E49: 89 | F49: 93 | G49: 93 | H49: 92 | I49: 90.1 | J49: 89.2 | K49: 89 | L49: 88.01054018 | M49: 89.01754941 | N49: 88.75691221 | O49: 88.496275 | P49: 88.2356378 | Q49: 87.9750006 | R49: 87.7143634 | S49: 87.45372619 | T49: 87.19308899 | U49: 86.93245179 | V49: 86.67181459 | W49: 86.93245179 | X49: 86.84557272 | Y49: 86.81661303 | Z49: 86.86487918 | AA49: 86.84235498 | AB49: 86.8412824 | AC49: 86.84950552 | AD49: 86.84438097 | AE49: 86.8450563 | AF49: 86.84631426 | AG49: 86.84525051 | AH49: 86.84554035 | AI49: 86.84570171 | AJ49: 86.84549752 | AK49: 86.84557986 | AL49: 86.84559303 | AM49: 86.84555681 | AN49: 86.84557657 | AO49: 86.84557547 | AP49: 86.84556961 | AQ49: 86.84557388 | AR49: 86.84557299
A50: 1600000US3104300 | B50: Bennet village, Nebraska | C50: 96.6 | D50: 95.4 | E50: 97.5 | F50: 98.3 | G50: 98.2 | H50: 97.5 | I50: 97.8 | J50: 96.2 | K50: 95.8 | L50: 96.2962963 | M50: 96.67185185 | N50: 96.61952862 | O50: 96.56720539 | P50: 96.51488215 | Q50: 96.46255892 | R50: 96.41023569 | S50: 96.35791246 | T50: 96.30558923 | U50: 96.25326599 | V50: 96.20094276 | W50: 96.25326599 | X50: 96.23582492 | Y50: 96.23001122 | Z50: 96.23970071 | AA50: 96.23517895 | AB50: 96.23496363 | AC50: 96.23661443 | AD50: 96.23558567 | AE50: 96.23572124 | AF50: 96.23597378 | AG50: 96.23576023 | AH50: 96.23581842 | AI50: 96.23585081 | AJ50: 96.23580982 | AK50: 96.23582635 | AL50: 96.23582899 | AM50: 96.23582172 | AN50: 96.23582569 | AO50: 96.23582547 | AP50: 96.23582429 | AQ50: 96.23582515 | AR50: 96.23582497
A51: 1600000US3104405 | B51: Bennington city, Nebraska | C51: 94.1 | D51: 93.6 | E51: 93.6 | F51: 95.4 | G51: 96.2 | H51: 95.7 | I51: 95.7 | J51: 94.9 | K51: 94.2 | L51: 92.26985242 | M51: 94.38794097 | N51: 94.35538747 | O51: 94.32283396 | P51: 94.29028046 | Q51: 94.25772695 | R51: 94.22517345 | S51: 94.19261995 | T51: 94.16006644 | U51: 94.12751294 | V51: 94.09495943 | W51: 94.12751294 | X51: 94.11666177 | Y51: 94.11304471 | Z51: 94.11907314 | AA51: 94.11625987 | AB51: 94.11612591 | AC51: 94.11715297 | AD51: 94.11651292 | AE51: 94.11659727 | AF51: 94.11675439 | AG51: 94.11662152 | AH51: 94.11665773 | AI51: 94.11667788 | AJ51: 94.11665238 | AK51: 94.11666266 | AL51: 94.11666431 | AM51: 94.11665978 | AN51: 94.11666225 | AO51: 94.11666211 | AP51: 94.11666138 | AQ51: 94.11666191 | AR51: 94.1166618
A52: 1600000US3104615 | B52: Bertrand village, Nebraska | C52: 91.2 | D52: 93.7 | E52: 94.4 | F52: 92.8 | G52: 93 | H52: 92.4 | I52: 89.9 | J52: 88.4 | K52: 90 | L52: 90.38461538 | M52: 89.20051282 | N52: 88.76088578 | O52: 88.32125874 | P52: 87.8816317 | Q52: 87.44200466 | R52: 87.00237762 | S52: 86.56275058 | T52: 86.12312354 | U52: 85.6834965 | V52: 85.24386946 | W52: =(T52+U52+V52)/3 -> 85.6834965 | X52: 85.53695416 | Y52: 85.48810671 | Z52: 85.56951912 | AA52: 85.53152666 | AB52: 85.5297175 | AC52: 85.54358776 | AD52: 85.53494397 | AE52: 85.53608308 | AF52: 85.53820494 | AG52: 85.53641066 | AH52: 85.53689956 | AI52: 85.53717172 | AJ52: 85.53682731 | AK52: 85.5369662 | AL52: 85.53698841 | AM52: 85.53692731 | AN52: 85.53696064 | AO52: 85.53695879 | AP52: 85.53694891 | AQ52: 85.53695611 | AR52: 85.5369546
A53: 1600000US3104650 | B53: Berwyn village, Nebraska | C53: 96.5 | D53: 100 | E53: 99 | F53: 92.1 | G53: 93.6 | H53: 90.3 | I53: 89.7 | J53: 83.5 | K53: 85.1 | L53: 82.89473684 | M53: 80.77789474 | N53: 78.87033493 | O53: 76.96277512 | P53: 75.05521531 | Q53: 73.1476555 | R53: 71.24009569 | S53: 69.33253589 | T53: 67.42497608 | U53: 65.51741627 | V53: 63.60985646 | W53: 65.51741627 | X53: 64.881563 | Y53: 64.66961191 | Z53: 65.02286372 | AA53: 64.85801288 | AB53: 64.85016284 | AC53: 64.91034648 | AD53: 64.87284073 | AE53: 64.87778335 | AF53: 64.88699019 | AG53: 64.87920476 | AH53: 64.8813261 | AI53: 64.88250701 | AJ53: 64.88101262 | AK53: 64.88161524 | AL53: 64.88171163 | AM53: 64.8814465 | AN53: 64.88159112 | AO53: 64.88158308 | AP53: 64.88154023 | AQ53: 64.88157148 | AR53: 64.88156493
A54: 1600000US3104895 | B54: Big Springs village, Nebraska | C54: 80.6 | D54: 84.7 | E54: 91.2 | F54: 88.6 | G54: 88.2 | H54: 86.3 | I54: 87.7 | J54: 87.5 | K54: 88.5 | L54: 87.17277487 | M54: 89.13577661 | N54: 89.51550373 | O54: 89.89523084 | P54: 90.27495796 | Q54: 90.65468507 | R54: 91.03441218 | S54: 91.4141393 | T54: 91.79386641 | U54: 92.17359353 | V54: 92.55332064 | W54: 92.17359353 | X54: 92.30016923 | Y54: 92.34236113 | Z54: 92.2720413 | AA54: 92.30485722 | AB54: 92.30641988 | AC54: 92.29443947 | AD54: 92.30190552 | AE54: 92.30092162 | AF54: 92.29908887 | AG54: 92.30063867 | AH54: 92.30021639 | AI54: 92.29998131 | AJ54: 92.30027879 | AK54: 92.30015883 | AL54: 92.30013965 | AM54: 92.30019242 | AN54: 92.30016363 | AO54: 92.30016523 | AP54: 92.30017376 | AQ54: 92.30016754 | AR54: 92.30016885
A55: 1600000US3105140 | B55: Bladen village, Nebraska | C55: 89.1 | D55: 80 | E55: 84.5 | F55: 85.4 | G55: 87.7 | H55: 89.7 | I55: 96.4 | J55: 93.8 | K55: 93.3 | L55: 87.68115942 | M55: 94.15246377 | N55: 95.13325428 | O55: 96.1140448 | P55: 97.09483531 | Q55: 98.07562582 | R55: 99.05641634 | S55: 100 | T55: 100 | U55: 100 | V55: 100 | W55: 100 | X55: 100 | Y55: 100 | Z55: 100 | AA55: 100 | AB55: 100 | AC55: 100 | AD55: 100 | AE55: 100 | AF55: 100 | AG55: 100 | AH55: 100 | AI55: 100 | AJ55: 100 | AK55: 100 | AL55: 100 | AM55: 100 | AN55: 100 | AO55: 100 | AP55: 100 | AQ55: 100 | AR55: 100
A56: 1600000US3105350 | B56: Blair city, Nebraska | C56: 93.5 | D56: 93.1 | E56: 95 | F56: 94.7 | G56: 96.4 | H56: 95.6 | I56: 95 | J56: 93.4 | K56: 93.9 | L56: 93.0125597 | M56: 94.13835721 | N56: 94.09783017 | O56: 94.05730312 | P56: 94.01677607 | Q56: 93.97624903 | R56: 93.93572198 | S56: 93.89519494 | T56: 93.85466789 | U56: 93.81414084 | V56: 93.7736138 | W56: 93.81414084 | X56: 93.80063183 | Y56: 93.79612882 | Z56: 93.80363383 | AA56: 93.80013149 | AB56: 93.79996471 | AC56: 93.80124335 | AD56: 93.80044652 | AE56: 93.80055153 | AF56: 93.80074713 | AG56: 93.80058172 | AH56: 93.80062679 | AI56: 93.80065188 | AJ56: 93.80062013 | AK56: 93.80063294 | AL56: 93.80063498 | AM56: 93.80062935 | AN56: 93.80063242 | AO56: 93.80063225 | AP56: 93.80063134 | AQ56: 93.80063201 | AR56: 93.80063187
A57: 1600000US3105455 | B57: Bloomfield city, Nebraska | C57: 85.4 | D57: 85.7 | E57: 84.9 | F57: 86.6 | G57: 87.3 | H57: 86.2 | I57: 86.4 | J57: 89.1 | K57: 91 | L57: 91.88829787 | M57: 91.27531915 | N57: 91.97104449 | O57: 92.66676983 | P57: 93.36249516 | Q57: 94.0582205 | R57: 94.75394584 | S57: 95.44967118 | T57: 96.14539652 | U57: 96.84112186 | V57: 97.5368472 | W57: 96.84112186 | X57: 97.0730303 | Y57: 97.15033312 | Z57: 97.02149509 | AA57: 97.0816195 | AB57: 97.08448257 | AC57: 97.06253239 | AD57: 97.07621149 | AE57: 97.07440882 | AF57: 97.0710509 | AG57: 97.0738904 | AH57: 97.07311671 | AI57: 97.072686 | AJ57: 97.07323104 | AK57: 97.07301125 | AL57: 97.0729761 | AM57: 97.07307279 | AN57: 97.07302005 | AO57: 97.07302298 | AP57: 97.07303861 | AQ57: 97.07302721 | AR57: 97.0730296
A58: 1600000US3105490 | B58: Bloomington village, Nebraska | C58: 90.6 | D58: 89.6 | E58: 93.6 | F58: 86 | G58: 80.6 | H58: 81 | I58: 82.4 | J58: 82.6 | K58: 88 | L58: 84.09090909 | M58: 81.3430303 | N58: 80.52374656 | O58: 79.70446281 | P58: 78.88517906 | Q58: 78.06589532 | R58: 77.24661157 | S58: 76.42732782 | T58: 75.60804408 | U58: 74.78876033 | V58: 73.96947658 | W58: 74.78876033 | X58: 74.51566575 | Y58: 74.42463422 | Z58: 74.57635343 | AA58: 74.50555113 | AB58: 74.5021796 | AC58: 74.52802805 | AD58: 74.5119196 | AE58: 74.51404242 | AF58: 74.51799669 | AG58: 74.5146529 | AH58: 74.515564 | AI58: 74.5160712 | AJ58: 74.51542937 | AK58: 74.51568819 | AL58: 74.51572958 | AM58: 74.51561571 | AN58: 74.51567783 | AO58: 74.51567437 | AP58: 74.51565597 | AQ58: 74.51566939 | AR58: 74.51566658
A59: 1600000US3105560 | B59: Blue Hill city, Nebraska | C59: 83.7 | D59: 88.2 | E59: 92.7 | F59: 91.2 | G59: 91.4 | H59: 91 | I59: 92.3 | J59: 92.6 | K59: 93.4 | L59: 95.56786704 | M59: 96.06048015 | N59: 96.94296986 | O59: 97.82545958 | P59: 98.7079493 | Q59: 99.59043902 | R59: 100 | S59: 100 | T59: 100 | U59: 100 | V59: 100 | W59: 100 | X59: 100 | Y59: 100 | Z59: 100 | AA59: 100 | AB59: 100 | AC59: 100 | AD59: 100 | AE59: 100 | AF59: 100 | AG59: 100 | AH59: 100 | AI59: 100 | AJ59: 100 | AK59: 100 | AL59: 100 | AM59: 100 | AN59: 100 | AO59: 100 | AP59: 100 | AQ59: 100 | AR59: 100
A60: 1600000US3105630 | B60: Blue Springs city, Nebraska | C60: 77.9 | D60: 77.3 | E60: 83.3 | F60: 87.5 | G60: 83.7 | H60: 84.9 | I60: 85.6 | J60: 85.9 | K60: 83.9 | L60: 87.44394619 | M60: 88.43091181 | N60: 89.28300584 | O60: 90.13509988 | P60: 90.98719391 | Q60: 91.83928795 | R60: 92.69138198 | S60: 93.54347602 | T60: 94.39557005 | U60: 95.24766408 | V60: 96.09975812 | W60: 95.24766408 | X60: 95.53169543 | Y60: 95.62637254 | Z60: 95.46857735 | AA60: 95.54221511 | AB60: 95.54572167 | AC60: 95.51883804 | AD60: 95.53559161 | AE60: 95.53338377 | AF60: 95.52927114 | AG60: 95.53274884 | AH60: 95.53180125 | AI60: 95.53127374 | AJ60: 95.53194128 | AK60: 95.53167209 | AL60: 95.53162904 | AM60: 95.53174747 | AN60: 95.53168287 | AO60: 95.53168646 | AP60: 95.5317056 | AQ60: 95.53169164 | AR60: 95.53169457
A61: 1600000US3106015 | B61: Boys Town village, Nebraska | C61: 100 | D61: 94.7 | E61: 100 | F61: 100 | G61: 100 | H61: 100 | I61: 100 | J61: 88.9 | K61: 44 | L61: 73.57512953 | M61: 68.51005181 | N61: 64.58142252 | O61: 60.65279322 | P61: 56.72416392 | Q61: 52.79553462 | R61: 48.86690532 | S61: 44.93827602 | T61: 41.00964673 | U61: 37.08101743 | V61: 33.15238813 | W61: 37.08101743 | X61: 35.77147433 | Y61: 35.33495996 | Z61: 36.06248391 | AA61: 35.72297273 | AB61: 35.70680553 | AC61: 35.83075406 | AD61: 35.75351077 | AE61: 35.76369012 | AF61: 35.78265165 | AG61: 35.76661752 | AH61: 35.77098643 | AI61: 35.77341853 | AJ61: 35.77034083 | AK61: 35.77158193 | AL61: 35.77178043 | AM61: 35.77123439 | AN61: 35.77153225 | AO61: 35.77151569 | AP61: 35.77142745 | AQ61: 35.7714918 | AR61: 35.77147831
A62: 1600000US3106050 | B62: Bradshaw village, Nebraska | C62: 83.1 | D62: 84.6 | E62: 87.3 | F62: 90.8 | G62: 91.5 | H62: 94.8 | I62: 95.8 | J62: 92.8 | K62: 90 | L62: 90 | M62: 94.92666667 | N62: 95.80969697 | O62: 96.69272727 | P62: 97.57575758 | Q62: 98.45878788 | R62: 99.34181818 | S62: 100 | T62: 100 | U62: 100 | V62: 100 | W62: 100 | X62: 100 | Y62: 100 | Z62: 100 | AA62: 100 | AB62: 100 | AC62: 100 | AD62: 100 | AE62: 100 | AF62: 100 | AG62: 100 | AH62: 100 | AI62: 100 | AJ62: 100 | AK62: 100 | AL62: 100 | AM62: 100 | AN62: 100 | AO62: 100 | AP62: 100 | AQ62: 100 | AR62: 100
A63: 1600000US3106085 | B63: Brady village, Nebraska | C63: 95.5 | D63: 94.4 | E63: 93 | F63: 92.6 | G63: 93.8 | H63: 94 | I63: 93.5 | J63: 98.5 | K63: 97.9 | L63: 96.83098592 | M63: 97.23239437 | N63: 97.63772087 | O63: 98.04304738 | P63: 98.44837388 | Q63: 98.85370038 | R63: 99.25902689 | S63: 99.66435339 | T63: 100 | U63: 100 | V63: 100 | W63: 100 | X63: 100 | Y63: 100 | Z63: 100 | AA63: 100 | AB63: 100 | AC63: 100 | AD63: 100 | AE63: 100 | AF63: 100 | AG63: 100 | AH63: 100 | AI63: 100 | AJ63: 100 | AK63: 100 | AL63: 100 | AM63: 100 | AN63: 100 | AO63: 100 | AP63: 100 | AQ63: 100 | AR63: 100
A64: 1600000US3106120 | B64: Brainard village, Nebraska | C64: 92.7 | D64: 94.9 | E64: 98.4 | F64: 98.3 | G64: 96.3 | H64: 95.5 | I64: 95.4 | J64: 94.3 | K64: 92.9 | L64: 94.89489489 | M64: 94.55129129 | N64: 94.40434616 | O64: 94.25740104 | P64: 94.11045591 | Q64: 93.96351078 | R64: 93.81656566 | S64: 93.66962053 | T64: 93.5226754 | U64: 93.37573028 | V64: 93.22878515 | W64: 93.37573028 | X64: 93.32674857 | Y64: 93.31042133 | Z64: 93.33763339 | AA64: 93.32493443 | AB64: 93.32432972 | AC64: 93.32896585 | AD64: 93.32607666 | AE64: 93.32645741 | AF64: 93.32716664 | AG64: 93.3265669 | AH64: 93.32673032 | AI64: 93.32682129 | AJ64: 93.32670617 | AK64: 93.32675259 | AL64: 93.32676002 | AM64: 93.32673959 | AN64: 93.32675073 | AO64: 93.32675011 | AP64: 93.32674681 | AQ64: 93.32674922 | AR64: 93.32674872
A65: 1600000US3106295 | B65: Bridgeport city, Nebraska | C65: 79.3 | D65: 81.1 | E65: 82.9 | F65: 86.9 | G65: 86.6 | H65: 90 | I65: 91.1 | J65: 86.8 | K65: 86.5 | L65: 88.48580442 | M65: 91.1676551 | N65: 92.1129414 | O65: 93.0582277 | P65: 94.003514 | Q65: 94.94880031 | R65: 95.89408661 | S65: 96.83937291 | T65: 97.78465921 | U65: 98.72994551 | V65: 99.67523181 | W65: 98.72994551 | X65: 99.04504095 | Y65: 99.15007276 | Z65: 98.97501974 | AA65: 99.05671115 | AB65: 99.06060121 | AC65: 99.03077737 | AD65: 99.04936324 | AE65: 99.04691394 | AF65: 99.04235152 | AG65: 99.04620957 | AH65: 99.04515834 | AI65: 99.04457314 | AJ65: 99.04531368 | AK65: 99.04501506 | AL65: 99.04496729 | AM65: 99.04509868 | AN65: 99.04502701 | AO65: 99.04503099 | AP65: 99.04505223 | AQ65: 99.04503674 | AR65: 99.04503999
A66: 1600000US3106400 | B66: Bristow village, Nebraska | C66: 86.1 | D66: 87.1 | E66: 82.1 | F66: 94.1 | G66: 93.3 | H66: 93.8 | I66: 94.3 | J66: 93.2 | K66: 93.9 | L66: 94.20289855 | M66: 97.11449275 | N66: 98.18798419 | O66: 99.26147563 | P66: 100 | Q66: 100 | R66: 100 | S66: 100 | T66: 100 | U66: 100 | V66: 100 | W66: 100 | X66: 100 | Y66: 100 | Z66: 100 | AA66: 100 | AB66: 100 | AC66: 100 | AD66: 100 | AE66: 100 | AF66: 100 | AG66: 100 | AH66: 100 | AI66: 100 | AJ66: 100 | AK66: 100 | AL66: 100 | AM66: 100 | AN66: 100 | AO66: 100 | AP66: 100 | AQ66: 100 | AR66: 100
A67: 1600000US3106470 | B67: Broadwater village, Nebraska | C67: 90.8 | D67: 86.8 | E67: 88.6 | F67: 82.9 | G67: 84.1 | H67: 81.7 | I67: 83.3 | J67: 72.6 | K67: 73.7 | L67: 77.35849057 | M67: 72.39006289 | N67: 70.60901086 | O67: 68.82795883 | P67: 67.0469068 | Q67: 65.26585477 | R67: 63.48480274 | S67: 61.70375071 | T67: 59.92269868 | U67: 58.14164666 | V67: 56.36059463 | W67: 58.14164666 | X67: 57.54796265 | Y67: 57.35006798 | Z67: 57.67989243 | AA67: 57.52597435 | AB67: 57.51864492 | AC67: 57.57483723 | AD67: 57.53981883 | AE67: 57.54443366 | AF67: 57.55302991 | AG67: 57.5457608 | AH67: 57.54774146 | AI67: 57.54884405 | AJ67: 57.54744877 | AK67: 57.54801143 | AL67: 57.54810142 | AM67: 57.54785387 | AN67: 57.5479889 | AO67: 57.5479814 | AP67: 57.54794139 | AQ67: 57.54797056 | AR67: 57.54796445
A68: 1600000US3106505 | B68: Brock village, Nebraska | C68: 90.8 | D68: 83.2 | E68: 81.4 | F68: 79.8 | G68: 78.8 | H68: 85.3 | I68: 92.5 | J68: 91 | K68: 90.1 | L68: 93.68421053 | M68: 92.22035088 | N68: 93.23161085 | O68: 94.24287081 | P68: 95.25413078 | Q68: 96.26539075 | R68: 97.27665072 | S68: 98.28791069 | T68: 99.29917065 | U68: 100 | V68: 100 | W68: 99.76639022 | X68: 99.92213007 | Y68: 99.89617343 | Z68: 99.86156457 | AA68: 99.89328936 | AB68: 99.88367579 | AC68: 99.87950991 | AD68: 99.88549168 | AE68: 99.88289246 | AF68: 99.88263135 | AG68: 99.88367183 | AH68: 99.88306521 | AI68: 99.8831228 | AJ68: 99.88328661 | AK68: 99.88315821 | AL68: 99.88318921 | AM68: 99.88321134 | AN68: 99.88318625 | AO68: 99.8831956 | AP68: 99.88319773 | AQ68: 99.8831932 | AR68: 99.88319551
A69: 1600000US3106610 | B69: Broken Bow city, Nebraska | C69: 89.3 | D69: 91.5 | E69: 91 | F69: 91.7 | G69: 90 | H69: 88.4 | I69: 88.2 | J69: 85.2 | K69: 89.3 | L69: 90.89184061 | M69: 88.14340291 | N69: 87.88780634 | O69: 87.63220976 | P69: 87.37661319 | Q69: 87.12101662 | R69: 86.86542004 | S69: 86.60982347 | T69: 86.3542269 | U69: 86.09863033 | V69: 85.84303375 | W69: =(T69+U69+V69)/3 -> 86.09863033 | X69: 86.01343147 | Y69: 85.98503185 | Z69: 86.03236455 | AA69: 86.01027596 | AB69: 86.00922412 | AC69: 86.01728821 | AD69: 86.01226276 | AE69: 86.01292503 | AF69: 86.01415866 | AG69: 86.01311548 | AH69: 86.01339973 | AI69: 86.01355796 | AJ69: 86.01335772 | AK69: 86.01343847 | AL69: 86.01345138 | AM69: 86.01341586 | AN69: 86.01343524 | AO69: 86.01343416 | AP69: 86.01342842 | AQ69: 86.0134326 | AR69: 86.01343173
A70: 1600000US3106750 | B70: Brownville village, Nebraska | C70: 88.3 | D70: 90.4 | E70: 90.6 | F70: 92 | G70: 93.4 | H70: 92.2 | I70: 92 | J70: 90.9 | K70: 87 | L70: 90.38461538 | M70: 90.56051282 | N70: 90.53179487 | O70: 90.50307692 | P70: 90.47435897 | Q70: 90.44564103 | R70: 90.41692308 | S70: 90.38820513 | T70: 90.35948718 | U70: 90.33076923 | V70: 90.30205128 | W70: 90.33076923 | X70: 90.32119658 | Y70: 90.3180057 | Z70: 90.32332384 | AA70: 90.32084204 | AB70: 90.32072386 | AC70: 90.32162991 | AD70: 90.32106527 | AE70: 90.32113968 | AF70: 90.32127829 | AG70: 90.32116108 | AH70: 90.32119301 | AI70: 90.32121079 | AJ70: 90.3211883 | AK70: 90.32119737 | AL70: 90.32119882 | AM70: 90.32119483 | AN70: 90.321197 | AO70: 90.32119688 | AP70: 90.32119624 | AQ70: 90.32119671 | AR70: 90.32119661
A71: 1600000US3106785 | B71: Brule village, Nebraska | C71: 88.4 | D71: 87.9 | E71: 88.2 | F71: 91 | G71: 90.1 | H71: 91 | I71: 91.3 | J71: 89.3 | K71: 87.9 | L71: 91.32231405 | M71: 90.76225895 | N71: 90.96590033 | O71: 91.1695417 | P71: 91.37318307 | Q71: 91.57682444 | R71: 91.78046582 | S71: 91.98410719 | T71: 92.18774856 | U71: 92.39138993 | V71: 92.5950313 | W71: 92.39138993 | X71: 92.45927039 | Y71: 92.48189721 | Z71: 92.44418584 | AA71: 92.46178448 | AB71: 92.46262251 | AC71: 92.45619761 | AD71: 92.46020153 | AE71: 92.45967389 | AF71: 92.45869101 | AG71: 92.45952214 | AH71: 92.45929568 | AI71: 92.45916961 | AJ71: 92.45932915 | AK71: 92.45926481 | AL71: 92.45925452 | AM71: 92.45928283 | AN71: 92.45926739 | AO71: 92.45926825 | AP71: 92.45927282 | AQ71: 92.45926948 | AR71: 92.45927018
A72: 1600000US3106820 | B72: Bruning village, Nebraska | C72: 97.3 | D72: 97.1 | E72: 98.8 | F72: 98.7 | G72: 98.5 | H72: 97.6 | I72: 97.2 | J72: 97.3 | K72: 96.5 | L72: 96.1352657 | M72: 96.59410628 | N72: 96.42693895 | O72: 96.25977163 | P72: 96.0926043 | Q72: 95.92543698 | R72: 95.75826965 | S72: 95.59110233 | T72: 95.423935 | U72: 95.25676768 | V72: 95.08960035 | W72: 95.25676768 | X72: 95.20104523 | Y72: 95.18247109 | Z72: 95.213428 | AA72: 95.19898144 | AB72: 95.19829351 | AC72: 95.20356765 | AD72: 95.20028087 | AE72: 95.20071401 | AF72: 95.20152084 | AG72: 95.20083857 | AH72: 95.20102447 | AI72: 95.20112796 | AJ72: 95.200997 | AK72: 95.20104981 | AL72: 95.20105826 | AM72: 95.20103503 | AN72: 95.2010477 | AO72: 95.20104699 | AP72: 95.20104324 | AQ72: 95.20104598 | AR72: 95.2010454
A73: 1600000US3106855 | B73: Bruno village, Nebraska | C73: 86.4 | D73: 82.4 | E73: 85.5 | F73: 85.9 | G73: 78.8 | H73: 90.9 | I73: 91.4 | J73: 89.3 | K73: 88.3 | L73: 91.56626506 | M73: 91.55983936 | N73: 92.38042351 | O73: 93.20100767 | P73: 94.02159182 | Q73: 94.84217598 | R73: 95.66276013 | S73: 96.48334429 | T73: 97.30392844 | U73: 98.1245126 | V73: 98.94509675 | W73: 98.1245126 | X73: 98.39804065 | Y73: 98.48921666 | Z73: 98.33725664 | AA73: 98.40817132 | AB73: 98.41154821 | AC73: 98.38565872 | AD73: 98.40179275 | AE73: 98.39966656 | AF73: 98.39570601 | AG73: 98.3990551 | AH73: 98.39814256 | AI73: 98.39763456 | AJ73: 98.39827741 | AK73: 98.39801817 | AL73: 98.39797671 | AM73: 98.39809076 | AN73: 98.39802855 | AO73: 98.39803201 | AP73: 98.39805044 | AQ73: 98.398037 | AR73: 98.39803982
A74: 1600000US3106890 | B74: Brunswick village, Nebraska | C74: 94.6 | D74: 97.1 | E74: 97.2 | F74: 95.1 | G74: 93.3 | H74: 84.9 | I74: 90.2 | J74: 91.6 | K74: 91.9 | L74: 93.01075269 | M74: 89.49763441 | N74: 88.88064516 | O74: 88.26365591 | P74: 87.64666667 | Q74: 87.02967742 | R74: 86.41268817 | S74: 85.79569892 | T74: 85.17870968 | U74: 84.56172043 | V74: 83.94473118 | W74: 84.56172043 | X74: 84.35605735 | Y74: 84.28750299 | Z74: 84.40176025 | AA74: 84.3484402 | AB74: 84.34590115 | AC74: 84.3653672 | AD74: 84.35323618 | AE74: 84.35483484 | AF74: 84.35781274 | AG74: 84.35529459 | AH74: 84.35598072 | AI74: 84.35636268 | AJ74: 84.35587933 | AK74: 84.35607425 | AL74: 84.35610542 | AM74: 84.35601967 | AN74: 84.35606644 | AO74: 84.35606384 | AP74: 84.35604998 | AQ74: 84.35606009 | AR74: 84.35605797
A75: 1600000US3107065 | B75: Burchard village, Nebraska | C75: 73.3 | D75: 80 | E75: 92.9 | F75: 94.4 | G75: 95.1 | H75: 95.5 | I75: 97.6 | J75: 91.1 | K75: 90.7 | L75: 91.66666667 | M75: 98.26666667 | N75: 99.72848485 | O75: 100 | P75: 100 | Q75: 100 | R75: 100 | S75: 100 | T75: 100 | U75: 100 | V75: 100 | W75: 100 | X75: 100 | Y75: 100 | Z75: 100 | AA75: 100 | AB75: 100 | AC75: 100 | AD75: 100 | AE75: 100 | AF75: 100 | AG75: 100 | AH75: 100 | AI75: 100 | AJ75: 100 | AK75: 100 | AL75: 100 | AM75: 100 | AN75: 100 | AO75: 100 | AP75: 100 | AQ75: 100 | AR75: 100
A76: 1600000US3107205 | B76: Burr village, Nebraska | C76: 96.5 | D76: 100 | E76: 100 | F76: 100 | G76: 100 | H76: 100 | I76: 100 | J76: 93.5 | K76: 96.7 | L76: 96.55172414 | M76: 96.48735632 | N76: 96.15320794 | O76: 95.81905956 | P76: 95.48491118 | Q76: 95.1507628 | R76: 94.81661442 | S76: 94.48246604 | T76: 94.14831766 | U76: 93.81416928 | V76: 93.4800209 | W76: 93.81416928 | X76: 93.70278649 | Y76: 93.66565889 | Z76: 93.72753822 | AA76: 93.6986612 | AB76: 93.6972861 | AC76: 93.70782851 | AD76: 93.7012586 | AE76: 93.7021244 | AF76: 93.70373717 | AG76: 93.70237339 | AH76: 93.70274499 | AI76: 93.70295185 | AJ76: 93.70269008 | AK76: 93.70279564 | AL76: 93.70281252 | AM76: 93.70276608 | AN76: 93.70279141 | AO76: 93.70279 | AP76: 93.7027825 | AQ76: 93.70278797 | AR76: 93.70278682
A77: 1600000US3107345 | B77: Burwell city, Nebraska | C77: 92.4 | D77: 91.2 | E77: 92.2 | F77: 91.9 | G77: 93.6 | H77: 92.7 | I77: 93.3 | J77: 94.8 | K77: 94.7 | L77: 94.55645161 | M77: 95.14258065 | N77: 95.50747801 | O77: 95.87237537 | P77: 96.23727273 | Q77: 96.60217009 | R77: 96.96706745 | S77: 97.33196481 | T77: 97.69686217 | U77: 98.06175953 | V77: 98.42665689 | W77: 98.06175953 | X77: 98.18339198 | Y77: 98.22393614 | Z77: 98.15636255 | AA77: 98.18789689 | AB77: 98.18939853 | AC77: 98.17788599 | AD77: 98.18506047 | AE77: 98.18411499 | AF77: 98.18235382 | AG77: 98.18384309 | AH77: 98.1834373 | AI77: 98.1832114 | AJ77: 98.18349727 | AK77: 98.18338199 | AL77: 98.18336355 | AM77: 98.18341427 | AN77: 98.1833866 | AO77: 98.18338814 | AP77: 98.18339634 | AQ77: 98.18339036 | AR77: 98.18339161
A78: 1600000US3107415 | B78: Bushnell village, Nebraska | C78: 71.9 | D78: 79.1 | E78: 78.3 | F78: 81.3 | G78: 83.6 | H78: 82.6 | I78: 81 | J78: 87.3 | K78: 79.3 | L78: 77.38095238 | M78: 83.30571429 | N78: 83.87437229 | O78: 84.4430303 | P78: 85.01168831 | Q78: 85.58034632 | R78: 86.14900433 | S78: 86.71766234 | T78: 87.28632035 | U78: 87.85497835 | V78: 88.42363636 | W78: 87.85497835 | X78: 88.04453102 | Y78: 88.10771525 | Z78: 88.00240821 | AA78: 88.05155149 | AB78: 88.05389165 | AC78: 88.03595045 | AD78: 88.0471312 | AE78: 88.04565777 | AF78: 88.04291314 | AG78: 88.04523403 | AH78: 88.04460165 | AI78: 88.04424961 | AJ78: 88.0446951 | AK78: 88.04451545 | AL78: 88.04448672 | AM78: 88.04456575 | AN78: 88.04452264 | AO78: 88.04452504 | AP78: 88.04453781 | AQ78: 88.0445285 | AR78: 88.04453045
A79: 1600000US3107485 | B79: Butte village, Nebraska | C79: 89.4 | D79: 86 | E79: 90.4 | F79: 89 | G79: 91.7 | H79: 91.4 | I79: 92.2 | J79: 91.7 | K79: 94.5 | L79: 97.19298246 | M79: 96.19719298 | N79: 97.07862839 | O79: 97.9600638 | P79: 98.8414992 | Q79: 99.72293461 | R79: 100 | S79: 100 | T79: 100 | U79: 100 | V79: 100 | W79: 100 | X79: 100 | Y79: 100 | Z79: 100 | AA79: 100 | AB79: 100 | AC79: 100 | AD79: 100 | AE79: 100 | AF79: 100 | AG79: 100 | AH79: 100 | AI79: 100 | AJ79: 100 | AK79: 100 | AL79: 100 | AM79: 100 | AN79: 100 | AO79: 100 | AP79: 100 | AQ79: 100 | AR79: 100
A80: 1600000US3107555 | B80: Byron village, Nebraska | C80: 83.1 | D80: 85 | E80: 81.9 | F80: 92 | G80: 92.7 | H80: 91.5 | I80: 91.5 | J80: 93.2 | K80: 94.4 | L80: 95.38461538 | M80: 97.74051282 | N80: 99.13543124 | O80: 100 | P80: 100 | Q80: 100 | R80: 100 | S80: 100 | T80: 100 | U80: 100 | V80: 100 | W80: 100 | X80: 100 | Y80: 100 | Z80: 100 | AA80: 100 | AB80: 100 | AC80: 100 | AD80: 100 | AE80: 100 | AF80: 100 | AG80: 100 | AH80: 100 | AI80: 100 | AJ80: 100 | AK80: 100 | AL80: 100 | AM80: 100 | AN80: 100 | AO80: 100 | AP80: 100 | AQ80: 100 | AR80: 100
A81: 1600000US3107625 | B81: Cairo village, Nebraska | C81: 89.9 | D81: 90.6 | E81: 91.8 | F81: 92.5 | G81: 90.8 | H81: 90.9 | I81: 91.7 | J81: 91 | K81: 92.3 | L81: 93.69230769 | M81: 92.84358974 | N81: 93.08438228 | O81: 93.32517483 | P81: 93.56596737 | Q81: 93.80675991 | R81: 94.04755245 | S81: 94.28834499 | T81: 94.52913753 | U81: 94.76993007 | V81: 95.01072261 | W81: 94.76993007 | X81: 94.85019425 | Y81: 94.87694898 | Z81: 94.83235777 | AA81: 94.853167 | AB81: 94.85415791 | AC81: 94.84656089 | AD81: 94.85129527 | AE81: 94.85067136 | AF81: 94.84950917 | AG81: 94.85049193 | AH81: 94.85022415 | AI81: 94.85007509 | AJ81: 94.85026372 | AK81: 94.85018766 | AL81: 94.85017549 | AM81: =(AJ81+AK81+AL81)/3 -> 94.85020896 | AN81: 94.8501907 | AO81: 94.85019171 | AP81: 94.85019712 | AQ81: 94.85019318 | AR81: 94.85019401
A82: 1600000US3107660 | B82: Callaway village, Nebraska | C82: 88.3 | D82: 92.6 | E82: 94.1 | F82: 94.9 | G82: 96.6 | H82: 96.2 | I82: 94.7 | J82: 93.2 | K82: 90 | L82: 89.45054945 | M82: 92.56021978 | N82: 92.47934066 | O82: 92.39846154 | P82: 92.31758242 | Q82: 92.2367033 | R82: 92.15582418 | S82: 92.07494505 | T82: 91.99406593 | U82: 91.91318681 | V82: 91.83230769 | W82: 91.91318681 | X82: 91.88622711 | Y82: 91.87724054 | Z82: 91.89221815 | AA82: 91.8852286 | AB82: 91.88489576 | AC82: 91.8874475 | AD82: 91.88585729 | AE82: 91.88606685 | AF82: 91.88645721 | AG82: 91.88612712 | AH82: 91.88621706 | AI82: 91.88626713 | AJ82: 91.88620377 | AK82: 91.88622932 | AL82: 91.88623341 | AM82: 91.88622217 | AN82: 91.8862283 | AO82: 91.88622796 | AP82: 91.88622614 | AQ82: 91.88622747 | AR82: 91.88622719
A83: 1600000US3107730 | B83: Cambridge city, Nebraska | C83: 87.8 | D83: 85 | E83: 86.8 | F83: 86.6 | G83: 88.9 | H83: 86.6 | I83: 88.1 | J83: 89 | K83: 88.8 | L83: 88.9596603 | M83: 89.33053079 | N83: 89.6349971 | O83: 89.93946342 | P83: 90.24392974 | Q83: 90.54839606 | R83: 90.85286238 | S83: 91.1573287 | T83: 91.46179502 | U83: 91.76626134 | V83: 92.07072766 | W83: 91.76626134 | X83: 91.86775011 | Y83: 91.9015797 | Z83: 91.84519705 | AA83: 91.87150896 | AB83: 91.8727619 | AC83: 91.86315597 | AD83: 91.86914228 | AE83: 91.86835338 | AF83: 91.86688388 | AG83: 91.86812651 | AH83: 91.86778792 | AI83: 91.86759944 | AJ83: 91.86783796 | AK83: 91.86774177 | AL83: 91.86772639 | AM83: 91.86776871 | AN83: 91.86774562 | AO83: 91.86774691 | AP83: 91.86775375 | AQ83: 91.86774876 | AR83: 91.8677498
A84: 1600000US3107870 | B84: Campbell village, Nebraska | C84: 84.2 | D84: 88 | E84: 86.9 | F84: 85.8 | G84: 89.3 | H84: 85.1 | I84: 83.6 | J84: 86 | K84: 87 | L84: 83.84879725 | M84: 85.12618557 | N84: 84.97187754 | O84: 84.81756951 | P84: 84.66326148 | Q84: 84.50895345 | R84: 84.35464542 | S84: 84.20033739 | T84: 84.04602937 | U84: 83.89172134 | V84: 83.73741331 | W84: 83.89172134 | X84: 83.84028533 | Y84: 83.82313999 | Z84: 83.85171555 | AA84: 83.83838029 | AB84: 83.83774528 | AC84: 83.84261371 | AD84: 83.83957976 | AE84: 83.83997958 | AF84: 83.84072435 | AG84: 83.84009456 | AH84: 83.84026616 | AI84: 83.84036169 | AJ84: 83.84024081 | AK84: 83.84028955 | AL84: 83.84029735 | AM84: 83.8402759 | AN84: 83.8402876 | AO84: 83.84028695 | AP84: 83.84028349 | AQ84: 83.84028601 | AR84: 83.84028548
A85: 1600000US3107975 | B85: Carleton village, Nebraska | C85: 86.8 | D85: 93.2 | E85: 93.7 | F85: 91.5 | G85: 94.3 | H85: 95.1 | I85: 94.7 | J85: 92.2 | K85: 95.3 | L85: 94.87179487 | M85: 96.17538462 | N85: 96.722331 | O85: 97.26927739 | P85: 97.81622378 | Q85: 98.36317016 | R85: 98.91011655 | S85: 99.45706294 | T85: 100 | U85: 100 | V85: 100 | W85: 100 | X85: 100 | Y85: 100 | Z85: 100 | AA85: 100 | AB85: 100 | AC85: 100 | AD85: 100 | AE85: 100 | AF85: 100 | AG85: 100 | AH85: =(AE85+AF85+AG85)/3 -> 100 | AI85: 100 | AJ85: 100 | AK85: 100 | AL85: 100 | AM85: 100 | AN85: 100 | AO85: 100 | AP85: 100 | AQ85: 100 | AR85: 100
A86: 1600000US3108010 | B86: Carroll village, Nebraska | C86: 88 | D86: 84.6 | E86: 84.7 | F86: 85 | G86: 82.5 | H86: 86.8 | I86: 85.8 | J86: 87.6 | K86: 89.5 | L86: 94.35028249 | M86: 90.64011299 | N86: 91.32285568 | O86: 92.00559836 | P86: 92.68834104 | Q86: 93.37108372 | R86: 94.0538264 | S86: 94.73656908 | T86: 95.41931176 | U86: 96.10205444 | V86: 96.78479712 | W86: =(T86+U86+V86)/3 -> 96.10205444 | X86: 96.32963534 | Y86: 96.40549563 | Z86: 96.2790618 | AA86: 96.33806426 | AB86: 96.3408739 | AC86: 96.31933332 | AD86: 96.33275716 | AE86: 96.33098813 | AF86: 96.32769287 | AG86: 96.33047938 | AH86: 96.32972013 | AI86: 96.32929746 | AJ86: 96.32983232 | AK86: 96.32961664 | AL86: 96.32958214 | AM86: 96.32967703 | AN86: 96.32962527 | AO86: 96.32962815 | AP86: 96.32964348 | AQ86: 96.3296323 | AR86: 96.32963464
A87: 1600000US3108150 | B87: Cedar Bluffs village, Nebraska | C87: 96.6 | D87: 94.8 | E87: 94.1 | F87: 92.7 | G87: 94 | H87: 92.3 | I87: 94.2 | J87: 95.4 | K87: 95.5 | L87: 91.77489177 | M87: 93.16329004 | N87: 92.98616293 | O87: 92.80903581 | P87: 92.6319087 | Q87: 92.45478158 | R87: 92.27765447 | S87: 92.10052735 | T87: 91.92340024 | U87: 91.74627312 | V87: 91.56914601 | W87: 91.74627312 | X87: 91.68723075 | Y87: 91.66754996 | Z87: 91.70035128 | AA87: 91.68504399 | AB87: 91.68431508 | AC87: 91.68990345 | AD87: 91.68642084 | AE87: 91.68687979 | AF87: 91.68773469 | AG87: 91.68701177 | AH87: 91.68720875 | AI87: 91.68731841 | AJ87: 91.68717964 | AK87: 91.6872356 | AL87: 91.68724455 | AM87: 91.68721993 | AN87: 91.68723336 | AO87: 91.68723261 | AP87: 91.68722864 | AQ87: 91.68723154 | AR87: 91.68723093
A88: 1600000US3108185 | B88: Cedar Creek village, Nebraska | C88: 92.4 | D88: 93 | E88: 91.5 | F88: 93.3 | G88: 93.9 | H88: 93.4 | I88: 92.9 | J88: 93.5 | K88: 93 | L88: 91.5451895 | M88: 92.86474247 | N88: 92.86841947 | O88: 92.87209647 | P88: 92.87577348 | Q88: 92.87945048 | R88: 92.88312748 | S88: 92.88680449 | T88: 92.89048149 | U88: 92.89415849 | V88: 92.8978355 | W88: 92.89415849 | X88: 92.89538416 | Y88: 92.89579272 | Z88: 92.89511179 | AA88: 92.89542956 | AB88: 92.89544469 | AC88: 92.89532868 | AD88: 92.89540098 | AE88: 92.89539145 | AF88: 92.8953737 | AG88: 92.89538871 | AH88: 92.89538462 | AI88: 92.89538234 | AJ88: 92.89538522 | AK88: 92.89538406 | AL88: 92.89538388 | AM88: 92.89538439 | AN88: 92.89538411 | AO88: 92.89538412 | AP88: 92.89538421 | AQ88: 92.89538415 | AR88: 92.89538416
A89: 1600000US3108220 | B89: Cedar Rapids village, Nebraska | C89: 90.3 | D89: 95 | E89: 94.1 | F89: 94.9 | G89: 88.6 | H89: 88.2 | I89: 91.6 | J89: 91.3 | K89: 94 | L89: 93.8718663 | M89: 92.21541318 | N89: 92.22054529 | O89: 92.22567739 | P89: 92.23080949 | Q89: 92.23594159 | R89: 92.24107369 | S89: 92.24620579 | T89: 92.25133789 | U89: 92.25646999 | V89: 92.26160209 | W89: 92.25646999 | X89: 92.25818069 | Y89: 92.25875093 | Z89: 92.25780054 | AA89: 92.25824405 | AB89: 92.25826517 | AC89: 92.25810325 | AD89: 92.25820416 | AE89: 92.25819086 | AF89: 92.25816609 | AG89: 92.25818704 | AH89: 92.25818133 | AI89: 92.25817815 | AJ89: 92.25818217 | AK89: 92.25818055 | AL89: 92.25818029 | AM89: 92.25818101 | AN89: 92.25818062 | AO89: 92.25818064 | AP89: 92.25818075 | AQ89: 92.25818067 | AR89: 92.25818069
A90: 1600000US3108360 | B90: Center village, Nebraska | C90: 88.2 | D90: 90.2 | E90: 94.2 | F90: 95.3 | G90: 100 | H90: 100 | I90: 100 | J90: 100 | K90: 82.9 | L90: 77.14285714 | M90: 89.21047619 | N90: 88.55887446 | O90: 87.90727273 | P90: 87.255671 | Q90: 86.60406926 | R90: 85.95246753 | S90: 85.3008658 | T90: 84.64926407 | U90: 83.99766234 | V90: 83.34606061 | W90: 83.99766234 | X90: 83.78046176 | Y90: 83.70806157 | Z90: 83.82872856 | AA90: 83.77241729 | AB90: 83.76973581 | AC90: 83.79029389 | AD90: 83.77748233 | AE90: 83.77917067 | AF90: 83.78231563 | AG90: 83.77965621 | AH90: 83.78038084 | AI90: 83.78078423 | AJ90: 83.78027376 | AK90: 83.78047961 | AL90: 83.78051253 | AM90: 83.78042197 | AN90: 83.78047137 | AO90: 83.78046862 | AP90: 83.78045398 | AQ90: 83.78046466 | AR90: 83.78046242
A91: 1600000US3108535 | B91: Central City city, Nebraska | C91: 90.3 | D91: 89.7 | E91: 90.1 | F91: 91.3 | G91: 90.9 | H91: 93 | I91: 93.6 | J91: 93.6 | K91: 95 | L91: 95.46073536 | M91: 95.96429414 | N91: 96.63124335 | O91: 97.29819255 | P91: 97.96514175 | Q91: 98.63209095 | R91: 99.29904015 | S91: 99.96598935 | T91: 100 | U91: 100 | V91: 100 | W91: 100 | X91: 100 | Y91: 100 | Z91: 100 | AA91: 100 | AB91: 100 | AC91: 100 | AD91: 100 | AE91: 100 | AF91: 100 | AG91: 100 | AH91: 100 | AI91: 100 | AJ91: 100 | AK91: 100 | AL91: 100 | AM91: 100 | AN91: 100 | AO91: 100 | AP91: 100 | AQ91: 100 | AR91: 100
A92: 1600000US3108570 | B92: Ceresco village, Nebraska | C92: 95.2 | D92: 94.9 | E92: 94 | F92: 96.9 | G92: 95.4 | H92: 96 | I92: 94.5 | J92: 95.1 | K92: 95.3 | L92: 94.95614035 | M92: 95.20912281 | N92: 95.2061244 | O92: 95.203126 | P92: 95.20012759 | Q92: 95.19712919 | R92: 95.19413078 | S92: 95.19113238 | T92: 95.18813397 | U92: 95.18513557 | V92: 95.18213716 | W92: 95.18513557 | X92: 95.1841361 | Y92: 95.18380294 | Z92: 95.1843582 | AA92: 95.18409908 | AB92: 95.18408674 | AC92: 95.18418134 | AD92: 95.18412239 | AE92: 95.18413016 | AF92: 95.18414463 | AG92: 95.18413239 | AH92: 95.18413573 | AI92: 95.18413758 | AJ92: 95.18413523 | AK92: 95.18413618 | AL92: 95.18413633 | AM92: 95.18413591 | AN92: 95.18413614 | AO92: 95.18413613 | AP92: 95.18413606 | AQ92: 95.18413611 | AR92: 95.1841361
A93: 1600000US3108605 | B93: Chadron city, Nebraska | C93: 93.1 | D93: 91.8 | E93: 92.1 | F93: 94.1 | G93: 94.9 | H93: 95.4 | I93: 94.6 | J93: 97.4 | K93: 96.7 | L93: 96.70138889 | M93: 97.85388889 | N93: 98.43093434 | O93: 99.0079798 | P93: 99.58502525 | Q93: 100 | R93: 100 | S93: 100 | T93: 100 | U93: 100 | V93: 100 | W93: 100 | X93: 100 | Y93: 100 | Z93: 100 | AA93: 100 | AB93: 100 | AC93: 100 | AD93: 100 | AE93: 100 | AF93: 100 | AG93: 100 | AH93: 100 | AI93: 100 | AJ93: 100 | AK93: 100 | AL93: 100 | AM93: 100 | AN93: 100 | AO93: 100 | AP93: 100 | AQ93: 100 | AR93: 100
A94: 1600000US3108675 | B94: Chambers village, Nebraska | C94: 84.5 | D94: 88.6 | E94: 88.8 | F94: 91.7 | G94: 93.3 | H94: 92.6 | I94: 93.1 | J94: 91 | K94: 92.4 | L94: 92.94117647 | M94: 94.79647059 | N94: 95.5059893 | O94: 96.21550802 | P94: 96.92502674 | Q94: 97.63454545 | R94: 98.34406417 | S94: 99.05358289 | T94: 99.7631016 | U94: 100 | V94: 100 | W94: 99.92103387 | X94: 99.97367796 | Y94: 99.96490394 | Z94: 99.95320526 | AA94: 99.96392905 | AB94: 99.96067942 | AC94: 99.95927124 | AD94: 99.96129324 | AE94: 99.96041463 | AF94: 99.96032637 | AG94: 99.96067808 | AH94: 99.96047303 | AI94: 99.96049249 | AJ94: 99.96054787 | AK94: 99.96050446 | AL94: 99.96051494 | AM94: 99.96052242 | AN94: 99.96051394 | AO94: 99.9605171 | AP94: 99.96051782 | AQ94: 99.96051629 | AR94: 99.96051707
A95: 1600000US3108780 | B95: Chapman village, Nebraska | C95: 85.6 | D95: 85.1 | E95: 87.7 | F95: 89.5 | G95: 86.5 | H95: 84.4 | I95: 89.8 | J95: 89.5 | K95: 90.9 | L95: 91.38755981 | M95: 91.38835726 | N95: 91.99737567 | O95: 92.60639408 | P95: 93.2154125 | Q95: 93.82443091 | R95: 94.43344933 | S95: 95.04246774 | T95: 95.65148615 | U95: 96.26050457 | V95: 96.86952298 | W95: 96.26050457 | X95: 96.46351071 | Y95: 96.53117942 | Z95: 96.41839823 | AA95: 96.47102945 | AB95: 96.4735357 | AC95: 96.45432113 | AD95: 96.46629543 | AE95: 96.46471742 | AF95: 96.46177799 | AG95: 96.46426361 | AH95: 96.46358634 | AI95: 96.46320931 | AJ95: 96.46368642 | AK95: 96.46349402 | AL95: 96.46346325 | AM95: 96.4635479 | AN95: 96.46350173 | AO95: 96.46350429 | AP95: 96.46351797 | AQ95: 96.463508 | AR95: 96.46351009
A96: 1600000US3108885 | B96: Chappell city, Nebraska | C96: 91.8 | D96: 89.7 | E96: 94.1 | F96: 93.9 | G96: 90.7 | H96: 89.4 | I96: 89.4 | J96: 86.6 | K96: 85.7 | L96: 85.47486034 | M96: 85.10327747 | N96: 84.27160318 | O96: 83.4399289 | P96: 82.60825461 | Q96: 81.77658033 | R96: 80.94490604 | S96: 80.11323176 | T96: 79.28155747 | U96: 78.44988319 | V96: 77.6182089 | W96: 78.44988319 | X96: 78.17265843 | Y96: 78.08025017 | Z96: 78.23426393 | AA96: 78.16239084 | AB96: 78.15896832 | AC96: 78.1852077 | AD96: 78.16885562 | AE96: 78.17101054 | AF96: 78.17502462 | AG96: 78.17163026 | AH96: 78.17255514 | AI96: 78.17307001 | AJ96: 78.17241847 | AK96: 78.17268121 | AL96: 78.17272323 | AM96: 78.17260763 | AN96: 78.17267069 | AO96: 78.17266718 | AP96: 78.1726485 | AQ96: 78.17266213 | AR96: 78.17265927
A97: 1600000US3109095 | B97: Chester village, Nebraska | C97: 92.8 | D97: 93.8 | E97: 92.7 | F97: 95.1 | G97: 94.8 | H97: 94.2 | I97: 95.4 | J97: 94 | K97: 91.3 | L97: 92.78846154 | M97: 93.32871795 | N97: 93.26324009 | O97: 93.19776224 | P97: 93.13228438 | Q97: 93.06680653 | R97: 93.00132867 | S97: 92.93585082 | T97: 92.87037296 | U97: 92.8048951 | V97: 92.73941725 | W97: 92.8048951 | X97: 92.78306915 | Y97: 92.77579384 | Z97: 92.78791936 | AA97: 92.78226078 | AB97: 92.78199133 | AC97: 92.78405716 | AD97: 92.78276976 | AE97: 92.78293941 | AF97: 92.78325544 | AG97: 92.78298821 | AH97: 92.78306102 | AI97: 92.78310156 | AJ97: 92.78305026 | AK97: 92.78307095 | AL97: 92.78307425 | AM97: 92.78306515 | AN97: 92.78307012 | AO97: 92.78306984 | AP97: 92.78306837 | AQ97: 92.78306944 | AR97: 92.78306922
A98: 1600000US3109165 | B98: Clarks village, Nebraska | C98: 91.2 | D98: 89.7 | E98: 90.7 | F98: 89.5 | G98: 87.3 | H98: 89.4 | I98: 91.5 | J98: 90.9 | K98: 88.2 | L98: 80.65693431 | M98: 85.69610706 | N98: 85.1125459 | O98: 84.52898474 | P98: 83.94542358 | Q98: 83.36186242 | R98: 82.77830126 | S98: 82.1947401 | T98: 81.61117894 | U98: 81.02761778 | V98: 80.44405662 | W98: 81.02761778 | X98: 80.8330974 | Y98: 80.76825727 | Z98: 80.87632415 | AA98: 80.82589294 | AB98: 80.82349145 | AC98: 80.84190285 | AD98: 80.83042908 | AE98: 80.83194113 | AF98: 80.83475768 | AG98: 80.83237596 | AH98: 80.83302492 | AI98: 80.83338619 | AJ98: 80.83292903 | AK98: 80.83311338 | AL98: 80.83314287 | AM98: 80.83306176 | AN98: 80.833106 | AO98: 80.83310354 | AP98: 80.83309043 | AQ98: 80.83309999 | AR98: 80.83309799
A99: 1600000US3109200 | B99: Clarkson city, Nebraska | C99: 91.5 | D99: 93.9 | E99: 93.2 | F99: 95.9 | G99: 93.7 | H99: 93.8 | I99: 90.8 | J99: 91.4 | K99: 87.5 | L99: 88.50574713 | M99: 88.82229885 | N99: 88.24079415 | O99: 87.65928945 | P99: 87.07778474 | Q99: 86.49628004 | R99: 85.91477534 | S99: 85.33327064 | T99: 84.75176594 | U99: 84.17026123 | V99: 83.58875653 | W99: 84.17026123 | X99: 83.97642633 | Y99: 83.9118147 | Z99: 84.01950075 | AA99: 83.96924726 | AB99: 83.96685424 | AC99: 83.98520075 | AD99: 83.97376742 | AE99: 83.97527414 | AF99: 83.97808077 | AG99: 83.97570744 | AH99: 83.97635411 | AI99: 83.97671411 | AJ99: 83.97625855 | AK99: 83.97644226 | AL99: 83.97647164 | AM99: 83.97639082 | AN99: 83.97643491 | AO99: 83.97643245 | AP99: 83.97641939 | AQ99: 83.97642892 | AR99: 83.97642692
A100: 1600000US3109270 | B100: Clatonia village, Nebraska | C100: 85.1 | D100: 91.4 | E100: 89.3 | F100: 90.2 | G100: 89.1 | H100: 89.8 | I100: 90.4 | J100: 90.4 | K100: 89.1 | L100: 87.87878788 | M100: 89.79151515 | N100: 89.88672176 | O100: 89.98192837 | P100: 90.07713499 | Q100: 90.1723416 | R100: 90.26754821 | S100: 90.36275482 | T100: 90.45796143 | U100: 90.55316804 | V100: 90.64837466 | W100: 90.55316804 | X100: 90.58490358 | Y100: 90.59548209 | Z100: 90.57785124 | AA100: 90.58607897 | AB100: 90.58647077 | AC100: 90.58346699 | AD100: 90.58533891 | AE100: 90.58509222 | AF100: 90.58463271 | AG100: 90.58502128 | AH100: 90.58491541 | AI100: 90.58485647 | AJ100: 90.58493105 | AK100: 90.58490097 | AL100: 90.58489616 | AM100: 90.5849094 | AN100: 90.58490218 | AO100: 90.58490258 | AP100: 90.58490472 | AQ100: 90.58490316 | AR100: 90.58490348
A101: 1600000US3109375 | B101: Clay Center city, Nebraska | C101: 94.3 | D101: 93.1 | E101: 94.7 | F101: 94.4 | G101: 93.6 | H101: 95.4 | I101: 95.6 | J101: 96.9 | K101: 97.9 | L101: 97.94952681 | M101: 98.14647739 | N101: 98.64857279 | O101: 99.1506682 | P101: 99.6527636 | Q101: 100 | R101: 100 | S101: 100 | T101: 100 | U101: 100 | V101: 100 | W101: 100 | X101: 100 | Y101: 100 | Z101: 100 | AA101: 100 | AB101: 100 | AC101: 100 | AD101: 100 | AE101: 100 | AF101: 100 | AG101: 100 | AH101: 100 | AI101: 100 | AJ101: 100 | AK101: 100 | AL101: 100 | AM101: 100 | AN101: 100 | AO101: 100 | AP101: 100 | AQ101: 100 | AR101: 100
A102: 1600000US3109445 | B102: Clearwater village, Nebraska | C102: 95.2 | D102: 93.5 | E102: 94.3 | F102: 91.8 | G102: 93.2 | H102: 89.8 | I102: 89.4 | J102: 89.8 | K102: 88.2 | L102: 82.30452675 | M102: 84.5418107 | N102: 83.4129667 | O102: 82.28412271 | P102: 81.15527871 | Q102: 80.02643472 | R102: 78.89759072 | S102: 77.76874673 | T102: 76.63990273 | U102: 75.51105874 | V102: 74.38221474 | W102: 75.51105874 | X102: 75.1347774 | Y102: 75.00935029 | Z102: 75.21839548 | AA102: 75.12084106 | AB102: 75.11619561 | AC102: 75.15181071 | AD102: 75.12961579 | AE102: 75.13254071 | AF102: 75.13798907 | AG102: 75.13338186 | AH102: 75.13463721 | AI102: 75.13533605 | AJ102: 75.13445171 | AK102: 75.13480832 | AL102: 75.13486536 | AM102: 75.13470846 | AN102: 75.13479405 | AO102: 75.13478929 | AP102: 75.13476393 | AQ102: 75.13478242 | AR102: 75.13477855
A103: 1600000US3109655 | B103: Clinton village, Nebraska | C103: 92 | D103: 91.7 | E103: 92.5 | F103: 100 | G103: 100 | H103: 100 | I103: 100 | J103: 100 | K103: 100 | L103: 100 | M103: 100 | N103: 100 | O103: 100 | P103: 100 | Q103: 100 | R103: 100 | S103: 100 | T103: 100 | U103: 100 | V103: 100 | W103: 100 | X103: 100 | Y103: 100 | Z103: 100 | AA103: 100 | AB103: 100 | AC103: 100 | AD103: 100 | AE103: 100 | AF103: 100 | AG103: 100 | AH103: 100 | AI103: 100 | AJ103: 100 | AK103: 100 | AL103: 100 | AM103: 100 | AN103: 100 | AO103: 100 | AP103: 100 | AQ103: 100 | AR103: 100
A104: 1600000US3109760 | B104: Cody village, Nebraska | C104: 85.1 | D104: 83.3 | E104: 92.8 | F104: 95.6 | G104: 97.6 | H104: 96.6 | I104: 97.1 | J104: 92.6 | K104: 88.7 | L104: 92.5 | M104: 95.75333333 | N104: 96.40121212 | O104: 97.04909091 | P104: 97.6969697 | Q104: 98.34484848 | R104: 98.99272727 | S104: 99.64060606 | T104: 100 | U104: 100 | V104: 100 | W104: 100 | X104: 100 | Y104: 100 | Z104: 100 | AA104: 100 | AB104: 100 | AC104: 100 | AD104: 100 | AE104: 100 | AF104: 100 | AG104: 100 | AH104: 100 | AI104: 100 | AJ104: 100 | AK104: 100 | AL104: 100 | AM104: 100 | AN104: 100 | AO104: 100 | AP104: 100 | AQ104: 100 | AR104: 100
A105: 1600000US3109865 | B105: Coleridge village, Nebraska | C105: 85.7 | D105: 86.6 | E105: 88.2 | F105: 88.8 | G105: 93.2 | H105: 92 | I105: 92.7 | J105: 94.6 | K105: 93.4 | L105: 91.76755448 | M105: 95.52035513 | N105: 96.39737325 | O105: 97.27439137 | P105: 98.15140949 | Q105: 99.02842762 | R105: 99.90544574 | S105: 100 | T105: 100 | U105: 100 | V105: 100 | W105: 100 | X105: 100 | Y105: 100 | Z105: 100 | AA105: 100 | AB105: 100 | AC105: 100 | AD105: 100 | AE105: 100 | AF105: 100 | AG105: 100 | AH105: 100 | AI105: 100 | AJ105: 100 | AK105: 100 | AL105: 100 | AM105: 100 | AN105: 100 | AO105: 100 | AP105: 100 | AQ105: 100 | AR105: 100
A106: 1600000US3110005 | B106: Colon village, Nebraska | C106: 82.3 | D106: 84.3 | E106: 93.8 | F106: 92.8 | G106: 89.9 | H106: 90.3 | I106: 87 | J106: 93.2 | K106: 93.3 | L106: 94.33962264 | M106: 95.16918239 | N106: 96.08649514 | O106: 97.00380789 | P106: 97.92112064 | Q106: 98.83843339 | R106: 99.75574614 | S106: 100 | T106: 100 | U106: 100 | V106: 100 | W106: 100 | X106: 100 | Y106: 100 | Z106: 100 | AA106: 100 | AB106: 100 | AC106: 100 | AD106: 100 | AE106: 100 | AF106: 100 | AG106: 100 | AH106: 100 | AI106: 100 | AJ106: 100 | AK106: 100 | AL106: 100 | AM106: 100 | AN106: 100 | AO106: 100 | AP106: 100 | AQ106: 100 | AR106: 100
A107: 1600000US3110110 | B107: Columbus city, Nebraska | C107: 89.2 | D107: 89.5 | E107: 89.1 | F107: 88 | G107: 88.1 | H107: 86.9 | I107: 87.8 | J107: 86.7 | K107: 87.2 | L107: 86.97777261 | M107: 86.28444238 | N107: 85.98201785 | O107: 85.67959333 | P107: 85.3771688 | Q107: 85.07474428 | R107: 84.77231975 | S107: 84.46989523 | T107: 84.1674707 | U107: 83.86504618 | V107: 83.56262165 | W107: 83.86504618 | X107: 83.764238 | Y107: 83.73063528 | Z107: 83.78663982 | AA107: 83.76050437 | AB107: 83.75925982 | AC107: 83.76880134 | AD107: 83.76285518 | AE107: 83.76363878 | AF107: 83.76509843 | AG107: 83.76386413 | AH107: 83.76420045 | AI107: 83.76438767 | AJ107: 83.76415075 | AK107: 83.76424629 | AL107: 83.76426157 | AM107: 83.76421953 | AN107: 83.76424246 | AO107: 83.76424119 | AP107: 83.7642344 | AQ107: 83.76423935 | AR107: 83.76423831
A108: 1600000US3110180 | B108: Comstock village, Nebraska | C108: 80.9 | D108: 74.5 | E108: 77.6 | F108: 82.7 | G108: 82.8 | H108: 84.1 | I108: 89.7 | J108: 82.5 | K108: 85.4 | L108: 88.54166667 | M108: 89.27 | N108: 90.43287879 | O108: 91.59575758 | P108: 92.75863636 | Q108: 93.92151515 | R108: 95.08439394 | S108: 96.24727273 | T108: 97.41015152 | U108: 98.5730303 | V108: 99.73590909 | W108: 98.5730303 | X108: 98.96065657 | Y108: 99.08986532 | Z108: 98.8745174 | AA108: 98.97501309 | AB108: 98.9797986 | AC108: 98.9431097 | AD108: 98.9659738 | AE108: 98.9629607 | AF108: 98.95734807 | AG108: 98.96209419 | AH108: 98.96080098 | AI108: 98.96008108 | AJ108: 98.96099208 | AK108: 98.96062472 | AL108: 98.96056596 | AM108: 98.96072759 | AN108: 98.96063942 | AO108: 98.96064432 | AP108: 98.96067044 | AQ108: 98.9606514 | AR108: 98.96065539
A109: 1600000US3110250 | B109: Concord village, Nebraska | C109: 87.8 | D109: 87.4 | E109: 88.1 | F109: 87.4 | G109: 89.1 | H109: 91.3 | I109: 90.7 | J109: 89.8 | K109: 85.4 | L109: 89.91596639 | M109: 89.54638655 | N109: 89.7018029 | O109: 89.85721925 | P109: 90.0126356 | Q109: 90.16805195 | R109: 90.3234683 | S109: 90.47888464 | T109: 90.63430099 | U109: 90.78971734 | V109: 90.94513369 | W109: 90.78971734 | X109: 90.84152279 | Y109: =(V109+W109+X109)/3 -> 90.85879127 | Z109: 90.83001047 | AA109: 90.84344151 | AB109: 90.84408108 | AC109: 90.83917769 | AD109: 90.84223343 | AE109: 90.84183073 | AF109: 90.84108062 | AG109: 90.84171493 | AH109: 90.84154209 | AI109: 90.84144588 | AJ109: 90.84156763 | AK109: 90.84151853 | AL109: 90.84151068 | AM109: 90.84153228 | AN109: 90.8415205 | AO109: 90.84152115 | AP109: 90.84152465 | AQ109: 90.8415221 | AR109: 90.84152263
A110: 1600000US3110390 | B110: Cook village, Nebraska | C110: 94.9 | D110: 95.8 | E110: 93.8 | F110: 91.9 | G110: 91.9 | H110: 90.9 | I110: 91.5 | J110: 93.8 | K110: 91.7 | L110: 92.95302013 | M110: 91.30120805 | N110: 91.00773642 | O110: 90.7142648 | P110: 90.42079317 | Q110: 90.12732154 | R110: 89.83384991 | S110: 89.54037828 | T110: 89.24690665 | U110: 88.95343502 | V110: 88.65996339 | W110: =(T110+U110+V110)/3 -> 88.95343502 | X110: 88.85561115 | Y110: 88.82300319 | Z110: 88.87734978 | AA110: 88.85198804 | AB110: 88.85078034 | AC110: 88.86003939 | AD110: 88.85426925 | AE110: 88.85502966 | AF110: 88.8564461 | AG110: 88.85524834 | AH110: 88.8555747 | AI110: 88.85575638 | AJ110: 88.85552647 | AK110: 88.85561918 | AL110: 88.85563401 | AM110: 88.85559322 | AN110: 88.85561547 | AO110: 88.85561423 | AP110: 88.85560764 | AQ110: 88.85561245 | AR110: 88.85561144
A111: 1600000US3110495 | B111: Cordova village, Nebraska | C111: 75.7 | D111: 74.1 | E111: 79.7 | F111: 79 | G111: 82.6 | H111: 82.3 | I111: 88.2 | J111: 88.7 | K111: 89.6 | L111: 98.33333333 | M111: 96.64 | N111: 98.97030303 | O111: 100 | P111: 100 | Q111: 100 | R111: 100 | S111: 100 | T111: 100 | U111: 100 | V111: 100 | W111: 100 | X111: 100 | Y111: 100 | Z111: 100 | AA111: 100 | AB111: 100 | AC111: 100 | AD111: 100 | AE111: 100 | AF111: 100 | AG111: 100 | AH111: 100 | AI111: 100 | AJ111: 100 | AK111: 100 | AL111: 100 | AM111: 100 | AN111: 100 | AO111: 100 | AP111: 100 | AQ111: 100 | AR111: 100
A112: 1600000US3110600 | B112: Cornlea village, Nebraska | C112: 100 | D112: 86.7 | E112: 87.5 | F112: 78.3 | G112: 87.5 | H112: 86.5 | I112: 100 | J112: 100 | K112: 100 | L112: 100 | M112: 99.97333333 | N112: 100 | O112: 100 | P112: 100 | Q112: 100 | R112: 100 | S112: 100 | T112: 100 | U112: 100 | V112: 100 | W112: 100 | X112: 100 | Y112: 100 | Z112: 100 | AA112: 100 | AB112: 100 | AC112: 100 | AD112: 100 | AE112: 100 | AF112: 100 | AG112: 100 | AH112: 100 | AI112: 100 | AJ112: 100 | AK112: 100 | AL112: 100 | AM112: 100 | AN112: 100 | AO112: 100 | AP112: 100 | AQ112: 100 | AR112: 100
A113: 1600000US3110635 | B113: Cortland village, Nebraska | C113: 93.6 | D113: 93.9 | E113: 95 | F113: 95.9 | G113: 97.5 | H113: 97.4 | I113: 97.8 | J113: 97 | K113: 94.5 | L113: 90.28571429 | M113: 94.95428571 | N113: 94.89350649 | O113: 94.83272727 | P113: 94.77194805 | Q113: 94.71116883 | R113: 94.65038961 | S113: 94.58961039 | T113: 94.52883117 | U113: 94.46805195 | V113: 94.40727273 | W113: 94.46805195 | X113: 94.44779221 | Y113: 94.44103896 | Z113: 94.45229437 | AA113: 94.44704185 | AB113: 94.44679173 | AC113: 94.44870932 | AD113: 94.4475143 | AE113: 94.44767178 | AF113: 94.44796513 | AG113: 94.44771707 | AH113: 94.44778466 | AI113: 94.44782229 | AJ113: 94.44777467 | AK113: 94.44779387 | AL113: 94.44779694 | AM113: 94.4477885 | AN113: 94.4477931 | AO113: 94.44779285 | AP113: 94.44779148 | AQ113: 94.44779248 | AR113: 94.44779227
A114: 1600000US3110740 | B114: Cotesfield village, Nebraska | C114: 79.5 | D114: 81.6 | E114: 92.5 | F114: 96.8 | G114: 97.4 | H114: 88 | I114: 90.9 | J114: 75 | K114: 81.3 | L114: 81.25 | M114: 83.06 | N114: 82.44818182 | O114: 81.83636364 | P114: 81.22454545 | Q114: 80.61272727 | R114: 80.00090909 | S114: 79.38909091 | T114: 78.77727273 | U114: 78.16545455 | V114: 77.55363636 | W114: 78.16545455 | X114: 77.96151515 | Y114: 77.89353535 | Z114: 78.00683502 | AA114: 77.95396184 | AB114: 77.95144407 | AC114: 77.97074698 | AD114: 77.95871763 | AE114: 77.96030289 | AF114: 77.96325583 | AG114: 77.96075878 | AH114: 77.96143917 | AI114: 77.96181793 | AJ114: 77.96133863 | AK114: 77.96153191 | AL114: 77.96156282 | AM114: 77.96147779 | AN114: 77.96152417 | AO114: 77.96152159 | AP114: 77.96150785 | AQ114: 77.96151787 | AR114: 77.96151577
A115: 1600000US3110985 | B115: Cowles village, Nebraska | C115: 100 | D115: 100 | E115: 100 | F115: 100 | G115: 78.6 | H115: 80 | I115: 50 | J115: 50 | K115: 70 | L115: 100 | M115: 62.57333333 | N115: 58.88484848 | O115: 55.19636364 | P115: 51.50787879 | Q115: 47.81939394 | R115: 44.13090909 | S115: 40.44242424 | T115: 36.75393939 | U115: 33.06545455 | V115: 29.3769697 | W115: 33.06545455 | X115: 31.8359596 | Y115: 31.42612795 | Z115: 32.1091807 | AA115: 31.79042275 | AB115: 31.7752438 | AC115: 31.89161575 | AD115: 31.8190941 | AE115: 31.82865121 | AF115: 31.84645368 | AG115: 31.83139966 | AH115: 31.83550152 | AI115: 31.83778496 | AJ115: 31.83489538 | AK115: 31.83606062 | AL115: 31.83624699 | AM115: 31.83573433 | AN115: 31.83601398 | AO115: 31.83599843 | AP115: 31.83591558 | AQ115: 31.835976 | AR115: 31.83596334
A116: 1600000US3111020 | B116: Cozad city, Nebraska | C116: 88.9 | D116: 88.2 | E116: 89.8 | F116: 87.3 | G116: 87.7 | H116: 86.4 | I116: 88.5 | J116: 83.9 | K116: 88.1 | L116: 86.19631902 | M116: 85.75852761 | N116: 85.44196319 | O116: 85.12539877 | P116: 84.80883436 | Q116: 84.49226994 | R116: 84.17570552 | S116: 83.8591411 | T116: 83.54257669 | U116: 83.22601227 | V116: 82.90944785 | W116: 83.22601227 | X116: 83.1204908 | Y116: 83.08531697 | Z116: 83.14394001 | AA116: 83.11658259 | AB116: 83.11527986 | AC116: 83.12526749 | AD116: 83.11904332 | AE116: 83.11986356 | AF116: 83.12139145 | AG116: 83.12009944 | AH116: 83.12045148 | AI116: 83.12064746 | AJ116: 83.12039946 | AK116: 83.12049947 | AL116: 83.12051546 | AM116: 83.12047146 | AN116: 83.12049546 | AO116: 83.12049413 | AP116: 83.12048702 | AQ116: 83.12049221 | AR116: 83.12049112
A117: 1600000US3111055 | B117: Crab Orchard village, Nebraska | C117: 75.5 | D117: 78.1 | E117: 89.8 | F117: 100 | G117: 90.3 | H117: 71.1 | I117: 70.2 | J117: 67.3 | K117: 66 | L117: 72.22222222 | M117: 66.87555556 | N117: 64.84343434 | O117: 62.81131313 | P117: 60.77919192 | Q117: 58.74707071 | R117: 56.71494949 | S117: 54.68282828 | T117: 52.65070707 | U117: 50.61858586 | V117: 48.58646465 | W117: 50.61858586 | X117: 49.94121212 | Y117: 49.71542088 | Z117: 50.09173962 | AA117: 49.91612421 | AB117: 49.90776157 | AC117: 49.97187513 | AD117: 49.9319203 | AE117: 49.93718567 | AF117: 49.9469937 | AG117: 49.93869989 | AH117: 49.94095975 | AI117: 49.94221778 | AJ117: 49.94062581 | AK117: 49.94126778 | AL117: 49.94137045 | AM117: 49.94108801 | AN117: 49.94124208 | AO117: 49.94123352 | AP117: 49.94118787 | AQ117: 49.94122116 | AR117: 49.94121418
A118: 1600000US3111090 | B118: Craig village, Nebraska | C118: 92.2 | D118: 87.1 | E118: 88.8 | F118: 88 | G118: 86.9 | H118: 85.2 | I118: 87.1 | J118: 81.8 | K118: 85.4 | L118: 93.43065693 | M118: 86.25226277 | N118: 86.00848042 | O118: 85.76469808 | P118: 85.52091573 | Q118: 85.27713338 | R118: 85.03335103 | S118: 84.78956868 | T118: 84.54578633 | U118: 84.30200398 | V118: 84.05822163 | W118: 84.30200398 | X118: 84.2207432 | Y118: 84.19365627 | Z118: 84.23880115 | AA118: 84.21773354 | AB118: 84.21673032 | AC118: 84.22442167 | AD118: 84.21962851 | AE118: 84.22026017 | AF118: 84.22143678 | AG118: 84.22044182 | AH118: 84.22071292 | AI118: 84.22086384 | AJ118: 84.22067286 | AK118: 84.22074988 | AL118: 84.22076219 | AM118: 84.22072831 | AN118: 84.22074679 | AO118: 84.22074577 | AP118: 84.22074029 | AQ118: 84.22074428 | AR118: 84.22074345
A119: 1600000US3111195 | B119: Crawford city, Nebraska | C119: 85.2 | D119: 85.6 | E119: 88.3 | F119: 89 | G119: 90.1 | H119: 89.1 | I119: 90 | J119: 89.5 | K119: 90.3 | L119: 90.99526066 | M119: 91.9114376 | N119: 92.47542151 | O119: 93.03940543 | P119: 93.60338934 | Q119: 94.16737326 | R119: 94.73135717 | S119: 95.29534109 | T119: 95.859325 | U119: 96.42330892 | V119: 96.98729283 | W119: 96.42330892 | X119: 96.61130356 | Y119: 96.67396844 | Z119: 96.56952697 | AA119: 96.61826632 | AB119: 96.62058724 | AC119: 96.60279351 | AD119: 96.61388236 | AE119: 96.61242104 | AF119: 96.60969897 | AG119: 96.61200079 | AH119: 96.6113736 | AI119: 96.61102445 | AJ119: 96.61146628 | AK119: 96.61128811 | AL119: 96.61125961 | AM119: 96.611338 | AN119: 96.61129524 | AO119: 96.61129762 | AP119: 96.61131029 | AQ119: 96.61130105 | AR119: 96.61130299
A120: 1600000US3111230 | B120: Creighton city, Nebraska | C120: 91.2 | D120: 92.8 | E120: 92.1 | F120: 90.5 | G120: 88.9 | H120: 90.6 | I120: 90.1 | J120: 91.7 | K120: 93.2 | L120: 94.46764092 | M120: 92.5803897 | N120: 92.76650345 | O120: 92.95261719 | P120: 93.13873094 | Q120: 93.32484469 | R120: 93.51095844 | S120: 93.69707218 | T120: 93.88318593 | U120: 94.06929968 | V120: 94.25541342 | W120: 94.06929968 | X120: 94.13133759 | Y120: 94.1520169 | Z120: 94.11755139 | AA120: 94.13363529 | AB120: 94.13440119 | AC120: 94.12852929 | AD120: 94.13218859 | AE120: 94.13170636 | AF120: 94.13080808 | AG120: 94.13156768 | AH120: 94.13136071 | AI120: 94.13124549 | AJ120: 94.13139129 | AK120: 94.1313325 | AL120: 94.13132309 | AM120: 94.13134896 | AN120: 94.13133485 | AO120: 94.13133563 | AP120: 94.13133981 | AQ120: 94.13133677 | AR120: 94.1313374
A121: 1600000US3111300 | B121: Creston village, Nebraska | C121: 84.9 | D121: 90.6 | E121: 90.3 | F121: 86.6 | G121: 86.8 | H121: 92.1 | I121: 92.8 | J121: 87 | K121: 86 | L121: 89.40397351 | M121: 89.17492274 | N121: 89.27029099 | O121: 89.36565924 | P121: 89.46102749 | Q121: 89.55639575 | R121: 89.651764 | S121: 89.74713225 | T121: 89.8425005 | U121: 89.93786875 | V121: 90.03323701 | W121: 89.93786875 | X121: 89.96965817 | Y121: 89.98025464 | Z121: 89.96259386 | AA121: 89.97083556 | AB121: 89.97122802 | AC121: 89.96821914 | AD121: 89.97009424 | AE121: 89.96984713 | AF121: 89.96938684 | AG121: 89.96977607 | AH121: 89.96967001 | AI121: 89.96961098 | AJ121: 89.96968569 | AK121: 89.96965556 | AL121: 89.96965074 | AM121: 89.969664 | AN121: 89.96965677 | AO121: 89.96965717 | AP121: 89.96965931 | AQ121: 89.96965775 | AR121: 89.96965807
A122: 1600000US3111370 | B122: Crete city, Nebraska | C122: 74.8 | D122: 74.9 | E122: 76.7 | F122: 73.9 | G122: 71.9 | H122: 74.6 | I122: 72.9 | J122: 76.8 | K122: 76 | L122: 74.71264368 | M122: 74.9583908 | N122: 75.0015047 | O122: 75.0446186 | P122: 75.0877325 | Q122: 75.13084639 | R122: 75.17396029 | S122: 75.21707419 | T122: 75.26018809 | U122: 75.30330199 | V122: 75.34641588 | W122: 75.30330199 | X122: 75.31767328 | Y122: 75.32246372 | Z122: 75.31447966 | AA122: 75.31820555 | AB122: 75.31838298 | AC122: 75.31702273 | AD122: 75.31787042 | AE122: 75.31775871 | AF122: 75.31755062 | AG122: 75.31772658 | AH122: 75.31767864 | AI122: 75.31765195 | AJ122: 75.31768572 | AK122: 75.3176721 | AL122: 75.31766993 | AM122: 75.31767592 | AN122: 75.31767265 | AO122: 75.31767283 | AP122: 75.3176738 | AQ122: 75.31767309 | AR122: 75.31767324
A123: 1600000US3111440 | B123: Crofton city, Nebraska | C123: 84.5 | D123: 86 | E123: 88.7 | F123: 90.5 | G123: 93 | H123: 94.1 | I123: 92.8 | J123: 91.1 | K123: 91.6 | L123: 91.41494436 | M123: 94.41931108 | N123: 95.15527774 | O123: 95.8912444 | P123: 96.62721106 | Q123: 97.36317772 | R123: 98.09914439 | S123: 98.83511105 | T123: 99.57107771 | U123: 100 | V123: 100 | W123: 99.8570259 | X123: 99.95234197 | Y123: 99.93645596 | Z123: 99.91527461 | AA123: 99.93469084 | AB123: 99.92880714 | AC123: 99.92625753 | AD123: 99.9299185 | AE123: 99.92832772 | AF123: 99.92816792 | AG123: 99.92880472 | AH123: 99.92843345 | AI123: 99.9284687 | AJ123: 99.92856895 | AK123: 99.92849037 | AL123: 99.92850934 | AM123: 99.92852289 | AN123: 99.92850753 | AO123: 99.92851325 | AP123: 99.92851456 | AQ123: 99.92851178 | AR123: 99.9285132
A124: 1600000US3111475 | B124: Crookston village, Nebraska | C124: 91.2 | D124: 85.7 | E124: 80.6 | F124: 80.6 | G124: 85.7 | H124: 90.9 | I124: 92.9 | J124: 97.8 | K124: 100 | L124: 100 | M124: 100 | N124: 100 | O124: 100 | P124: 100 | Q124: 100 | R124: 100 | S124: 100 | T124: 100 | U124: 100 | V124: 100 | W124: 100 | X124: 100 | Y124: 100 | Z124: 100 | AA124: 100 | AB124: 100 | AC124: 100 | AD124: 100 | AE124: 100 | AF124: 100 | AG124: 100 | AH124: 100 | AI124: 100 | AJ124: 100 | AK124: 100 | AL124: 100 | AM124: 100 | AN124: 100 | AO124: 100 | AP124: 100 | AQ124: 100 | AR124: 100
A125: 1600000US3111615 | B125: Culbertson village, Nebraska | C125: 94.4 | D125: 94.6 | E125: 97.1 | F125: 96.2 | G125: 95.6 | H125: 94.6 | I125: 91.8 | J125: 90.7 | K125: 89.4 | L125: 88.34951456 | M125: 88.70647249 | N125: 87.87583995 | O125: 87.04520741 | P125: 86.21457487 | Q125: 85.38394234 | R125: 84.5533098 | S125: 83.72267726 | T125: 82.89204472 | U125: 82.06141218 | V125: 81.23077964 | W125: 82.06141218 | X125: 81.78453467 | Y125: 81.69224216 | Z125: 81.846063 | AA125: 81.77427994 | AB125: 81.7708617 | AC125: 81.79706822 | AD125: 81.78073662 | AE125: 81.78288885 | AF125: 81.7868979 | AG125: 81.78350779 | AH125: 81.78443151 | AI125: 81.78494573 | AJ125: 81.78429501 | AK125: 81.78455742 | AL125: 81.78459939 | AM125: 81.78448394 | AN125: 81.78454691 | AO125: 81.78454341 | AP125: 81.78452475 | AQ125: 81.78453836 | AR125: 81.78453551
A126: 1600000US3111825 | B126: Curtis city, Nebraska | C126: 93.4 | D126: 94 | E126: 96.7 | F126: 96.2 | G126: 94.8 | H126: 95.5 | I126: 95.9 | J126: 96.9 | K126: 96.1 | L126: 97.22222222 | M126: 97.33555556 | N126: 97.6379798 | O126: 97.94040404 | P126: 98.24282828 | Q126: 98.54525253 | R126: 98.84767677 | S126: 99.15010101 | T126: 99.45252525 | U126: 99.75494949 | V126: 100 | W126: 99.73582492 | X126: 99.83025814 | Y126: 99.85536102 | Z126: 99.80714802 | AA126: 99.83092239 | AB126: 99.83114381 | AC126: 99.82307141 | AD126: 99.8283792 | AE126: 99.82753147 | AF126: 99.82632736 | AG126: 99.82741268 | AH126: 99.82709051 | AI126: 99.82694352 | AJ126: 99.8271489 | AK126: 99.82706097 | AL126: 99.82705113 | AM126: 99.827087 | AN126: 99.82706637 | AO126: 99.82706817 | AP126: 99.82707385 | AQ126: 99.82706946 | AR126: 99.82707049
A127: 1600000US3111860 | B127: Cushing village, Nebraska | C127: 83.3 | D127: 86.8 | E127: 89.2 | F127: 86 | G127: 100 | H127: 100 | I127: 100 | J127: 96.3 | K127: 89.7 | L127: 88.46153846 | M127: 96.78461538 | N127: 97.65888112 | O127: 98.53314685 | P127: 99.40741259 | Q127: 100 | R127: 100 | S127: 100 | T127: 100 | U127: 100 | V127: 100 | W127: 100 | X127: 100 | Y127: 100 | Z127: 100 | AA127: 100 | AB127: 100 | AC127: 100 | AD127: 100 | AE127: 100 | AF127: 100 | AG127: 100 | AH127: 100 | AI127: 100 | AJ127: 100 | AK127: 100 | AL127: 100 | AM127: 100 | AN127: 100 | AO127: 100 | AP127: 100 | AQ127: 100 | AR127: 100
A128: 1600000US3112000 | B128: Dakota City city, Nebraska | C128: 71 | D128: 72.6 | E128: 79.6 | F128: 76.2 | G128: 77.3 | H128: 77.2 | I128: 76.9 | J128: 79.7 | K128: 79.5 | L128: 79.32489451 | M128: 81.12329114 | N128: 81.88525508 | O128: 82.64721903 | P128: 83.40918297 | Q128: 84.17114691 | R128: 84.93311086 | S128: 85.6950748 | T128: 86.45703874 | U128: 87.21900269 | V128: 87.98096663 | W128: 87.21900269 | X128: 87.47299067 | Y128: 87.55765333 | Z128: 87.41654889 | AA128: 87.48239763 | AB128: 87.48553328 | AC128: 87.46149327 | AD128: 87.47647473 | AE128: 87.47450043 | AF128: 87.47082281 | AG128: 87.47393265 | AH128: 87.47308529 | AI128: 87.47261358 | AJ128: 87.47321051 | AK128: 87.4729698 | AL128: 87.4729313 | AM128: 87.4730372 | AN128: 87.47297943 | AO128: 87.47298264 | AP128: 87.47299976 | AQ128: 87.47298728 | AR128: 87.47298989
A129: 1600000US3112070 | B129: Dalton village, Nebraska | C129: 85.2 | D129: 92.2 | E129: 90.3 | F129: 90.5 | G129: 93.2 | H129: 95.9 | I129: 96.2 | J129: 96.6 | K129: 96.8 | L129: 94.77911647 | M129: 98.82497992 | N129: 99.85353779 | O129: 100 | P129: 100 | Q129: 100 | R129: 100 | S129: 100 | T129: 100 | U129: 100 | V129: 100 | W129: 100 | X129: 100 | Y129: 100 | Z129: 100 | AA129: 100 | AB129: 100 | AC129: 100 | AD129: 100 | AE129: 100 | AF129: 100 | AG129: 100 | AH129: 100 | AI129: 100 | AJ129: 100 | AK129: 100 | AL129: 100 | AM129: 100 | AN129: 100 | AO129: 100 | AP129: 100 | AQ129: 100 | AR129: 100
A130: 1600000US3112105 | B130: Danbury village, Nebraska | C130: 97 | D130: 96.7 | E130: 93.4 | F130: 91.3 | G130: 91.9 | H130: 93.4 | I130: 93.4 | J130: 93.8 | K130: 89.2 | L130: 90 | M130: 89.48666667 | N130: 88.84606061 | O130: 88.20545455 | P130: 87.56484848 | Q130: 86.92424242 | R130: 86.28363636 | S130: 85.6430303 | T130: 85.00242424 | U130: 84.36181818 | V130: 83.72121212 | W130: 84.36181818 | X130: 84.14828283 | Y130: 84.07710438 | Z130: 84.19573513 | AA130: 84.14037411 | AB130: 84.13773787 | AC130: 84.15794904 | AD130: 84.14535367 | AE130: 84.14701353 | AF130: 84.15010541 | AG130: 84.14749087 | AH130: 84.14820327 | AI130: 84.14859985 | AJ130: 84.148098 | AK130: 84.14830037 | AL130: 84.14833274 | AM130: 84.1482437 | AN130: 84.14829227 | AO130: 84.14828957 | AP130: 84.14827518 | AQ130: 84.14828568 | AR130: 84.14828348
A131: 1600000US3112140 | B131: Dannebrog village, Nebraska | C131: 92.7 | D131: 93.1 | E131: 95.1 | F131: 94.1 | G131: 91.5 | H131: 90.3 | I131: 91.8 | J131: 93.7 | K131: 92.3 | L131: 93.50649351 | M131: 92.3625974 | N131: 92.28113341 | O131: 92.19966942 | P131: 92.11820543 | Q131: 92.03674144 | R131: 91.95527745 | S131: 91.87381346 | T131: 91.79234947 | U131: 91.71088548 | V131: 91.62942149 | W131: 91.71088548 | X131: 91.68373081 | Y131: 91.67467926 | Z131: 91.68976518 | AA131: 91.68272509 | AB131: 91.68238984 | AC131: 91.68496004 | AD131: 91.68335832 | AE131: 91.6835694 | AF131: 91.68396259 | AG131: 91.6836301 | AH131: 91.6837207 | AI131: 91.68377113 | AJ131: 91.68370731 | AK131: 91.68373305 | AL131: 91.68373716 | AM131: 91.68372584 | AN131: 91.68373202 | AO131: 91.68373167 | AP131: 91.68372984 | AQ131: 91.68373118 | AR131: 91.6837309
A132: 1600000US3112245 | B132: Davenport village, Nebraska | C132: 87.2 | D132: 89.3 | E132: 90.9 | F132: 91.1 | G132: 92.5 | H132: 89.4 | I132: 85.4 | J132: 87.1 | K132: 89.4 | L132: 87.30769231 | M132: 87.70974359 | N132: 87.48228438 | O132: 87.25482517 | P132: 87.02736597 | Q132: 86.79990676 | R132: 86.57244755 | S132: 86.34498834 | T132: 86.11752914 | U132: 85.89006993 | V132: 85.66261072 | W132: 85.89006993 | X132: 85.81425019 | Y132: 85.78897695 | Z132: 85.83109902 | AA132: 85.81144206 | AB132: 85.81050601 | AC132: 85.81768236 | AD132: 85.81321014 | AE132: 85.81379951 | AF132: 85.81489734 | AG132: 85.813969 | AH132: 85.81422195 | AI132: 85.81436276 | AJ132: 85.81418457 | AK132: 85.81425642 | AL132: 85.81426792 | AM132: 85.8142363 | AN132: 85.81425355 | AO132: 85.81425259 | AP132: 85.81424748 | AQ132: 85.81425121 | AR132: 85.81425042
A133: 1600000US3112280 | B133: Davey village, Nebraska | C133: 98 | D133: 97.9 | E133: 97.9 | F133: 96.6 | G133: 97.7 | H133: 97.9 | I133: 96.2 | J133: 92.3 | K133: 95.2 | L133: 92.56198347 | M133: 92.99812672 | N133: 92.41120461 | O133: 91.82428249 | P133: 91.23736038 | Q133: 90.65043827 | R133: 90.06351615 | S133: 89.47659404 | T133: 88.88967193 | U133: 88.30274981 | V133: 87.7158277 | W133: 88.30274981 | X133: 88.10710911 | Y133: 88.04189554 | Z133: 88.15058482 | AA133: 88.09986316 | AB133: 88.09744784 | AC133: 88.11596527 | AD133: 88.10442542 | AE133: 88.10594618 | AF133: 88.10877896 | AG133: 88.10638352 | AH133: 88.10703622 | AI133: 88.10739956 | AJ133: 88.10693977 | AK133: 88.10712518 | AL133: 88.10715484 | AM133: 88.10707326 | AN133: 88.10711776 | AO133: 88.10711529 | AP133: 88.1071021 | AQ133: 88.10711172 | AR133: 88.1071097
A134: 1600000US3112315 | B134: David City city, Nebraska | C134: 90.6 | D134: 88.7 | E134: 89.4 | F134: 88 | G134: 84.4 | H134: 86.6 | I134: 89.9 | J134: 89.6 | K134: 92.3 | L134: 92.62777024 | M134: 90.95777476 | N134: 91.27504708 | O134: 91.59231939 | P134: 91.90959171 | Q134: 92.22686403 | R134: 92.54413634 | S134: 92.86140866 | T134: 93.17868098 | U134: 93.49595329 | V134: 93.81322561 | W134: 93.49595329 | X134: 93.60171073 | Y134: 93.63696321 | Z134: 93.57820908 | AA134: 93.60562767 | AB134: 93.60693332 | AC134: 93.59692336 | AD134: 93.60316145 | AE134: 93.60233938 | AF134: 93.60080806 | AG134: 93.60210296 | AH134: 93.60175013 | AI134: 93.60155372 | AJ134: 93.60180227 | AK134: 93.60170204 | AL134: 93.60168601 | AM134: 93.60173011 | AN134: 93.60170605 | AO134: 93.60170739 | AP134: 93.60171452 | AQ134: 93.60170932 | AR134: 93.60171041
A135: 1600000US3112420 | B135: Dawson village, Nebraska | C135: 90.3 | D135: 91.6 | E135: 93.5 | F135: 92.1 | G135: 87.2 | H135: 86.4 | I135: 86.5 | J135: 84.6 | K135: 85.4 | L135: 87.59124088 | M135: 84.18982968 | N135: 83.40268525 | O135: 82.61554081 | P135: 81.82839637 | Q135: 81.04125194 | R135: 80.2541075 | S135: 79.46696306 | T135: 78.67981862 | U135: 77.89267419 | V135: 77.10552975 | W135: 77.89267419 | X135: 77.63029271 | Y135: 77.54283222 | Z135: 77.6885997 | AA135: 77.62057488 | AB135: 77.6173356 | AC135: 77.64217006 | AD135: 77.62669351 | AE135: 77.62873306 | AF135: 77.63253221 | AG135: 77.62931959 | AH135: 77.63019495 | AI135: 77.63068225 | AJ135: 77.6300656 | AK135: 77.63031427 | AL135: 77.63035404 | AM135: 77.63024463 | AN135: 77.63030431 | AO135: 77.630301 | AP135: 77.63028331 | AQ135: 77.63029621 | AR135: 77.63029351
A136: 1600000US3112455 | B136: Daykin village, Nebraska | C136: 90.5 | D136: 90 | E136: 92.7 | F136: 94.5 | G136: 89.4 | H136: 90.6 | I136: 87 | J136: 84.4 | K136: 83.6 | L136: 88.97637795 | M136: 85.12388451 | N136: 84.38865665 | O136: 83.65342878 | P136: 82.91820091 | Q136: 82.18297304 | R136: 81.44774517 | S136: 80.7125173 | T136: 79.97728943 | U136: 79.24206156 | V136: 78.50683369 | W136: 79.24206156 | X136: 78.9969856 | Y136: 78.91529362 | Z136: 79.05144693 | AA136: 78.98790872 | AB136: 78.98488309 | AC136: 79.00807958 | AD136: 78.99362379 | AE136: 78.99552882 | AF136: 78.9990774 | AG136: 78.99607667 | AH136: 78.9968943 | AI136: 78.99734945 | AJ136: 78.99677347 | AK136: =(AH136+AI136+AJ136)/3 -> 78.99700574 | AL136: 78.99704289 | AM136: 78.9969407 | AN136: 78.99699644 | AO136: 78.99699335 | AP136: 78.99697683 | AQ136: 78.99698887 | AR136: 78.99698635
A137: 1600000US3112525 | B137: Decatur village, Nebraska | C137: 85.5 | D137: 83.2 | E137: 81.8 | F137: 83.2 | G137: 84.7 | H137: 85.2 | I137: 84.8 | J137: 83.2 | K137: 97.4 | L137: 82.99120235 | M137: 88.16981427 | N137: 88.70994046 | O137: 89.25006665 | P137: 89.79019284 | Q137: 90.33031903 | R137: 90.87044521 | S137: 91.4105714 | T137: 91.95069759 | U137: 92.49082378 | V137: 93.03094997 | W137: 92.49082378 | X137: 92.67086584 | Y137: 92.73087986 | Z137: 92.6308565 | AA137: 92.67753407 | AB137: 92.67975681 | AC137: 92.66271579 | AD137: 92.67333556 | AE137: 92.67193605 | AF137: 92.66932913 | AG137: 92.67153358 | AH137: 92.67093292 | AI137: 92.67059855 | AJ137: 92.67102168 | AK137: 92.67085105 | AL137: 92.67082376 | AM137: 92.67089883 | AN137: 92.67085788 | AO137: 92.67086016 | AP137: 92.67087229 | AQ137: 92.67086344 | AR137: 92.6708653
A138: 1600000US3112770 | B138: Denton village, Nebraska | C138: 94.4 | D138: 95.2 | E138: 98.8 | F138: 98.8 | G138: 98.2 | H138: 98.7 | I138: 98 | J138: 97.8 | K138: 93.4 | L138: 95.625 | M138: 96.61 | N138: 96.55863636 | O138: 96.50727273 | P138: 96.45590909 | Q138: 96.40454545 | R138: 96.35318182 | S138: 96.30181818 | T138: 96.25045455 | U138: 96.19909091 | V138: 96.14772727 | W138: 96.19909091 | X138: 96.1819697 | Y138: 96.17626263 | Z138: 96.18577441 | AA138: 96.18133558 | AB138: 96.18112421 | AC138: 96.18274473 | AD138: 96.18173484 | AE138: 96.18186792 | AF138: 96.18211583 | AG138: 96.1819062 | AH138: 96.18196332 | AI138: 96.18199512 | AJ138: 96.18195488 | AK138: 96.1819711 | AL138: 96.1819737 | AM138: 96.18196656 | AN138: 96.18197045 | AO138: 96.18197024 | AP138: 96.18196908 | AQ138: 96.18196993 | AR138: 96.18196975
A139: 1600000US3112840 | B139: Deshler city, Nebraska | C139: 90.5 | D139: 87.7 | E139: 90.6 | F139: 90.4 | G139: 92.1 | H139: 92.9 | I139: 93.9 | J139: 92.6 | K139: 95.8 | L139: 93.58108108 | M139: 95.53243243 | N139: 96.17321867 | O139: 96.81400491 | P139: 97.45479115 | Q139: 98.0955774 | R139: 98.73636364 | S139: 99.37714988 | T139: 100 | U139: 100 | V139: 100 | W139: 100 | X139: 100 | Y139: 100 | Z139: 100 | AA139: 100 | AB139: 100 | AC139: 100 | AD139: 100 | AE139: 100 | AF139: 100 | AG139: 100 | AH139: 100 | AI139: 100 | AJ139: 100 | AK139: 100 | AL139: 100 | AM139: 100 | AN139: 100 | AO139: 100 | AP139: 100 | AQ139: 100 | AR139: 100
A140: 1600000US3112945 | B140: Deweese village, Nebraska | C140: 78.8 | D140: 79.4 | E140: 82.5 | F140: 88.1 | G140: 84.8 | H140: 100 | I140: 100 | J140: 98.3 | K140: 94.8 | L140: 100 | M140: 100 | N140: 100 | O140: 100 | P140: 100 | Q140: 100 | R140: 100 | S140: 100 | T140: 100 | U140: 100 | V140: 100 | W140: 100 | X140: 100 | Y140: 100 | Z140: 100 | AA140: 100 | AB140: 100 | AC140: 100 | AD140: 100 | AE140: 100 | AF140: 100 | AG140: 100 | AH140: 100 | AI140: 100 | AJ140: 100 | AK140: 100 | AL140: 100 | AM140: 100 | AN140: 100 | AO140: 100 | AP140: 100 | AQ140: 100 | AR140: 100
A141: 1600000US3113015 | B141: De Witt village, Nebraska | C141: 96.5 | D141: 97.1 | E141: 95 | F141: 92.2 | G141: 92.6 | H141: 93.4 | I141: 95.3 | J141: 94.6 | K141: 84.1 | L141: 95.14767932 | M141: 90.4257384 | N141: 89.84955121 | O141: 89.27336402 | P141: 88.69717683 | Q141: 88.12098964 | R141: 87.54480245 | S141: 86.96861527 | T141: 86.39242808 | U141: 85.81624089 | V141: 85.2400537 | W141: 85.81624089 | X141: 85.62417849 | Y141: 85.5601577 | Z141: 85.66685903 | AA141: 85.61706507 | AB141: 85.61469393 | AC141: 85.63287268 | AD141: 85.62154389 | AE141: 85.62303683 | AF141: 85.6258178 | AG141: 85.62346618 | AH141: 85.62410694 | AI141: 85.62446364 | AJ141: 85.62401225 | AK141: 85.62419427 | AL141: 85.62422339 | AM141: 85.6241433 | AN141: 85.62418699 | AO141: 85.62418456 | AP141: 85.62417162 | AQ141: 85.62418106 | AR141: 85.62417908
A142: 1600000US3113085 | B142: Diller village, Nebraska | C142: 81.7 | D142: 85.4 | E142: 89.9 | F142: 92.4 | G142: 92.1 | H142: 96.6 | I142: 94.3 | J142: 88.4 | K142: 88.8 | L142: 87.27272727 | M142: 92.24242424 | N142: 92.70699725 | O142: 93.17157025 | P142: 93.63614325 | Q142: 94.10071625 | R142: 94.56528926 | S142: 95.02986226 | T142: 95.49443526 | U142: 95.95900826 | V142: 96.42358127 | W142: 95.95900826 | X142: 96.11386593 | Y142: 96.16548515 | Z142: 96.07945312 | AA142: 96.1196014 | AB142: 96.12151322 | AC142: 96.10685591 | AD142: 96.11599018 | AE142: 96.11478644 | AF142: 96.11254418 | AG142: 96.11444027 | AH142: 96.11392363 | AI142: 96.11363602 | AJ142: 96.11399997 | AK142: 96.11385321 | AL142: 96.11382973 | AM142: 96.1138943 | AN142: 96.11385908 | AO142: 96.11386104 | AP142: 96.11387148 | AQ142: 96.11386387 | AR142: 96.11386546
A143: 1600000US3113190 | B143: Dix village, Nebraska | C143: 89.5 | D143: 89.8 | E143: 87.2 | F143: 84.1 | G143: 84.9 | H143: 83.6 | I143: 87.2 | J143: 80 | K143: 82.8 | L143: 89.91935484 | M143: 83.46107527 | N143: 83.0172825 | O143: 82.57348974 | P143: 82.12969697 | Q143: 81.6859042 | R143: 81.24211144 | S143: 80.79831867 | T143: 80.3545259 | U143: 79.91073314 | V143: 79.46694037 | W143: 79.91073314 | X143: 79.76280222 | Y143: 79.71349191 | Z143: 79.79567575 | AA143: 79.75732329 | AB143: 79.75549698 | AC143: 79.76949868 | AD143: 79.76077298 | AE143: 79.76192288 | AF143: 79.76406485 | AG143: 79.76225357 | AH143: 79.7627471 | AI143: 79.76302184 | AJ143: 79.76267417 | AK143: 79.76281437 | AL143: 79.76283679 | AM143: 79.76277511 | AN143: 79.76280876 | AO143: 79.76280689 | AP143: 79.76279692 | AQ143: 79.76280419 | AR143: 79.76280267
A144: 1600000US3113225 | B144: Dixon village, Nebraska | C144: 71.7 | D144: 72.9 | E144: 77.2 | F144: 81.7 | G144: 100 | H144: 89.8 | I144: 90.6 | J144: 92.5 | K144: 88.7 | L144: 89.79591837 | M144: 97.70503401 | N144: 99.9260235 | O144: 100 | P144: 100 | Q144: 100 | R144: 100 | S144: 100 | T144: 100 | U144: 100 | V144: 100 | W144: 100 | X144: 100 | Y144: 100 | Z144: 100 | AA144: 100 | AB144: 100 | AC144: 100 | AD144: 100 | AE144: 100 | AF144: 100 | AG144: 100 | AH144: 100 | AI144: 100 | AJ144: 100 | AK144: 100 | AL144: 100 | AM144: 100 | AN144: 100 | AO144: 100 | AP144: 100 | AQ144: 100 | AR144: 100
A145: 1600000US3113295 | B145: Dodge village, Nebraska | C145: 78.4 | D145: 80.3 | E145: 79.7 | F145: 84.5 | G145: 89.3 | H145: 87.3 | I145: 86.3 | J145: 88 | K145: 86.5 | L145: 88.43537415 | M145: 90.82748299 | N145: 91.91001855 | O145: 92.99255411 | P145: 94.07508967 | Q145: 95.15762523 | R145: 96.24016079 | S145: 97.32269635 | T145: 98.40523191 | U145: 99.48776747 | V145: 100 | W145: 99.29766646 | X145: 99.59514464 | Y145: 99.63093703 | Z145: 99.50791605 | AA145: 99.57799924 | AB145: 99.57228411 | AC145: 99.55273313 | AD145: 99.56767216 | AE145: 99.5642298 | AF145: 99.56154503 | AG145: 99.56448233 | AH145: 99.56341905 | AI145: 99.5631488 | AJ145: 99.5636834 | AK145: 99.56341708 | AL145: 99.56341643 | AM145: 99.56350564 | AN145: 99.56344638 | AO145: 99.56345615 | AP145: 99.56346939 | AQ145: 99.56345731 | AR145: 99.56346095
A146: 1600000US3113365 | B146: Doniphan village, Nebraska | C146: 87.4 | D146: 90.9 | E146: 92.1 | F146: 90.9 | G146: 91.1 | H146: 93.2 | I146: 93.8 | J146: 93.5 | K146: 95.2 | L146: 94.02092676 | M146: 95.79503737 | N146: 96.44648186 | O146: 97.09792635 | P146: 97.74937084 | Q146: 98.40081533 | R146: 99.05225982 | S146: 99.70370431 | T146: 100 | U146: 100 | V146: 100 | W146: 100 | X146: 100 | Y146: 100 | Z146: 100 | AA146: 100 | AB146: 100 | AC146: 100 | AD146: 100 | AE146: 100 | AF146: 100 | AG146: 100 | AH146: 100 | AI146: 100 | AJ146: 100 | AK146: 100 | AL146: 100 | AM146: 100 | AN146: 100 | AO146: 100 | AP146: 100 | AQ146: 100 | AR146: 100
A147: 1600000US3113435 | B147: Dorchester village, Nebraska | C147: 89.6 | D147: 93.8 | E147: 92.2 | F147: 92.8 | G147: 90.5 | H147: 92 | I147: 92.3 | J147: 92.9 | K147: 88.9 | L147: 90.46610169 | M147: 90.77977401 | N147: 90.64034926 | O147: 90.5009245 | P147: 90.36149974 | Q147: 90.22207499 | R147: 90.08265023 | S147: 89.94322548 | T147: 89.80380072 | U147: 89.66437596 | V147: 89.52495121 | W147: 89.66437596 | X147: 89.61790104 | Y147: 89.6024094 | Z147: 89.6282288 | AA147: 89.61617975 | AB147: 89.61560599 | AC147: 89.62000485 | AD147: 89.61726353 | AE147: 89.61762479 | AF147: 89.61829772 | AG147: 89.61772868 | AH147: 89.61788373 | AI147: 89.61797004 | AJ147: 89.61786082 | AK147: 89.61790486 | AL147: 89.61791191 | AM147: 89.61789253 | AN147: 89.6179031 | AO147: 89.61790251 | AP147: 89.61789938 | AQ147: 89.61790166 | AR147: 89.61790119
A148: 1600000US3113505 | B148: Douglas village, Nebraska | C148: 83.6 | D148: 90.8 | E148: 88.7 | F148: 91.7 | G148: 93.1 | H148: 91.9 | I148: 89.5 | J148: 90.2 | K148: 87.1 | L148: 88.98305085 | M148: 90.29988701 | N148: 90.43472008 | O148: 90.56955316 | P148: 90.70438624 | Q148: 90.83921931 | R148: 90.97405239 | S148: 91.10888546 | T148: 91.24371854 | U148: 91.37855162 | V148: 91.51338469 | W148: 91.37855162 | X148: 91.42349598 | Y148: 91.43847743 | Z148: 91.41350834 | AA148: 91.42516058 | AB148: 91.42571545 | AC148: 91.42146146 | AD148: 91.4241125 | AE148: 91.42376314 | AF148: 91.42311236 | AG148: 91.42366267 | AH148: 91.42351272 | AI148: 91.42342925 | AJ148: 91.42353488 | AK148: 91.42349228 | AL148: 91.42348547 | AM148: 91.42350421 | AN148: 91.42349399 | AO148: 91.42349456 | AP148: 91.42349759 | AQ148: 91.42349538 | AR148: 91.42349584
A149: 1600000US3113750 | B149: Du Bois village, Nebraska | C149: 84.8 | D149: 94.2 | E149: 91.7 | F149: 92.9 | G149: 90 | H149: 86.8 | I149: 86.2 | J149: 87.4 | K149: 85.2 | L149: 81.05263158 | M149: 83.3077193 | N149: 82.44998405 | O149: 81.5922488 | P149: 80.73451356 | Q149: 79.87677831 | R149: 79.01904306 | S149: 78.16130781 | T149: 77.30357257 | U149: 76.44583732 | V149: 75.58810207 | W149: 76.44583732 | X149: 76.15992557 | Y149: 76.06462166 | Z149: 76.22346152 | AA149: 76.14933625 | AB149: 76.14580647 | AC149: 76.17286808 | AD149: 76.1560036 | AE149: 76.15822605 | AF149: 76.16236591 | AG149: 76.15886519 | AH149: 76.15981905 | AI149: 76.16035005 | AJ149: 76.15967809 | AK149: 76.15994906 | AL149: 76.1599924 | AM149: 76.15987319 | AN149: 76.15993822 | AO149: 76.1599346 | AP149: 76.15991534 | AQ149: 76.15992939 | AR149: 76.15992644
A150: 1600000US3113855 | B150: Dunbar village, Nebraska | C150: 92.9 | D150: 92.5 | E150: 88.2 | F150: 80.3 | G150: 79.8 | H150: 79.7 | I150: 81.3 | J150: 85 | K150: 86.9 | L150: 92.90322581 | M150: 84.20795699 | N150: 83.89116325 | O150: 83.5743695 | P150: 83.25757576 | Q150: 82.94078201 | R150: 82.62398827 | S150: 82.30719453 | T150: 81.99040078 | U150: 81.67360704 | V150: 81.35681329 | W150: 81.67360704 | X150: 81.56800912 | Y150: 81.53280982 | Z150: 81.59147533 | AA150: 81.56409809 | AB150: 81.56279441 | AC150: 81.57278928 | AD150: 81.56656059 | AE150: 81.56738143 | AF150: 81.56891043 | AG150: 81.56761748 | AH150: 81.56796978 | AI150: 81.5681659 | AJ150: 81.56791772 | AK150: 81.5680178 | AL150: 81.56803381 | AM150: 81.56798978 | AN150: 81.56801379 | AO150: 81.56801246 | AP150: 81.56800534 | AQ150: 81.56801053 | AR150: 81.56800944
A151: 1600000US3113890 | B151: Duncan village, Nebraska | C151: 84.6 | D151: 84.1 | E151: 87.3 | F151: 92.1 | G151: 91.1 | H151: 90.3 | I151: 90.8 | J151: 90.4 | K151: 91.6 | L151: 85.84686775 | M151: 91.2987471 | N151: 91.75039443 | O151: 92.20204176 | P151: 92.6536891 | Q151: 93.10533643 | R151: 93.55698376 | S151: 94.00863109 | T151: 94.46027842 | U151: 94.91192575 | V151: 95.36357309 | W151: 94.91192575 | X151: 95.06247486 | Y151: 95.1126579 | Z151: 95.02901951 | AA151: 95.06805076 | AB151: =(Y151+Z151+AA151)/3 -> 95.06990939 | AC151: 95.05565988 | AD151: 95.06454001 | AE151: 95.06336976 | AF151: 95.06118989 | AG151: 95.06303322 | AH151: 95.06253096 | AI151: 95.06225135 | AJ151: 95.06260518 | AK151: 95.06246249 | AL151: 95.06243967 | AM151: 95.06250245 | AN151: 95.06246821 | AO151: 95.06247011 | AP151: 95.06248025 | AQ151: 95.06247286 | AR151: 95.06247441
A152: 1600000US3113960 | B152: Dunning village, Nebraska | C152: 100 | D152: 100 | E152: 100 | F152: 100 | G152: 100 | H152: 100 | I152: 100 | J152: 90.6 | K152: 86 | L152: 96.1038961 | M152: 91.26822511 | N152: 90.17692247 | O152: 89.08561983 | P152: 87.9943172 | Q152: 86.90301456 | R152: 85.81171192 | S152: 84.72040929 | T152: 83.62910665 | U152: 82.53780401 | V152: 81.44650138 | W152: =(T152+U152+V152)/3 -> 82.53780401 | X152: 82.17403647 | Y152: 82.05278062 | Z152: 82.2548737 | AA152: 82.1605636 | AB152: 82.15607264 | AC152: 82.19050331 | AD152: 82.16904652 | AE152: 82.17187416 | AF152: 82.17714133 | AG152: 82.17268733 | AH152: 82.17390094 | AI152: 82.17457653 | AJ152: 82.1737216 | AK152: 82.17406636 | AL152: 82.1741215 | AM152: 82.17396982 | AN152: 82.17405256 | AO152: 82.17404796 | AP152: 82.17402345 | AQ152: 82.17404132 | AR152: 82.17403757
A153: 1600000US3114065 | B153: Dwight village, Nebraska | C153: 92.2 | D153: 86.4 | E153: 92.5 | F153: 92.6 | G153: 90.7 | H153: 91.8 | I153: 95.1 | J153: 94.2 | K153: 93.8 | L153: 98.74213836 | M153: 97.06352201 | N153: 97.83794168 | O153: 98.61236135 | P153: 99.38678102 | Q153: 100 | R153: 100 | S153: 100 | T153: 100 | U153: 100 | V153: 100 | W153: 100 | X153: 100 | Y153: 100 | Z153: 100 | AA153: 100 | AB153: 100 | AC153: 100 | AD153: 100 | AE153: 100 | AF153: 100 | AG153: 100 | AH153: 100 | AI153: 100 | AJ153: 100 | AK153: 100 | AL153: 100 | AM153: 100 | AN153: 100 | AO153: 100 | AP153: 100 | AQ153: 100 | AR153: 100
A154: 1600000US3114100 | B154: Eagle village, Nebraska | C154: 90.5 | D154: 87.6 | E154: 88.7 | F154: 88.3 | G154: 89 | H154: 89.4 | I154: 93 | J154: 97.4 | K154: 96.5 | L154: 94.0915805 | M154: 96.5366322 | N154: 97.4616275 | O154: 98.3866228 | P154: 99.3116181 | Q154: 100 | R154: 100 | S154: 100 | T154: 100 | U154: 100 | V154: 100 | W154: 100 | X154: 100 | Y154: 100 | Z154: 100 | AA154: 100 | AB154: 100 | AC154: 100 | AD154: 100 | AE154: 100 | AF154: 100 | AG154: 100 | AH154: 100 | AI154: 100 | AJ154: 100 | AK154: 100 | AL154: 100 | AM154: 100 | AN154: 100 | AO154: 100 | AP154: 100 | AQ154: 100 | AR154: 100
A155: 1600000US3114380 | B155: Eddyville village, Nebraska | C155: 78.7 | D155: 84.3 | E155: 86.6 | F155: 88.6 | G155: 81 | H155: 74.7 | I155: 68.7 | J155: 71.2 | K155: 76.7 | L155: 88.46153846 | M155: 76.28461538 | N155: 75.62797203 | O155: 74.97132867 | P155: 74.31468531 | Q155: 73.65804196 | R155: 73.0013986 | S155: 72.34475524 | T155: 71.68811189 | U155: 71.03146853 | V155: 70.37482517 | W155: 71.03146853 | X155: 70.81258741 | Y155: 70.73962704 | Z155: 70.86122766 | AA155: 70.8044807 | AB155: 70.80177847 | AC155: 70.82249561 | AD155: 70.80958493 | AE155: 70.81128634 | AF155: 70.81445563 | AG155: 70.81177563 | AH155: 70.81250586 | AI155: 70.81291237 | AJ155: 70.81239796 | AK155: 70.8126054 | AL155: 70.81263858 | AM155: 70.81254731 | AN155: 70.81259709 | AO155: 70.81259433 | AP155: 70.81257958 | AQ155: 70.81259033 | AR155: 70.81258808
A156: 1600000US3114450 | B156: Edgar city, Nebraska | C156: 84.2 | D156: 89.2 | E156: 91.2 | F156: 90.8 | G156: 88.3 | H156: 90 | I156: 87.9 | J156: 87.6 | K156: 90 | L156: 95.26627219 | M156: 92.11984221 | N156: 92.6058813 | O156: 93.09192039 | P156: 93.57795948 | Q156: 94.06399857 | R156: 94.55003765 | S156: 95.03607674 | T156: 95.52211583 | U156: 96.00815492 | V156: 96.49419401 | W156: 96.00815492 | X156: 96.17016795 | Y156: 96.22417229 | Z156: 96.13416506 | AA156: 96.17616843 | AB156: 96.1781686 | AC156: 96.16283403 | AD156: 96.17239035 | AE156: 96.17113099 | AF156: 96.16878512 | AG156: 96.17076882 | AH156: 96.17022831 | AI156: 96.16992742 | AJ156: 96.17030819 | AK156: 96.17015464 | AL156: 96.17013008 | AM156: 96.17019764 | AN156: 96.17016079 | AO156: 96.17016283 | AP156: 96.17017375 | AQ156: 96.17016579 | AR156: 96.17016746
A157: 1600000US3114520 | B157: Edison village, Nebraska | C157: 83.8 | D157: 55.7 | E157: 92.9 | F157: 87.5 | G157: 88.1 | H157: 80.2 | I157: 75.5 | J157: 78.4 | K157: 76.9 | L157: 76.31578947 | M157: 78.35298246 | N157: 78.13869219 | O157: 77.92440191 | P157: 77.71011164 | Q157: 77.49582137 | R157: 77.2815311 | S157: 77.06724083 | T157: 76.85295056 | U157: 76.63866029 | V157: 76.42437002 | W157: 76.63866029 | X157: 76.5672302 | Y157: 76.54342017 | Z157: 76.58310355 | AA157: 76.56458464 | AB157: 76.56370278 | AC157: 76.57046366 | AD157: 76.56625036 | AE157: 76.5668056 | AF157: 76.56783987 | AG157: 76.56696528 | AH157: 76.56720358 | AI157: 76.56733624 | AJ157: 76.56716837 | AK157: 76.56723607 | AL157: 76.56724689 | AM157: 76.56721711 | AN157: 76.56723336 | AO157: 76.56723245 | AP157: 76.56722764 | AQ157: 76.56723115 | AR157: 76.56723041
A158: 1600000US3114555 | B158: Elba village, Nebraska | C158: 93.6 | D158: 91.6 | E158: 89.7 | F158: 87.9 | G158: 78.8 | H158: 81 | I158: 85.9 | J158: 91.8 | K158: 88.6 | L158: 92.69230769 | M158: 87.41025641 | N158: 87.27407925 | O158: 87.1379021 | P158: 87.00172494 | Q158: 86.86554779 | R158: 86.72937063 | S158: 86.59319347 | T158: 86.45701632 | U158: 86.32083916 | V158: 86.184662 | W158: 86.32083916 | X158: 86.27544678 | Y158: 86.26031598 | Z158: 86.28553397 | AA158: 86.27376558 | AB158: 86.27320518 | AC158: 86.27750157 | AD158: 86.27482411 | AE158: 86.27517695 | AF158: 86.27583421 | AG158: 86.27527842 | AH158: 86.27542986 | AI158: 86.27551417 | AJ158: 86.27540749 | AK158: 86.27545051 | AL158: 86.27545739 | AM158: 86.27543846 | AN158: 86.27544878 | AO158: 86.27544821 | AP158: 86.27544515 | AQ158: 86.27544738 | AR158: 86.27544691
A159: 1600000US3114730 | B159: Elgin city, Nebraska | C159: 82.7 | D159: 83.4 | E159: 85.4 | F159: 85.6 | G159: 85.6 | H159: 87.7 | I159: 88.7 | J159: 88.8 | K159: 90.1 | L159: 93.42806394 | M159: 92.87122558 | N159: 93.91275634 | O159: 94.9542871 | P159: 95.99581786 | Q159: 97.03734862 | R159: 98.07887938 | S159: 99.12041014 | T159: 100 | U159: 100 | V159: 100 | W159: 100 | X159: 100 | Y159: 100 | Z159: 100 | AA159: 100 | AB159: 100 | AC159: 100 | AD159: 100 | AE159: 100 | AF159: 100 | AG159: 100 | AH159: 100 | AI159: 100 | AJ159: 100 | AK159: 100 | AL159: 100 | AM159: 100 | AN159: 100 | AO159: 100 | AP159: 100 | AQ159: 100 | AR159: 100
A160: 1600000US3114975 | B160: Elk Creek village, Nebraska | C160: 81.1 | D160: 81.7 | E160: 77.5 | F160: 79.8 | G160: 84.8 | H160: 81.3 | I160: 81.4 | J160: 93.8 | K160: 87.4 | L160: 92.53731343 | M160: 91.65492537 | N160: 93.0224152 | O160: 94.38990502 | P160: 95.75739484 | Q160: 97.12488467 | R160: 98.49237449 | S160: 99.85986431 | T160: 100 | U160: 100 | V160: 100 | W160: 100 | X160: 100 | Y160: 100 | Z160: 100 | AA160: 100 | AB160: 100 | AC160: 100 | AD160: 100 | AE160: 100 | AF160: 100 | AG160: 100 | AH160: 100 | AI160: 100 | AJ160: 100 | AK160: 100 | AL160: 100 | AM160: 100 | AN160: 100 | AO160: 100 | AP160: 100 | AQ160: 100 | AR160: 100
A161: 1600000US3115360 | B161: Elm Creek village, Nebraska | C161: 90.9 | D161: 92.7 | E161: 93.7 | F161: 92.8 | G161: 94.5 | H161: 95.8 | I161: 94.8 | J161: 92.1 | K161: 93 | L161: 92.74092616 | M161: 93.90303713 | N161: 94.01193613 | O161: 94.12083513 | P161: 94.22973414 | Q161: 94.33863314 | R161: 94.44753214 | S161: 94.55643114 | T161: 94.66533015 | U161: 94.77422915 | V161: 94.88312815 | W161: 94.77422915 | X161: 94.81052882 | Y161: 94.82262871 | Z161: 94.80246222 | AA161: 94.81187325 | AB161: 94.81232139 | AC161: 94.80888562 | AD161: 94.81102676 | AE161: 94.81074459 | AF161: 94.81021899 | AG161: 94.81066345 | AH161: 94.81054234 | AI161: 94.81047493 | AJ161: 94.81056024 | AK161: 94.81052583 | AL161: 94.81052033 | AM161: 94.81053547 | AN161: 94.81052721 | AO161: 94.81052767 | AP161: 94.81053012 | AQ161: 94.81052833 | AR161: 94.81052871
A162: 1600000US3115430 | B162: Elmwood village, Nebraska | C162: 91.5 | D162: 90.5 | E162: 91.1 | F162: 92.8 | G162: 96.4 | H162: 96.6 | I162: 98.3 | J162: 97.9 | K162: 97.5 | L162: 97.10144928 | M162: 99.97391304 | N162: 100 | O162: 100 | P162: 100 | Q162: 100 | R162: 100 | S162: 100 | T162: 100 | U162: 100 | V162: 100 | W162: 100 | X162: 100 | Y162: 100 | Z162: 100 | AA162: 100 | AB162: 100 | AC162: 100 | AD162: 100 | AE162: 100 | AF162: 100 | AG162: 100 | AH162: 100 | AI162: 100 | AJ162: 100 | AK162: 100 | AL162: 100 | AM162: 100 | AN162: 100 | AO162: 100 | AP162: 100 | AQ162: 100 | AR162: 100
A163: 1600000US3115500 | B163: Elsie village, Nebraska | C163: 82.5 | D163: 100 | E163: 100 | F163: 98.6 | G163: 94.7 | H163: 90.4 | I163: 94.2 | J163: 93.3 | K163: 94.8 | L163: 95.72649573 | M163: 95.47726496 | N163: 95.66901321 | O163: 95.86076146 | P163: 96.05250971 | Q163: 96.24425796 | R163: 96.43600622 | S163: 96.62775447 | T163: 96.81950272 | U163: 97.01125097 | V163: 97.20299922 | W163: 97.01125097 | X163: 97.07516706 | Y163: 97.09647242 | Z163: 97.06096348 | AA163: 97.07753432 | AB163: 97.0783234 | AC163: 97.07227373 | AD163: 97.07604382 | AE163: 97.07554699 | AF163: 97.07462151 | AG163: 97.07540411 | AH163: 97.07519087 | AI163: 97.07507216 | AJ163: 97.07522238 | AK163: 97.0751618 | AL163: 97.07515212 | AM163: 97.07517877 | AN163: 97.07516423 | AO163: 97.07516504 | AP163: 97.07516934 | AQ163: 97.0751662 | AR163: 97.07516686
A164: 1600000US3115570 | B164: Elwood village, Nebraska | C164: 90.4 | D164: 93.1 | E164: 93.1 | F164: 92.7 | G164: 94.5 | H164: 94 | I164: 92.5 | J164: 94.7 | K164: 95.7 | L164: 92.79411765 | M164: 94.90431373 | N164: 95.18702317 | O164: 95.46973262 | P164: 95.75244207 | Q164: 96.03515152 | R164: 96.31786096 | S164: 96.60057041 | T164: 96.88327986 | U164: 97.1659893 | V164: 97.44869875 | W164: 97.1659893 | X164: 97.26022579 | Y164: 97.29163795 | Z164: 97.23928435 | AA164: 97.26371603 | AB164: 97.26487944 | AC164: 97.25595994 | AD164: 97.26151847 | AE164: 97.26078595 | AF164: 97.25942145 | AG164: 97.26057529 | AH164: 97.2602609 | AI164: 97.26008588 | AJ164: 97.26030736 | AK164: 97.26021804 | AL164: 97.26020376 | AM164: 97.26024305 | AN164: 97.26022162 | AO164: 97.26022281 | AP164: 97.26022916 | AQ164: 97.26022453 | AR164: 97.2602255
A165: 1600000US3115605 | B165: Elyria village, Nebraska | C165: 87 | D165: 87.5 | E165: 91.3 | F165: 100 | G165: 100 | H165: 96.7 | I165: 94.1 | J165: 94.1 | K165: 88.9 | L165: 88.67924528 | M165: 93.42503145 | N165: 93.53359634 | O165: 93.64216123 | P165: 93.75072613 | Q165: 93.85929102 | R165: 93.96785592 | S165: 94.07642081 | T165: 94.18498571 | U165: 94.2935506 | V165: 94.40211549 | W165: 94.2935506 | X165: 94.3297389 | Y165: 94.34180166 | Z165: 94.32169705 | AA165: 94.33107921 | AB165: 94.33152597 | AC165: 94.32810075 | AD165: 94.33023531 | AE165: 94.32995401 | AF165: 94.32943002 | AG165: 94.32987311 | AH165: 94.32975238 | AI165: 94.32968517 | AJ165: 94.32977022 | AK165: 94.32973592 | AL165: 94.32973044 | AM165: 94.32974553 | AN165: 94.3297373 | AO165: 94.32973776 | AP165: 94.32974019 | AQ165: 94.32973842 | AR165: 94.32973879
A166: 1600000US3115710 | B166: Emerson village, Nebraska | C166: 88 | D166: 88.4 | E166: 87.4 | F166: 88 | G166: 87.3 | H166: 85.6 | I166: 87 | J166: 87.8 | K166: 87 | L166: 89.73941368 | M166: 87.72909881 | N166: 87.74821834 | O166: 87.76733787 | P166: 87.78645741 | Q166: 87.80557694 | R166: 87.82469648 | S166: 87.84381601 | T166: 87.86293554 | U166: 87.88205508 | V166: 87.90117461 | W166: 87.88205508 | X166: 87.88842826 | Y166: 87.89055265 | Z166: 87.88701199 | AA166: 87.8886643 | AB166: 87.88874298 | AC166: 87.88813976 | AD166: 87.88851568 | AE166: 87.88846614 | AF166: 87.88837386 | AG166: 87.88845189 | AH166: 87.88843063 | AI166: 87.88841879 | AJ166: 87.88843377 | AK166: 87.88842773 | AL166: 87.88842677 | AM166: 87.88842942 | AN166: 87.88842797 | AO166: 87.88842806 | AP166: 87.88842848 | AQ166: 87.88842817 | AR166: 87.88842824
A167: 1600000US3115815 | B167: Emmet village, Nebraska | C167: 100 | D167: 100 | E167: 100 | F167: 100 | G167: 83.3 | H167: 86.7 | I167: 88 | J167: 85.7 | K167: 85.3 | L167: 100 | M167: 86 | N167: 84.74545455 | O167: 83.49090909 | P167: 82.23636364 | Q167: 80.98181818 | R167: 79.72727273 | S167: 78.47272727 | T167: 77.21818182 | U167: 75.96363636 | V167: 74.70909091 | W167: 75.96363636 | X167: 75.54545455 | Y167: 75.40606061 | Z167: 75.63838384 | AA167: 75.52996633 | AB167: 75.52480359 | AC167: 75.56438459 | AD167: 75.53971817 | AE167: 75.54296878 | AF167: 75.54902385 | AG167: 75.5439036 | AH167: 75.54529874 | AI167: 75.5460754 | AJ167: 75.54509258 | AK167: 75.54548891 | AL167: 75.54555229 | AM167: 75.54537793 | AN167: 75.54547304 | AO167: 75.54546775 | AP167: 75.54543957 | AQ167: 75.54546012 | AR167: 75.54545582
A168: 1600000US3115920 | B168: Endicott village, Nebraska | C168: 86.6 | D168: 92.4 | E168: 93 | F168: 93.9 | G168: 94.9 | H168: 91 | I168: 91.7 | J168: 93 | K168: 95.7 | L168: 93.44262295 | M168: 95.03704918 | N168: 95.4866468 | O168: 95.93624441 | P168: 96.38584203 | Q168: 96.83543964 | R168: 97.28503726 | S168: 97.73463487 | T168: 98.18423249 | U168: 98.6338301 | V168: 99.08342772 | W168: 98.6338301 | X168: 98.78369598 | Y168: 98.83365127 | Z168: 98.75039245 | AA168: 98.78924656 | AB168: 98.79109676 | AC168: 98.77691192 | AD168: 98.78575175 | AE168: 98.78458681 | AF168: 98.78241683 | AG168: 98.7842518 | AH168: 98.78375181 | AI168: 98.78347348 | AJ168: 98.7838257 | AK168: 98.78368366 | AL168: 98.78366095 | AM168: 98.78372343 | AN168: 98.78368935 | AO168: 98.78369124 | AP168: =(AM168+AN168+AO168)/3 -> 98.78370134 | AQ168: 98.78369398 | AR168: 98.78369552
A169: 1600000US3116025 | B169: Ericson village, Nebraska | C169: 80.7 | D169: 83.1 | E169: 80.2 | F169: 71.8 | G169: 74.3 | H169: 80.2 | I169: 77.5 | J169: 85.2 | K169: 89.3 | L169: 90.0990099 | M169: 87.10627063 | N169: 88.17288329 | O169: 89.23949595 | P169: 90.30610861 | Q169: 91.37272127 | R169: 92.43933393 | S169: 93.50594659 | T169: 94.57255926 | U169: 95.63917192 | V169: 96.70578458 | W169: 95.63917192 | X169: 95.99470947 | Y169: 96.11322199 | Z169: 95.91570113 | AA169: 96.00787753 | AB169: 96.01226688 | AC169: 95.97861518 | AD169: 95.99958653 | AE169: 95.99682286 | AF169: 95.99167486 | AG169: 95.99602808 | AH169: 95.99484193 | AI169: 95.99418162 | AJ169: 95.99501721 | AK169: 95.99468026 | AL169: 95.99462637 | AM169: 95.99477461 | AN169: 95.99469375 | AO169: 95.99469824 | AP169: 95.9947222 | AQ169: 95.99470473 | AR169: 95.99470839
A170: 1600000US3116165 | B170: Eustis village, Nebraska | C170: 91 | D170: 94 | E170: 94.1 | F170: 93.8 | G170: 91.7 | H170: 89.1 | I170: 91.2 | J170: 92.9 | K170: 91.7 | L170: 93.08641975 | M170: 91.80123457 | N170: 91.71806958 | O170: 91.6349046 | P170: 91.55173962 | Q170: 91.46857464 | R170: 91.38540965 | S170: 91.30224467 | T170: 91.21907969 | U170: 91.1359147 | V170: 91.05274972 | W170: 91.1359147 | X170: 91.10819304 | Y170: 91.09895249 | Z170: 91.11435341 | AA170: 91.10716631 | AB170: 91.10682407 | AC170: 91.10944793 | AD170: 91.10781277 | AE170: 91.10802826 | AF170: 91.10842965 | AG170: 91.10809023 | AH170: 91.10818271 | AI170: 91.1082342 | AJ170: 91.10816905 | AK170: 91.10819532 | AL170: 91.10819952 | AM170: 91.10818796 | AN170: 91.10819427 | AO170: 91.10819392 | AP170: 91.10819205 | AQ170: 91.10819341 | AR170: 91.10819313
A171: 1600000US3116270 | B171: Ewing village, Nebraska | C171: 92.2 | D171: 91.3 | E171: 91.6 | F171: 92.4 | G171: 93.9 | H171: 94.5 | I171: 93.3 | J171: 93.9 | K171: 93.9 | L171: 93.23843416 | M171: 94.43537367 | N171: 94.69201553 | O171: 94.94865739 | P171: 95.20529926 | Q171: 95.46194112 | R171: 95.71858298 | S171: 95.97522485 | T171: 96.23186671 | U171: 96.48850857 | V171: 96.74515044 | W171: 96.48850857 | X171: 96.57405586 | Y171: 96.60257162 | Z171: 96.55504535 | AA171: 96.57722428 | AB171: 96.57828042 | AC171: 96.57018335 | AD171: 96.57522935 | AE171: 96.57456437 | AF171: 96.57332569 | AG171: 96.57437314 | AH171: 96.57408773 | AI171: 96.57392885 | AJ171: 96.57412991 | AK171: 96.57404883 | AL171: 96.57403586 | AM171: 96.57407154 | AN171: 96.57405208 | AO171: 96.57405316 | AP171: 96.57405892 | AQ171: 96.57405472 | AR171: 96.5740556
A172: 1600000US3116340 | B172: Exeter village, Nebraska | C172: 90.6 | D172: 93 | E172: 89 | F172: 89.4 | G172: 93.3 | H172: 94 | I172: 93.6 | J172: 97 | K172: 97.9 | L172: 93.8034188 | M172: 97.04136752 | N172: 97.74700855 | O172: 98.45264957 | P172: 99.1582906 | Q172: 99.86393162 | R172: 100 | S172: 100 | T172: 100 | U172: 100 | V172: 100 | W172: 100 | X172: 100 | Y172: 100 | Z172: 100 | AA172: 100 | AB172: 100 | AC172: 100 | AD172: 100 | AE172: 100 | AF172: 100 | AG172: 100 | AH172: 100 | AI172: 100 | AJ172: 100 | AK172: 100 | AL172: 100 | AM172: 100 | AN172: 100 | AO172: 100 | AP172: 100 | AQ172: 100 | AR172: 100
A173: 1600000US3116410 | B173: Fairbury city, Nebraska | C173: 88.8 | D173: 87.7 | E173: 85.9 | F173: 85 | G173: 85.8 | H173: 85.1 | I173: 84.5 | J173: 85.6 | K173: 86.8 | L173: 85.77176298 | M173: 84.85537186 | N173: 84.62958924 | O173: 84.40380661 | P173: 84.17802399 | Q173: 83.95224136 | R173: 83.72645874 | S173: 83.50067611 | T173: 83.27489348 | U173: 83.04911086 | V173: 82.82332823 | W173: 83.04911086 | X173: 82.97384998 | Y173: 82.94876303 | Z173: 82.99057462 | AA173: 82.97106255 | AB173: 82.9701334 | AC173: 82.97725686 | AD173: 82.9728176 | AE173: 82.97340262 | AF173: 82.97449236 | AG173: 82.97357086 | AH173: 82.97382194 | AI173: 82.97396172 | AJ173: 82.97378484 | AK173: 82.97385617 | AL173: 82.97386758 | AM173: 82.9738362 | AN173: 82.97385331 | AO173: 82.97385236 | AP173: 82.97384729 | AQ173: 82.97385099 | AR173: 82.97385021
A174: 1600000US3116445 | B174: Fairfield city, Nebraska | C174: 88.5 | D174: 88.9 | E174: 90 | F174: 92.8 | G174: 93.8 | H174: 94.6 | I174: 95 | J174: 93.7 | K174: 94.3 | L174: 93.31103679 | M174: 96.05774805 | N174: 96.70622884 | O174: 97.35470964 | P174: 98.00319043 | Q174: 98.65167123 | R174: 99.30015202 | S174: 99.94863282 | T174: 100 | U174: 100 | V174: 100 | W174: 100 | X174: 100 | Y174: 100 | Z174: 100 | AA174: 100 | AB174: 100 | AC174: 100 | AD174: 100 | AE174: 100 | AF174: 100 | AG174: 100 | AH174: 100 | AI174: 100 | AJ174: 100 | AK174: 100 | AL174: 100 | AM174: 100 | AN174: 100 | AO174: 100 | AP174: 100 | AQ174: 100 | AR174: 100
A175: 1600000US3116550 | B175: Fairmont village, Nebraska | C175: 86 | D175: 87.6 | E175: 84.2 | F175: 83.4 | G175: 85.4 | H175: 86.4 | I175: 88.8 | J175: 88.4 | K175: 90.4 | L175: 88.96925859 | M175: 89.7743701 | N175: 90.28663269 | O175: 90.79889528 | P175: 91.31115787 | Q175: 91.82342046 | R175: 92.33568305 | S175: 92.84794564 | T175: 93.36020823 | U175: 93.87247082 | V175: 94.38473341 | W175: 93.87247082 | X175: 94.04322502 | Y175: 94.10014308 | Z175: 94.00527964 | AA175: 94.04954925 | AB175: 94.05165732 | AC175: 94.0354954 | AD175: 94.04556732 | AE175: 94.04424002 | AF175: 94.04176758 | AG175: 94.04385831 | AH175: 94.04328864 | AI175: 94.04297151 | AJ175: 94.04337282 | AK175: =(AH175+AI175+AJ175)/3 -> 94.04321099 | AL175: 94.0431851 | AM175: 94.0432563 | AN175: 94.04321746 | AO175: 94.04321962 | AP175: 94.04323113 | AQ175: 94.04322274 | AR175: 94.0432245
A176: 1600000US3116655 | B176: Falls City city, Nebraska | C176: 82.4 | D176: 91.4 | E176: 91.9 | F176: 92.8 | G176: 92.5 | H176: 92.7 | I176: 91.7 | J176: 92.7 | K176: 94.6 | L176: 91.37055838 | M176: 94.87489002 | N176: 95.50540532 | O176: 96.13592063 | P176: 96.76643593 | Q176: 97.39695124 | R176: 98.02746654 | S176: 98.65798185 | T176: 99.28849715 | U176: 99.91901246 | V176: 100 | W176: 99.73583654 | X176: 99.88494967 | Y176: 99.8735954 | Z176: 99.83146054 | AA176: 99.8633352 | AB176: 99.85613038 | AC176: 99.8503087 | AD176: 99.85659143 | AE176: 99.8543435 | AF176: 99.85374788 | AG176: 99.85489427 | AH176: 99.85432855 | AI176: 99.85432357 | AJ176: 99.85451546 | AK176: 99.85438919 | AL176: 99.85440941 | AM176: 99.85443802 | AN176: 99.85441221 | AO176: 99.85441988 | AP176: 99.85442337 | AQ176: 99.85441849 | AR176: 99.85442058
A177: 1600000US3116725 | B177: Farnam village, Nebraska | C177: 86.2 | D177: 91.3 | E177: 90.9 | F177: 94.7 | G177: 95 | H177: 94.9 | I177: 94.6 | J177: 91.4 | K177: 94.2 | L177: 88.33333333 | M177: 93.54 | N177: 93.79212121 | O177: 94.04424242 | P177: 94.29636364 | Q177: 94.54848485 | R177: 94.80060606 | S177: 95.05272727 | T177: 95.30484848 | U177: 95.5569697 | V177: 95.80909091 | W177: 95.5569697 | X177: 95.6410101 | Y177: 95.66902357 | Z177: 95.62233446 | AA177: 95.64412271 | AB177: 95.64516024 | AC177: 95.6372058 | AD177: 95.64216292 | AE177: 95.64150966 | AF177: 95.64029279 | AG177: 95.64132179 | AH177: 95.64104141 | AI177: 95.64088533 | AJ177: 95.64108284 | AK177: 95.6410032 | AL177: 95.64099046 | AM177: 95.6410255 | AN177: 95.64100638 | AO177: 95.64100745 | AP177: 95.64101311 | AQ177: 95.64100898 | AR177: 95.64100985
A178: 1600000US3116760 | B178: Farwell village, Nebraska | C178: 94.7 | D178: 90.5 | E178: 92.5 | F178: 88.8 | G178: 89 | H178: 91.8 | I178: 89.9 | J178: 89.8 | K178: 96 | L178: 97.95918367 | M178: 94.11034014 | N178: 94.47659864 | O178: 94.84285714 | P178: 95.20911565 | Q178: 95.57537415 | R178: 95.94163265 | S178: 96.30789116 | T178: 96.67414966 | U178: 97.04040816 | V178: 97.40666667 | W178: 97.04040816 | X178: 97.16249433 | Y178: 97.20318972 | Z178: 97.13536407 | AA178: 97.16701604 | AB178: 97.16852328 | AC178: 97.1569678 | AD178: 97.16416904 | AE178: 97.16322004 | AF178: 97.16145229 | AG178: 97.16294712 | AH178: 97.16253982 | AI178: 97.16231308 | AJ178: 97.16260001 | AK178: 97.1624843 | AL178: 97.16246579 | AM178: 97.1625167 | AN178: 97.16248893 | AO178: 97.16249047 | AP178: 97.1624987 | AQ178: 97.1624927 | AR178: 97.16249396
A179: 1600000US3116830 | B179: Filley village, Nebraska | C179: 79.8 | D179: 84.5 | E179: 81 | F179: 80.5 | G179: 90 | H179: 90.7 | I179: 91.1 | J179: 97.9 | K179: 99 | L179: 94.25287356 | M179: 100 | N179: 100 | O179: 100 | P179: 100 | Q179: 100 | R179: 100 | S179: 100 | T179: 100 | U179: 100 | V179: 100 | W179: 100 | X179: 100 | Y179: 100 | Z179: 100 | AA179: 100 | AB179: 100 | AC179: 100 | AD179: 100 | AE179: 100 | AF179: 100 | AG179: 100 | AH179: 100 | AI179: 100 | AJ179: 100 | AK179: 100 | AL179: 100 | AM179: 100 | AN179: 100 | AO179: 100 | AP179: 100 | AQ179: 100 | AR179: 100
A180: 1600000US3116935 | B180: Firth village, Nebraska | C180: 89.8 | D180: 91.4 | E180: 92.2 | F180: 90.9 | G180: 85.3 | H180: 90.3 | I180: 91.3 | J180: 88.9 | K180: 87 | L180: 94.70404984 | M180: 90.28161994 | N180: 90.30002266 | O180: 90.31842538 | P180: 90.33682809 | Q180: 90.35523081 | R180: 90.37363353 | S180: 90.39203625 | T180: 90.41043897 | U180: 90.42884169 | V180: 90.44724441 | W180: 90.42884169 | X180: 90.43497593 | Y180: 90.43702067 | Z180: 90.43361276 | AA180: 90.43520312 | AB180: 90.43527885 | AC180: 90.43469825 | AD180: 90.43506007 | AE180: 90.43501239 | AF180: 90.43492357 | AG180: 90.43499868 | AH180: 90.43497821 | AI180: 90.43496682 | AJ180: 90.43498124 | AK180: 90.43497542 | AL180: 90.43497449 | AM180: 90.43497705 | AN180: 90.43497566 | AO180: 90.43497573 | AP180: 90.43497615 | AQ180: 90.43497585 | AR180: 90.43497591
A181: 1600000US3117110 | B181: Fordyce village, Nebraska | C181: 92.1 | D181: 94.1 | E181: 91.8 | F181: 93.7 | G181: 88.9 | H181: 90.3 | I181: 88.8 | J181: 94.8 | K181: 83.3 | L181: 84.42622951 | M181: 85.45715847 | N181: 84.59071038 | O181: 83.7242623 | P181: 82.85781421 | Q181: 81.99136612 | R181: 81.12491803 | S181: 80.25846995 | T181: 79.39202186 | U181: 78.52557377 | V181: 77.65912568 | W181: 78.52557377 | X181: 78.23675774 | Y181: 78.14048573 | Z181: 78.30093908 | AA181: 78.22606085 | AB181: 78.22249522 | AC181: 78.24983172 | AD181: 78.23279593 | AE181: 78.23504096 | AF181: 78.23922287 | AG181: 78.23568659 | AH181: 78.23665014 | AI181: 78.23718653 | AJ181: 78.23650775 | AK181: 78.23678147 | AL181: 78.23682525 | AM181: 78.23670482 | AN181: 78.23677052 | AO181: 78.23676686 | AP181: 78.2367474 | AQ181: 78.23676159 | AR181: 78.23675862
A182: 1600000US3117145 | B182: Fort Calhoun city, Nebraska | C182: 88.7 | D182: 88.4 | E182: 90.4 | F182: 93.4 | G182: 94.6 | H182: 94 | I182: 92.9 | J182: 93.4 | K182: 94.7 | L182: 93.20113314 | M182: 95.62045326 | N182: 96.21142416 | O182: 96.80239506 | P182: 97.39336595 | Q182: 97.98433685 | R182: 98.57530775 | S182: 99.16627865 | T182: 99.75724955 | U182: 100 | V182: 100 | W182: 99.91908318 | X182: 99.97302773 | Y182: 99.96403697 | Z182: 99.95204929 | AA182: 99.963038 | AB182: 99.95970809 | AC182: 99.95826513 | AD182: 99.96033707 | AE182: 99.95943676 | AF182: 99.95934632 | AG182: 99.95970672 | AH182: 99.9594966 | AI182: 99.95951654 | AJ182: 99.95957329 | AK182: 99.95952881 | AL182: 99.95953955 | AM182: 99.95954721 | AN182: 99.95953852 | AO182: 99.95954176 | AP182: 99.9595425 | AQ182: 99.95954093 | AR182: 99.95954173
A183: 1600000US3117320 | B183: Foster village, Nebraska | C183: 84.4 | D183: 70 | E183: 78.8 | F183: 68.8 | G183: 73.3 | H183: 74.4 | I183: 95.1 | J183: 100 | K183: 97.4 | L183: 94.44444444 | M183: 99.27111111 | N183: 100 | O183: 100 | P183: 100 | Q183: 100 | R183: 100 | S183: 100 | T183: 100 | U183: 100 | V183: 100 | W183: 100 | X183: 100 | Y183: 100 | Z183: 100 | AA183: 100 | AB183: 100 | AC183: 100 | AD183: 100 | AE183: 100 | AF183: 100 | AG183: 100 | AH183: 100 | AI183: 100 | AJ183: 100 | AK183: 100 | AL183: 100 | AM183: 100 | AN183: 100 | AO183: 100 | AP183: 100 | AQ183: 100 | AR183: 100
A184: 1600000US3117530 | B184: Franklin city, Nebraska | C184: 88.4 | D184: 90.3 | E184: 92.4 | F184: 89.3 | G184: 90.2 | H184: 90.1 | I184: 89.5 | J184: 90.6 | K184: 91.3 | L184: 90.62119367 | M184: 90.88847747 | N184: 91.00054258 | O184: 91.11260768 | P184: 91.22467279 | Q184: 91.3367379 | R184: 91.44880301 | S184: 91.56086812 | T184: 91.67293323 | U184: 91.78499834 | V184: 91.89706345 | W184: 91.78499834 | X184: 91.82235338 | Y184: 91.83480505 | Z184: 91.81405226 | AA184: 91.8237369 | AB184: 91.82419807 | AC184: 91.82066241 | AD184: 91.82286579 | AE184: 91.82257542 | AF184: 91.82203454 | AG184: 91.82249192 | AH184: 91.82236729 | AI184: 91.82229792 | AJ184: 91.82238571 | AK184: 91.82235031 | AL184: 91.82234464 | AM184: 91.82236022 | AN184: 91.82235172 | AO184: 91.8223522 | AP184: 91.82235471 | AQ184: 91.82235288 | AR184: 91.82235326
A185: 1600000US3117670 | B185: Fremont city, Nebraska | C185: 83.1 | D185: 83.6 | E185: 82.8 | F185: 84.2 | G185: 86.3 | H185: 86.1 | I185: 85.5 | J185: 87.6 | K185: 87.4 | L185: 88.10329386 | M185: 88.78131754 | N185: 89.38331539 | O185: 89.98531324 | P185: 90.58731108 | Q185: 91.18930893 | R185: 91.79130678 | S185: 92.39330463 | T185: 92.99530247 | U185: 93.59730032 | V185: 94.19929817 | W185: 93.59730032 | X185: 93.79796627 | Y185: 93.86485492 | Z185: 93.75337384 | AA185: 93.80539834 | AB185: 93.8078757 | AC185: 93.78888262 | AD185: 93.80071889 | AE185: 93.79915907 | AF185: =(AC185+AD185+AE185)/3 -> 93.79625353 | AG185: 93.7987105 | AH185: 93.79804103 | AI185: 93.79766835 | AJ185: 93.79813996 | AK185: 93.79794978 | AL185: 93.79791936 | AM185: 93.79800303 | AN185: 93.79795739 | AO185: 93.79795993 | AP185: 93.79797345 | AQ185: 93.79796359 | AR185: 93.79796566
A186: 1600000US3117775 | B186: Friend city, Nebraska | C186: 87.1 | D186: 88.2 | E186: 87.4 | F186: 90 | G186: 90.5 | H186: 92.7 | I186: 92.9 | J186: 92 | K186: 91.6 | L186: 92.22972973 | M186: 93.92522523 | N186: 94.55472563 | O186: 95.18422604 | P186: 95.81372645 | Q186: 96.44322686 | R186: 97.07272727 | S186: 97.70222768 | T186: 98.33172809 | U186: 98.9612285 | V186: 99.59072891 | W186: =(T186+U186+V186)/3 -> 98.9612285 | X186: 99.17106197 | Y186: 99.24100646 | Z186: 99.12443231 | AA186: 99.17883358 | AB186: 99.18142412 | AC186: 99.16156334 | AD186: 99.17394035 | AE186: 99.17230927 | AF186: 99.16927098 | AG186: 99.1718402 | AH186: 99.17114015 | AI186: 99.17075044 | AJ186: 99.1712436 | AK186: 99.17104473 | AL186: 99.17101292 | AM186: 99.17110042 | AN186: 99.17105269 | AO186: 99.17105534 | AP186: 99.17106948 | AQ186: 99.17105917 | AR186: 99.17106133
A187: 1600000US3117810 | B187: Fullerton city, Nebraska | C187: 81.6 | D187: 87.2 | E187: 88.5 | F187: 87.7 | G187: 85.6 | H187: 87.4 | I187: 87.7 | J187: 86.3 | K187: 86.5 | L187: 88.72970392 | M187: 88.39188157 | N187: 88.69531996 | O187: 88.99875836 | P187: 89.30219675 | Q187: 89.60563515 | R187: 89.90907354 | S187: 90.21251194 | T187: 90.51595033 | U187: 90.81938873 | V187: 91.12282713 | W187: 90.81938873 | X187: 90.92053486 | Y187: 90.95425024 | Z187: 90.89805794 | AA187: 90.92428101 | AB187: 90.92552973 | AC187: 90.91595623 | AD187: 90.92192233 | AE187: 90.9211361 | AF187: 90.91967155 | AG187: 90.92090999 | AH187: 90.92057255 | AI187: 90.9203847 | AJ187: 90.92062241 | AK187: 90.92052655 | AL187: 90.92051122 | AM187: 90.92055339 | AN187: 90.92053039 | AO187: 90.92053167 | AP187: 90.92053848 | AQ187: 90.92053351 | AR187: 90.92053455
A188: 1600000US3117880 | B188: Funk village, Nebraska | C188: 89.2 | D188: 95.6 | E188: 95.9 | F188: 96.1 | G188: 94.4 | H188: 95.7 | I188: 90.6 | J188: 88.2 | K188: 87.2 | L188: 88.51351351 | M188: 88.18540541 | N188: 87.46614251 | O188: 86.74687961 | P188: 86.02761671 | Q188: 85.30835381 | R188: 84.58909091 | S188: 83.86982801 | T188: 83.15056511 | U188: 82.43130221 | V188: 81.71203931 | W188: 82.43130221 | X188: 82.19154791 | Y188: 82.11162981 | Z188: 82.24482664 | AA188: 82.18266812 | AB188: 82.17970819 | AC188: 82.20240099 | AD188: 82.1882591 | AE188: 82.19012276 | AF188: 82.19359428 | AG188: 82.19065871 | AH188: 82.19145859 | AI188: 82.19190386 | AJ188: 82.19134039 | AK188: 82.19156761 | AL188: 82.19160395 | AM188: 82.19150398 | AN188: 82.19155852 | AO188: 82.19155548 | AP188: 82.19153933 | AQ188: 82.19155111 | AR188: 82.19154864
A189: 1600000US3117950 | B189: Gandy village, Nebraska | C189: 100 | D189: 100 | E189: 100 | F189: 100 | G189: 100 | H189: 100 | I189: 100 | J189: 100 | K189: 100 | L189: 100 | M189: 100 | N189: 100 | O189: 100 | P189: 100 | Q189: 100 | R189: 100 | S189: 100 | T189: 100 | U189: 100 | V189: 100 | W189: 100 | X189: 100 | Y189: 100 | Z189: 100 | AA189: 100 | AB189: 100 | AC189: 100 | AD189: 100 | AE189: 100 | AF189: 100 | AG189: 100 | AH189: 100 | AI189: 100 | AJ189: 100 | AK189: 100 | AL189: 100 | AM189: 100 | AN189: 100 | AO189: 100 | AP189: 100 | AQ189: 100 | AR189: 100
A190: 1600000US3118230 | B190: Garland village, Nebraska | C190: 92.7 | D190: 96.5 | E190: 98 | F190: 93.6 | G190: 94.5 | H190: 92.8 | I190: 92.5 | J190: 90.8 | K190: 92.2 | L190: 87.43455497 | M190: 89.15382199 | N190: 88.43570681 | O190: 87.71759162 | P190: 86.99947644 | Q190: 86.28136126 | R190: 85.56324607 | S190: 84.84513089 | T190: 84.12701571 | U190: 83.40890052 | V190: 82.69078534 | W190: 83.40890052 | X190: 83.1695288 | Y190: 83.08973822 | Z190: 83.22272251 | AA190: 83.16066318 | AB190: 83.15770797 | AC190: 83.18036455 | AD190: 83.16624523 | AE190: 83.16810592 | AF190: 83.1715719 | AG190: 83.16864102 | AH190: 83.16943961 | AI190: 83.16988418 | AJ190: 83.1693216 | AK190: 83.16954846 | AL190: 83.16958475 | AM190: 83.16948494 | AN190: 83.16953938 | AO190: 83.16953636 | AP190: 83.16952023 | AQ190: 83.16953199 | AR190: 83.16952952
A191: 1600000US3118300 | B191: Garrison village, Nebraska | C191: 87.5 | D191: 82.8 | E191: 85.7 | F191: 80 | G191: 70 | H191: 80 | I191: 81.8 | J191: 85.3 | K191: 84.8 | L191: 87.87878788 | M191: 83.60484848 | N191: 83.79157025 | O191: 83.97829201 | P191: 84.16501377 | Q191: 84.35173554 | R191: 84.5384573 | S191: 84.72517906 | T191: 84.91190083 | U191: 85.09862259 | V191: 85.28534435 | W191: 85.09862259 | X191: 85.16086318 | Y191: 85.18161004 | Z191: 85.14703194 | AA191: 85.16316838 | AB191: 85.16393679 | AC191: 85.1580457 | AD191: 85.16171696 | AE191: 85.16123315 | AF191: 85.16033194 | AG191: 85.16109401 | AH191: 85.16088637 | AI191: 85.16077077 | AJ191: 85.16091705 | AK191: 85.16085806 | AL191: 85.16084863 | AM191: 85.16087458 | AN191: 85.16086042 | AO191: 85.16086121 | AP191: 85.16086541 | AQ191: 85.16086235 | AR191: 85.16086299
A192: 1600000US3118405 | B192: Geneva city, Nebraska | C192: 90.7 | D192: 92.4 | E192: 93.9 | F192: 93 | G192: 93.1 | H192: 93.1 | I192: 90.4 | J192: 89.7 | K192: 88.7 | L192: 90.29066172 | M192: 89.58293135 | N192: 89.22908866 | O192: 88.87524597 | P192: 88.52140327 | Q192: 88.16756058 | R192: 87.81371788 | S192: 87.45987519 | T192: 87.1060325 | U192: 86.7521898 | V192: 86.39834711 | W192: 86.7521898 | X192: 86.63424224 | Y192: 86.59492638 | Z192: 86.66045281 | AA192: 86.62987381 | AB192: 86.62841767 | AC192: 86.63958143 | AD192: 86.6326243 | AE192: 86.63354113 | AF192: 86.63524895 | AG192: 86.63380479 | AH192: 86.63419829 | AI192: 86.63441735 | AJ192: 86.63414014 | AK192: 86.63425193 | AL192: 86.63426981 | AM192: 86.63422063 | AN192: 86.63424745 | AO192: 86.63424596 | AP192: 86.63423801 | AQ192: 86.63424381 | AR192: 86.6342426
A193: 1600000US3118475 | B193: Genoa city, Nebraska | C193: 92.3 | D193: 94.7 | E193: 92.2 | F193: 90.7 | G193: 89.7 | H193: 88 | I193: 89.3 | J193: 91.9 | K193: 92.5 | L193: 94.35096154 | M193: 91.42038462 | N193: 91.39407343 | O193: 91.36776224 | P193: 91.34145105 | Q193: 91.31513986 | R193: 91.28882867 | S193: 91.26251748 | T193: 91.23620629 | U193: 91.2098951 | V193: 91.18358392 | W193: 91.2098951 | X193: 91.20112471 | Y193: 91.19820124 | Z193: 91.20307369 | AA193: 91.20079988 | AB193: 91.2006916 | AC193: 91.20152172 | AD193: 91.2010044 | AE193: 91.20107258 | AF193: 91.20119957 | AG193: 91.20109218 | AH193: 91.20112144 | AI193: 91.20113773 | AJ193: 91.20111712 | AK193: 91.20112543 | AL193: 91.20112676 | AM193: 91.2011231 | AN193: 91.2011251 | AO193: 91.20112499 | AP193: 91.20112439 | AQ193: 91.20112483 | AR193: 91.20112474
A194: 1600000US3118580 | B194: Gering city, Nebraska | C194: 91.8 | D194: 92.6 | E194: 92.1 | F194: 92.6 | G194: 91.9 | H194: 93 | I194: 92.9 | J194: 91.1 | K194: 90.2 | L194: 91.43975216 | M194: 91.19590086 | N194: 91.05625098 | O194: 90.9166011 | P194: 90.77695122 | Q194: 90.63730134 | R194: 90.49765145 | S194: 90.35800157 | T194: 90.21835169 | U194: 90.07870181 | V194: 89.93905192 | W194: 90.07870181 | X194: 90.03215185 | Y194: 90.01663519 | Z194: 90.04249628 | AA194: 90.03042777 | AB194: 90.02985308 | AC194: 90.03425905 | AD194: 90.0315133 | AE194: 90.03187514 | AF194: 90.03254916 | AG194: 90.0319792 | AH194: 90.0321345 | AI194: 90.03222096 | AJ194: 90.03211155 | AK194: 90.03215567 | AL194: 90.03216273 | AM194: 90.03214332 | AN194: 90.03215391 | AO194: 90.03215332 | AP194: 90.03215018 | AQ194: 90.03215247 | AR194: 90.03215199
A195: 1600000US3118615 | B195: Gibbon city, Nebraska | C195: 81 | D195: 82.1 | E195: 79.8 | F195: 73.3 | G195: 72 | H195: 72.8 | I195: 74.2 | J195: 75 | K195: 74.8 | L195: 75.96086653 | M195: 72.19767994 | N195: 71.48887872 | O195: 70.7800775 | P195: 70.07127628 | Q195: 69.36247507 | R195: 68.65367385 | S195: 67.94487263 | T195: 67.23607141 | U195: 66.52727019 | V195: 65.81846897 | W195: 66.52727019 | X195: 66.29100311 | Y195: 66.21224742 | Z195: 66.34350691 | AA195: 66.28225248 | AB195: 66.2793356 | AC195: 66.30169833 | AD195: 66.28776214 | AE195: 66.28959869 | AF195: 66.29301972 | AG195: 66.29012685 | AH195: 66.29091509 | AI195: 66.29135389 | AJ195: 66.29079861 | AK195: 66.29102253 | AL195: 66.29105834 | AM195: 66.29095982 | AN195: 66.29101356 | AO195: 66.29101058 | AP195: 66.29099465 | AQ195: 66.29100626 | AR195: 66.29100383
A196: 1600000US3118720 | B196: Gilead village, Nebraska | C196: 100 | D196: 90.9 | E196: 92.3 | F196: 60 | G196: 66.7 | H196: 70.8 | I196: 75.9 | J196: 80 | K196: 92.6 | L196: 97.36842105 | M196: 81.94070175 | N196: 81.81049442 | O196: 81.68028708 | P196: 81.55007974 | Q196: 81.41987241 | R196: 81.28966507 | S196: 81.15945774 | T196: 81.0292504 | U196: 80.89904306 | V196: 80.76883573 | W196: 80.89904306 | X196: 80.85564062 | Y196: 80.84117313 | Z196: 80.8652856 | AA196: 80.85403312 | AB196: 80.85349729 | AC196: 80.85760534 | AD196: 80.85504525 | AE196: 80.85538262 | AF196: 80.85601107 | AG196: 80.85547965 | AH196: 80.85562445 | AI196: 80.85570505 | AJ196: 80.85560305 | AK196: 80.85564418 | AL196: 80.85565076 | AM196: 80.85563266 | AN196: 80.85564254 | AO196: 80.85564199 | AP196: 80.85563906 | AQ196: 80.8556412 | AR196: 80.85564075
A197: 1600000US3118825 | B197: Giltner village, Nebraska | C197: 95.3 | D197: 96.9 | E197: 95 | F197: 95.1 | G197: 94.8 | H197: 93.8 | I197: 92.2 | J197: 90.3 | K197: 90.5 | L197: 91.51785714 | M197: 89.80714286 | N197: 89.12811688 | O197: 88.44909091 | P197: 87.77006494 | Q197: 87.09103896 | R197: 86.41201299 | S197: 85.73298701 | T197: 85.05396104 | U197: 84.37493506 | V197: 83.69590909 | W197: 84.37493506 | X197: 84.14859307 | Y197: 84.07314574 | Z197: 84.19889129 | AA197: 84.14021004 | AB197: 84.13741569 | AC197: 84.15883901 | AD197: 84.14548825 | AE197: 84.14724765 | AF197: 84.15052497 | AG197: 84.14775362 | AH197: 84.14850874 | AI197: 84.14892911 | AJ197: 84.14839716 | AK197: 84.14861167 | AL197: 84.14864598 | AM197: 84.1485516 | AN197: 84.14860308 | AO197: 84.14860022 | AP197: 84.14858497 | AQ197: 84.14859609 | AR197: 84.14859376
A198: 1600000US3119070 | B198: Glenvil village, Nebraska | C198: 91.2 | D198: 92.2 | E198: 92.1 | F198: 93.7 | G198: 95 | H198: 93.1 | I198: 93.4 | J198: 93.9 | K198: 89.1 | L198: 91.11111111 | M198: 91.93777778 | N198: 91.8389899 | O198: 91.74020202 | P198: 91.64141414 | Q198: 91.54262626 | R198: 91.44383838 | S198: 91.34505051 | T198: 91.24626263 | U198: 91.14747475 | V198: 91.04868687 | W198: 91.14747475 | X198: 91.11454545 | Y198: 91.10356902 | Z198: 91.12186308 | AA198: 91.11332585 | AB198: 91.11291932 | AC198: 91.11603608 | AD198: 91.11409375 | AE198: 91.11434972 | AF198: 91.11482652 | AG198: 91.11442333 | AH198: 91.11453319 | AI198: 91.11459434 | AJ198: 91.11451695 | AK198: 91.11454816 | AL198: 91.11455315 | AM198: 91.11453942 | AN198: 91.11454691 | AO198: 91.11454649 | AP198: 91.11454428 | AQ198: 91.11454589 | AR198: 91.11454555
A199: 1600000US3119245 | B199: Goehner village, Nebraska | C199: 91.5 | D199: 98.2 | E199: 90.8 | F199: 91.3 | G199: 91.7 | H199: 91.5 | I199: 92 | J199: 98.8 | K199: 98.9 | L199: 97.82608696 | M199: 97.71043478 | N199: 98.33913043 | O199: 98.96782609 | P199: 99.59652174 | Q199: 100 | R199: 100 | S199: 100 | T199: 100 | U199: 100 | V199: 100 | W199: 100 | X199: 100 | Y199: 100 | Z199: 100 | AA199: 100 | AB199: 100 | AC199: 100 | AD199: 100 | AE199: 100 | AF199: 100 | AG199: 100 | AH199: 100 | AI199: 100 | AJ199: 100 | AK199: 100 | AL199: 100 | AM199: 100 | AN199: 100 | AO199: 100 | AP199: 100 | AQ199: 100 | AR199: 100
A200: 1600000US3119350 | B200: Gordon city, Nebraska | C200: 84.4 | D200: 83.4 | E200: 84.4 | F200: 84.3 | G200: 84.6 | H200: 86.4 | I200: 89 | J200: 90.4 | K200: 89.9 | L200: 86.32478632 | M200: 89.9365812 | N200: 90.59550894 | O200: 91.25443667 | P200: 91.91336441 | Q200: 92.57229215 | R200: 93.23121989 | S200: 93.89014763 | T200: 94.54907537 | U200: 95.20800311 | V200: 95.86693085 | W200: 95.20800311 | X200: 95.42764569 | Y200: 95.50085988 | Z200: 95.37883623 | AA200: 95.4357806 | AB200: 95.43849223 | AC200: 95.41770302 | AD200: 95.43065862 | AE200: 95.42895129 | AF200: 95.42577098 | AG200: 95.42846029 | AH200: 95.42772752 | AI200: 95.4273196 | AJ200: 95.4278358 | AK200: 95.42762764 | AL200: 95.42759435 | AM200: 95.42768593 | AN200: 95.42763597 | AO200: 95.42763875 | AP200: 95.42765355 | AQ200: 95.42764276 | AR200: 95.42764502
... 325 more rows

Sheet Bachelors (hidden)
A1: GEOid | B1: GEOdisplay-label | C1: 2010 | D1: 2011 | E1: 2012 | F1: 2013 | G1: 2014 | H1: 2015 | I1: 2016 | J1: 2017 | K1: 2018 | L1: 2019 | M1: 2020 | N1: 2021 | O1: 2022 | P1: 2023 | Q1: 2024 | R1: 2025 | S1: 2026 | T1: 2027 | U1: 2028 | V1: 2029 | W1: 2030 | X1: 2031 | Y1: 2032 | Z1: 2033 | AA1: 2034 | AB1: 2035 | AC1: 2036 | AD1: 2037 | AE1: 2038 | AF1: 2039 | AG1: 2040 | AH1: 2041 | AI1: 2042 | AJ1: 2043 | AK1: 2044 | AL1: 2045 | AM1: 2046 | AN1: 2047 | AO1: 2048 | AP1: 2049 | AQ1: 2050 | AR1: 2051
A2: 1600000US3100205 | B2: Abie village, Nebraska | C2: 19.6 | D2: 18.6 | E2: 7.5 | F2: 16.7 | G2: 15.8 | H2: 9.2 | I2: 7.6 | J2: 6.2 | K2: 5.8 | L2: 6.52173913 | M2: 6.173913043 | N2: 6.165217391 | O2: 6.286956522 | P2: 6.208695652 | Q2: 6.220289855 | R2: 6.238647343 | S2: 6.222544283 | T2: 6.227160494 | U2: 6.229450707 | V2: 6.226385161 | W2: 6.227665454 | X2: 6.227833774 | Y2: 6.227294796 | Z2: 6.227598008 | AA2: 6.227575526 | AB2: 6.227489444 | AC2: 6.227554326 | AD2: 6.227539765 | AE2: 6.227527845 | AF2: 6.227540645 | AG2: 6.227536085 | AH2: 6.227534859 | AI2: 6.227537196 | AJ2: 6.227536047 | AK2: 6.227536034 | AL2: 6.227536426 | AM2: 6.227536169 | AN2: 6.227536209 | AO2: 6.227536268 | AP2: 6.227536215 | AQ2: 6.227536231 | AR2: 6.227536238
A3: 1600000US3100240 | B3: Adams village, Nebraska | C3: 16.9 | D3: 19.6 | E3: 18.5 | F3: 18.1 | G3: 20.5 | H3: 22.1 | I3: 25.2 | J3: 25.6 | K3: 20 | L3: 23.48484848 | M3: 23.02828283 | N3: 22.17104377 | O3: 22.89472503 | P3: 22.69801721 | Q3: 22.58792867 | R3: 22.7268903 | S3: 22.67094539 | T3: 22.66192146 | U3: 22.68658572 | V3: 22.67315086 | W3: 22.67388601 | X3: 22.67787419 | Y3: 22.67497035 | Z3: 22.67557685 | AA3: 22.67614047 | AB3: 22.67556256 | AC3: 22.67575996 | AD3: 22.67582099 | AE3: 22.6757145 | AF3: 22.67576515 | AG3: 22.67576688 | AH3: 22.67574885 | AI3: 22.67576029 | AJ3: 22.67575867 | AK3: 22.67575594 | AL3: 22.6757583 | AM3: 22.67575764 | AN3: 22.67575729 | AO3: 22.67575774 | AP3: 22.67575756 | AQ3: 22.67575753 | AR3: 22.67575761
A4: 1600000US3100415 | B4: Ainsworth city, Nebraska | C4: 14.5 | D4: 15.1 | E4: 18.1 | F4: 20.1 | G4: 18 | H4: 14.9 | I4: 18.3 | J4: 17.1 | K4: 20.1 | L4: 22.37918216 | M4: 19.85972739 | N4: 20.77963651 | O4: 21.00618202 | P4: 20.54851531 | Q4: 20.77811128 | R4: 20.77760287 | S4: 20.70140982 | T4: 20.75237466 | U4: 20.74379578 | V4: 20.73252675 | W4: 20.74289906 | X4: 20.73974053 | Y4: 20.73838878 | Z4: 20.74034279 | AA4: 20.7394907 | AB4: 20.73940742 | AC4: 20.73974697 | AD4: 20.73954837 | AE4: 20.73956759 | AF4: 20.73962098 | AG4: 20.73957898 | AH4: 20.73958918 | AI4: 20.73959638 | AJ4: 20.73958818 | AK4: 20.73959125 | AL4: 20.73959193 | AM4: 20.73959045 | AN4: 20.73959121 | AO4: 20.7395912 | AP4: 20.73959095 | AQ4: 20.73959112 | AR4: 20.73959109
A5: 1600000US3100555 | B5: Albion city, Nebraska | C5: 12.4 | D5: 12.9 | E5: 13.9 | F5: 13.9 | G5: 15.7 | H5: 16.7 | I5: 17.9 | J5: 17.7 | K5: 17.8 | L5: 21.11587983 | M5: 18.87195994 | N5: 19.26261326 | O5: 19.75015101 | P5: 19.29490807 | Q5: 19.43589078 | R5: 19.49364995 | S5: 19.4081496 | T5: 19.44589678 | U5: 19.44923211 | V5: 19.43442616 | W5: 19.44318502 | X5: 19.4422811 | Y5: 19.43996409 | Z5: 19.44181007 | AA5: 19.44135175 | AB5: 19.44104197 | AC5: 19.44140126 | AD5: 19.441265 | AE5: 19.44123608 | AF5: 19.44130078 | AG5: 19.44126728 | AH5: 19.44126805 | AI5: 19.4412787 | AJ5: 19.44127134 | AK5: 19.4412727 | AL5: 19.44127425 | AM5: 19.44127276 | AN5: 19.44127324 | AO5: 19.44127342 | AP5: 19.44127314 | AQ5: 19.44127326 | AR5: 19.44127327
A6: 1600000US3100625 | B6: Alda village, Nebraska | C6: 14.9 | D6: 13.7 | E6: 11.8 | F6: 9.4 | G6: 8.8 | H6: 8.3 | I6: 7.4 | J6: 7.1 | K6: 5.8 | L6: 5.496828753 | M6: 6.132276251 | N6: 5.809701668 | O6: 5.812935557 | P6: 5.918304492 | Q6: 5.846980572 | R6: 5.859406874 | S6: 5.874897313 | T6: 5.860428253 | U6: 5.864910813 | V6: 5.86674546 | W6: 5.864028175 | X6: 5.865228149 | Y6: 5.865333928 | Z6: 5.864863418 | AA6: 5.865141832 | AB6: 5.865113059 | AC6: 5.865039436 | AD6: 5.865098109 | AE6: 5.865083535 | AF6: 5.865073693 | AG6: 5.865085112 | AH6: 5.86508078 | AI6: 5.865079862 | AJ6: 5.865081918 | AK6: 5.865080853 | AL6: 5.865080878 | AM6: 5.865081216 | AN6: 5.865080982 | AO6: 5.865081026 | AP6: 5.865081075 | AQ6: 5.865081028 | AR6: 5.865081043
A7: 1600000US3100730 | B7: Alexandria village, Nebraska | C7: 11.3 | D7: 15.3 | E7: 16.5 | F7: 14.3 | G7: 14.9 | H7: 13 | I7: 16.9 | J7: 14 | K7: 15.8 | L7: 15.78947368 | M7: 15.19649123 | N7: 15.59532164 | O7: 15.52709552 | P7: 15.43963613 | Q7: 15.52068443 | R7: 15.49580536 | S7: 15.4853753 | T7: 15.5006217 | U7: 15.49393412 | V7: 15.49331037 | W7: 15.4959554 | X7: 15.49439996 | Y7: 15.49455524 | Z7: 15.4949702 | AA7: 15.4946418 | AB7: 15.49472242 | AC7: 15.49477814 | AD7: 15.49471412 | AE7: 15.49473822 | AF7: 15.49474349 | AG7: 15.49473195 | AH7: 15.49473789 | AI7: 15.49473778 | AJ7: 15.49473587 | AK7: 15.49473718 | AL7: 15.49473694 | AM7: 15.49473666 | AN7: 15.49473693 | AO7: 15.49473684 | AP7: 15.49473681 | AQ7: 15.49473686 | AR7: 15.49473684
A8: 1600000US3100870 | B8: Allen village, Nebraska | C8: 10.6 | D8: 12.3 | E8: 14.9 | F8: 15 | G8: 12.4 | H8: 18.1 | I8: 15.9 | J8: 14.2 | K8: 16 | L8: 19.78021978 | M8: 16.66007326 | N8: 17.48009768 | O8: 17.97346357 | P8: 17.3712115 | Q8: 17.60825759 | R8: 17.65097755 | S8: 17.54348222 | T8: 17.60090579 | U8: 17.59845519 | V8: 17.58094773 | W8: 17.59343623 | X8: 17.59094638 | Y8: 17.58844345 | Z8: 17.59094202 | AA8: 17.59011062 | AB8: 17.58983203 | AC8: 17.59029489 | AD8: 17.59007918 | AE8: 17.5900687 | AF8: 17.59014759 | AG8: 17.59009849 | AH8: 17.59010493 | AI8: 17.590117 | AJ8: 17.5901068 | AK8: 17.59010958 | AL8: 17.59011113 | AM8: 17.59010917 | AN8: 17.59010996 | AO8: 17.59011009 | AP8: 17.59010974 | AQ8: 17.59010993 | AR8: 17.59010992
A9: 1600000US3100905 | B9: Alliance city, Nebraska | C9: 20.2 | D9: 20.5 | E9: 17.2 | F9: 17.9 | G9: 15.4 | H9: 15.3 | I9: 15.1 | J9: 16.3 | K9: 17.2 | L9: 15.22825725 | M9: 16.24275242 | N9: 16.22366989 | O9: 15.89822652 | P9: 16.12154961 | Q9: 16.08114867 | R9: 16.0336416 | S9: 16.07877996 | T9: 16.06452341 | U9: 16.05898166 | V9: 16.06742834 | W9: 16.06364447 | X9: 16.06335149 | Y9: 16.0648081 | Z9: 16.06393469 | AA9: 16.06403142 | AB9: 16.06425807 | AC9: 16.06407473 | AD9: 16.06412141 | AE9: 16.0641514 | AF9: 16.06411584 | AG9: 16.06412955 | AH9: 16.06413227 | AI9: 16.06412589 | AJ9: 16.06412923 | AK9: 16.06412913 | AL9: 16.06412808 | AM9: 16.06412882 | AN9: 16.06412868 | AO9: 16.06412853 | AP9: 16.06412867 | AQ9: 16.06412862 | AR9: 16.06412861
A10: 1600000US3100975 | B10: Alma city, Nebraska | C10: 21.9 | D10: 19.8 | E10: 20.5 | F10: 19.2 | G10: 17.9 | H10: 16.6 | I10: 18 | J10: 19 | K10: 25.1 | L10: 25.19011407 | M10: 23.09670469 | N10: 24.46227292 | O10: 24.24969723 | P10: 23.93622494 | Q10: 24.21606503 | R10: 24.13399573 | S10: 24.09542857 | T10: 24.14849644 | U10: 24.12597358 | V10: 24.12329953 | W10: 24.13258985 | X10: 24.12728766 | Y10: 24.12772568 | Z10: 24.12920106 | AA10: 24.12807147 | AB10: 24.12833274 | AC10: 24.12853509 | AD10: 24.1283131 | AE10: 24.12839364 | AF10: 24.12841394 | AG10: 24.12837356 | AH10: 24.12839371 | AI10: 24.12839374 | AJ10: 24.128387 | AK10: 24.12839149 | AL10: 24.12839074 | AM10: 24.12838974 | AN10: 24.12839066 | AO10: 24.12839038 | AP10: 24.12839026 | AQ10: 24.12839043 | AR10: 24.12839036
A11: 1600000US3101150 | B11: Alvo village, Nebraska | C11: 17 | D11: 15.2 | E11: 14.8 | F11: 12.7 | G11: 14.1 | H11: 17.8 | I11: 14.7 | J11: 17 | K11: 16.9 | L11: 16.27906977 | M11: 16.72635659 | N11: 16.63514212 | O11: 16.54685616 | P11: 16.63611829 | Q11: 16.60603886 | R11: 16.59633777 | S11: 16.61283164 | T11: 16.60506942 | U11: 16.60474627 | V11: 16.60754911 | W11: 16.60578827 | X11: 16.60602788 | Y11: 16.60645509 | Z11: 16.60609041 | AA11: 16.60619113 | AB11: 16.60624554 | AC11: 16.6061757 | AD11: 16.60620412 | AE11: 16.60620845 | AF11: 16.60619609 | AG11: 16.60620289 | AH11: 16.60620248 | AI11: 16.60620049 | AJ11: 16.60620195 | AK11: 16.60620164 | AL11: 16.60620136 | AM11: 16.60620165 | AN11: 16.60620155 | AO11: 16.60620152 | AP11: 16.60620157 | AQ11: 16.60620155 | AR11: 16.60620155
A12: 1600000US3101290 | B12: Amherst village, Nebraska | C12: 19.3 | D12: 19.9 | E12: 22.5 | F12: 25.5 | G12: 25.3 | H12: 26.3 | I12: 32.9 | J12: 31.4 | K12: 26.6 | L12: 35.29411765 | M12: 31.09803922 | N12: 30.99738562 | O12: 32.46318083 | P12: 31.51953522 | Q12: 31.66003389 | R12: 31.88091665 | S12: 31.68682859 | T12: 31.74259304 | U12: 31.77011276 | V12: 31.73317813 | W12: 31.74862798 | X12: 31.75063962 | Y12: 31.74414857 | Z12: 31.74780539 | AA12: 31.7475312 | AB12: 31.74649505 | AC12: 31.74727721 | AD12: 31.74710115 | AE12: 31.74695781 | AF12: 31.74711206 | AG12: 31.74705701 | AH12: 31.74704229 | AI12: 31.74707045 | AJ12: 31.74705658 | AK12: 31.74705644 | AL12: 31.74706116 | AM12: 31.74705806 | AN12: 31.74705855 | AO12: 31.74705926 | AP12: 31.74705862 | AQ12: 31.74705881 | AR12: 31.7470589
A13: 1600000US3101500 | B13: Anselmo village, Nebraska | C13: 10.2 | D13: 16.7 | E13: 8.9 | F13: 7.3 | G13: 8.7 | H13: 7 | I13: 9.1 | J13: 9.6 | K13: 11.4 | L13: 12.32876712 | M13: 11.10958904 | N13: 11.61278539 | O13: 11.68371385 | P13: 11.46869609 | Q13: 11.58839844 | R13: 11.58026946 | S13: 11.545788 | T13: 11.5714853 | U13: 11.56584759 | V13: 11.5610403 | W13: 11.5661244 | X13: 11.56433743 | Y13: 11.56383404 | Z13: 11.56476529 | AA13: 11.56431225 | AB13: 11.56430386 | AC13: 11.56446047 | AD13: 11.56435886 | AE13: 11.5643744 | AF13: 11.56439791 | AG13: 11.56437705 | AH13: 11.56438312 | AI13: 11.56438603 | AJ13: 11.56438207 | AK13: 11.56438374 | AL13: 11.56438394 | AM13: 11.56438325 | AN13: 11.56438364 | AO13: 11.56438361 | AP13: 11.5643835 | AQ13: 11.56438359 | AR13: 11.56438357
A14: 1600000US3101535 | B14: Ansley village, Nebraska | C14: 18.9 | D14: 19.2 | E14: 19.9 | F14: 20.7 | G14: 20.3 | H14: 17.6 | I14: 16.2 | J14: 14.6 | K14: 19 | L14: 20.16806723 | M14: 17.92268908 | N14: 19.0302521 | O14: 19.04033613 | P14: 18.66442577 | Q14: 18.91167134 | R14: 18.87214441 | S14: 18.81608051 | T14: 18.86663208 | U14: 18.851619 | V14: 18.8447772 | W14: 18.85434276 | X14: 18.85024632 | Y14: 18.84978876 | Z14: 18.85145928 | AA14: 18.85049812 | AB14: 18.85058205 | AC14: 18.85084648 | AD14: 18.85064222 | AE14: 18.85069025 | AF14: 18.85072632 | AG14: 18.85068626 | AH14: 18.85070094 | AI14: 18.85070451 | AJ14: 18.85069724 | AK14: 18.8507009 | AL14: 18.85070088 | AM14: 18.85069967 | AN14: 18.85070048 | AO14: 18.85070035 | AP14: 18.85070017 | AQ14: 18.85070033 | AR14: 18.85070028
A15: 1600000US3101780 | B15: Arapahoe city, Nebraska | C15: 14 | D15: 16.6 | E15: 11.6 | F15: 11.1 | G15: 12.1 | H15: 12.4 | I15: 9.9 | J15: 10.5 | K15: 12.4 | L15: 11.91011236 | M15: 11.60337079 | N15: 11.97116105 | O15: 11.82821473 | P15: 11.80091552 | Q15: 11.86676377 | R15: 11.83196467 | S15: 11.83321465 | T15: 11.84398103 | U15: 11.83638679 | V15: 11.83786082 | W15: 11.83940955 | X15: 11.83788572 | Y15: 11.83838536 | Z15: 11.83856021 | AA15: 11.8382771 | AB15: 11.83840756 | AC15: 11.83841496 | AD15: 11.83836654 | AE15: 11.83839635 | AF15: 11.83839261 | AG15: 11.83838517 | AH15: 11.83839138 | AI15: 11.83838972 | AJ15: 11.83838875 | AK15: 11.83838995 | AL15: 11.83838947 | AM15: 11.83838939 | AN15: 11.83838961 | AO15: 11.83838949 | AP15: 11.8383895 | AQ15: 11.83838953 | AR15: 11.83838951
A16: 1600000US3101850 | B16: Arcadia village, Nebraska | C16: 15.9 | D16: 19.2 | E16: 18.4 | F16: 16.5 | G16: 20 | H16: 21.6 | I16: 28.9 | J16: 25.6 | K16: 24.8 | L16: 25.83732057 | M16: 25.41244019 | N16: 25.34992026 | O16: 25.53322701 | P16: 25.43186248 | Q16: 25.43833658 | R16: 25.46780869 | S16: 25.44600259 | T16: 25.45071595 | U16: 25.45484241 | V16: 25.45052032 | W16: 25.45202623 | X16: 25.45246298 | Y16: 25.45166984 | Z16: 25.45205302 | AA16: 25.45206195 | AB16: 25.45192827 | AC16: 25.45201441 | AD16: 25.45200154 | AE16: 25.45198141 | AF16: 25.45199912 | AG16: 25.45199402 | AH16: 25.45199152 | AI16: 25.45199489 | AJ16: 25.45199348 | AK16: 25.45199329 | AL16: 25.45199389 | AM16: 25.45199355 | AN16: 25.45199358 | AO16: 25.45199367 | AP16: 25.4519936 | AQ16: 25.45199362 | AR16: 25.45199363
A17: 1600000US3101990 | B17: Arlington village, Nebraska | C17: 24.2 | D17: 23.6 | E17: 25.1 | F17: 28.5 | G17: 26.4 | H17: 24.7 | I17: 29.2 | J17: 28 | K17: 27 | L17: 29.18410042 | M17: 28.06136681 | N17: 28.08182241 | O17: 28.44242988 | P17: 28.19520636 | Q17: 28.23981955 | R17: 28.29248526 | S17: 28.24250373 | T17: 28.25826951 | U17: 28.2644195 | V17: 28.25506425 | W17: 28.25925109 | X17: 28.25957828 | Y17: 28.25796454 | Z17: 28.2589313 | AA17: 28.25882471 | AB17: 28.25857351 | AC17: 28.25877651 | AD17: 28.25872491 | AE17: 28.25869164 | AF17: 28.25873102 | AG17: 28.25871586 | AH17: 28.25871284 | AI17: 28.25871991 | AJ17: 28.2587162 | AK17: 28.25871632 | AL17: 28.25871747 | AM17: 28.25871666 | AN17: 28.25871682 | AO17: 28.25871699 | AP17: 28.25871682 | AQ17: 28.25871688 | AR17: 28.25871689
A18: 1600000US3102095 | B18: Arnold village, Nebraska | C18: 19.4 | D18: 23.6 | E18: 23.6 | F18: 19.4 | G18: 17.5 | H18: 19.6 | I18: 23.1 | J18: 22.9 | K18: 26.9 | L18: 30.43478261 | M18: 26.74492754 | N18: 28.02657005 | O18: 28.4020934 | P18: 27.72453033 | Q18: 28.05106459 | R18: 28.05922944 | S18: 27.94494145 | T18: 28.01841183 | U18: 28.00752757 | V18: 27.99029362 | W18: 28.00541101 | X18: 28.0010774 | Y18: 27.99892734 | Z18: 28.00180525 | AA18: 28.00060333 | AB18: 28.00044531 | AC18: 28.00095129 | AD18: 28.00066664 | AE18: 28.00068775 | AF18: 28.00076856 | AG18: 28.00070765 | AH18: 28.00072132 | AI18: 28.00073251 | AJ18: 28.00072049 | AK18: 28.00072478 | AL18: 28.00072593 | AM18: 28.00072373 | AN18: 28.00072481 | AO18: 28.00072482 | AP18: 28.00072446 | AQ18: 28.0007247 | AR18: 28.00072466
A19: 1600000US3102200 | B19: Arthur village, Nebraska | C19: 16.3 | D19: 20.4 | E19: 19.1 | F19: 20.4 | G19: 23.3 | H19: 24.3 | I19: 13.4 | J19: 17.6 | K19: 17.7 | L19: 15.88785047 | M19: 17.06261682 | N19: 16.8834891 | O19: 16.6113188 | P19: 16.8524749 | Q19: 16.7824276 | R19: 16.74874043 | S19: 16.79454765 | T19: 16.77523856 | U19: 16.77284221 | V19: 16.78087614 | W19: 16.77631897 | X19: 16.77667911 | Y19: 16.77795807 | Z19: 16.77698538 | AA19: 16.77720752 | AB19: 16.77738366 | AC19: 16.77719219 | AD19: 16.77726112 | AE19: 16.77727899 | AF19: 16.7772441 | AG19: 16.7772614 | AH19: 16.7772615 | AI19: 16.77725567 | AJ19: 16.77725952 | AK19: 16.7772589 | AL19: 16.77725803 | AM19: 16.77725882 | AN19: 16.77725858 | AO19: 16.77725848 | AP19: 16.77725862 | AQ19: 16.77725856 | AR19: 16.77725855
A20: 1600000US3102305 | B20: Ashland city, Nebraska | C20: 29.2 | D20: 26.8 | E20: 25.5 | F20: 26.8 | G20: 26.2 | H20: 19.9 | I20: 20.7 | J20: 20.6 | K20: 21.5 | L20: 21.28099174 | M20: 21.12699725 | N20: 21.30266299 | O20: 21.23688399 | P20: 21.22218141 | Q20: 21.25390947 | R20: 21.23765829 | S20: 21.23791639 | T20: 21.24316138 | U20: 21.23957869 | V20: 21.24021882 | W20: 21.24098629 | X20: 21.24026127 | Y20: 21.24048879 | Z20: 21.24057878 | AA20: 21.24044295 | AB20: 21.24050351 | AC20: 21.24050841 | AD20: 21.24048496 | AE20: 21.24049896 | AF20: 21.24049744 | AG20: 21.24049379 | AH20: 21.24049673 | AI20: 21.24049599 | AJ20: 21.2404955 | AK20: 21.24049607 | AL20: 21.24049585 | AM20: 21.24049581 | AN20: 21.24049591 | AO20: 21.24049586 | AP20: 21.24049586 | AQ20: 21.24049588 | AR20: 21.24049586
A21: 1600000US3102375 | B21: Ashton village, Nebraska | C21: 8.1 | D21: 4.5 | E21: 6.2 | F21: 8.6 | G21: 4.6 | H21: 3.8 | I21: 5.6 | J21: 7.1 | K21: 9.8 | L21: 8.450704225 | M21: 8.450234742 | N21: 8.900312989 | O21: 8.600417319 | P21: 8.650321683 | Q21: 8.71701733 | R21: 8.655918777 | S21: 8.674419264 | T21: 8.68245179 | U21: 8.670929944 | V21: 8.675933666 | W21: 8.676438467 | X21: 8.674434026 | Y21: 8.675602053 | Z21: 8.675491515 | AA21: 8.675175864 | AB21: 8.675423144 | AC21: 8.675363508 | AD21: 8.675320839 | AE21: 8.675369164 | AF21: 8.67535117 | AG21: 8.675347057 | AH21: 8.675355797 | AI21: 8.675351342 | AJ21: 8.675351399 | AK21: 8.675352846 | AL21: 8.675351862 | AM21: 8.675352035 | AN21: 8.675352248 | AO21: 8.675352048 | AP21: 8.675352111 | AQ21: 8.675352136 | AR21: 8.675352098
A22: 1600000US3102550 | B22: Atkinson city, Nebraska | C22: 12.5 | D22: 16 | E22: 17.2 | F22: 19 | G22: 21.4 | H22: 24.3 | I22: 26.1 | J22: 20.5 | K22: 23.1 | L22: 26.5503876 | M22: 23.38346253 | N22: 24.34461671 | O22: 24.75948895 | P22: 24.16252273 | Q22: 24.42220946 | R22: 24.44807371 | S22: 24.34426863 | T22: 24.4048506 | U22: 24.39906432 | V22: 24.38272785 | W22: 24.39554759 | X22: 24.39244659 | Y22: 24.39024068 | Z22: 24.39274495 | AA22: 24.39181074 | AB22: 24.39159879 | AC22: 24.39205149 | AD22: 24.39182034 | AE22: 24.39182354 | AF22: 24.39189846 | AG22: 24.39184745 | AH22: 24.39185648 | AI22: 24.39186746 | AJ22: 24.39185713 | AK22: 24.39186036 | AL22: 24.39186165 | AM22: 24.39185971 | AN22: 24.39186057 | AO22: 24.39186064 | AP22: 24.39186031 | AQ22: 24.39186051 | AR22: 24.39186049
A23: 1600000US3102620 | B23: Atlanta village, Nebraska | C23: 6.6 | D23: 6.9 | E23: 4.3 | F23: 1.3 | G23: 4.2 | H23: 10.8 | I23: 11 | J23: 10.3 | K23: 10.3 | L23: 7.8125 | M23: 9.470833333 | N23: 9.194444444 | O23: 8.825925926 | P23: 9.163734568 | Q23: 9.061368313 | R23: 9.017009602 | S23: 9.080704161 | T23: 9.053027359 | U23: 9.050247041 | V23: 9.061326187 | W23: 9.054866862 | X23: 9.05548003 | Y23: 9.057224359 | Z23: 9.055857084 | AA23: 9.056187158 | AB23: 9.056422867 | AC23: 9.056155703 | AD23: 9.056255242 | AE23: 9.056277937 | AF23: 9.056229628 | AG23: 9.056254269 | AH23: 9.056253945 | AI23: 9.056245947 | AJ23: 9.056251387 | AK23: 9.056250426 | AL23: 9.056249253 | AM23: 9.056250356 | AN23: 9.056250012 | AO23: 9.056249874 | AP23: 9.05625008 | AQ23: 9.056249989 | AR23: 9.056249981
A24: 1600000US3102655 | B24: Auburn city, Nebraska | C24: 20 | D24: 22.7 | E24: 23 | F24: 22.6 | G24: 25.7 | H24: 28.1 | I24: 28 | J24: 25.3 | K24: 27.2 | L24: 25.35828025 | M24: 25.95276008 | N24: 26.17034678 | O24: 25.82712904 | P24: 25.98341197 | Q24: 25.99362926 | R24: 25.93472342 | S24: 25.97058822 | T24: 25.96631363 | U24: 25.95720843 | V24: 25.96470343 | W24: 25.96274183 | X24: 25.96155123 | Y24: 25.96299883 | Z24: 25.96243063 | AA24: 25.96232689 | AB24: 25.96258545 | AC24: 25.96244766 | AD24: 25.96245333 | AE24: 25.96249548 | AF24: 25.96246549 | AG24: 25.96247143 | AH24: 25.96247747 | AI24: 25.96247146 | AJ24: 25.96247346 | AK24: 25.96247413 | AL24: 25.96247302 | AM24: 25.96247353 | AN24: 25.96247356 | AO24: 25.96247337 | AP24: 25.96247349 | AQ24: 25.96247347 | AR24: 25.96247344
A25: 1600000US3102690 | B25: Aurora city, Nebraska | C25: 22.4 | D25: 24.2 | E25: 24.3 | F25: 25.7 | G25: 25 | H25: 27.1 | I25: 28.2 | J25: 26.5 | K25: 25 | L25: 21.74947932 | M25: 24.41649311 | N25: 23.72199081 | O25: 23.29598775 | P25: 23.81149055 | Q25: 23.60982304 | R25: 23.57243378 | S25: 23.66458246 | T25: 23.61561309 | U25: 23.61754311 | V25: 23.63257955 | W25: 23.62191192 | X25: 23.62401153 | Y25: 23.62616767 | Z25: 23.62403037 | AA25: 23.62473652 | AB25: 23.62497818 | AC25: 23.62458169 | AD25: 23.62476547 | AE25: 23.62477511 | AF25: 23.62470742 | AG25: 23.62474933 | AH25: 23.62474396 | AI25: 23.62473357 | AJ25: 23.62474229 | AK25: 23.62473994 | AL25: 23.6247386 | AM25: 23.62474028 | AN25: 23.6247396 | AO25: 23.62473949 | AP25: 23.62473979 | AQ25: 23.62473963 | AR25: 23.62473964
A26: 1600000US3102795 | B26: Avoca village, Nebraska | C26: 7.7 | D26: 4.3 | E26: 8.5 | F26: 4 | G26: 6.5 | H26: 5 | I26: 4.2 | J26: 4.7 | K26: 4.6 | L26: 3.301886792 | M26: 4.200628931 | N26: 4.034171908 | O26: 3.845562544 | P26: 4.026787794 | Q26: 3.968840749 | R26: 3.947063695 | S26: 3.980897413 | T26: 3.965600619 | U26: 3.964520576 | V26: 3.970339536 | W26: 3.966820243 | X26: 3.967226785 | Y26: 3.968128855 | Z26: 3.967391961 | AA26: 3.967582534 | AB26: 3.967701116 | AC26: 3.967558537 | AD26: 3.967614062 | AE26: 3.967624572 | AF26: 3.967599057 | AG26: 3.967612564 | AH26: 3.967612064 | AI26: 3.967607895 | AJ26: 3.967610841 | AK26: 3.967610267 | AL26: 3.967609668 | AM26: 3.967610258 | AN26: 3.967610064 | AO26: 3.967609997 | AP26: 3.967610107 | AQ26: 3.967610056 | AR26: 3.967610053
A27: 1600000US3102830 | B27: Axtell village, Nebraska | C27: 22.5 | D27: 23.3 | E27: 25.8 | F27: 23.9 | G27: 23.4 | H27: 23.2 | I27: 23 | J27: 20.6 | K27: 25.7 | L27: 27.93103448 | M27: 24.74367816 | N27: 26.12490421 | O27: 26.26653895 | P27: 25.71170711 | Q27: 26.03438343 | R27: 26.00420983 | S27: 25.91676679 | T27: 25.98512001 | U27: 25.96869888 | V27: 25.95686189 | W27: 25.97022693 | X27: 25.96526257 | Y27: 25.96411713 | Z27: 25.96653554 | AA27: 25.96530508 | AB27: 25.96531925 | AC27: 25.96571996 | AD27: 25.9654481 | AE27: 25.96549577 | AF27: 25.96555461 | AG27: 25.96549949 | AH27: 25.96551662 | AI27: 25.96552357 | AJ27: 25.96551323 | AK27: 25.96551781 | AL27: 25.9655182 | AM27: 25.96551641 | AN27: 25.96551747 | AO27: 25.96551736 | AP27: 25.96551708 | AQ27: 25.96551731 | AR27: 25.96551725
A28: 1600000US3102865 | B28: Ayr village, Nebraska | C28: 26 | D28: 25 | E28: 29.5 | F28: 24.7 | G28: 33.3 | H28: 2.2 | I28: 11.1 | J28: 7 | K28: 31.6 | L28: 41.50943396 | M28: 26.70314465 | N28: 33.27085954 | O28: 33.82781272 | P28: 31.2672723 | Q28: 32.78864819 | R28: 32.62791107 | S28: 32.22794385 | T28: 32.5481677 | U28: 32.46800754 | V28: 32.41470637 | W28: 32.47696054 | X28: 32.45322482 | Y28: 32.44829724 | Z28: 32.4594942 | AA28: 32.45367208 | AB28: 32.45382117 | AC28: 32.45566249 | AD28: 32.45438525 | AE28: 32.45462297 | AF28: 32.45489023 | AG28: 32.45463282 | AH28: 32.45471534 | AI28: 32.45474613 | AJ28: 32.4546981 | AK28: 32.45471986 | AL28: 32.45472136 | AM28: 32.4547131 | AN28: 32.45471811 | AO28: 32.45471752 | AP28: 32.45471624 | AQ28: 32.45471729 | AR28: 32.45471702
A29: 1600000US3103005 | B29: Bancroft village, Nebraska | C29: 10.9 | D29: 9.1 | E29: 12.5 | F29: 15.1 | G29: 15.1 | H29: 19 | I29: 17.1 | J29: 14.2 | K29: 19.7 | L29: 17.13483146 | M29: 17.01161049 | N29: 17.94881398 | O29: 17.36508531 | P29: 17.44183659 | Q29: 17.5852453 | R29: 17.46405573 | S29: 17.49704587 | T29: 17.51544897 | U29: 17.49218352 | V29: 17.50155946 | W29: 17.50306398 | X29: 17.49893565 | Y29: 17.50118636 | Z29: 17.501062 | AA29: 17.50039467 | AB29: 17.50088101 | AC29: 17.50077923 | AD29: 17.50068497 | AE29: 17.50078174 | AF29: 17.50074865 | AG29: 17.50073845 | AH29: 17.50075628 | AI29: 17.50074779 | AJ29: 17.50074751 | AK29: 17.50075053 | AL29: 17.50074861 | AM29: 17.50074888 | AN29: 17.50074934 | AO29: 17.50074894 | AP29: 17.50074905 | AQ29: 17.50074911 | AR29: 17.50074904
A30: 1600000US3103040 | B30: Barada village, Nebraska | C30: 28.1 | D30: 20 | E30: 0 | F30: 0 | G30: 0 | H30: 0 | I30: 0 | J30: 0 | K30: 8.3 | L30: 3.703703704 | M30: 4.001234568 | N30: 5.334979424 | O30: 4.346639232 | P30: 4.560951075 | Q30: 4.747523243 | R30: 4.551704517 | S30: 4.620059612 | T30: 4.639762457 | U30: 4.603842195 | V30: 4.621221421 | W30: 4.621608691 | X30: 4.615557436 | Y30: 4.619462516 | Z30: 4.618876214 | AA30: 4.617965389 | AB30: 4.61876804 | AC30: 4.618536548 | AD30: 4.618423325 | AE30: 4.618575971 | AF30: 4.618511948 | AG30: 4.618503748 | AH30: 4.618530556 | AI30: 4.618515417 | AJ30: 4.618516574 | AK30: 4.618520849 | AL30: 4.618517613 | AM30: 4.618518345 | AN30: 4.618518936 | AO30: 4.618518298 | AP30: 4.618518526 | AQ30: 4.618518587 | AR30: 4.61851847
A31: 1600000US3103075 | B31: Barneston village, Nebraska | C31: 2.4 | D31: 2.7 | E31: 2.7 | F31: 2.5 | G31: 2.4 | H31: 2.3 | I31: 5 | J31: 1 | K31: 6.3 | L31: 8.695652174 | M31: 5.331884058 | N31: 6.775845411 | O31: 6.934460548 | P31: 6.347396672 | Q31: 6.685900877 | R31: 6.655919365 | S31: 6.563072305 | T31: 6.634964182 | U31: 6.617985284 | V31: 6.60534059 | W31: 6.619430019 | X31: 6.614251964 | Y31: 6.613007525 | Z31: 6.615563169 | AA31: 6.614274219 | AB31: 6.614281638 | AC31: 6.614706342 | AD31: 6.614420733 | AE31: 6.614469571 | AF31: 6.614532215 | AG31: 6.614474173 | AH31: 6.614491987 | AI31: 6.614499458 | AJ31: 6.614488539 | AK31: 6.614493328 | AL31: 6.614493775 | AM31: 6.614491881 | AN31: 6.614492995 | AO31: 6.614492884 | AP31: 6.614492587 | AQ31: 6.614492822 | AR31: 6.614492764
A32: 1600000US3103145 | B32: Bartlett village, Nebraska | C32: 29.5 | D32: 36.5 | E32: 35.2 | F32: 27.8 | G32: 37.3 | H32: 30.1 | I32: 25.7 | J32: 25 | K32: 24.1 | L32: 25.23364486 | M32: 24.77788162 | N32: 24.70384216 | O32: 24.90512288 | P32: 24.79561555 | Q32: 24.80152686 | R32: 24.83408843 | S32: 24.81041028 | T32: 24.81534186 | U32: 24.81994686 | V32: 24.815233 | W32: 24.81684057 | X32: 24.81734014 | Y32: 24.81647124 | Z32: 24.81688399 | AA32: 24.81689846 | AB32: 24.81675123 | AC32: 24.81684456 | AD32: 24.81683141 | AE32: 24.81680907 | AF32: 24.81682835 | AG32: 24.81682294 | AH32: 24.81682012 | AI32: 24.8168238 | AJ32: 24.81682229 | AK32: 24.81682207 | AL32: 24.81682272 | AM32: 24.81682236 | AN32: 24.81682238 | AO32: 24.81682249 | AP32: 24.81682241 | AQ32: 24.81682243 | AR32: 24.81682244
A33: 1600000US3103180 | B33: Bartley village, Nebraska | C33: 8.2 | D33: 13.1 | E33: 10.4 | F33: 10.5 | G33: 12 | H33: 12.4 | I33: 9.1 | J33: 10.6 | K33: 14.1 | L33: 13.28413284 | M33: 12.66137761 | N33: 13.34850349 | O33: 13.09800465 | P33: 13.03596192 | Q33: 13.16082335 | R33: 13.0982633 | S33: 13.09834952 | T33: 13.11914539 | U33: 13.10525274 | V33: 13.10758255 | W33: 13.11066023 | X33: 13.10783184 | Y33: 13.10869154 | Z33: 13.1090612 | AA33: 13.10852819 | AB33: 13.10876031 | AC33: 13.10878324 | AD33: 13.10869058 | AE33: 13.10874471 | AF33: 13.10873951 | AG33: 13.10872493 | AH33: 13.10873638 | AI33: 13.10873361 | AJ33: 13.10873164 | AK33: 13.10873388 | AL33: 13.10873304 | AM33: 13.10873285 | AN33: 13.10873326 | AO33: 13.10873305 | AP33: 13.10873305 | AQ33: 13.10873312 | AR33: 13.10873308
A34: 1600000US3103215 | B34: Bassett city, Nebraska | C34: 19.1 | D34: 14.2 | E34: 12.2 | F34: 11.6 | G34: 13.6 | H34: 14.2 | I34: 14.7 | J34: 14.4 | K34: 16.8 | L34: 20.87378641 | M34: 17.3579288 | N34: 18.34390507 | O34: 18.85854009 | P34: 18.18679132 | Q34: 18.46307883 | R34: 18.50280341 | S34: 18.38422452 | T34: 18.45003559 | U34: 18.44568784 | V34: 18.42664932 | W34: 18.44079092 | X34: 18.43770936 | Y34: 18.43504986 | Z34: 18.43785005 | AA34: 18.43686976 | AB34: 18.43658989 | AC34: 18.43710323 | AD34: 18.43685429 | AE34: 18.43684914 | AF34: 18.43693555 | AG34: 18.43687966 | AH34: 18.43688812 | AI34: 18.43690111 | AJ34: 18.43688963 | AK34: 18.43689295 | AL34: 18.43689456 | AM34: 18.43689238 | AN34: 18.4368933 | AO34: 18.43689341 | AP34: 18.43689303 | AQ34: 18.43689325 | AR34: 18.43689323
A35: 1600000US3103250 | B35: Battle Creek city, Nebraska | C35: 19.3 | D35: 20.1 | E35: 15.8 | F35: 15.6 | G35: 19.4 | H35: 26 | I35: 27.5 | J35: 27 | K35: 28.2 | L35: 22.08237986 | M35: 25.76079329 | N35: 25.34772438 | O35: 24.39696584 | P35: 25.16849451 | Q35: 24.97106158 | R35: 24.84550731 | S35: 24.99502113 | T35: 24.93719667 | U35: 24.92590837 | V35: 24.95270872 | W35: 24.93860459 | X35: 24.93907389 | Y35: 24.9434624 | Z35: 24.9403803 | AA35: 24.9409722 | AB35: 24.94160497 | AC35: 24.94098582 | AD35: 24.94118766 | AE35: 24.94125948 | AF35: 24.94114432 | AG35: 24.94119715 | AH35: 24.94120032 | AI35: 24.9411806 | AJ35: 24.94119269 | AK35: 24.9411912 | AL35: 24.94118816 | AM35: 24.94119069 | AN35: 24.94119002 | AO35: 24.94118962 | AP35: 24.94119011 | AQ35: 24.94118992 | AR35: 24.94118988
A36: 1600000US3103285 | B36: Bayard city, Nebraska | C36: 21.1 | D36: 21.7 | E36: 21.7 | F36: 15.4 | G36: 14.7 | H36: 14.7 | I36: 11.7 | J36: 12.4 | K36: 9.5 | L36: 9.382716049 | M36: 10.42757202 | N36: 9.770096022 | O36: 9.860128029 | P36: 10.01926536 | Q36: 9.883163136 | R36: 9.920852174 | S36: 9.941093555 | T36: 9.915036288 | U36: 9.925660672 | V36: 9.927263505 | W36: 9.922653489 | X36: 9.925192555 | Y36: 9.925036516 | Z36: 9.924294187 | AA36: 9.924841086 | AB36: 9.92472393 | AC36: 9.924619734 | AD36: 9.92472825 | AE36: 9.924690638 | AF36: 9.924679541 | AG36: 9.924699476 | AH36: 9.924689885 | AI36: 9.924689634 | AJ36: 9.924692998 | AK36: 9.924690839 | AL36: 9.924691157 | AM36: 9.924691665 | AN36: 9.92469122 | AO36: 9.924691347 | AP36: 9.924691411 | AQ36: 9.924691326 | AR36: 9.924691362
A37: 1600000US3103355 | B37: Bazile Mills village, Nebraska | C37: 40.7 | D37: 59.3 | E37: 44.4 | F37: 38.5 | G37: 26.7 | H37: 35.7 | I37: 35 | J37: 20.7 | K37: 27.6 | L37: 33.33333333 | M37: 27.21111111 | N37: 29.38148148 | O37: 29.97530864 | P37: 28.85596708 | Q37: 29.4042524 | R37: 29.41184271 | S37: 29.22402073 | T37: 29.34670528 | U37: 29.3275229 | V37: 29.2994163 | W37: 29.32454816 | X37: 29.31716246 | Y37: 29.31370897 | Z37: 29.3184732 | AA37: 29.31644821 | AB37: 29.31621013 | AC37: 29.31704385 | AD37: 29.31656739 | AE37: 29.31660712 | AF37: 29.31673945 | AG37: 29.31663799 | AH37: 29.31666152 | AI37: 29.31667966 | AJ37: 29.31665972 | AK37: 29.31666697 | AL37: 29.31666878 | AM37: 29.31666516 | AN37: 29.31666697 | AO37: 29.31666697 | AP37: 29.31666636 | AQ37: 29.31666677 | AR37: 29.3166667
A38: 1600000US3103390 | B38: Beatrice city, Nebraska | C38: 18.2 | D38: 20.1 | E38: 19.6 | F38: 21.2 | G38: 21.5 | H38: 19.3 | I38: 19.1 | J38: 18.4 | K38: 17.2 | L38: 18.23795801 | M38: 17.945986 | N38: 17.794648 | O38: 17.992864 | P38: 17.911166 | Q38: 17.89955934 | R38: 17.93452978 | S38: 17.91508504 | T38: 17.91639139 | U38: 17.92200207 | V38: 17.91782617 | W38: 17.91873987 | X38: 17.9195227 | Y38: 17.91869625 | Z38: 17.91898627 | AA38: 17.91906841 | AB38: 17.91891698 | AC38: 17.91899055 | AD38: 17.91899198 | AE38: 17.9189665 | AF38: 17.91898301 | AG38: 17.9189805 | AH38: 17.91897667 | AI38: 17.91898006 | AJ38: 17.91897908 | AK38: 17.9189786 | AL38: 17.91897925 | AM38: 17.91897898 | AN38: 17.91897894 | AO38: 17.91897905 | AP38: 17.91897899 | AQ38: 17.918979 | AR38: 17.91897901
A39: 1600000US3103495 | B39: Beaver City city, Nebraska | C39: 14.5 | D39: 16.3 | E39: 14.4 | F39: 13.6 | G39: 19.5 | H39: 15.3 | I39: 13.9 | J39: 16.4 | K39: 19.6 | L39: 16.75257732 | M39: 17.58419244 | N39: 17.97892325 | O39: 17.43856434 | P39: 17.66722668 | Q39: 17.69490476 | R39: 17.60023192 | S39: 17.65412112 | T39: 17.6497526 | U39: 17.63470188 | V39: 17.64619187 | W39: 17.64354878 | X39: 17.64148084 | Y39: 17.6437405 | Z39: 17.64292337 | AA39: 17.6427149 | AB39: 17.64312626 | AC39: 17.64292151 | AD39: 17.64292089 | AE39: 17.64298955 | AF39: 17.64294399 | AG39: 17.64295148 | AH39: 17.64296167 | AI39: 17.64295238 | AJ39: 17.64295518 | AK39: 17.64295641 | AL39: 17.64295465 | AM39: 17.64295541 | AN39: 17.64295549 | AO39: 17.64295519 | AP39: 17.64295536 | AQ39: 17.64295535 | AR39: 17.6429553
A40: 1600000US3103530 | B40: Beaver Crossing village, Nebraska | C40: 4.8 | D40: 7.1 | E40: 14.8 | F40: 13.2 | G40: 12.2 | H40: 12.9 | I40: 14 | J40: 13.4 | K40: 14.3 | L40: 13.75838926 | M40: 13.81946309 | N40: 13.95928412 | O40: 13.84571216 | P40: 13.87481979 | Q40: 13.89327202 | R40: 13.87126799 | S40: 13.8797866 | T40: 13.8814422 | U40: 13.87749893 | V40: 13.87957591 | W40: 13.87950568 | X40: 13.87886017 | Y40: 13.87931392 | Z40: 13.87922659 | AA40: 13.87913356 | AB40: 13.87922469 | AC40: 13.87919495 | AD40: 13.8791844 | AE40: 13.87920135 | AF40: 13.87919356 | AG40: 13.8791931 | AH40: 13.879196 | AI40: 13.87919422 | AJ40: 13.87919444 | AK40: 13.87919489 | AL40: 13.87919452 | AM40: 13.87919462 | AN40: 13.87919468 | AO40: 13.8791946 | AP40: 13.87919463 | AQ40: 13.87919464 | AR40: 13.87919463
A41: 1600000US3103600 | B41: Bee village, Nebraska | C41: 14.9 | D41: 16.7 | E41: 17.2 | F41: 13.3 | G41: 13.3 | H41: 10.8 | I41: 8.6 | J41: 8.2 | K41: 10.4 | L41: 10.41666667 | M41: 9.672222222 | N41: 10.16296296 | O41: 10.08395062 | P41: 9.973045267 | Q41: 10.07331962 | R41: 10.0434385 | S41: 10.02993446 | T41: 10.04889753 | U41: 10.04075683 | V41: 10.03986294 | W41: 10.04317243 | X41: 10.04126407 | Y41: 10.04143315 | Z41: 10.04195655 | AA41: 10.04155125 | AB41: 10.04164698 | AC41: 10.04171826 | AD41: 10.04163883 | AE41: 10.04166803 | AF41: 10.04167504 | AG41: 10.04166063 | AH41: 10.0416679 | AI41: 10.04166786 | AJ41: 10.04166546 | AK41: 10.04166707 | AL41: 10.0416668 | AM41: 10.04166644 | AN41: 10.04166677 | AO41: 10.04166667 | AP41: 10.04166663 | AQ41: 10.04166669 | AR41: 10.04166666
A42: 1600000US3103635 | B42: Beemer village, Nebraska | C42: 13.6 | D42: 15 | E42: 14.8 | F42: 12.6 | G42: 15.5 | H42: 15.5 | I42: 12.8 | J42: 14.1 | K42: 12.7 | L42: 14.17165669 | M42: 13.6572189 | N42: 13.50962519 | O42: 13.77950026 | P42: 13.64878145 | Q42: 13.64596897 | R42: 13.69141689 | S42: 13.66205577 | T42: 13.66648054 | U42: 13.67331773 | V42: 13.66728468 | W42: 13.66902765 | X42: 13.66987669 | Y42: 13.66872968 | Z42: 13.66921134 | AA42: 13.66927257 | AB42: 13.66907119 | AC42: 13.66918503 | AD42: 13.66917627 | AE42: 13.66914416 | AF42: 13.66916849 | AG42: 13.66916297 | AH42: 13.66915854 | AI42: 13.66916333 | AJ42: 13.66916162 | AK42: 13.66916116 | AL42: 13.66916204 | AM42: 13.66916161 | AN42: 13.6691616 | AO42: 13.66916175 | AP42: 13.66916165 | AQ42: 13.66916167 | AR42: 13.66916169
A43: 1600000US3103775 | B43: Belden village, Nebraska | C43: 10.1 | D43: 10.4 | E43: 14.1 | F43: 12.3 | G43: 12.1 | H43: 20 | I43: 18.7 | J43: 18.3 | K43: 14 | L43: 11.82795699 | M43: 14.709319 | N43: 13.51242533 | O43: 13.34990044 | P43: 13.85721492 | Q43: 13.57318023 | R43: 13.59343186 | S43: 13.674609 | T43: 13.61374037 | U43: 13.62726041 | V43: 13.63853659 | W43: 13.62651246 | X43: 13.63076982 | Y43: 13.63193962 | Z43: 13.62974063 | AA43: 13.63081669 | AB43: 13.63083232 | AC43: 13.63046321 | AD43: 13.63070407 | AE43: 13.63066653 | AF43: 13.63061127 | AG43: 13.63066063 | AH43: 13.63064615 | AI43: 13.63063935 | AJ43: 13.63064871 | AK43: 13.63064473 | AL43: 13.63064426 | AM43: 13.6306459 | AN43: 13.63064497 | AO43: 13.63064504 | AP43: 13.6306453 | AQ43: 13.63064511 | AR43: 13.63064515
A44: 1600000US3103810 | B44: Belgrade village, Nebraska | C44: 0 | D44: 2 | E44: 2 | F44: 2.9 | G44: 6.1 | H44: 7.5 | I44: 5.6 | J44: 10.1 | K44: 11.4 | L44: 6.617647059 | M44: 9.37254902 | N44: 9.130065359 | O44: 8.373420479 | P44: 8.958678286 | Q44: 8.820721375 | R44: 8.717606713 | S44: 8.832335458 | T44: 8.790221182 | U44: 8.780054451 | V44: 8.800870364 | W44: 8.790381999 | X44: 8.790435605 | Y44: 8.793895989 | Z44: 8.791571198 | AA44: 8.791967597 | AB44: 8.792478261 | AC44: 8.792005685 | AD44: 8.792150515 | AE44: 8.792211487 | AF44: 8.792122562 | AG44: 8.792161521 | AH44: 8.79216519 | AI44: 8.792149758 | AJ44: 8.792158823 | AK44: 8.792157924 | AL44: 8.792155502 | AM44: 8.792157416 | AN44: 8.792156947 | AO44: 8.792156622 | AP44: 8.792156995 | AQ44: 8.792156855 | AR44: 8.792156824
A45: 1600000US3103950 | B45: Bellevue city, Nebraska | C45: 27.1 | D45: 26.9 | E45: 26.3 | F45: 27.8 | G45: 28.1 | H45: 28.1 | I45: 28.5 | J45: 25.9 | K45: 26.2 | L45: 25.55847895 | M45: 25.88615965 | N45: 25.8815462 | O45: 25.77539493 | P45: 25.84770026 | Q45: 25.83488047 | R45: 25.81932522 | S45: 25.83396865 | T45: 25.82939145 | U45: 25.82756177 | V45: 25.83030729 | W45: 25.82908684 | X45: 25.8289853 | Y45: 25.82945981 | Z45: 25.82917731 | AA45: 25.82920747 | AB45: 25.82928153 | AC45: 25.82922211 | AD45: 25.82923704 | AE45: 25.82924689 | AF45: 25.82923534 | AG45: 25.82923976 | AH45: 25.82924066 | AI45: 25.82923859 | AJ45: 25.82923967 | AK45: 25.82923964 | AL45: 25.8292393 | AM45: 25.82923954 | AN45: 25.82923949 | AO45: 25.82923944 | AP45: 25.82923949 | AQ45: 25.82923948 | AR45: 25.82923947
A46: 1600000US3104020 | B46: Bellwood village, Nebraska | C46: 10.5 | D46: 11 | E46: 8.9 | F46: 9.4 | G46: 9.9 | H46: 10 | I46: 9.7 | J46: 13.7 | K46: 13 | L46: 12.14953271 | M46: 12.94984424 | N46: 12.69979232 | O46: 12.59972309 | P46: 12.74978655 | Q46: 12.68310065 | R46: 12.67753676 | S46: 12.70347465 | T46: 12.68803735 | U46: 12.68968292 | V46: 12.69373164 | W46: 12.69048397 | X46: 12.69129951 | Y46: 12.69183838 | Z46: 12.69120729 | AA46: 12.69144839 | AB46: 12.69149802 | AC46: 12.69138457 | AD46: 12.69144366 | AE46: 12.69144208 | AF46: 12.69142344 | AG46: 12.69143639 | AH46: 12.69143397 | AI46: 12.69143127 | AJ46: 12.69143388 | AK46: 12.69143304 | AL46: 12.69143273 | AM46: 12.69143321 | AN46: 12.69143299 | AO46: 12.69143298 | AP46: 12.69143306 | AQ46: 12.69143301 | AR46: 12.69143302
A47: 1600000US3104160 | B47: Belvidere village, Nebraska | C47: 0 | D47: 0 | E47: 0 | F47: 0 | G47: 0 | H47: 0 | I47: 0 | J47: 0 | K47: 0 | L47: 0 | M47: 0 | N47: 0 | O47: 0 | P47: 0 | Q47: 0 | R47: 0 | S47: 0 | T47: 0 | U47: 0 | V47: 0 | W47: 0 | X47: 0 | Y47: 0 | Z47: 0 | AA47: 0 | AB47: 0 | AC47: 0 | AD47: 0 | AE47: 0 | AF47: 0 | AG47: 0 | AH47: 0 | AI47: 0 | AJ47: 0 | AK47: 0 | AL47: 0 | AM47: 0 | AN47: 0 | AO47: 0 | AP47: 0 | AQ47: 0 | AR47: 0
A48: 1600000US3104195 | B48: Benedict village, Nebraska | C48: 16 | D48: 14.4 | E48: 13.2 | F48: 13.2 | G48: 13.8 | H48: 11.8 | I48: 10.4 | J48: 24.8 | K48: 25 | L48: 24.11067194 | M48: 24.63689065 | N48: 24.58252086 | O48: 24.44336115 | P48: 24.55425755 | Q48: 24.52671319 | R48: 24.50811063 | S48: 24.52969379 | T48: 24.52150587 | U48: 24.5197701 | V48: 24.52365658 | W48: 24.52164418 | X48: 24.52169029 | Y48: 24.52233035 | Z48: 24.52188827 | AA48: 24.52196964 | AB48: 24.52206275 | AC48: 24.52197355 | AD48: 24.52200198 | AE48: 24.52201276 | AF48: 24.5219961 | AG48: 24.52200362 | AH48: 24.52200416 | AI48: 24.52200129 | AJ48: 24.52200302 | AK48: 24.52200282 | AL48: 24.52200238 | AM48: 24.52200274 | AN48: 24.52200265 | AO48: 24.52200259 | AP48: 24.52200266 | AQ48: 24.52200263 | AR48: 24.52200263
A49: 1600000US3104230 | B49: Benkelman city, Nebraska | C49: 22 | D49: 18.6 | E49: 19.2 | F49: 19 | G49: 18.8 | H49: 16.4 | I49: 15 | J49: 19.2 | K49: 24.1 | L49: 24.76943347 | M49: 22.68981116 | N49: 23.85308154 | O49: 23.77077539 | P49: 23.43788936 | Q49: 23.68724876 | R49: 23.63197117 | S49: 23.5857031 | T49: 23.63497434 | U49: 23.61754954 | V49: 23.61274233 | W49: 23.6217554 | X49: 23.61734909 | Y49: 23.61728227 | Z49: 23.61879559 | AA49: 23.61780898 | AB49: 23.61796228 | AC49: 23.61818895 | AD49: 23.61798674 | AE49: 23.61804599 | AF49: 23.61807389 | AG49: 23.61803554 | AH49: 23.61805181 | AI49: 23.61805375 | AJ49: 23.61804703 | AK49: 23.61805086 | AL49: 23.61805055 | AM49: 23.61804948 | AN49: 23.6180503 | AO49: 23.61805011 | AP49: 23.61804996 | AQ49: 23.61805012 | AR49: 23.61805006
A50: 1600000US3104300 | B50: Bennet village, Nebraska | C50: 24.5 | D50: 24.1 | E50: 21.2 | F50: 21.6 | G50: 24.2 | H50: 24 | I50: 25.1 | J50: 23.6 | K50: 26.1 | L50: 28.39506173 | M50: 26.03168724 | N50: 26.84224966 | O50: 27.08966621 | P50: 26.65453437 | Q50: 26.86215008 | R50: 26.86878355 | S50: 26.795156 | T50: 26.84202988 | U50: 26.83532314 | V50: 26.82416967 | W50: 26.8338409 | X50: 26.83111124 | Y50: 26.82970727 | Z50: 26.83155314 | AA50: 26.83079055 | AB50: 26.83068365 | AC50: 26.83100911 | AD50: 26.83082777 | AE50: 26.83084018 | AF50: 26.83089235 | AG50: 26.83085343 | AH50: 26.83086199 | AI50: 26.83086926 | AJ50: 26.83086156 | AK50: 26.83086427 | AL50: 26.83086503 | AM50: 26.83086362 | AN50: 26.83086431 | AO50: 26.83086432 | AP50: 26.83086408 | AQ50: 26.83086423 | AR50: 26.83086421
A51: 1600000US3104405 | B51: Bennington city, Nebraska | C51: 28 | D51: 33.6 | E51: 35 | F51: 38.2 | G51: 36.1 | H51: 35.9 | I51: 35 | J51: 31.5 | K51: 30.7 | L51: 33.30990864 | M51: 31.83663621 | N51: 31.94884829 | O51: 32.36513105 | P51: 32.05020518 | Q51: 32.12139484 | R51: 32.17891036 | S51: 32.11683679 | T51: 32.13904733 | U51: 32.14493149 | V51: 32.13360521 | W51: 32.13919468 | X51: 32.13924379 | Y51: 32.13734789 | Z51: 32.13859545 | AA51: 32.13839571 | AB51: 32.13811302 | AC51: 32.13836806 | AD51: 32.13829226 | AE51: 32.13825778 | AF51: 32.13830604 | AG51: 32.13828536 | AH51: 32.13828306 | AI51: 32.13829148 | AJ51: 32.13828663 | AK51: 32.13828706 | AL51: 32.13828839 | AM51: 32.13828736 | AN51: 32.1382876 | AO51: 32.13828779 | AP51: 32.13828758 | AQ51: 32.13828766 | AR51: 32.13828768
A52: 1600000US3104615 | B52: Bertrand village, Nebraska | C52: 13.8 | D52: 11.6 | E52: 14.1 | F52: 14.9 | G52: 16.8 | H52: 19.7 | I52: 23.1 | J52: 22.4 | K52: 22.6 | L52: 18.91025641 | M52: 21.3034188 | N52: 20.93789174 | O52: 20.38385565 | P52: 20.8750554 | Q52: 20.7322676 | R52: 20.66372621 | S52: 20.7570164 | T52: 20.71767007 | U52: 20.71280423 | V52: 20.72916357 | W52: 20.71987929 | X52: 20.7206157 | Y52: 20.72321952 | Z52: 20.72123817 | AA52: 20.72169113 | AB52: 20.7220496 | AC52: 20.72165963 | AD52: 20.72180012 | AE52: 20.72183645 | AF52: 20.7217654 | AG52: 20.72180066 | AH52: 20.72180084 | AI52: 20.72178897 | AJ52: 20.72179682 | AK52: 20.72179554 | AL52: 20.72179378 | AM52: 20.72179538 | AN52: 20.7217949 | AO52: 20.72179468 | AP52: 20.72179499 | AQ52: 20.72179486 | AR52: 20.72179484
A53: 1600000US3104650 | B53: Berwyn village, Nebraska | C53: 2.4 | D53: 5 | E53: 6.7 | F53: 5 | G53: 6.4 | H53: 4.2 | I53: 2.6 | J53: 5.5 | K53: 8.1 | L53: 7.894736842 | M53: 7.164912281 | N53: 7.719883041 | O53: 7.593177388 | P53: 7.49265757 | Q53: 7.601906 | R53: 7.562580319 | S53: 7.552381296 | T53: 7.572289205 | U53: 7.56241694 | V53: 7.56236248 | W53: 7.565689542 | X53: 7.563489654 | Y53: 7.563847225 | Z53: 7.56434214 | AA53: 7.563893007 | AB53: 7.564027458 | AC53: 7.564087535 | AD53: 7.564002666 | AE53: 7.56403922 | AF53: 7.56404314 | AG53: 7.564028342 | AH53: 7.564036901 | AI53: 7.564036128 | AJ53: 7.56403379 | AK53: 7.564035606 | AL53: 7.564035175 | AM53: 7.564034857 | AN53: 7.564035213 | AO53: 7.564035081 | AP53: 7.56403505 | AQ53: 7.564035115 | AR53: 7.564035082
A54: 1600000US3104895 | B54: Big Springs village, Nebraska | C54: 12.9 | D54: 15.3 | E54: 13.4 | F54: 12.3 | G54: 8.8 | H54: 8.6 | I54: 11.1 | J54: 12 | K54: 12.2 | L54: 13.08900524 | M54: 12.42966841 | N54: 12.57289122 | O54: 12.69718829 | P54: 12.56658264 | Q54: 12.61222071 | R54: 12.62533055 | S54: 12.60137797 | T54: 12.61297641 | U54: 12.61322831 | V54: 12.60919423 | W54: 12.61179965 | X54: 12.61140739 | Y54: 12.61080042 | Z54: 12.61133582 | AA54: 12.61118121 | AB54: 12.61110582 | AC54: 12.61120762 | AD54: 12.61116488 | AE54: 12.61115944 | AF54: 12.61117731 | AG54: 12.61116721 | AH54: 12.61116799 | AI54: 12.61117084 | AJ54: 12.61116868 | AK54: 12.61116917 | AL54: 12.61116956 | AM54: 12.61116914 | AN54: 12.61116929 | AO54: 12.61116933 | AP54: 12.61116925 | AQ54: 12.61116929 | AR54: 12.61116929
A55: 1600000US3105140 | B55: Bladen village, Nebraska | C55: 11.6 | D55: 11.8 | E55: 13.8 | F55: 16 | G55: 15.5 | H55: 16.2 | I55: 19.1 | J55: 18.5 | K55: 15.6 | L55: 17.39130435 | M55: 17.16376812 | N55: 16.71835749 | O55: 17.09114332 | P55: 16.99108964 | Q55: 16.93353015 | R55: 17.00525437 | S55: 16.97662472 | T55: 16.97180308 | U55: 16.98456072 | V55: 16.97766284 | W55: 16.97800888 | X55: 16.98007748 | Y55: 16.97858307 | Z55: 16.97888981 | AA55: 16.97918345 | AB55: 16.97888544 | AC55: 16.97898623 | AD55: 16.97901838 | AE55: 16.97896335 | AF55: 16.97898932 | AG55: 16.97899035 | AH55: 16.97898101 | AI55: 16.97898689 | AJ55: 16.97898608 | AK55: 16.97898466 | AL55: 16.97898588 | AM55: 16.97898554 | AN55: 16.97898536 | AO55: 16.97898559 | AP55: 16.9789855 | AQ55: 16.97898548 | AR55: 16.97898553
A56: 1600000US3105350 | B56: Blair city, Nebraska | C56: 32.3 | D56: 30.4 | E56: 32.3 | F56: 30.2 | G56: 29.8 | H56: 28.1 | I56: 28.8 | J56: 25.1 | K56: 26.5 | L56: 27.29524146 | M56: 26.29841382 | N56: 26.6978851 | O56: 26.76384679 | P56: 26.58671524 | Q56: 26.68281571 | R56: 26.67779258 | S56: 26.64910784 | T56: 26.66990538 | U56: 26.66560193 | V56: 26.66153838 | W56: 26.6656819 | X56: 26.66427407 | Y56: 26.66383145 | Z56: 26.66459581 | AA56: 26.66423378 | AB56: 26.66422034 | AC56: 26.66434998 | AD56: 26.66426803 | AE56: 26.66427945 | AF56: 26.66429915 | AG56: 26.66428221 | AH56: 26.66428694 | AI56: 26.66428943 | AJ56: 26.6642862 | AK56: 26.66428752 | AL56: 26.66428772 | AM56: 26.66428715 | AN56: 26.66428746 | AO56: 26.66428744 | AP56: 26.66428735 | AQ56: 26.66428742 | AR56: 26.6642874
A57: 1600000US3105455 | B57: Bloomfield city, Nebraska | C57: 15.3 | D57: 18.7 | E57: 17.5 | F57: 16.9 | G57: 19.9 | H57: 18.6 | I57: 16.9 | J57: 21.8 | K57: 17.8 | L57: 17.0212766 | M57: 18.87375887 | N57: 17.89834515 | O57: 17.93112687 | P57: 18.2344103 | Q57: 18.02129411 | R57: 18.06227709 | S57: 18.10599383 | T57: 18.06318834 | U57: 18.07715309 | V57: 18.08211176 | W57: 18.07415106 | X57: 18.0778053 | Y57: 18.07802271 | Z57: 18.07665969 | AA57: 18.0774959 | AB57: 18.07739277 | AC57: 18.07718279 | AD57: 18.07735715 | AE57: 18.0773109 | AF57: 18.07728361 | AG57: 18.07731722 | AH57: 18.07730391 | AI57: 18.07730158 | AJ57: 18.07730757 | AK57: 18.07730435 | AL57: 18.0773045 | AM57: 18.07730548 | AN57: 18.07730478 | AO57: 18.07730492 | AP57: 18.07730506 | AQ57: 18.07730492 | AR57: 18.07730496
A58: 1600000US3105490 | B58: Bloomington village, Nebraska | C58: 3.9 | D58: 3.7 | E58: 2.8 | F58: 6 | G58: 6.5 | H58: 7.6 | I58: 8.8 | J58: 8.1 | K58: 7.6 | L58: 6.818181818 | M58: 7.506060606 | N58: 7.308080808 | O58: 7.210774411 | P58: 7.341638608 | Q58: 7.286831276 | R58: 7.279748098 | S58: 7.302739327 | T58: 7.2897729 | U58: 7.290753442 | V58: 7.29442189 | W58: 7.291649411 | X58: 7.292274914 | Y58: 7.292782072 | Z58: 7.292235466 | AA58: 7.292430817 | AB58: 7.292482785 | AC58: 7.292383023 | AD58: 7.292432208 | AE58: 7.292432672 | AF58: 7.292415968 | AG58: 7.292426949 | AH58: 7.292425196 | AI58: 7.292422704 | AJ58: 7.29242495 | AK58: 7.292424283 | AL58: 7.292423979 | AM58: 7.292424404 | AN58: 7.292424222 | AO58: 7.292424202 | AP58: 7.292424276 | AQ58: 7.292424233 | AR58: 7.292424237
A59: 1600000US3105560 | B59: Blue Hill city, Nebraska | C59: 9.7 | D59: 15.4 | E59: 18.4 | F59: 21.5 | G59: 25.4 | H59: 25.7 | I59: 24.5 | J59: 25.3 | K59: 24.5 | L59: 23.40720222 | M59: 24.40240074 | N59: 24.10320098 | O59: 23.97093465 | P59: 24.15884546 | Q59: 24.07766036 | R59: 24.06914682 | S59: 24.10188421 | T59: 24.08289713 | U59: 24.08464272 | V59: 24.08980802 | W59: 24.08578263 | X59: 24.08674446 | Y59: 24.08744504 | Z59: 24.08665737 | AA59: 24.08694896 | AB59: 24.08701712 | AC59: 24.08687448 | AD59: 24.08694685 | AE59: 24.08694615 | AF59: 24.0869225 | AG59: 24.0869385 | AH59: 24.08693572 | AI59: 24.08693224 | AJ59: 24.08693549 | AK59: 24.08693448 | AL59: 24.08693407 | AM59: 24.08693468 | AN59: 24.08693441 | AO59: 24.08693438 | AP59: 24.08693449 | AQ59: 24.08693443 | AR59: 24.08693443
A60: 1600000US3105630 | B60: Blue Springs city, Nebraska | C60: 8.3 | D60: 7.3 | E60: 5.9 | F60: 5 | G60: 2.6 | H60: 3.2 | I60: 6.6 | J60: 11.2 | K60: 12.1 | L60: 11.21076233 | M60: 11.50358744 | N60: 11.60478326 | O60: 11.43971101 | P60: 11.51602724 | Q60: 11.52017384 | R60: 11.4919707 | S60: 11.50939059 | T60: 11.50717837 | U60: 11.50284655 | V60: 11.50647184 | W60: 11.50549892 | X60: 11.5049391 | Y60: 11.50563662 | Z60: 11.50535822 | AA60: 11.50531131 | AB60: 11.50543538 | AC60: 11.5053683 | AD60: 11.50537167 | AE60: 11.50539179 | AF60: 11.50537725 | AG60: 11.50538024 | AH60: 11.50538309 | AI60: 11.50538019 | AJ60: 11.50538117 | AK60: 11.50538149 | AL60: 11.50538095 | AM60: 11.5053812 | AN60: 11.50538121 | AO60: 11.50538112 | AP60: 11.50538118 | AQ60: 11.50538117 | AR60: 11.50538116
A61: 1600000US3106015 | B61: Boys Town village, Nebraska | C61: 73.7 | D61: 36.8 | E61: 23.1 | F61: 26.2 | G61: 18.6 | H61: 13.3 | I61: 9.9 | J61: 9 | K61: 14.3 | L61: 2.590673575 | M61: 8.630224525 | N61: 8.506966033 | O61: 6.575954711 | P61: 7.904381757 | Q61: 7.662434167 | R61: 7.380923545 | S61: 7.64924649 | T61: 7.5642014 | U61: 7.531457145 | V61: 7.581635012 | W61: 7.559097852 | X61: 7.55739667 | Y61: 7.566043178 | Z61: 7.5608459 | AA61: 7.561428583 | AB61: 7.562772553 | AC61: 7.561682345 | AD61: 7.56196116 | AE61: 7.562138686 | AF61: 7.561927397 | AG61: 7.562009081 | AH61: 7.562025055 | AI61: 7.561987178 | AJ61: 7.562007105 | AK61: 7.562006446 | AL61: 7.562000243 | AM61: 7.562004598 | AN61: 7.562003762 | AO61: 7.562002868 | AP61: 7.562003743 | AQ61: 7.562003458 | AR61: 7.562003356
A62: 1600000US3106050 | B62: Bradshaw village, Nebraska | C62: 13.7 | D62: 15.9 | E62: 17.9 | F62: 14.7 | G62: 13.2 | H62: 14.4 | I62: 19.3 | J62: 15.3 | K62: 21.4 | L62: 24.34782609 | M62: 20.34927536 | N62: 22.03236715 | O62: 22.2431562 | P62: 21.54159957 | Q62: 21.93904097 | R62: 21.90793225 | S62: 21.79619093 | T62: 21.88105472 | U62: 21.86172597 | V62: 21.84632387 | W62: 21.86303485 | X62: 21.85702823 | Y62: 21.85546232 | Z62: 21.85850847 | AA62: 21.85699967 | AB62: 21.85699015 | AC62: 21.85749943 | AD62: 21.85716308 | AE62: 21.85721755 | AF62: 21.85729336 | AG62: 21.85722466 | AH62: 21.85724519 | AI62: 21.8572544 | AJ62: 21.85724142 | AK62: 21.85724701 | AL62: 21.85724761 | AM62: 21.85724535 | AN62: 21.85724665 | AO62: 21.85724654 | AP62: 21.85724618 | AQ62: 21.85724646 | AR62: 21.85724639
A63: 1600000US3106085 | B63: Brady village, Nebraska | C63: 19 | D63: 21.6 | E63: 21.3 | F63: 21.3 | G63: 22.3 | H63: 22.3 | I63: 21 | J63: 24.2 | K63: 23.2 | L63: 27.11267606 | M63: 24.83755869 | N63: 25.05007825 | O63: 25.666771 | P63: 25.18480264 | Q63: 25.30055063 | R63: 25.38404142 | S63: 25.28979823 | T63: 25.32479676 | U63: 25.33287881 | V63: 25.3158246 | W63: 25.32450006 | X63: 25.32440115 | Y63: 25.32157527 | Z63: 25.32349216 | AA63: 25.32315619 | AB63: 25.32274121 | AC63: 25.32312985 | AD63: 25.32300908 | AE63: 25.32296005 | AF63: 25.323033 | AG63: 25.32300071 | AH63: 25.32299792 | AI63: 25.32301054 | AJ63: 25.32300306 | AK63: 25.32300384 | AL63: 25.32300581 | AM63: 25.32300424 | AN63: 25.32300463 | AO63: 25.32300489 | AP63: 25.32300459 | AQ63: 25.3230047 | AR63: 25.32300473
A64: 1600000US3106120 | B64: Brainard village, Nebraska | C64: 16.2 | D64: 15.4 | E64: 15.6 | F64: 13.1 | G64: 11 | H64: 11.8 | I64: 12 | J64: 16.8 | K64: 17 | L64: 19.81981982 | M64: 17.87327327 | N64: 18.23103103 | O64: 18.64137471 | P64: 18.24855967 | Q64: 18.37365514 | R64: 18.42119651 | S64: 18.34780377 | T64: 18.38088514 | U64: 18.38329514 | V64: 18.37066135 | W64: 18.37828054 | X64: 18.37741234 | Y64: 18.37545141 | Z64: 18.3770481 | AA64: 18.37663728 | AB64: 18.37637893 | AC64: 18.3766881 | AD64: 18.37656811 | AE64: 18.37654505 | AF64: 18.37660042 | AG64: 18.37657119 | AH64: 18.37657222 | AI64: 18.37658128 | AJ64: 18.3765749 | AK64: 18.37657613 | AL64: 18.37657743 | AM64: 18.37657615 | AN64: 18.37657657 | AO64: 18.37657672 | AP64: 18.37657648 | AQ64: 18.37657659 | AR64: 18.3765766
A65: 1600000US3106295 | B65: Bridgeport city, Nebraska | C65: 22.2 | D65: 23.6 | E65: 21.6 | F65: 21.2 | G65: 21.9 | H65: 23.4 | I65: 22.1 | J65: 19.3 | K65: 20.2 | L65: 20.50473186 | M65: 20.00157729 | N65: 20.23543638 | O65: 20.24724851 | P65: 20.16142073 | Q65: 20.21470187 | R65: 20.20779037 | S65: 20.19463766 | T65: 20.20570997 | U65: 20.20271266 | V65: 20.2010201 | W65: 20.20314758 | X65: 20.20229345 | Y65: 20.20215371 | Z65: 20.20253158 | AA65: 20.20232624 | AB65: 20.20233717 | AC65: 20.20239833 | AD65: 20.20235392 | AE65: 20.20236314 | AF65: 20.2023718 | AG65: 20.20236295 | AH65: 20.20236596 | AI65: 20.2023669 | AJ65: 20.20236527 | AK65: 20.20236605 | AL65: 20.20236607 | AM65: 20.2023658 | AN65: 20.20236597 | AO65: 20.20236595 | AP65: 20.20236591 | AQ65: 20.20236594 | AR65: 20.20236593
A66: 1600000US3106400 | B66: Bristow village, Nebraska | C66: 8.3 | D66: 4.3 | E66: 10.4 | F66: 11.8 | G66: 23.3 | H66: 8.3 | I66: 5.7 | J66: 5.1 | K66: 6.1 | L66: 7.246376812 | M66: 6.148792271 | N66: 6.498389694 | O66: 6.631186259 | P66: 6.426122741 | Q66: 6.518566231 | R66: 6.525291744 | S66: 6.489993572 | T66: 6.511283849 | U66: 6.508856388 | V66: 6.503377936 | W66: 6.507839391 | X66: 6.506691239 | Y66: 6.505969522 | Z66: 6.506833384 | AA66: 6.506498048 | AB66: 6.506433651 | AC66: 6.506588361 | AD66: 6.506506687 | AE66: 6.506509567 | AF66: 6.506534872 | AG66: 6.506517042 | AH66: 6.506520493 | AI66: 6.506524136 | AJ66: 6.506520557 | AK66: 6.506521729 | AL66: 6.50652214 | AM66: 6.506521475 | AN66: 6.506521781 | AO66: 6.506521799 | AP66: 6.506521685 | AQ66: 6.506521755 | AR66: 6.506521746
A67: 1600000US3106470 | B67: Broadwater village, Nebraska | C67: 5.5 | D67: 12.3 | E67: 9.8 | F67: 11 | G67: 6.8 | H67: 8.7 | I67: 9.2 | J67: 6.4 | K67: 3 | L67: 10.6918239 | M67: 6.697274633 | N67: 6.796366177 | O67: 8.06182157 | P67: 7.185154127 | Q67: 7.347780625 | R67: 7.531585441 | S67: 7.354840064 | T67: 7.411402043 | U67: 7.432609183 | V67: 7.399617097 | W67: 7.414542774 | X67: 7.415589684 | Y67: 7.409916518 | Z67: 7.413349659 | AA67: 7.412951954 | AB67: 7.41207271 | AC67: 7.412791441 | AD67: 7.412605368 | AE67: 7.41248984 | AF67: 7.412628883 | AG67: 7.412574697 | AH67: 7.412564473 | AI67: 7.412589351 | AJ67: 7.412576174 | AK67: 7.412576666 | AL67: 7.412580731 | AM67: 7.412577857 | AN67: 7.412578418 | AO67: 7.412579002 | AP67: 7.412578426 | AQ67: 7.412578615 | AR67: 7.412578681
A68: 1600000US3106505 | B68: Brock village, Nebraska | C68: 13.8 | D68: 12.6 | E68: 7.2 | F68: 5.5 | G68: 3.8 | H68: 6 | I68: 5.6 | J68: 9 | K68: 8.9 | L68: 14.73684211 | M68: 10.87894737 | N68: 11.50526316 | O68: 12.37368421 | P68: 11.58596491 | Q68: 11.82163743 | R68: 11.92709552 | S68: 11.77823262 | T68: 11.84232185 | U68: 11.84921666 | V68: 11.82325705 | W68: 11.83826519 | X68: 11.83691297 | Y68: 11.83281173 | Z68: 11.83599663 | AA68: 11.83524044 | AB68: 11.83468293 | AC68: 11.83530667 | AD68: 11.83507668 | AE68: 11.83502209 | AF68: 11.83513515 | AG68: 11.83507797 | AH68: 11.83507841 | AI68: 11.83509718 | AJ68: 11.83508452 | AK68: 11.8350867 | AL68: 11.83508947 | AM68: 11.83508689 | AN68: 11.83508769 | AO68: 11.83508802 | AP68: 11.83508753 | AQ68: 11.83508775 | AR68: 11.83508776
A69: 1600000US3106610 | B69: Broken Bow city, Nebraska | C69: 20.5 | D69: 23.2 | E69: 21.9 | F69: 22.7 | G69: 21.5 | H69: 19.1 | I69: 18.4 | J69: 16.6 | K69: 16.3 | L69: 19.58254269 | M69: 17.4941809 | N69: 17.7922412 | O69: 18.28965493 | P69: 17.85869234 | Q69: 17.98019616 | R69: 18.04284781 | S69: 17.96057877 | T69: 17.99454091 | U69: 17.9993225 | V69: 17.98481406 | W69: 17.99289249 | X69: 17.99234302 | Y69: 17.99001652 | Z69: 17.99175068 | AA69: 17.99137007 | AB69: 17.99104576 | AC69: 17.99138883 | AD69: 17.99126822 | AE69: 17.99123427 | AF69: 17.99129711 | AG69: 17.99126653 | AH69: 17.99126597 | AI69: 17.99127654 | AJ69: 17.99126968 | AK69: 17.99127073 | AL69: 17.99127232 | AM69: 17.99127091 | AN69: 17.99127132 | AO69: 17.99127151 | AP69: 17.99127125 | AQ69: 17.99127136 | AR69: 17.99127137
A70: 1600000US3106750 | B70: Brownville village, Nebraska | C70: 26.2 | D70: 21.2 | E70: 19.8 | F70: 15.2 | G70: 16.4 | H70: 19.6 | I70: 21.6 | J70: 18.2 | K70: 21.7 | L70: 17.30769231 | M70: 19.06923077 | N70: 19.35897436 | O70: 18.57863248 | P70: 19.0022792 | Q70: 18.97996201 | R70: 18.85362456 | S70: 18.94528859 | T70: 18.92629172 | U70: 18.90840163 | V70: 18.92666065 | W70: 18.92045133 | X70: 18.91850454 | Y70: 18.92187217 | Z70: 18.92027601 | AA70: 18.92021757 | AB70: 18.92078859 | AC70: 18.92042739 | AD70: 18.92047785 | AE70: 18.92056461 | AF70: 18.92048995 | AG70: 18.9205108 | AH70: 18.92052179 | AI70: 18.92050751 | AJ70: 18.92051337 | AK70: 18.92051422 | AL70: 18.9205117 | AM70: 18.9205131 | AN70: 18.92051301 | AO70: 18.9205126 | AP70: 18.9205129 | AQ70: 18.92051284 | AR70: 18.92051278
A71: 1600000US3106785 | B71: Brule village, Nebraska | C71: 11.6 | D71: 14.4 | E71: 19.5 | F71: 14.7 | G71: 12.3 | H71: 14.8 | I71: 13.2 | J71: 11.6 | K71: 11.1 | L71: 14.87603306 | M71: 12.52534435 | N71: 12.83379247 | O71: 13.41172329 | P71: 12.92362004 | Q71: 13.0563786 | R71: 13.13057398 | S71: 13.03685754 | T71: 13.07460337 | U71: 13.0806783 | V71: 13.0640464 | W71: 13.07310936 | X71: 13.07261135 | Y71: 13.06992237 | Z71: 13.07188103 | AA71: 13.07147158 | AB71: 13.07109166 | AC71: 13.07148142 | AD71: 13.07134822 | AE71: 13.0713071 | AF71: 13.07137892 | AG71: 13.07134475 | AH71: 13.07134359 | AI71: 13.07135575 | AJ71: 13.07134803 | AK71: 13.07134912 | AL71: 13.07135097 | AM71: 13.07134937 | AN71: 13.07134982 | AO71: 13.07135005 | AP71: 13.07134975 | AQ71: 13.07134987 | AR71: 13.07134989
A72: 1600000US3106820 | B72: Bruning village, Nebraska | C72: 12.9 | D72: 14 | E72: 14.4 | F72: 17.2 | G72: 16.1 | H72: 10.4 | I72: 21 | J72: 25 | K72: 21.7 | L72: 22.22222222 | M72: 22.97407407 | N72: 22.29876543 | O72: 22.49835391 | P72: 22.59039781 | Q72: 22.46250572 | R72: 22.51708581 | S72: 22.52332978 | T72: 22.50097377 | U72: 22.51379645 | V72: 22.5127 | W72: 22.50915674 | X72: 22.5118844 | Y72: 22.51124704 | Z72: 22.51076273 | AA72: 22.51129806 | AB72: 22.51110261 | AC72: 22.51105446 | AD72: 22.51115171 | AE72: 22.51110293 | AF72: 22.51110303 | AG72: 22.51111922 | AH72: 22.5111084 | AI72: 22.51111022 | AJ72: 22.51111261 | AK72: 22.51111041 | AL72: 22.51111108 | AM72: 22.51111137 | AN72: 22.51111095 | AO72: 22.51111113 | AP72: 22.51111115 | AQ72: 22.51111108 | AR72: 22.51111112
A73: 1600000US3106855 | B73: Bruno village, Nebraska | C73: 17.3 | D73: 16.2 | E73: 6 | F73: 3.8 | G73: 3.5 | H73: 7.8 | I73: 6.2 | J73: 17.3 | K73: 18.2 | L73: 18.07228916 | M73: 17.85742972 | N73: 18.04323963 | O73: 17.99098617 | P73: 17.96388517 | Q73: 17.99937032 | R73: 17.98474722 | S73: 17.98266757 | T73: 17.98892837 | U73: 17.98544772 | V73: 17.98568122 | W73: 17.98668577 | X73: 17.98593824 | Y73: 17.98610174 | Z73: 17.98624192 | AA73: 17.98609397 | AB73: 17.98614587 | AC73: 17.98616059 | AD73: 17.98613347 | AE73: 17.98614664 | AF73: 17.9861469 | AG73: 17.98614234 | AH73: 17.9861453 | AI73: 17.98614485 | AJ73: 17.98614416 | AK73: 17.98614477 | AL73: 17.98614459 | AM73: 17.98614451 | AN73: 17.98614462 | AO73: 17.98614457 | AP73: 17.98614457 | AQ73: 17.98614459 | AR73: 17.98614458
A74: 1600000US3106890 | B74: Brunswick village, Nebraska | C74: 16.2 | D74: 16.9 | E74: 20.3 | F74: 22.1 | G74: 16 | H74: 15.9 | I74: 19.7 | J74: 15.5 | K74: 20.8 | L74: 25.2688172 | M74: 20.52293907 | N74: 22.19725209 | O74: 22.66300279 | P74: 21.79439798 | Q74: 22.21821762 | R74: 22.22520613 | S74: 22.07927391 | T74: 22.17423255 | U74: 22.15957086 | V74: 22.13769244 | W74: 22.15716529 | X74: 22.1514762 | Y74: 22.14877798 | Z74: 22.15247315 | AA74: 22.15090911 | AB74: 22.15072008 | AC74: 22.15136745 | AD74: 22.15099888 | AE74: 22.1510288 | AF74: 22.15113171 | AG74: 22.15105313 | AH74: 22.15107121 | AI74: 22.15108535 | AJ74: 22.1510699 | AK74: 22.15107549 | AL74: 22.15107691 | AM74: 22.1510741 | AN74: 22.1510755 | AO74: 22.1510755 | AP74: 22.15107503 | AQ74: 22.15107535 | AR74: 22.1510753
A75: 1600000US3107065 | B75: Burchard village, Nebraska | C75: 15.6 | D75: 16 | E75: 17.9 | F75: 16.7 | G75: 19.5 | H75: 15.9 | I75: 23.8 | J75: 20 | K75: 20.9 | L75: 30.55555556 | M75: 23.81851852 | N75: 25.09135802 | O75: 26.48847737 | P75: 25.13278464 | Q75: 25.57087334 | R75: 25.73071178 | S75: 25.47812325 | T75: 25.59323613 | U75: 25.60069039 | V75: 25.55734992 | W75: 25.58375881 | X75: 25.58059971 | Y75: 25.57390281 | Z75: 25.57942044 | AA75: 25.57797432 | AB75: 25.57709919 | AC75: 25.57816465 | AD75: 25.57774606 | AE75: 25.57766997 | AF75: 25.57786023 | AG75: 25.57775875 | AH75: 25.57776298 | AI75: 25.57779399 | AJ75: 25.57777191 | AK75: 25.57777629 | AL75: 25.57778073 | AM75: 25.57777631 | AN75: 25.57777777 | AO75: 25.57777827 | AP75: 25.57777745 | AQ75: 25.57777783 | AR75: 25.57777785
A76: 1600000US3107205 | B76: Burr village, Nebraska | C76: 3.5 | D76: 4.5 | E76: 3.1 | F76: 3 | G76: 4.2 | H76: 4.3 | I76: 4.3 | J76: 0 | K76: 0 | L76: 0 | M76: 0 | N76: 0 | O76: 0 | P76: 0 | Q76: 0 | R76: 0 | S76: 0 | T76: 0 | U76: 0 | V76: 0 | W76: 0 | X76: 0 | Y76: 0 | Z76: 0 | AA76: 0 | AB76: 0 | AC76: 0 | AD76: 0 | AE76: 0 | AF76: 0 | AG76: 0 | AH76: 0 | AI76: 0 | AJ76: 0 | AK76: 0 | AL76: 0 | AM76: 0 | AN76: 0 | AO76: 0 | AP76: 0 | AQ76: 0 | AR76: 0
A77: 1600000US3107345 | B77: Burwell city, Nebraska | C77: 19.9 | D77: 18.6 | E77: 16.3 | F77: 14 | G77: 11.5 | H77: 14.7 | I77: 16.5 | J77: 18.4 | K77: 20.9 | L77: 26.31048387 | M77: 21.87016129 | N77: 23.02688172 | O77: 23.73584229 | P77: 22.87762843 | Q77: 23.21345082 | R77: 23.27564052 | S77: 23.12223992 | T77: 23.20377708 | U77: 23.20055251 | V77: 23.17552317 | W77: 23.19328425 | X77: 23.18978664 | Y77: 23.18619802 | Z77: 23.18975631 | AA77: 23.18858032 | AB77: 23.18817822 | AC77: 23.18883828 | AD77: 23.18853228 | AE77: 23.18851626 | AF77: 23.18862894 | AG77: 23.18855916 | AH77: 23.18856812 | AI77: 23.18858541 | AJ77: 23.18857089 | AK77: 23.18857481 | AL77: 23.18857704 | AM77: 23.18857425 | AN77: 23.18857536 | AO77: 23.18857555 | AP77: 23.18857505 | AQ77: 23.18857532 | AR77: 23.18857531
A78: 1600000US3107415 | B78: Bushnell village, Nebraska | C78: 2.2 | D78: 5.8 | E78: 10.4 | F78: 17.8 | G78: 16.4 | H78: 13.6 | I78: 10.9 | J78: 10.2 | K78: 5.3 | L78: 4.761904762 | M78: 6.753968254 | N78: 5.605291005 | O78: 5.707054674 | P78: 6.022104644 | Q78: 5.778150108 | R78: 5.835769809 | S78: 5.878674854 | T78: 5.830864923 | U78: 5.848436529 | V78: 5.852658768 | W78: 5.84398674 | X78: 5.848360679 | Y78: 5.848335396 | Z78: 5.846894272 | AA78: 5.847863449 | AB78: 5.847697705 | AC78: 5.847485142 | AD78: 5.847682099 | AE78: 5.847621649 | AF78: 5.847596296 | AG78: 5.847633348 | AH78: 5.847617098 | AI78: 5.847615581 | AJ78: 5.847622009 | AK78: 5.847618229 | AL78: 5.847618606 | AM78: 5.847619615 | AN78: 5.847618817 | AO78: 5.847619013 | AP78: 5.847619148 | AQ78: 5.847618992 | AR78: 5.847619051
A79: 1600000US3107485 | B79: Butte village, Nebraska | C79: 25.9 | D79: 23.6 | E79: 22.7 | F79: 18.9 | G79: 20.8 | H79: 14.2 | I79: 14.1 | J79: 11.2 | K79: 13.5 | L79: 13.68421053 | M79: 12.79473684 | N79: 13.32631579 | O79: 13.26842105 | P79: 13.12982456 | Q79: 13.24152047 | R79: 13.21325536 | S79: 13.1948668 | T79: 13.21654754 | U79: 13.20822323 | V79: 13.20654586 | W79: 13.21043888 | X79: 13.20840266 | Y79: 13.20846246 | Z79: 13.20910133 | AA79: 13.20865548 | AB79: 13.20873976 | AC79: 13.20883219 | AD79: 13.20874248 | AE79: 13.20877148 | AF79: 13.20878205 | AG79: 13.20876533 | AH79: 13.20877295 | AI79: 13.20877345 | AJ79: 13.20877058 | AK79: 13.20877233 | AL79: 13.20877212 | AM79: 13.20877167 | AN79: 13.20877204 | AO79: 13.20877194 | AP79: 13.20877188 | AQ79: 13.20877196 | AR79: 13.20877193
A80: 1600000US3107555 | B80: Byron village, Nebraska | C80: 16.9 | D80: 20 | E80: 18.1 | F80: 21.3 | G80: 8.5 | H80: 9.8 | I80: 9.9 | J80: 9.1 | K80: 9.7 | L80: 9.230769231 | M80: 9.343589744 | N80: 9.424786325 | O80: 9.333048433 | P80: 9.3671415 | Q80: 9.374992086 | R80: 9.358394007 | S80: 9.366842531 | T80: 9.366742875 | U80: 9.363993137 | V80: 9.365859514 | W80: 9.365531842 | X80: 9.365128165 | Y80: 9.365506507 | Z80: 9.365388838 | AA80: 9.36534117 | AB80: 9.365412172 | AC80: 9.365380726 | AD80: 9.365378023 | AE80: 9.365390307 | AF80: 9.365383019 | AG80: 9.365383783 | AH80: 9.365385703 | AI80: 9.365384168 | AJ80: 9.365384551 | AK80: 9.365384807 | AL80: 9.365384509 | AM80: 9.365384622 | AN80: 9.365384646 | AO80: 9.365384592 | AP80: 9.36538462 | AQ80: 9.36538462 | AR80: 9.365384611
A81: 1600000US3107625 | B81: Cairo village, Nebraska | C81: 11.6 | D81: 15.6 | E81: 17.9 | F81: 18.7 | G81: 20.2 | H81: 27.5 | I81: 23.4 | J81: 21.4 | K81: 22.1 | L81: 16.15384615 | M81: 19.88461538 | N81: 19.37948718 | O81: 18.47264957 | P81: 19.24558405 | Q81: 19.0325736 | R81: 18.91693574 | S81: 19.06503113 | T81: 19.00484682 | U81: 18.99560456 | V81: 19.0218275 | W81: 19.0074263 | X81: 19.00828612 | Y81: 19.01251331 | Z81: 19.00940858 | AA81: 19.01006933 | AB81: 19.01066374 | AC81: 19.01004722 | AD81: 19.0102601 | AE81: 19.01032368 | AF81: 19.01021033 | AG81: 19.0102647 | AH81: 19.01026624 | AI81: 19.01024709 | AJ81: 19.01025935 | AK81: 19.01025756 | AL81: 19.01025467 | AM81: 19.01025719 | AN81: 19.01025647 | AO81: 19.01025611 | AP81: 19.01025659 | AQ81: 19.01025639 | AR81: 19.01025636
A82: 1600000US3107660 | B82: Callaway village, Nebraska | C82: 16.4 | D82: 18.7 | E82: 23.5 | F82: 22.7 | G82: 23.2 | H82: 22.2 | I82: 21.7 | J82: 17.9 | K82: 16.1 | L82: 17.58241758 | M82: 17.19413919 | N82: 16.95885226 | O82: 17.24513635 | P82: 17.13270927 | Q82: 17.11223262 | R82: 17.16335941 | S82: 17.13610043 | T82: 17.13723082 | U82: 17.14556356 | V82: 17.1396316 | W82: 17.14080866 | X82: 17.14200127 | Y82: 17.14081385 | Z82: 17.14120793 | AA82: 17.14134102 | AB82: 17.14112093 | AC82: 17.14122329 | AD82: 17.14122841 | AE82: 17.14119088 | AF82: 17.14121419 | AG82: 17.14121116 | AH82: 17.14120541 | AI82: 17.14121026 | AJ82: 17.14120894 | AK82: 17.1412082 | AL82: 17.14120913 | AM82: 17.14120876 | AN82: 17.1412087 | AO82: 17.14120886 | AP82: 17.14120877 | AQ82: 17.14120878 | AR82: 17.14120881
A83: 1600000US3107730 | B83: Cambridge city, Nebraska | C83: 16.3 | D83: 15.5 | E83: 16.6 | F83: 18.3 | G83: 20.9 | H83: 22.6 | I83: 22.1 | J83: 28.3 | K83: 26.2 | L83: 24.09766454 | M83: 26.19922151 | N83: 25.49896202 | O83: 25.26528269 | P83: 25.65448874 | Q83: 25.47291115 | R83: 25.46422753 | S83: 25.53054247 | T83: 25.48922705 | U83: 25.49466568 | V83: 25.50481174 | W83: 25.49623482 | X83: 25.49857075 | Y83: 25.49987244 | Z83: 25.498226 | AA83: 25.49888973 | AB83: 25.49899606 | AC83: 25.49870393 | AD83: 25.49886324 | AE83: 25.49885441 | AF83: 25.49880719 | AG83: 25.49884161 | AH83: 25.4988344 | AI83: 25.49882774 | AJ83: 25.49883458 | AK83: 25.49883224 | AL83: 25.49883152 | AM83: 25.49883278 | AN83: 25.49883218 | AO83: 25.49883216 | AP83: 25.49883238 | AQ83: 25.49883224 | AR83: 25.49883226
A84: 1600000US3107870 | B84: Campbell village, Nebraska | C84: 17 | D84: 13.4 | E84: 12.3 | F84: 10.2 | G84: 12.3 | H84: 5.8 | I84: 4.9 | J84: 4.8 | K84: 6.3 | L84: 8.24742268 | M84: 6.449140893 | N84: 6.998854525 | O84: 7.231806033 | P84: 6.89326715 | Q84: 7.041309236 | R84: 7.055460806 | S84: 6.996679064 | T84: 7.031149702 | U84: 7.027763191 | V84: 7.018530652 | W84: 7.025814515 | X84: 7.024036119 | Y84: 7.022793762 | Z84: 7.024214799 | AA84: 7.02368156 | AB84: 7.023563374 | AC84: 7.023819911 | AD84: 7.023688282 | AE84: 7.023690522 | AF84: 7.023732905 | AG84: 7.023703903 | AH84: 7.02370911 | AI84: 7.023715306 | AJ84: 7.02370944 | AK84: 7.023711285 | AL84: 7.02371201 | AM84: 7.023710912 | AN84: 7.023711402 | AO84: 7.023711442 | AP84: 7.023711252 | AQ84: 7.023711365 | AR84: 7.023711353
A85: 1600000US3107975 | B85: Carleton village, Nebraska | C85: 20.8 | D85: 15.3 | E85: 19 | F85: 18.6 | G85: 6.8 | H85: 8.5 | I85: 9.3 | J85: 11.7 | K85: 14.1 | L85: 25.64102564 | M85: 17.14700855 | N85: 18.96267806 | O85: 20.58357075 | P85: 18.89775245 | Q85: 19.48133376 | R85: 19.65421899 | S85: 19.34443507 | T85: 19.49332927 | U85: 19.49732777 | V85: 19.4450307 | W85: 19.47856258 | X85: 19.47364035 | Y85: 19.46574455 | Z85: 19.47264916 | AA85: 19.47067802 | AB85: 19.46969057 | AC85: 19.47100592 | AD85: 19.47045817 | AE85: 19.47038489 | AF85: 19.47061633 | AG85: 19.47048646 | AH85: 19.47049589 | AI85: 19.47053289 | AJ85: 19.47050508 | AK85: 19.47051129 | AL85: 19.47051642 | AM85: 19.47051093 | AN85: 19.47051288 | AO85: 19.47051341 | AP85: 19.47051241 | AQ85: 19.4705129 | AR85: 19.47051291
A86: 1600000US3108010 | B86: Carroll village, Nebraska | C86: 19.3 | D86: 18.9 | E86: 12.5 | F86: 15.7 | G86: 11.4 | H86: 18.2 | I86: 15.7 | J86: 16.6 | K86: 14.2 | L86: 13.55932203 | M86: 14.78644068 | N86: 14.1819209 | O86: 14.17589454 | P86: 14.38141871 | Q86: 14.24641138 | R86: 14.26790821 | S86: 14.29857943 | T86: 14.27096634 | U86: 14.27915133 | V86: 14.28289903 | W86: 14.27767223 | X86: 14.27990753 | Y86: 14.2801596 | Z86: 14.27924646 | AA86: 14.2797712 | AB86: 14.27972575 | AC86: 14.27958113 | AD86: 14.27969269 | AE86: 14.27966653 | AF86: 14.27964678 | AG86: 14.27966867 | AH86: 14.27966066 | AI86: 14.2796587 | AJ86: 14.27966268 | AK86: 14.27966068 | AL86: 14.27966069 | AM86: 14.27966135 | AN86: 14.27966091 | AO86: 14.27966098 | AP86: 14.27966108 | AQ86: 14.27966099 | AR86: 14.27966102
A87: 1600000US3108150 | B87: Cedar Bluffs village, Nebraska | C87: 10.7 | D87: 7.8 | E87: 8.1 | F87: 8.3 | G87: 8 | H87: 12 | I87: 13.3 | J87: 13.4 | K87: 13.6 | L87: 12.55411255 | M87: 13.18470418 | N87: 13.11293891 | O87: 12.95058522 | P87: 13.08274277 | Q87: 13.04875563 | R87: 13.02736121 | S87: 13.0529532 | T87: 13.04302335 | U87: 13.04111259 | V87: 13.04569638 | W87: 13.04327744 | X87: 13.04336214 | Y87: 13.04411198 | Z87: 13.04358385 | AA87: 13.04368599 | AB87: 13.04379394 | AC87: 13.04368793 | AD87: 13.04372262 | AE87: 13.04373483 | AF87: 13.04371513 | AG87: 13.04372419 | AH87: 13.04372472 | AI87: 13.04372135 | AJ87: 13.04372342 | AK87: 13.04372316 | AL87: 13.04372264 | AM87: 13.04372307 | AN87: 13.04372296 | AO87: 13.04372289 | AP87: 13.04372297 | AQ87: 13.04372294 | AR87: 13.04372294
A88: 1600000US3108185 | B88: Cedar Creek village, Nebraska | C88: 22.5 | D88: 24.8 | E88: 23.6 | F88: 25.1 | G88: 23.3 | H88: 18.4 | I88: 17.8 | J88: 17.7 | K88: 18.2 | L88: 20.99125364 | M88: 18.96375121 | N88: 19.38500162 | O88: 19.78000216 | P88: 19.37625166 | Q88: 19.51375181 | R88: 19.55666855 | S88: 19.48222401 | T88: 19.51754812 | U88: 19.51881356 | V88: 19.50619523 | W88: 19.51418564 | X88: 19.51306481 | Y88: 19.51114856 | Z88: 19.51279967 | AA88: 19.51233768 | AB88: 19.5120953 | AC88: 19.51241088 | AD88: 19.51228129 | AE88: 19.51226249 | AF88: 19.51231822 | AG88: 19.51228733 | AH88: 19.51228935 | AI88: 19.5122983 | AJ88: 19.51229166 | AK88: 19.5122931 | AL88: 19.51229436 | AM88: 19.51229304 | AN88: 19.5122935 | AO88: 19.51229363 | AP88: 19.51229339 | AQ88: 19.51229351 | AR88: 19.51229351
A89: 1600000US3108220 | B89: Cedar Rapids village, Nebraska | C89: 11.2 | D89: 6.7 | E89: 6.3 | F89: 6.3 | G89: 5.9 | H89: 7.1 | I89: 7.9 | J89: 11.2 | K89: 22.2 | L89: 23.11977716 | M89: 18.83992572 | N89: 21.38656763 | O89: 21.1154235 | P89: 20.44730562 | Q89: 20.98309891 | R89: 20.84860934 | S89: 20.75967129 | T89: 20.86379318 | U89: 20.82402461 | V89: 20.81582969 | W89: 20.83454916 | X89: 20.82480115 | Y89: 20.82506 | Z89: 20.82813677 | AA89: 20.82599931 | AB89: 20.82639869 | AC89: 20.82684493 | AD89: 20.82641431 | AE89: 20.82655264 | AF89: 20.82660396 | AG89: 20.82652364 | AH89: 20.82656008 | AI89: 20.82656256 | AJ89: 20.82654876 | AK89: 20.82655713 | AL89: 20.82655615 | AM89: 20.82655401 | AN89: 20.82655577 | AO89: 20.82655531 | AP89: 20.82655503 | AQ89: 20.82655537 | AR89: 20.82655524
A90: 1600000US3108360 | B90: Center village, Nebraska | C90: 7.4 | D90: 8.5 | E90: 10.5 | F90: 18.6 | G90: 20.9 | H90: 20.3 | I90: 17.4 | J90: 11.6 | K90: 2.9 | L90: 2.857142857 | M90: 5.785714286 | N90: 3.847619048 | O90: 4.163492063 | P90: 4.598941799 | Q90: 4.20335097 | R90: 4.321928277 | S90: 4.374740349 | T90: 4.300006532 | U90: 4.332225053 | V90: 4.335657311 | W90: 4.322629632 | X90: 4.330170665 | Y90: 4.32948587 | Z90: 4.327428722 | AA90: 4.329028419 | AB90: 4.32864767 | AC90: 4.328368271 | AD90: 4.328681453 | AE90: 4.328565798 | AF90: 4.328538507 | AG90: 4.328595253 | AH90: 4.328566519 | AI90: 4.32856676 | AJ90: 4.328576177 | AK90: 4.328569819 | AL90: 4.328570919 | AM90: 4.328572305 | AN90: 4.328571014 | AO90: 4.328571413 | AP90: 4.328571577 | AQ90: 4.328571335 | AR90: 4.328571442
A91: 1600000US3108535 | B91: Central City city, Nebraska | C91: 16.8 | D91: 21 | E91: 19.3 | F91: 20.1 | G91: 19 | H91: 19 | I91: 17.3 | J91: 16.2 | K91: 16.3 | L91: 18.02088062 | M91: 16.84029354 | N91: 17.05372472 | O91: 17.30496629 | P91: 17.06632818 | Q91: 17.14167306 | R91: 17.17098918 | S91: 17.12633014 | T91: 17.1463308 | U91: 17.14788337 | V91: 17.14018144 | W91: 17.14479854 | X91: 17.14428778 | Y91: 17.14308925 | Z91: 17.14405852 | AA91: 17.14381185 | AB91: 17.14365321 | AC91: 17.14384119 | AD91: 17.14376875 | AE91: 17.14375438 | AF91: 17.14378811 | AG91: 17.14377042 | AH91: 17.14377097 | AI91: 17.1437765 | AJ91: 17.14377263 | AK91: 17.14377337 | AL91: 17.14377416 | AM91: 17.14377339 | AN91: 17.14377364 | AO91: 17.14377373 | AP91: 17.14377358 | AQ91: 17.14377365 | AR91: 17.14377366
A92: 1600000US3108570 | B92: Ceresco village, Nebraska | C92: 24.2 | D92: 24 | E92: 23.8 | F92: 17.9 | G92: 18.9 | H92: 19.8 | I92: 20.7 | J92: 18.1 | K92: 18.7 | L92: 18.85964912 | M92: 18.55321637 | N92: 18.7042885 | O92: 18.705718 | P92: 18.65440762 | Q92: 18.68813804 | R92: 18.68275455 | S92: 18.67510007 | T92: 18.68199756 | U92: 18.67995073 | V92: 18.67901612 | W92: 18.68032147 | X92: 18.67976277 | Y92: 18.67970012 | Z92: 18.67992812 | AA92: 18.679797 | AB92: 18.67980841 | AC92: 18.67984451 | AD92: 18.67981664 | AE92: 18.67982319 | AF92: 18.67982812 | AG92: 18.67982265 | AH92: 18.67982465 | AI92: 18.67982514 | AJ92: 18.67982415 | AK92: 18.67982465 | AL92: 18.67982464 | AM92: 18.67982448 | AN92: 18.67982459 | AO92: 18.67982457 | AP92: 18.67982455 | AQ92: 18.67982457 | AR92: 18.67982456
A93: 1600000US3108605 | B93: Chadron city, Nebraska | C93: 39.4 | D93: 40.2 | E93: 38.5 | F93: 44.5 | G93: 42.6 | H93: 40.3 | I93: 39.9 | J93: 32.1 | K93: 33.8 | L93: 33.83246528 | M93: 33.24415509 | N93: 33.62554012 | O93: 33.56738683 | P93: 33.47902735 | Q93: 33.5573181 | R93: 33.53457743 | S93: 33.52364096 | T93: 33.53851216 | U93: 33.53224352 | V93: 33.53146555 | W93: 33.53407374 | X93: 33.53259427 | Y93: 33.53271119 | Z93: 33.5331264 | AA93: 33.53281062 | AB93: 33.53288273 | AC93: 33.53293992 | AD93: 33.53287776 | AE93: 33.53290014 | AF93: 33.53290594 | AG93: 33.53289461 | AH93: 33.53290023 | AI93: 33.53290026 | AJ93: 33.53289836 | AK93: 33.53289962 | AL93: 33.53289941 | AM93: 33.53289913 | AN93: 33.53289939 | AO93: 33.53289931 | AP93: 33.53289928 | AQ93: 33.53289932 | AR93: 33.5328993
A94: 1600000US3108675 | B94: Chambers village, Nebraska | C94: 15.5 | D94: 20.2 | E94: 19 | F94: 20.7 | G94: 21.4 | H94: 24.1 | I94: 15.3 | J94: 15.3 | K94: 14.9 | L94: 16.8627451 | M94: 15.6875817 | N94: 15.8167756 | O94: 16.12236747 | P94: 15.87557492 | Q94: 15.93823933 | R94: 15.97872724 | S94: 15.93084716 | T94: 15.94927124 | U94: 15.95294855 | V94: 15.94435565 | W94: 15.94885848 | X94: 15.94872089 | Y94: 15.94731168 | Z94: 15.94829702 | AA94: 15.94810986 | AB94: 15.94790618 | AC94: 15.94810435 | AD94: 15.94804013 | AE94: 15.94801689 | AF94: 15.94805379 | AG94: 15.94803694 | AH94: 15.94803587 | AI94: 15.9480422 | AJ94: 15.94803834 | AK94: 15.9480388 | AL94: 15.94803978 | AM94: 15.94803898 | AN94: 15.94803919 | AO94: 15.94803931 | AP94: 15.94803916 | AQ94: 15.94803922 | AR94: 15.94803923
A95: 1600000US3108780 | B95: Chapman village, Nebraska | C95: 11.6 | D95: 12.4 | E95: 8.8 | F95: 8.9 | G95: 8.7 | H95: 10 | I95: 14.5 | J95: 12.3 | K95: 12.6 | L95: 10.52631579 | M95: 11.80877193 | N95: 11.64502924 | O95: 11.32670565 | P95: 11.59350227 | Q95: 11.52174572 | R95: 11.48065122 | S95: 11.5319664 | T95: 11.51145445 | U95: 11.50802402 | V95: 11.51714829 | W95: 11.51220892 | X95: 11.51246041 | Y95: 11.51393921 | Z95: 11.51286951 | AA95: 11.51308971 | AB95: 11.51329948 | AC95: 11.51308623 | AD95: 11.51315847 | AE95: 11.5131814 | AF95: 11.51314203 | AG95: 11.51316063 | AH95: 11.51316135 | AI95: 11.51315467 | AJ95: 11.51315889 | AK95: 11.51315831 | AL95: 11.51315729 | AM95: 11.51315816 | AN95: 11.51315792 | AO95: 11.51315779 | AP95: 11.51315796 | AQ95: 11.51315789 | AR95: 11.51315788
A96: 1600000US3108885 | B96: Chappell city, Nebraska | C96: 22.5 | D96: 18.8 | E96: 18.8 | F96: 26.3 | G96: 24.7 | H96: 22.9 | I96: 23.9 | J96: 21 | K96: 16.1 | L96: 16.20111732 | M96: 17.76703911 | N96: 16.68938547 | O96: 16.8858473 | P96: 17.11409063 | Q96: 16.89644113 | R96: 16.96545969 | S96: 16.99199715 | T96: 16.95129932 | U96: 16.96958539 | V96: 16.97096062 | W96: 16.96394844 | X96: 16.96816482 | Y96: 16.96769129 | Z96: 16.96660152 | AA96: 16.96748588 | AB96: 16.96725956 | AC96: 16.96711565 | AD96: 16.96728703 | AE96: 16.96722075 | AF96: 16.96720781 | AG96: 16.96723853 | AH96: 16.96722236 | AI96: 16.9672229 | AJ96: 16.96722793 | AK96: 16.9672244 | AL96: 16.96722508 | AM96: 16.9672258 | AN96: 16.96722509 | AO96: 16.96722532 | AP96: 16.96722541 | AQ96: 16.96722527 | AR96: 16.96722533
A97: 1600000US3109095 | B97: Chester village, Nebraska | C97: 9.5 | D97: 11.1 | E97: 13.8 | F97: 8.8 | G97: 11.4 | H97: 13.6 | I97: 15.2 | J97: 18.5 | K97: 17.3 | L97: 14.90384615 | M97: 16.90128205 | N97: 16.36837607 | O97: 16.05783476 | P97: 16.44249763 | Q97: 16.28956948 | R97: 16.26330062 | S97: 16.33178924 | T97: 16.29488645 | U97: 16.29665877 | V97: 16.30777816 | W97: 16.29977446 | X97: 16.3014038 | Y97: 16.30298547 | Z97: 16.30138791 | AA97: 16.30192572 | AB97: 16.3020997 | AC97: 16.30180444 | AD97: 16.30194329 | AE97: 16.30194915 | AF97: 16.30189896 | AG97: 16.30193047 | AH97: 16.30192619 | AI97: 16.30191854 | AJ97: 16.30192506 | AK97: 16.30192326 | AL97: 16.30192229 | AM97: 16.30192354 | AN97: 16.30192303 | AO97: 16.30192295 | AP97: 16.30192317 | AQ97: 16.30192305 | AR97: 16.30192306
A98: 1600000US3109165 | B98: Clarks village, Nebraska | C98: 14.7 | D98: 8.5 | E98: 7.2 | F98: 7.6 | G98: 8.6 | H98: 7.6 | I98: 10.6 | J98: 12.6 | K98: 12.1 | L98: 10.2189781 | M98: 11.63965937 | N98: 11.31954582 | O98: 11.05939443 | P98: 11.33953321 | Q98: 11.23949115 | R98: 11.21280626 | S98: 11.26394354 | T98: 11.23874699 | U98: 11.23849893 | V98: 11.24706315 | W98: 11.24143636 | X98: 11.24233281 | Y98: 11.24361077 | Z98: 11.24245998 | AA98: 11.24280119 | AB98: 11.24295732 | AC98: 11.2427395 | AD98: 11.24283267 | AE98: 11.24284316 | AF98: 11.24280511 | AG98: 11.24282698 | AH98: 11.24282508 | AI98: 11.24281906 | AJ98: 11.2428237 | AK98: 11.24282261 | AL98: 11.24282179 | AM98: 11.2428227 | AN98: 11.24282237 | AO98: 11.24282229 | AP98: 11.24282245 | AQ98: 11.24282237 | AR98: 11.24282237
A99: 1600000US3109200 | B99: Clarkson city, Nebraska | C99: 19.1 | D99: 15.7 | E99: 15 | F99: 16.9 | G99: 15.6 | H99: 12.4 | I99: 12.8 | J99: 10.9 | K99: 12.5 | L99: 22.03065134 | M99: 15.14355045 | N99: 16.55806726 | O99: 17.91075635 | P99: 16.53745802 | Q99: 17.00209388 | R99: 17.15010275 | S99: 16.89655155 | T99: 17.01624939 | U99: 17.0209679 | V99: 16.97792295 | W99: 17.00504674 | X99: 17.00131253 | Y99: 16.99476074 | Z99: 17.00037334 | AA99: 16.99881554 | AB99: 16.9979832 | AC99: 16.99905736 | AD99: 16.9986187 | AE99: 16.99855309 | AF99: 16.99874305 | AG99: 16.99863828 | AH99: 16.99864481 | AI99: 16.99867538 | AJ99: 16.99865282 | AK99: 16.99865767 | AL99: 16.99866196 | AM99: 16.99865748 | AN99: 16.99865903 | AO99: 16.99865949 | AP99: 16.99865867 | AQ99: 16.99865906 | AR99: 16.99865907
A100: 1600000US3109270 | B100: Clatonia village, Nebraska | C100: 14.4 | D100: 11 | E100: 7 | F100: 4 | G100: 8 | H100: 7.7 | I100: 17 | J100: 19.1 | K100: 18.2 | L100: 19.86531987 | M100: 19.05510662 | N100: 19.04014216 | O100: 19.32018955 | P100: 19.13847944 | Q100: 19.16627039 | R100: 19.20831313 | S100: 19.17102099 | T100: 19.18186817 | U100: 19.18706743 | V100: 19.17998553 | W100: 19.18297371 | X100: 19.18334222 | Y100: 19.18210048 | Z100: 19.18280547 | AA100: 19.18274939 | AB100: 19.18255178 | AC100: 19.18270221 | AD100: 19.1826678 | AE100: 19.1826406 | AF100: 19.1826702 | AG100: 19.18265953 | AH100: 19.18265678 | AI100: 19.18266217 | AJ100: 19.18265949 | AK100: 19.18265948 | AL100: 19.18266038 | AM100: 19.18265978 | AN100: 19.18265988 | AO100: 19.18266002 | AP100: 19.18265989 | AQ100: 19.18265993 | AR100: 19.18265995
A101: 1600000US3109375 | B101: Clay Center city, Nebraska | C101: 20.1 | D101: 20 | E101: 20.2 | F101: 20.1 | G101: 13.8 | H101: 16.6 | I101: 16.2 | J101: 12.8 | K101: 13.5 | L101: 17.82334385 | M101: 14.70778128 | N101: 15.34370838 | O101: 15.95827784 | P101: 15.33658917 | Q101: 15.54619179 | R101: 15.61368626 | S101: 15.49882241 | T101: 15.55290016 | U101: 15.55513628 | V101: 15.53561961 | W101: 15.54788535 | X101: 15.54621375 | Y101: 15.54323957 | Z101: 15.54577955 | AA101: 15.54507762 | AB101: 15.54469892 | AC101: 15.54518536 | AD101: 15.5449873 | AE101: 15.54495719 | AF101: 15.54504329 | AG101: 15.54499593 | AH101: 15.5449988 | AI101: 15.54501267 | AJ101: 15.54500247 | AK101: 15.54500465 | AL101: 15.5450066 | AM101: 15.54500457 | AN101: 15.54500527 | AO101: 15.54500548 | AP101: 15.54500511 | AQ101: 15.54500529 | AR101: 15.54500529
A102: 1600000US3109445 | B102: Clearwater village, Nebraska | C102: 10.6 | D102: 10.8 | E102: 9.4 | F102: 13.1 | G102: 13.6 | H102: 9.7 | I102: 8.7 | J102: 12.2 | K102: 11.8 | L102: 13.99176955 | M102: 12.66392318 | N102: 12.81856424 | O102: 13.15808566 | P102: 12.88019103 | Q102: 12.95228031 | R102: 12.99685233 | S102: 12.94310789 | T102: 12.96408018 | U102: 12.96801347 | V102: 12.95840051 | W102: 12.96349805 | X102: 12.96330401 | Y102: 12.96173419 | Z102: 12.96284542 | AA102: 12.96262787 | AB102: 12.96240249 | AC102: 12.96262526 | AD102: 12.96255188 | AE102: 12.96252654 | AF102: 12.96256789 | AG102: 12.96254877 | AH102: 12.96254774 | AI102: 12.9625548 | AJ102: 12.96255044 | AK102: 12.96255099 | AL102: 12.96255208 | AM102: 12.96255117 | AN102: 12.96255141 | AO102: 12.96255155 | AP102: 12.96255138 | AQ102: 12.96255145 | AR102: 12.96255146
A103: 1600000US3109655 | B103: Clinton village, Nebraska | C103: 8 | D103: 5.6 | E103: 5 | F103: 4.8 | G103: 4.9 | H103: 7.9 | I103: 8.3 | J103: 7.9 | K103: 7.1 | L103: 22.5 | M103: 12.5 | N103: 14.03333333 | O103: 16.34444444 | P103: 14.29259259 | Q103: 14.89012346 | R103: 15.17572016 | S103: 14.7861454 | T103: 14.95066301 | U103: 14.97084286 | V103: 14.90255042 | W103: 14.9413521 | X103: 14.93824846 | Y103: 14.92738366 | Z103: 14.93566141 | AA103: 14.93376451 | AB103: 14.93226986 | AC103: 14.93389859 | AD103: 14.93331099 | AE103: 14.93315981 | AF103: 14.93345646 | AG103: 14.93330909 | AH103: 14.93330845 | AI103: 14.933358 | AJ103: 14.93332518 | AK103: 14.93333055 | AL103: 14.93333791 | AM103: 14.93333121 | AN103: 14.93333322 | AO103: 14.93333411 | AP103: 14.93333285 | AQ103: 14.9333334 | AR103: 14.93333345
A104: 1600000US3109760 | B104: Cody village, Nebraska | C104: 9.9 | D104: 8.8 | E104: 18.6 | F104: 18.9 | G104: 19.5 | H104: 21.8 | I104: 24.5 | J104: 26.2 | K104: 26.7 | L104: 30.625 | M104: 27.84166667 | N104: 28.38888889 | O104: 28.95185185 | P104: 28.3941358 | Q104: 28.57829218 | R104: 28.64142661 | S104: 28.53795153 | T104: 28.58589011 | U104: 28.58842275 | V104: 28.5707548 | W104: 28.58168922 | X104: 28.58028892 | Y104: 28.57757765 | Z104: 28.57985193 | AA104: 28.5792395 | AB104: 28.57888969 | AC104: 28.57932704 | AD104: 28.57915208 | AE104: 28.57912294 | AF104: 28.57920068 | AG104: 28.57915857 | AH104: 28.57916073 | AI104: 28.57917333 | AJ104: 28.57916421 | AK104: 28.57916609 | AL104: 28.57916787 | AM104: 28.57916606 | AN104: 28.57916667 | AO104: 28.57916687 | AP104: 28.57916653 | AQ104: 28.57916669 | AR104: 28.5791667
A105: 1600000US3109865 | B105: Coleridge village, Nebraska | C105: 13.6 | D105: 12.8 | E105: 10.1 | F105: 12.1 | G105: 9.9 | H105: 13.2 | I105: 13.3 | J105: 14.3 | K105: 12 | L105: 9.443099274 | M105: 11.91436642 | N105: 11.11915523 | O105: 10.82554031 | P105: 11.28635399 | Q105: 11.07701651 | R105: 11.06297027 | S105: 11.14211359 | T105: 11.09403346 | U105: 11.09970577 | V105: 11.11195094 | W105: 11.10189672 | X105: 11.10451781 | Y105: 11.10612182 | Z105: 11.10417879 | AA105: 11.10493947 | AB105: 11.10508003 | AC105: 11.10473276 | AD105: 11.10491742 | AE105: 11.10491007 | AF105: 11.10485342 | AG105: 11.10489364 | AH105: 11.10488571 | AI105: 11.10487759 | AJ105: 11.10488564 | AK105: 11.10488298 | AL105: 11.10488207 | AM105: 11.10488357 | AN105: 11.10488287 | AO105: 11.10488284 | AP105: 11.10488309 | AQ105: 11.10488293 | AR105: 11.10488295
A106: 1600000US3110005 | B106: Colon village, Nebraska | C106: 17.7 | D106: 14.3 | E106: 13.6 | F106: 6 | G106: 11.2 | H106: 30.6 | I106: 13 | J106: 13.5 | K106: 35.6 | L106: 27.35849057 | M106: 25.48616352 | N106: 29.48155136 | O106: 27.44206848 | P106: 27.46992779 | Q106: 28.13118255 | R106: 27.68105961 | S106: 27.76072331 | T106: 27.85765515 | U106: 27.76647936 | V106: 27.79495261 | W106: 27.80636237 | X106: 27.78926478 | Y106: 27.79685992 | Z106: 27.79749569 | AA106: 27.79454013 | AB106: 27.79629858 | AC106: 27.79611147 | AD106: 27.79565006 | AE106: 27.79602004 | AF106: 27.79592719 | AG106: 27.79586576 | AH106: 27.79593766 | AI106: 27.7959102 | AJ106: 27.79590454 | AK106: 27.79591747 | AL106: 27.79591074 | AM106: 27.79591092 | AN106: 27.79591304 | AO106: 27.79591157 | AP106: 27.79591184 | AQ106: 27.79591215 | AR106: 27.79591185
A107: 1600000US3110110 | B107: Columbus city, Nebraska | C107: 21.2 | D107: 19.5 | E107: 19.1 | F107: 19.6 | G107: 21.9 | H107: 21.1 | I107: 22.1 | J107: 20.6 | K107: 21.6 | L107: 20.0337484 | M107: 20.7445828 | N107: 20.79277707 | O107: 20.52370276 | P107: 20.68702087 | Q107: 20.66783357 | R107: 20.62618573 | S107: 20.66034672 | T107: 20.65145534 | U107: 20.64599593 | V107: 20.65259933 | W107: 20.65001687 | X107: 20.64953738 | Y107: 20.65071786 | Z107: 20.6500907 | AA107: 20.65011531 | AB107: 20.65030796 | AC107: 20.65017132 | AD107: 20.6501982 | AE107: 20.65022583 | AF107: 20.65019845 | AG107: 20.65020749 | AH107: 20.65021059 | AI107: 20.65020551 | AJ107: 20.65020786 | AK107: 20.65020799 | AL107: 20.65020712 | AM107: 20.65020766 | AN107: 20.65020759 | AO107: 20.65020746 | AP107: 20.65020757 | AQ107: 20.65020754 | AR107: 20.65020752
A108: 1600000US3110180 | B108: Comstock village, Nebraska | C108: 5.9 | D108: 3.6 | E108: 3.4 | F108: 3.8 | G108: 3.1 | H108: 5.8 | I108: 2.9 | J108: 2.5 | K108: 7.8 | L108: 13.54166667 | M108: 7.947222222 | N108: 9.762962963 | O108: 10.41728395 | P108: 9.375823045 | Q108: 9.85202332 | R108: 9.881710105 | S108: 9.70318549 | T108: 9.812306305 | U108: 9.7990673 | V108: 9.771519698 | W108: 9.794297768 | X108: 9.788294922 | Y108: 9.784704129 | Z108: 9.78909894 | AA108: 9.787365997 | AB108: 9.787056355 | AC108: 9.787840431 | AD108: 9.787420928 | AE108: 9.787439238 | AF108: 9.787566865 | AG108: 9.787475677 | AH108: 9.787493927 | AI108: 9.787512156 | AJ108: 9.78749392 | AK108: 9.787500001 | AL108: 9.787502026 | AM108: 9.787498649 | AN108: 9.787500225 | AO108: 9.7875003 | AP108: 9.787499725 | AQ108: 9.787500083 | AR108: 9.787500036
A109: 1600000US3110250 | B109: Concord village, Nebraska | C109: 25.5 | D109: 30.1 | E109: 34.7 | F109: 29.4 | G109: 28.2 | H109: 29.1 | I109: 27.8 | J109: 25.5 | K109: 24.3 | L109: 26.8907563 | M109: 25.56358543 | N109: 25.58478058 | O109: 26.01304077 | P109: 25.72046893 | Q109: 25.77276343 | R109: 25.83542438 | S109: 25.77621891 | T109: 25.79480224 | U109: 25.80214851 | V109: 25.79105655 | W109: 25.79600243 | X109: 25.7964025 | Y109: 25.79448716 | Z109: 25.7956307 | AA109: 25.79550678 | AB109: 25.79520821 | AC109: 25.79544857 | AD109: 25.79538785 | AE109: 25.79534821 | AF109: 25.79539488 | AG109: 25.79537698 | AH109: 25.79537336 | AI109: 25.79538174 | AJ109: 25.79537736 | AK109: 25.79537748 | AL109: 25.79537886 | AM109: 25.7953779 | AN109: 25.79537808 | AO109: 25.79537828 | AP109: 25.79537809 | AQ109: 25.79537815 | AR109: 25.79537817
A110: 1600000US3110390 | B110: Cook village, Nebraska | C110: 21.7 | D110: 22.8 | E110: 30.8 | F110: 29.4 | G110: 28.2 | H110: 26 | I110: 25.1 | J110: 24.4 | K110: 20.1 | L110: 20.46979866 | M110: 21.65659955 | N110: 20.74213274 | O110: 20.95617698 | P110: 21.11830309 | Q110: 20.93887094 | R110: 21.00445034 | S110: 21.02054145 | T110: 20.98795424 | U110: 21.00431534 | V110: 21.00427035 | W110: 20.99884664 | X110: 21.00247745 | Y110: 21.00186481 | Z110: 21.00106297 | AA110: 21.00180174 | AB110: 21.00157651 | AC110: 21.00148041 | AD110: 21.00161955 | AE110: 21.00155882 | AF110: 21.00155293 | AG110: 21.0015771 | AH110: 21.00156295 | AI110: 21.00156433 | AJ110: 21.00156812 | AK110: 21.00156513 | AL110: 21.00156586 | AM110: 21.00156637 | AN110: 21.00156579 | AO110: 21.00156601 | AP110: 21.00156606 | AQ110: 21.00156595 | AR110: 21.001566
A111: 1600000US3110495 | B111: Cordova village, Nebraska | C111: 13.5 | D111: 8.6 | E111: 4.1 | F111: 2.5 | G111: 2.3 | H111: 3.8 | I111: 2.9 | J111: 3.2 | K111: 3 | L111: 11.66666667 | M111: 5.955555556 | N111: 6.874074074 | O111: 8.165432099 | P111: 6.998353909 | Q111: 7.345953361 | R111: 7.503246456 | S111: 7.282517909 | T111: 7.377239242 | U111: 7.387667869 | V111: 7.349141673 | W111: 7.371349595 | X111: 7.369386379 | Y111: 7.363292549 | Z111: 7.368009508 | AA111: 7.366896145 | AB111: 7.366066067 | AC111: 7.366990573 | AD111: 7.366650929 | AE111: 7.36656919 | AF111: 7.366736897 | AG111: 7.366652339 | AH111: 7.366652809 | AI111: 7.366680681 | AJ111: 7.366661943 | AK111: 7.366665144 | AL111: 7.366669256 | AM111: 7.366665448 | AN111: 7.366666616 | AO111: 7.366667107 | AP111: 7.36666639 | AQ111: 7.366666704 | AR111: 7.366666734
A112: 1600000US3110600 | B112: Cornlea village, Nebraska | C112: 38.9 | D112: 6.7 | E112: 8.3 | F112: 13 | G112: 10 | H112: 8.1 | I112: 9.1 | J112: 0 | K112: 0 | L112: 0 | M112: 0 | N112: 0 | O112: 0 | P112: 0 | Q112: 0 | R112: 0 | S112: 0 | T112: 0 | U112: 0 | V112: 0 | W112: 0 | X112: 0 | Y112: 0 | Z112: 0 | AA112: 0 | AB112: 0 | AC112: 0 | AD112: 0 | AE112: 0 | AF112: 0 | AG112: 0 | AH112: 0 | AI112: 0 | AJ112: 0 | AK112: 0 | AL112: 0 | AM112: 0 | AN112: 0 | AO112: 0 | AP112: 0 | AQ112: 0 | AR112: 0
A113: 1600000US3110635 | B113: Cortland village, Nebraska | C113: 18.8 | D113: 14.4 | E113: 13.7 | F113: 16.2 | G113: 15.5 | H113: 19.7 | I113: 21.8 | J113: 22.6 | K113: 22.3 | L113: 20 | M113: 21.63333333 | N113: 21.31111111 | O113: 20.98148148 | P113: 21.30864198 | Q113: 21.20041152 | R113: 21.16351166 | S113: 21.22418839 | T113: 21.19603719 | U113: 21.19457908 | V113: 21.20493488 | W113: 21.19851705 | X113: 21.19934367 | Y113: 21.20093187 | Z113: 21.19959753 | AA113: 21.19995769 | AB113: 21.20016236 | AC113: 21.19990586 | AD113: 21.20000864 | AE113: 21.20002562 | AF113: 21.19998004 | AG113: 21.20000477 | AH113: 21.20000348 | AI113: 21.19999609 | AJ113: 21.20000145 | AK113: 21.20000034 | AL113: 21.19999929 | AM113: 21.20000036 | AN113: 21.2 | AO113: 21.19999988 | AP113: 21.20000008 | AQ113: 21.19999999 | AR113: 21.19999998
A114: 1600000US3110740 | B114: Cotesfield village, Nebraska | C114: 15.9 | D114: 14.3 | E114: 25 | F114: 22.6 | G114: 12.8 | H114: 0 | I114: 0 | J114: 0 | K114: 12.5 | L114: 12.5 | M114: 8.333333333 | N114: 11.11111111 | O114: 10.64814815 | P114: 10.0308642 | Q114: 10.59670782 | R114: 10.42524005 | S114: 10.35093736 | T114: 10.45762841 | U114: 10.41126861 | V114: 10.40661146 | W114: 10.42516949 | X114: 10.41434985 | Y114: 10.41537693 | Z114: 10.41829876 | AA114: 10.41600852 | AB114: 10.4165614 | AC114: 10.41695623 | AD114: 10.41650871 | AE114: 10.41667545 | AF114: 10.41671346 | AG114: 10.41663254 | AH114: 10.41667382 | AI114: 10.41667327 | AJ114: 10.41665988 | AK114: 10.41666899 | AL114: 10.41666738 | AM114: 10.41666542 | AN114: 10.41666726 | AO114: 10.41666669 | AP114: 10.41666645 | AQ114: 10.4166668 | AR114: 10.41666665
A115: 1600000US3110985 | B115: Cowles village, Nebraska | C115: 18.8 | D115: 26.7 | E115: 21.4 | F115: 12.5 | G115: 14.3 | H115: 20 | I115: 33.3 | J115: 12.5 | K115: 10 | L115: 14.28571429 | M115: 12.26190476 | N115: 12.18253968 | O115: 12.91005291 | P115: 12.45149912 | Q115: 12.51469724 | R115: 12.62541642 | S115: 12.53053759 | T115: 12.55688375 | U115: 12.57094592 | V115: 12.55278909 | W115: 12.56020625 | X115: 12.56131375 | Y115: 12.55810303 | Z115: 12.55987435 | AA115: 12.55976371 | AB115: 12.55924703 | AC115: 12.55962836 | AD115: 12.55954637 | AE115: 12.55947392 | AF115: 12.55954955 | AG115: 12.55952328 | AH115: 12.55951558 | AI115: 12.55952947 | AJ115: 12.55952278 | AK115: 12.55952261 | AL115: 12.55952495 | AM115: 12.55952345 | AN115: 12.55952367 | AO115: 12.55952402 | AP115: 12.55952371 | AQ115: 12.5595238 | AR115: 12.55952385
A116: 1600000US3111020 | B116: Cozad city, Nebraska | C116: 17.8 | D116: 17.4 | E116: 17.8 | F116: 18.1 | G116: 19 | H116: 16.8 | I116: 20.4 | J116: 16.1 | K116: 16.8 | L116: 15.98500341 | M116: 16.29500114 | N116: 16.36000151 | O116: 16.21333535 | P116: 16.289446 | Q116: 16.28759429 | R116: 16.26345855 | S116: 16.28016628 | T116: 16.27707304 | U116: 16.27356596 | V116: 16.27693509 | W116: 16.27585803 | X116: 16.27545303 | Y116: 16.27608205 | Z116: 16.2757977 | AA116: 16.27577759 | AB116: 16.27588578 | AC116: 16.27582036 | AD116: 16.27582791 | AE116: 16.27584468 | AF116: 16.27583098 | AG116: 16.27583453 | AH116: 16.27583673 | AI116: 16.27583408 | AJ116: 16.27583511 | AK116: 16.27583531 | AL116: 16.27583483 | AM116: 16.27583508 | AN116: 16.27583507 | AO116: 16.275835 | AP116: 16.27583505 | AQ116: 16.27583504 | AR116: 16.27583503
A117: 1600000US3111055 | B117: Crab Orchard village, Nebraska | C117: 16.3 | D117: 15.6 | E117: 20.4 | F117: 4.4 | G117: 3.2 | H117: 2.2 | I117: 4.3 | J117: 7.7 | K117: 4.3 | L117: 5.555555556 | M117: 5.851851852 | N117: 5.235802469 | O117: 5.547736626 | P117: 5.545130316 | Q117: 5.442889803 | R117: 5.511918915 | S117: 5.499979678 | T117: 5.484929465 | U117: 5.498942686 | V117: 5.494617276 | W117: 5.492829809 | X117: 5.495463257 | Y117: 5.494303448 | Z117: 5.494198838 | AA117: 5.494655181 | AB117: 5.494385822 | AC117: 5.49441328 | AD117: 5.494484761 | AE117: 5.494427955 | AF117: 5.494441999 | AG117: 5.494451572 | AH117: 5.494440508 | AI117: 5.494444693 | AJ117: 5.494445591 | AK117: 5.494443597 | AL117: 5.494444627 | AM117: 5.494444605 | AN117: 5.494444276 | AO117: 5.494444503 | AP117: 5.494444461 | AQ117: 5.494444414 | AR117: 5.494444459
A118: 1600000US3111090 | B118: Craig village, Nebraska | C118: 8.5 | D118: 11.6 | E118: 7.8 | F118: 8.6 | G118: 8.9 | H118: 8.5 | I118: 4.8 | J118: 5.4 | K118: 10.4 | L118: 10.94890511 | M118: 8.916301703 | N118: 10.08840227 | O118: 9.984536361 | P118: 9.663080112 | Q118: 9.912006248 | R118: 9.853207574 | S118: 9.809431311 | T118: 9.858215044 | U118: 9.840284643 | V118: 9.835976999 | W118: 9.844825562 | X118: 9.840362402 | Y118: 9.840388321 | Z118: 9.841858762 | AA118: 9.840869828 | AB118: 9.84103897 | AC118: 9.841255853 | AD118: 9.841054884 | AE118: 9.841116569 | AF118: 9.841142435 | AG118: 9.841104629 | AH118: 9.841121211 | AI118: 9.841122759 | AJ118: 9.8411162 | AK118: 9.841120057 | AL118: 9.841119672 | AM118: 9.841118643 | AN118: 9.841119457 | AO118: 9.841119257 | AP118: 9.841119119 | AQ118: 9.841119278 | AR118: 9.841119218
A119: 1600000US3111195 | B119: Crawford city, Nebraska | C119: 18.3 | D119: 17.3 | E119: 17.8 | F119: 18.6 | G119: 17.7 | H119: 16.4 | I119: 21.9 | J119: 20 | K119: 19.7 | L119: 23.1042654 | M119: 20.93475513 | N119: 21.24634018 | O119: 21.76178691 | P119: 21.31429407 | Q119: 21.44080705 | R119: 21.50562934 | S119: 21.42024349 | T119: 21.45555996 | U119: 21.4604776 | V119: 21.44542702 | W119: 21.45382153 | X119: 21.45324205 | Y119: 21.4508302 | Z119: 21.45263126 | AA119: 21.4522345 | AB119: 21.45189865 | AC119: 21.4522548 | AD119: 21.45212932 | AE119: 21.45209426 | AF119: 21.45215946 | AG119: 21.45212768 | AH119: 21.45212713 | AI119: 21.45213809 | AJ119: 21.45213097 | AK119: 21.45213206 | AL119: 21.45213371 | AM119: 21.45213224 | AN119: 21.45213267 | AO119: 21.45213287 | AP119: 21.4521326 | AQ119: 21.45213271 | AR119: 21.45213273
A120: 1600000US3111230 | B120: Creighton city, Nebraska | C120: 17.3 | D120: 15.6 | E120: 16.5 | F120: 14.4 | G120: 15 | H120: 21.7 | I120: 23.2 | J120: 22.8 | K120: 25.9 | L120: 25.05219207 | M120: 24.58406402 | N120: 25.17875203 | O120: 24.93833604 | P120: 24.90038403 | Q120: 25.00582403 | R120: 24.94818137 | S120: 24.95146314 | T120: 24.96848951 | U120: 24.95604468 | V120: 24.95866578 | W120: 24.96106666 | X120: 24.95859237 | Y120: 24.9594416 | Z120: 24.95970021 | AA120: 24.95924473 | AB120: 24.95946218 | AC120: 24.95946904 | AD120: 24.95939198 | AE120: 24.95944107 | AF120: 24.95943403 | AG120: 24.95942236 | AH120: 24.95943248 | AI120: 24.95942962 | AJ120: 24.95942816 | AK120: 24.95943009 | AL120: 24.95942929 | AM120: 24.95942918 | AN120: 24.95942952 | AO120: 24.95942933 | AP120: 24.95942934 | AQ120: 24.9594294 | AR120: 24.95942936
A121: 1600000US3111300 | B121: Creston village, Nebraska | C121: 4.7 | D121: 3.8 | E121: 11.6 | F121: 13.4 | G121: 11.6 | H121: 12.3 | I121: 14.4 | J121: 10.7 | K121: 14.7 | L121: 17.8807947 | M121: 14.42693157 | N121: 15.66924209 | O121: 15.99232279 | P121: 15.36283215 | Q121: 15.67479901 | R121: 15.67665131 | S121: 15.57142749 | T121: 15.64095927 | U121: 15.62967936 | V121: 15.61402204 | W121: 15.62822022 | X121: 15.62397387 | Y121: 15.62207205 | Z121: 15.62475538 | AA121: 15.62360043 | AB121: 15.62347595 | AC121: 15.62394392 | AD121: 15.62367344 | AE121: 15.62369777 | AF121: 15.62377171 | AG121: 15.62371431 | AH121: 15.62372793 | AI121: 15.62373798 | AJ121: 15.62372674 | AK121: 15.62373088 | AL121: 15.62373187 | AM121: 15.62372983 | AN121: 15.62373086 | AO121: 15.62373085 | AP121: 15.62373051 | AQ121: 15.62373074 | AR121: 15.6237307
A122: 1600000US3111370 | B122: Crete city, Nebraska | C122: 18.4 | D122: 15.2 | E122: 16.6 | F122: 15.3 | G122: 14.4 | H122: 12.1 | I122: 13.1 | J122: 7.9 | K122: 10.1 | L122: 13.85057471 | M122: 10.61685824 | N122: 11.52247765 | O122: 11.99663687 | P122: 11.37865758 | Q122: 11.6325907 | R122: 11.66929505 | S122: 11.56018111 | T122: 11.62068895 | U122: 11.61672171 | V122: 11.59919726 | W122: 11.61220264 | X122: 11.60937387 | Y122: 11.60692459 | Z122: 11.60950036 | AA122: 11.60859961 | AB122: 11.60834152 | AC122: 11.60881383 | AD122: 11.60858499 | AE122: 11.60858011 | AF122: 11.60865964 | AG122: 11.60860825 | AH122: 11.608616 | AI122: 11.60862796 | AJ122: 11.6086174 | AK122: 11.60862046 | AL122: 11.60862194 | AM122: 11.60861993 | AN122: 11.60862078 | AO122: 11.60862088 | AP122: 11.60862053 | AQ122: 11.60862073 | AR122: 11.60862072
A123: 1600000US3111440 | B123: Crofton city, Nebraska | C123: 21.9 | D123: 21.8 | E123: 21.3 | F123: 17.7 | G123: 18.1 | H123: 18.6 | I123: 19.7 | J123: 19.1 | K123: 20.2 | L123: 19.39586645 | M123: 19.56528882 | N123: 19.72038509 | O123: 19.56051345 | P123: 19.61539579 | Q123: 19.63209811 | R123: 19.60266912 | S123: 19.61672101 | T123: 19.61716274 | U123: 19.61218429 | V123: 19.61535601 | W123: 19.61490102 | X123: 19.61414711 | Y123: 19.61480138 | Z123: 19.6146165 | AA123: 19.61452166 | AB123: 19.61464651 | AC123: 19.61459489 | AD123: 19.61458769 | AE123: 19.6146097 | AF123: 19.61459743 | AG123: 19.61459827 | AH123: 19.6146018 | AI123: 19.61459917 | AJ123: 19.61459974 | AK123: 19.61460024 | AL123: 19.61459972 | AM123: 19.6145999 | AN123: 19.61459995 | AO123: 19.61459985 | AP123: 19.6145999 | AQ123: 19.6145999 | AR123: 19.61459989
A124: 1600000US3111475 | B124: Crookston village, Nebraska | C124: 8.8 | D124: 10.2 | E124: 6.5 | F124: 5.6 | G124: 7.1 | H124: 9.1 | I124: 14.3 | J124: 13 | K124: 6.1 | L124: 10.86956522 | M124: 9.989855072 | N124: 8.98647343 | O124: 9.94863124 | P124: 9.641653247 | Q124: 9.525585972 | R124: 9.705290153 | S124: 9.624176458 | T124: 9.618350861 | U124: 9.649272491 | V124: 9.630599937 | W124: 9.632741096 | X124: 9.637537841 | Y124: 9.633626291 | Z124: 9.634635076 | AA124: 9.635266403 | AB124: 9.634509257 | AC124: 9.634803579 | AD124: 9.634859746 | AE124: 9.634724194 | AF124: 9.634795839 | AG124: 9.63479326 | AH124: 9.634771098 | AI124: 9.634786732 | AJ124: 9.634783697 | AK124: 9.634780509 | AL124: 9.634783646 | AM124: 9.634782617 | AN124: 9.634782257 | AO124: 9.63478284 | AP124: 9.634782572 | AQ124: 9.634782556 | AR124: 9.634782656
A125: 1600000US3111615 | B125: Culbertson village, Nebraska | C125: 9.9 | D125: 9.5 | E125: 11.5 | F125: 10.8 | G125: 12.2 | H125: 11.5 | I125: 12.1 | J125: 13.4 | K125: 16.3 | L125: 16.26213592 | M125: 15.32071197 | N125: 15.9609493 | O125: 15.8479324 | P125: 15.70986456 | Q125: 15.83958208 | R125: 15.79912635 | S125: 15.78285766 | T125: 15.8071887 | U125: 15.7963909 | V125: 15.79547909 | W125: 15.79968623 | X125: 15.79718541 | Y125: 15.79745024 | Z125: 15.79810729 | AA125: 15.79758098 | AB125: 15.79771284 | AC125: 15.79780037 | AD125: 15.79769806 | AE125: 15.79773709 | AF125: 15.79774517 | AG125: 15.79772678 | AH125: 15.79773635 | AI125: 15.7977361 | AJ125: 15.79773307 | AK125: 15.79773517 | AL125: 15.79773478 | AM125: 15.79773434 | AN125: 15.79773477 | AO125: 15.79773463 | AP125: 15.79773458 | AQ125: 15.79773466 | AR125: 15.79773462
A126: 1600000US3111825 | B126: Curtis city, Nebraska | C126: 30.1 | D126: 25.8 | E126: 26.9 | F126: 22.3 | G126: 22.8 | H126: 26.4 | I126: 25.3 | J126: 17.3 | K126: 17.2 | L126: 15.58641975 | M126: 16.69547325 | N126: 16.49396433 | O126: 16.25861911 | P126: 16.48268557 | Q126: 16.41175634 | R126: 16.38435367 | S126: 16.42626519 | T126: 16.4074584 | U126: 16.40602576 | V126: 16.41324978 | W126: 16.40891131 | X126: 16.40939562 | Y126: 16.4105189 | Z126: 16.40960861 | AA126: 16.40984104 | AB126: 16.40998952 | AC126: 16.40981306 | AD126: 16.40988121 | AE126: 16.4098946 | AF126: 16.40986295 | AG126: 16.40987959 | AH126: 16.40987904 | AI126: 16.40987386 | AJ126: 16.4098775 | AK126: 16.4098768 | AL126: 16.40987605 | AM126: 16.40987678 | AN126: 16.40987655 | AO126: 16.40987646 | AP126: 16.4098766 | AQ126: 16.40987653 | AR126: 16.40987653
A127: 1600000US3111860 | B127: Cushing village, Nebraska | C127: 0 | D127: 0 | E127: 0 | F127: 0 | G127: 0 | H127: 0 | I127: 0 | J127: 0 | K127: 0 | L127: 0 | M127: 0 | N127: 0 | O127: 0 | P127: 0 | Q127: 0 | R127: 0 | S127: 0 | T127: 0 | U127: 0 | V127: 0 | W127: 0 | X127: 0 | Y127: 0 | Z127: 0 | AA127: 0 | AB127: 0 | AC127: 0 | AD127: 0 | AE127: 0 | AF127: 0 | AG127: 0 | AH127: 0 | AI127: 0 | AJ127: 0 | AK127: 0 | AL127: 0 | AM127: 0 | AN127: 0 | AO127: 0 | AP127: 0 | AQ127: 0 | AR127: 0
A128: 1600000US3112000 | B128: Dakota City city, Nebraska | C128: 9.7 | D128: 9.6 | E128: 10.3 | F128: 14 | G128: 11.8 | H128: 11 | I128: 13.8 | J128: 14.4 | K128: 12.5 | L128: 14.55696203 | M128: 13.81898734 | N128: 13.62531646 | O128: 14.00042194 | P128: 13.81490858 | Q128: 13.81354899 | R128: 13.87629317 | S128: 13.83491691 | T128: 13.84158636 | U128: 13.85093215 | V128: 13.84247847 | W128: 13.84499899 | X128: 13.84613654 | Y128: 13.844538 | Z128: 13.84522451 | AA128: 13.84529968 | AB128: 13.84502073 | AC128: 13.84518164 | AD128: 13.84516735 | AE128: 13.84512324 | AF128: 13.84515741 | AG128: 13.84514934 | AH128: 13.84514333 | AI128: 13.84515003 | AJ128: 13.84514756 | AK128: 13.84514697 | AL128: 13.84514819 | AM128: 13.84514758 | AN128: 13.84514758 | AO128: 13.84514778 | AP128: 13.84514765 | AQ128: 13.84514767 | AR128: 13.8451477
A129: 1600000US3112070 | B129: Dalton village, Nebraska | C129: 16.1 | D129: 14 | E129: 15 | F129: 14.5 | G129: 16.9 | H129: 18.5 | I129: 26.7 | J129: 25.5 | K129: 22.1 | L129: 28.1124498 | M129: 25.23748327 | N129: 25.14997769 | O129: 26.16663692 | P129: 25.51803262 | Q129: 25.61154908 | R129: 25.76540621 | S129: 25.63166264 | T129: 25.66953931 | U129: 25.68886938 | V129: 25.66335711 | W129: 25.67392193 | X129: 25.67538281 | Y129: 25.67088728 | Z129: 25.67339734 | AA129: 25.67322248 | AB129: 25.67250237 | AC129: 25.67304073 | AD129: 25.67292186 | AE129: 25.67282165 | AF129: 25.67292808 | AG129: 25.67289053 | AH129: 25.67288009 | AI129: 25.67289957 | AJ129: 25.67289006 | AK129: 25.6728899 | AL129: 25.67289318 | AM129: 25.67289105 | AN129: 25.67289138 | AO129: 25.67289187 | AP129: 25.67289143 | AQ129: 25.67289156 | AR129: 25.67289162
A130: 1600000US3112105 | B130: Danbury village, Nebraska | C130: 9.1 | D130: 16.4 | E130: 8.2 | F130: 14.5 | G130: 17.7 | H130: 14.5 | I130: 8.2 | J130: 9.2 | K130: 10.8 | L130: 8.333333333 | M130: 9.444444444 | N130: 9.525925926 | O130: 9.101234568 | P130: 9.357201646 | Q130: 9.328120713 | R130: 9.262185642 | S130: 9.315836001 | T130: 9.302047452 | U130: 9.293356365 | V130: 9.303746606 | W130: 9.299716808 | X130: 9.298939926 | Y130: 9.300801113 | Z130: 9.299819282 | AA130: 9.299853441 | AB130: 9.300157945 | AC130: 9.299943556 | AD130: 9.299984981 | AE130: 9.300028827 | AF130: 9.299985788 | AG130: 9.299999865 | AH130: 9.300004827 | AI130: 9.299996827 | AJ130: 9.300000506 | AK130: 9.30000072 | AL130: 9.299999351 | AM130: 9.300000193 | AN130: 9.300000088 | AO130: 9.299999877 | AP130: 9.300000053 | AQ130: 9.300000006 | AR130: 9.299999979
A131: 1600000US3112140 | B131: Dannebrog village, Nebraska | C131: 18.7 | D131: 19.7 | E131: 18.2 | F131: 14.9 | G131: 15 | H131: 12.2 | I131: 16.4 | J131: 16.1 | K131: 17.8 | L131: 12.55411255 | M131: 15.48470418 | N131: 15.27960558 | O131: 14.43947411 | P131: 15.06792796 | Q131: 14.92900255 | R131: 14.81213487 | S131: 14.93635512 | T131: 14.89249751 | U131: 14.88032917 | V131: 14.9030606 | W131: 14.89196243 | X131: 14.89178407 | Y131: 14.89560237 | Z131: 14.89311629 | AA131: 14.89350091 | AB131: 14.89407319 | AC131: 14.89356346 | AD131: 14.89371252 | AE131: 14.89378306 | AF131: 14.89368634 | AG131: 14.89372731 | AH131: 14.89373224 | AI131: 14.8937153 | AJ131: 14.89372495 | AK131: 14.89372416 | AL131: 14.89372147 | AM131: 14.89372352 | AN131: 14.89372305 | AO131: 14.89372268 | AP131: 14.89372308 | AQ131: 14.89372294 | AR131: 14.8937229
A132: 1600000US3112245 | B132: Davenport village, Nebraska | C132: 17.6 | D132: 22.3 | E132: 22.1 | F132: 16.3 | G132: 19 | H132: 21.2 | I132: 20.8 | J132: 16.4 | K132: 16.3 | L132: 15.76923077 | M132: 16.15641026 | N132: 16.07521368 | O132: 16.0002849 | P132: 16.07730294 | Q132: 16.05093384 | R132: 16.04284056 | S132: 16.05702578 | T132: 16.05026673 | U132: 16.05004436 | V132: 16.05244562 | W132: 16.0509189 | X132: 16.05113629 | Y132: 16.05150027 | Z132: 16.05118516 | AA132: 16.05127391 | AB132: 16.05131978 | AC132: 16.05125961 | AD132: 16.05128443 | AE132: 16.05128794 | AF132: 16.05127733 | AG132: 16.05128324 | AH132: 16.05128284 | AI132: 16.05128113 | AJ132: 16.0512824 | AK132: 16.05128212 | AL132: 16.05128189 | AM132: 16.05128214 | AN132: 16.05128205 | AO132: 16.05128202 | AP132: 16.05128207 | AQ132: 16.05128205 | AR132: 16.05128205
A133: 1600000US3112280 | B133: Davey village, Nebraska | C133: 12 | D133: 8.4 | E133: 14.6 | F133: 15.9 | G133: 21.8 | H133: 23.7 | I133: 27.4 | J133: 23.1 | K133: 24.2 | L133: 23.96694215 | M133: 23.75564738 | N133: 23.97419651 | O133: 23.89892868 | P133: 23.87625752 | Q133: 23.91646091 | R133: 23.8972157 | S133: 23.89664471 | T133: 23.90344044 | U133: 23.89910028 | V133: 23.89972848 | W133: 23.9007564 | X133: 23.89986172 | Y133: 23.90011553 | Z133: 23.90024455 | AA133: 23.90007394 | AB133: 23.90014467 | AC133: 23.90015439 | AD133: 23.90012433 | AE133: 23.90014113 | AF133: 23.90013995 | AG133: 23.90013514 | AH133: 23.90013874 | AI133: 23.90013794 | AJ133: 23.90013727 | AK133: 23.90013799 | AL133: 23.90013773 | AM133: 23.90013766 | AN133: 23.90013779 | AO133: 23.90013773 | AP133: 23.90013773 | AQ133: 23.90013775 | AR133: 23.90013774
A134: 1600000US3112315 | B134: David City city, Nebraska | C134: 21.3 | D134: 18.2 | E134: 17 | F134: 16.5 | G134: 15 | H134: 15.5 | I134: 20.9 | J134: 18.6 | K134: 19 | L134: 20.48846676 | M134: 19.36282225 | N134: 19.61709634 | O134: 19.82279512 | P134: 19.60090457 | Q134: 19.68026534 | R134: 19.70132167 | S134: 19.66083053 | T134: 19.68080585 | U134: 19.68098602 | V134: 19.67420746 | W134: 19.67866644 | X134: 19.67795331 | Y134: 19.6769424 | Z134: 19.67785405 | AA134: 19.67758325 | AB134: 19.6774599 | AC134: 19.6776324 | AD134: 19.67755852 | AE134: 19.67755028 | AF134: 19.6775804 | AG134: 19.67756307 | AH134: 19.67756458 | AI134: 19.67756935 | AJ134: 19.67756566 | AK134: 19.67756653 | AL134: 19.67756718 | AM134: 19.67756646 | AN134: 19.67756672 | AO134: 19.67756679 | AP134: 19.67756666 | AQ134: 19.67756672 | AR134: 19.67756672
